Workbook

Sheet Description
B4: Purpose
B5: EVI-FAST provides a quick and convenient in-depth financial analysis for electric vehicle charging infrastructure. It accommodates basic and advanced user interface modes for modeling side by side scenarios of charging equipment.
B7: Model Description
B8: The model's basic interface lets users specify infrastructure characteristics, such as charger power rating, usage, cost, and incentives. Users can also alter values for parameters such as price of electricity and demand charges. This interface provides basic articulation of financial performance such as investor payback period, net present value, and break-even first year cost of charging. The model uses Generally Accepted Accounting Principles (GAAP) analysis and provides full financial articulation as well as simple graphical and numerical outputs. The advanced interface of this model provides user input options for an additional in-dept parameters, allowing full customization of model assumptions. Parameters include comprehensive aspects of EVI financing such as capital structure, discount rates, grid electricity cost escalation, and taxation. The advanced interface also enables risk analysis based on user-defined distributions of input values.
B10: Model Color Code Legend:
B11: Basic user inputs
B12: Advanced user inputs
B13: Calculated values: DO NOT MODIFY
B14: Key results
B16: Revision History (current version: 1.0)
B17: November, 2020, Version 1.0 (initial release)
B19: Contact
B20: Author: Michael Penev Phone: 303-275-3880 Email: mike.penev@nrel.gov
B22: SOFTWARE USE AGREEMENT
B23: Access to EVI-FAST (“Software”) is provided by the National Renewable Energy Laboratory (“NREL”), which is operated by Alliance for Sustainable Energy, LLC (“ALLIANCE”), for the U.S. Department of Energy (“DOE”). Access to and use of this Software shall impose the following obligations on the user, and use of the Software constitutes user’s agreement to these terms. The Software is being provided, without any fee or cost, for internal, noncommercial purposes only and shall not be redistributed. Please contact the NREL Technology Transfer Office at technology.transfer@nrel.gov for information concerning obtaining a Software license.
B24: NREL is the developer of the original code, design and data of the EVI-FAST Software. Users agree not to implement reverse engineering or back engineering for the purpose of reproducing anything based on the extracted information, including production of modifications or derivative works. The user agrees to credit DOE/NREL/ALLIANCE in any publication or public presentation that results from the use of this Software. The names DOE/NREL/ALLIANCE, however, may not be used in any advertising or publicity to endorse or promote any products or commercial entities unless specific written permission is obtained from DOE/NREL/ ALLIANCE. The user also understands that DOE/NREL/ALLIANCE is not obligated to provide the user with support, consulting, training or assistance of any kind with regard to the use of the Software or to provide the user with any updates, revisions or new versions of the Software.
B25: THE USER AGREES TO INDEMNIFY DOE/NREL/ALLIANCE AND THEIR SUBSIDIARIES, AFFILIATES, OFFICERS, AGENTS, AND EMPLOYEES AGAINST ANY CLAIM OR DEMAND, INCLUDING REASONABLE ATTORNEYS' FEES, RELATED TO THE USER’S USE OF THE SOFTWARE. THE SOFTWARE IS PROVIDED BY DOE/NREL/ALLIANCE "AS IS," AND ANY EXPRESS OR IMPLIED WARRANTIES, INCLUDING BUT NOT LIMITED TO THE IMPLIED WARRANTIES OF MERCHANTABILITY AND FITNESS FOR A PARTICULAR PURPOSE ARE DISCLAIMED. IN NO EVENT SHALL DOE/NREL/ALLIANCE BE LIABLE FOR ANY SPECIAL, INDIRECT OR CONSEQUENTIAL DAMAGES OR ANY DAMAGES WHATSOEVER, INCLUDING BUT NOT LIMITED TO CLAIMS ASSOCIATED WITH THE LOSS OF DATA OR PROFITS, THAT MAY RESULT FROM AN ACTION IN CONTRACT, NEGLIGENCE OR OTHER TORTIOUS CLAIM THAT ARISES OUT OF OR IN CONNECTION WITH THE ACCESS, USE OR PERFORMANCE OF THE SOFTWARE.
B26: Results generated by use of this Software are dependent on many variables, including the quality of the data entered by the user and any assumptions made by the user in relation to data inputs. Accordingly, DOE/NREL/ALLIANCE cannot guarantee any results generated by use of the Software, and the user is entirely responsible for the results and any reliance on the results. The user shall not claim that DOE/NREL/ALLIANCE authenticate or otherwise agree with the results generated by the Software.

Sheet Interface
C5: Overall Financial Performance Metrics | D5: Most likely value | G5: 5%'ile | H5: 95%'ile | I5: Plot | O5: =+C5&" Scenario History" -> Overall Financial Performance Metrics Scenario History
C6: Leveraged, after-tax, nominal IRR | D6: =IF(ISERROR(G0!D225),"Margin is too low",(G0!D225)) -> 0.08 | G6: =+S!J26 -> -0.08327500445 | H6: =+S!J27 -> 0.6726688123 | O6: =+C6 -> Leveraged, after-tax, nominal IRR | P6: 0.08 | Q6: =D6 -> 0.08
C7: Profitability index | D7: =+G0!D226 -> 1.647764043 | G7: =+S!K26 -> -36.99864259 | H7: =+S!K27 -> 48.95948784 | O7: Profitability index | P7: 1.386550933 | Q7: 1.647764043
C8: Investor payback period | D8: =IF(ISERROR(G0!D231),"Margin is too low",(G0!D231)) -> 9 | G8: =+S!L26 -> 3 | H8: =+S!L27 -> 21 | O8: Investor payback period | P8: 8 | Q8: 9
C9: First year of positive EBITD | D9: =IF(ISERROR(G0!D232),"Margin is too low",(G0!D232)) -> 4 | G9: =+S!M26 -> 2 | H9: =+S!M27 -> 3 | O9: First year of positive EBITD | P9: 2 | Q9: 4
C10: ="After-tax, nominal NPV @ "&D164*100&"% discount" -> After-tax, nominal NPV @ 8% discount | D10: =G0!D227 -> 2.910383046e-11 | G10: =+S!N26 -> -86256876.86 | H10: =+S!N27 -> 90332802.63 | O10: After-tax, nominal NPV @ 8% discount | P10: 0 | Q10: 2.910383046e-11
C11: ="Estimated break-even leveraged price ("&D82&"$/"&RetailUnit&")" -> Estimated break-even leveraged price (2020$/kWh) | D11: =+'G9'!G244 -> 0.2926695049 | G11: =+S!O26 -> 14.10543848 | H11: =+S!O27 -> 60.93595017 | O11: Estimated break-even leveraged price (2020$/kWh) | P11: 0.3276548669 | Q11: 0.2926695049
C12: 2016 | D12: =+D11*(1+$D$161)^(C12-D82) -> 0.2714443065
C13: Chart Selector & Description
C15: =+G0!G462 -> Investor cash flow + previous year investor cash flow.
I21: Plot | J21: Multiple scenarios? | K21: ="Real levelized contribution ($/"&RetailUnit&")" -> Real levelized contribution ($/kWh) | O21: Multi-Scenario Inputs
O22: Enter how many scenarios to model | P22: 2
O23: Select scenario to analyze | P23: 2
C24: ="Scenario being analyzed: "&OFFSET(O26,0,$P$23) -> Scenario being analyzed: Hypothetical lvel 3 DC fast charger
O25: Scenario being analyzed (yellow background) | P25: 1 | Q25: 2 | R25: 3 | S25: 4 | T25: 5 | U25: 6 | V25: 7 | W25: 8 | X25: 9 | Y25: 10 | Z25: 11 | AA25: 12 | AB25: 13 | AC25: 14 | AD25: 15 | AE25: 16 | AF25: 17 | AG25: 18 | AH25: 19 | AI25: 20 | AJ25: 21 | AK25: 22 | AL25: 23 | AM25: 24 | AN25: 25 | AO25: 26 | AP25: 27 | AQ25: 28 | AR25: 29 | AS25: 30 | AT25: 31 | AU25: 32 | AV25: 33 | AW25: 34 | AX25: 35 | AY25: 36 | AZ25: 37 | BA25: 38 | BB25: 39 | BC25: 40 | BD25: 41 | BE25: 42 | BF25: 43 | BG25: 44 | BH25: 45 | BI25: 46 | BJ25: 47 | BK25: 48 | BL25: 49 | BM25: 50 | BN25: 51 | BO25: 52 | BP25: 53 | BQ25: 54 | BR25: 55 | BS25: 56 | BT25: 57 | BU25: 58 | BV25: 59 | BW25: 60 | BX25: 61 | BY25: 62 | BZ25: 63 | CA25: 64 | CB25: 65 | CC25: 66 | CD25: 67 | CE25: 68 | CF25: 69 | CG25: 70 | CH25: 71 | CI25: 72 | CJ25: 73 | CK25: 74 | CL25: 75 | CM25: 76 | CN25: 77 | CO25: 78 | CP25: 79 | CQ25: 80 | CR25: 81 | CS25: 82 | CT25: 83 | CU25: 84 | CV25: 85 | CW25: 86 | CX25: 87 | CY25: 88 | CZ25: 89 | DA25: 90 | DB25: 91 | DC25: 92 | DD25: 93 | DE25: 94 | DF25: 95 | DG25: 96 | DH25: 97 | DI25: 98 | DJ25: 99 | DK25: 100 | DL25: 101 | DM25: 102 | DN25: 103 | DO25: 104 | DP25: 105 | DQ25: 106 | DR25: 107 | DS25: 108 | DT25: 109 | DU25: 110 | DV25: 111 | DW25: 112 | DX25: 113 | DY25: 114 | DZ25: 115 | EA25: 116 | EB25: 117 | EC25: 118 | ED25: 119 | EE25: 120 | EF25: 121 | EG25: 122 | EH25: 123 | EI25: 124 | EJ25: 125 | EK25: 126 | EL25: 127 | EM25: 128 | EN25: 129 | EO25: 130 | EP25: 131 | EQ25: 132 | ER25: 133 | ES25: 134 | ET25: 135 | EU25: 136 | EV25: 137 | EW25: 138 | EX25: 139 | EY25: 140 | EZ25: 141 | FA25: 142 | FB25: 143 | FC25: 144 | FD25: 145 | FE25: 146 | FF25: 147 | FG25: 148 | FH25: 149 | FI25: 150 | FJ25: 151 | FK25: 152 | FL25: 153 | FM25: 154 | FN25: 155 | FO25: 156 | FP25: 157 | FQ25: 158 | FR25: 159 | FS25: 160 | FT25: 161 | FU25: 162 | FV25: 163 | FW25: 164 | FX25: 165 | FY25: 166 | FZ25: 167 | GA25: 168 | GB25: 169 | GC25: 170 | GD25: 171 | GE25: 172 | GF25: 173 | GG25: 174 | GH25: 175 | GI25: 176 | GJ25: 177 | GK25: 178 | GL25: 179 | GM25: 180 | GN25: 181 | GO25: 182 | GP25: 183 | GQ25: 184 | GR25: 185 | GS25: 186 | GT25: 187 | GU25: 188 | GV25: 189 | GW25: 190 | GX25: 191 | GY25: 192 | GZ25: 193 | HA25: 194 | HB25: 195 | HC25: 196 | HD25: 197 | HE25: 198 | HF25: 199 | HG25: 200 | HH25: 201 | HI25: 202 | HJ25: 203 | HK25: 204 | HL25: 205 | HM25: 206 | HN25: 207 | HO25: 208 | HP25: 209 | HQ25: 210 | HR25: 211 | HS25: 212 | HT25: 213 | HU25: 214 | HV25: 215 | HW25: 216 | HX25: 217 | HY25: 218 | HZ25: 219 | IA25: 220 | IB25: 221 | IC25: 222 | ID25: 223 | IE25: 224 | IF25: 225 | IG25: 226 | IH25: 227 | II25: 228 | IJ25: 229 | IK25: 230 | IL25: 231 | IM25: 232 | IN25: 233 | IO25: 234 | IP25: 235 | IQ25: 236 | IR25: 237 | IS25: 238 | IT25: 239 | IU25: 240 | IV25: 241 | IW25: 242 | IX25: 243 | IY25: 244 | IZ25: 245 | JA25: 246 | JB25: 247 | JC25: 248 | JD25: 249 | JE25: 250 | JF25: 251 | JG25: 252 | JH25: 253 | JI25: 254 | JJ25: 255 | JK25: 256 | JL25: 257 | JM25: 258 | JN25: 259 | JO25: 260 | JP25: 261 | JQ25: 262 | JR25: 263 | JS25: 264 | JT25: 265 | JU25: 266 | JV25: 267 | JW25: 268 | JX25: 269 | JY25: 270 | JZ25: 271 | KA25: 272 | KB25: 273 | KC25: 274 | KD25: 275 | KE25: 276 | KF25: 277 | KG25: 278 | KH25: 279 | KI25: 280 | KJ25: 281 | KK25: 282 | KL25: 283 | KM25: 284 | KN25: 285 | KO25: 286 | KP25: 287 | KQ25: 288 | KR25: 289 | KS25: 290 | KT25: 291 | KU25: 292 | KV25: 293 | KW25: 294 | KX25: 295 | KY25: 296 | KZ25: 297 | LA25: 298 | LB25: 299 | LC25: 300
C26: Installation(s) Information | D26: Most likely value | G26: %less | H26: %more | O26: Installation name | P26: Hypothetical level 2 charger | Q26: Hypothetical lvel 3 DC fast charger
C27: ="Capacity ("&RetailUnit&"/"&TimeCapacity&")" -> Capacity (kWh/hour) | D27: =OFFSET(O27,0,$P$23) -> 50 | G27: 0 | H27: 0 | O27: =+C27 -> Capacity (kWh/hour) | P27: 7.2 | Q27: 50
C28: Commodity, retail units, capacity timeframe | D28: EV-charging | E28: kWh | F28: hour
C29: Total of Itemized Equipment Cost | D29: =+SUM(D30:E39) -> 38000
C30: =REPLACE(F30,1,1,UPPER(LEFT(F30))) -> Charging equipment | D30: =OFFSET(O30,0,$P$23) -> 38000 | F30: charging equipment | G30: 0 | H30: 0 | K30: =+G0!DC282 -> 0.02829004566 | O30: Charging equipment | P30: 3500 | Q30: 38000
C31: =REPLACE(F31,1,1,UPPER(LEFT(F31))) -> Capital_item 2 | F31: capital_item 2 | G31: 0 | H31: 0 | K31: =+G0!DC283 -> 0 | O31: Capital_item 2
C32: Capital_item 3 | F32: capital_item 3 | G32: 0 | H32: 0 | K32: =+G0!DC284 -> 0 | O32: Capital_item 3
C33: Capital_item 4 | F33: capital_item 4 | G33: 0 | H33: 0 | K33: =+G0!DC285 -> 0 | O33: Capital_item 4
C34: Capital_item 5 | F34: capital_item 5 | G34: 0 | H34: 0 | K34: =+G0!DC286 -> 0 | O34: Capital_item 5
C35: Capital_item 6 | F35: capital_item 6 | G35: 0 | H35: 0 | K35: =+G0!DC287 -> 0 | O35: Capital_item 6
C36: Capital_item 7 | F36: capital_item 7 | G36: 0 | H36: 0 | K36: =+G0!DC288 -> 0 | O36: Capital_item 7
C37: Capital_item 8 | F37: capital_item 8 | G37: 0 | H37: 0 | K37: =+G0!DC289 -> 0 | O37: Capital_item 8
C38: Capital_item 9 | F38: capital_item 9 | G38: 0 | H38: 0 | K38: =+G0!DC290 -> 0 | O38: Capital_item 9
C39: Capital_item 10 | F39: capital_item 10 | G39: 0 | H39: 0 | K39: =+G0!DC291 -> 0 | O39: Capital_item 10
C40: Non-depreciable assets | D40: 0 | G40: 0 | H40: 0 | K40: =+G0!DC293 -> 0 | O40: Non-depreciable assets
C41: Installation cost | D41: =OFFSET(O41,0,$P$23) -> 20000 | G41: 0 | H41: 0 | K41: =+G0!DC292 -> 0.01488949772 | O41: Installation cost | P41: 2500 | Q41: 20000
C42: End of project sale of non-depreciable assets | D42: =+D40*1.2 -> 0 | G42: 0 | H42: 0 | K42: =+G0!DC249 -> 0 | O42: End of project sale of non-depreciable assets
C43: Total annual maintenance | D43: =OFFSET(O43,0,$P$23) -> 2090 | G43: 0 | H43: 0 | K43: =+G0!DC269 -> 0.02290410959 | O43: Total annual maintenance | P43: =+P30*0.055 -> 192.5 | Q43: =+Q30*0.055 -> 2090
C44: Maintenance escalation (% annually) | D44: 0.019 | G44: 0 | H44: 0 | O44: Maintenance escalation (% annually)
C46: Feedstock Use | O46: Feedstock Use
C47: =REPLACE(E47&" ("&F47&"/"&RetailUnit&")",1,1,UPPER(LEFT(E47&" ("&F47&"/"&RetailUnit&")"))) -> Grid electricity (kWh/kWh) | D47: =1/0.98 -> 1.020408163 | E47: grid electricity | F47: kWh | G47: 0 | H47: 0 | K47: =+G0!DC259 -> 0.1020408163 | O47: Grid electricity (kWh/kWh)
C48: Feedstock 2 (units of feedstock 2/kWh) | E48: feedstock 2 | F48: units of feedstock 2 | G48: 0 | H48: 0 | K48: =+G0!DC260 -> 0 | O48: Feedstock 2 (units of feedstock 2/kWh)
C49: Feedstock 3 (units of feedstock 3/kWh) | E49: feedstock 3 | F49: units of feedstock 3 | G49: 0 | H49: 0 | K49: =+G0!DC261 -> 0 | O49: Feedstock 3 (units of feedstock 3/kWh)
C50: Feedstock 4 (units of feedstock 4/kWh) | E50: feedstock 4 | F50: units of feedstock 4 | G50: 0 | H50: 0 | K50: =+G0!DC262 -> 0 | O50: Feedstock 4 (units of feedstock 4/kWh)
C51: Feedstock 5 (units of feedstock 5/kWh) | E51: feedstock 5 | F51: units of feedstock 5 | G51: 0 | H51: 0 | K51: =+G0!DC263 -> 0 | O51: Feedstock 5 (units of feedstock 5/kWh)
C52: Feedstock 6 (units of feedstock 6/kWh) | E52: feedstock 6 | F52: units of feedstock 6 | G52: 0 | H52: 0 | K52: =+G0!DC264 -> 0 | O52: Feedstock 6 (units of feedstock 6/kWh)
C53: Feedstock 7 (units of feedstock 7/kWh) | E53: feedstock 7 | F53: units of feedstock 7 | G53: 0 | H53: 0 | K53: =+G0!DC265 -> 0 | O53: Feedstock 7 (units of feedstock 7/kWh)
C54: Feedstock 8 (units of feedstock 8/kWh) | E54: feedstock 8 | F54: units of feedstock 8 | G54: 0 | H54: 0 | K54: =+G0!DC266 -> 0 | O54: Feedstock 8 (units of feedstock 8/kWh)
C55: Feedstock 9 (units of feedstock 9/kWh) | E55: feedstock 9 | F55: units of feedstock 9 | G55: 0 | H55: 0 | K55: =+G0!DC267 -> 0 | O55: Feedstock 9 (units of feedstock 9/kWh)
C57: Co-product Specifications | O57: Co-product Specifications
C58: =REPLACE(E58&" ("&F58&"/"&RetailUnit&")",1,1,UPPER(LEFT(E58&" ("&F58&"/"&RetailUnit&")"))) -> Coproduct 1 (units of coproduct 1/kWh) | E58: coproduct 1 | F58: units of coproduct 1 | G58: 0 | H58: 0 | K58: =+G0!DC237 -> 0 | O58: Coproduct 1 (units of coproduct 1/kWh)
C59: Coproduct 2 (units of coproduct 2/kWh) | E59: coproduct 2 | F59: units of coproduct 2 | G59: 0 | H59: 0 | K59: =+G0!DC238 -> 0 | O59: Coproduct 2 (units of coproduct 2/kWh)
C60: Coproduct 3 (units of coproduct 3/kWh) | E60: coproduct 3 | F60: units of coproduct 3 | G60: 0 | H60: 0 | K60: =+G0!DC239 -> 0 | O60: Coproduct 3 (units of coproduct 3/kWh)
C61: Coproduct 4 (units of coproduct 4/kWh) | E61: coproduct 4 | F61: units of coproduct 4 | G61: 0 | H61: 0 | K61: =+G0!DC240 -> 0 | O61: Coproduct 4 (units of coproduct 4/kWh)
C62: Coproduct 5 (units of coproduct 5/kWh) | E62: coproduct 5 | F62: units of coproduct 5 | G62: 0 | H62: 0 | K62: =+G0!DC241 -> 0 | O62: Coproduct 5 (units of coproduct 5/kWh)
C63: Coproduct 6 (units of coproduct 6/kWh) | E63: coproduct 6 | F63: units of coproduct 6 | G63: 0 | H63: 0 | K63: =+G0!DC242 -> 0 | O63: Coproduct 6 (units of coproduct 6/kWh)
C65: Incentives Specification | O65: Incentives Specification
C66: One time capital incentives | D66: 0 | G66: 0 | H66: 0 | K66: =+G0!DC247 -> 0 | O66: One time capital incentives
C67: Annual operating incentives | D67: 0 | G67: 0 | H67: 0 | K67: =+G0!DC243 -> 0 | O67: Annual operating incentives
C68: Operating incentives linear decay (% of initial/year) | D68: 0 | G68: 0 | H68: 0 | O68: Operating incentives linear decay (% of initial/year)
C69: Operating incentives sunset (years) | D69: 3 | G69: 0 | H69: 0 | O69: Operating incentives sunset (years)
C70: =F70&" incentive ($/"&RetailUnit&")" -> LCFS incentive ($/kWh) | D70: 0 | F70: LCFS | G70: 0 | H70: 0 | K70: =+G0!DC244 -> 0 | O70: LCFS incentive ($/kWh)
C71: =F70&" incentive decay rate (%/year)" -> LCFS incentive decay rate (%/year) | D71: -0.019 | G71: 0 | H71: 0 | O71: LCFS incentive decay rate (%/year)
C72: =F70&" incentive sunset (year)" -> LCFS incentive sunset (year) | D72: 100 | G72: 0 | H72: 0 | O72: LCFS incentive sunset (year)
C73: =F73&" incentive ($/"&RetailUnit&")" -> RIN incentive ($/kWh) | D73: 0 | F73: RIN | G73: 0 | H73: 0 | K73: =+G0!DC245 -> 0 | O73: RIN incentive ($/kWh)
C74: =F73&" incentive decay rate (%/year)" -> RIN incentive decay rate (%/year) | D74: 0 | G74: 0 | H74: 0 | O74: RIN incentive decay rate (%/year)
C75: =F73&" incentive sunset (year)" -> RIN incentive sunset (year) | D75: 20 | G75: 0 | H75: 0 | O75: RIN incentive sunset (year)
C76: Incidental revenue ($/year) | G76: 0 | H76: 0 | K76: =+G0!DC246 -> 0 | O76: Incidental revenue ($/year)
C77: Incidental revenue escalation rate (%/year) | D77: 0.019 | G77: 0 | H77: 0 | O77: Incidental revenue escalation rate (%/year)
C79: Sales Specification | O79: Sales Specification
C80: ="Price of "&RetailCommodity&" at project onset ($/"&RetailUnit&")" -> Price of EV-charging at project onset ($/kWh) | D80: =+D11 -> 0.2926695049 | G80: 0 | H80: 0 | K80: =+G0!DC236 -> 0.2926695049 | O80: Price of EV-charging at project onset ($/kWh)
C81: Price escalation rate (% annually) | D81: 0.019 | G81: 0 | H81: 0 | O81: Price escalation rate (% annually)
C82: Project initiation (year of financing) | D82: 2020 | O82: Project initiation (year of financing)
C83: Project operational life (years) | D83: 15 | O83: Project operational life (years)
C84: Installation time (months) | D84: =OFFSET(O84,0,$P$23) -> 6 | G84: 0 | H84: 0 | O84: Installation time (months) | P84: 3 | Q84: 6
C85: Demand ramp-up (years) | D85: =OFFSET(O85,0,$P$23) -> 5 | G85: 0 | H85: 0 | O85: Demand ramp-up (years) | P85: 1 | Q85: 5
C86: Long-term nominal utilization (%) | D86: =OFFSET(O86,0,$P$23) -> 0.25 | G86: 0 | H86: 0 | O86: Long-term nominal utilization (%) | P86: 0.25 | Q86: 0.25
C88: Feedstock Cost | O88: Feedstock Cost
C89: ="Cost of "&E47&" ($/"&F47&")" -> Cost of grid electricity ($/kWh) | D89: 0.1 | G89: 0 | H89: 0 | K89: =+G0!DC259 -> 0.1020408163 | O89: Cost of grid electricity ($/kWh)
C90: Escalation rate of cost (% annually) | D90: 0.019 | G90: 0 | H90: 0 | O90: Escalation rate of cost (% annually)
C91: ="Cost of "&E48&" ($/"&F48&")" -> Cost of feedstock 2 ($/units of feedstock 2) | D91: 0.1 | G91: 0 | H91: 0 | K91: =+G0!DC260 -> 0 | O91: =+C91 -> Cost of feedstock 2 ($/units of feedstock 2)
C92: Escalation rate of cost (% annually) | D92: 0.019 | G92: 0 | H92: 0 | O92: Escalation rate of cost (% annually)
C93: ="Cost of "&E49&" ($/"&F49&")" -> Cost of feedstock 3 ($/units of feedstock 3) | D93: 0.1 | G93: 0 | H93: 0 | K93: =+G0!DC261 -> 0 | O93: Cost of feedstock 3 ($/units of feedstock 3)
C94: Escalation rate of cost (% annually) | D94: 0.019 | G94: 0 | H94: 0 | O94: Escalation rate of cost (% annually)
C95: ="Cost of "&E50&" ($/"&F50&")" -> Cost of feedstock 4 ($/units of feedstock 4) | D95: 0.1 | G95: 0 | H95: 0 | K95: =+G0!DC262 -> 0 | O95: Cost of feedstock 4 ($/units of feedstock 4)
C96: Escalation rate of cost (% annually) | D96: 0.019 | G96: 0 | H96: 0 | O96: Escalation rate of cost (% annually)
C97: ="Cost of "&E51&" ($/"&F51&")" -> Cost of feedstock 5 ($/units of feedstock 5) | D97: 0.1 | G97: 0 | H97: 0 | K97: =+G0!DC263 -> 0 | O97: Cost of feedstock 5 ($/units of feedstock 5)
C98: Escalation rate of cost (% annually) | D98: 0.019 | G98: 0 | H98: 0 | O98: Escalation rate of cost (% annually)
C99: ="Cost of "&E52&" ($/"&F52&")" -> Cost of feedstock 6 ($/units of feedstock 6) | D99: 0.1 | G99: 0 | H99: 0 | K99: =+G0!DC264 -> 0 | O99: Cost of feedstock 6 ($/units of feedstock 6)
C100: Escalation rate of cost (% annually) | D100: 0.019 | G100: 0 | H100: 0 | O100: Escalation rate of cost (% annually)
C101: ="Cost of "&E53&" ($/"&F53&")" -> Cost of feedstock 7 ($/units of feedstock 7) | D101: 0.1 | G101: 0 | H101: 0 | K101: =+G0!DC265 -> 0 | O101: Cost of feedstock 7 ($/units of feedstock 7)
C102: Escalation rate of cost (% annually) | D102: 0.019 | G102: 0 | H102: 0 | O102: Escalation rate of cost (% annually)
C103: ="Cost of "&E54&" ($/"&F54&")" -> Cost of feedstock 8 ($/units of feedstock 8) | D103: 0.1 | G103: 0 | H103: 0 | K103: =+G0!DC266 -> 0 | O103: Cost of feedstock 8 ($/units of feedstock 8)
C104: Escalation rate of cost (% annually) | D104: 0.019 | G104: 0 | H104: 0 | O104: Escalation rate of cost (% annually)
C105: ="Cost of "&E55&" ($/"&F55&")" -> Cost of feedstock 9 ($/units of feedstock 9) | D105: 0.1 | G105: 0 | H105: 0 | K105: =+G0!DC267 -> 0 | O105: Cost of feedstock 9 ($/units of feedstock 9)
C106: Escalation rate of cost (% annually) | D106: 0.019 | G106: 0 | H106: 0 | O106: Escalation rate of cost (% annually)
C108: Co-Product Value | O108: Co-Product Value
C109: ="Value of "&E58&" ($/"&F58&")" -> Value of coproduct 1 ($/units of coproduct 1) | D109: 0.1 | G109: 0 | H109: 0 | K109: =+G0!DC237 -> 0 | O109: Value of coproduct 1 ($/units of coproduct 1)
C110: Escalation rate of cost (% annually) | D110: 0.019 | G110: 0 | H110: 0 | O110: Escalation rate of cost (% annually)
C111: ="Value of "&E59&" ($/"&F59&")" -> Value of coproduct 2 ($/units of coproduct 2) | D111: 0.1 | G111: 0 | H111: 0 | K111: =+G0!DC238 -> 0 | O111: Value of coproduct 2 ($/units of coproduct 2)
C112: Escalation rate of cost (% annually) | D112: 0.019 | G112: 0 | H112: 0 | O112: Escalation rate of cost (% annually)
C113: ="Value of "&E60&" ($/"&F60&")" -> Value of coproduct 3 ($/units of coproduct 3) | D113: 0.1 | G113: 0 | H113: 0 | K113: =+G0!DC239 -> 0 | O113: Value of coproduct 3 ($/units of coproduct 3)
C114: Escalation rate of cost (% annually) | D114: 0.019 | G114: 0 | H114: 0 | O114: Escalation rate of cost (% annually)
C115: ="Value of "&E61&" ($/"&F61&")" -> Value of coproduct 4 ($/units of coproduct 4) | D115: 0.1 | G115: 0 | H115: 0 | K115: =+G0!DC240 -> 0 | O115: Value of coproduct 4 ($/units of coproduct 4)
C116: Escalation rate of cost (% annually) | D116: 0.019 | G116: 0 | H116: 0 | O116: Escalation rate of cost (% annually)
C117: ="Value of "&E62&" ($/"&F62&")" -> Value of coproduct 5 ($/units of coproduct 5) | D117: 0.1 | G117: 0 | H117: 0 | K117: =+G0!DC241 -> 0 | O117: Value of coproduct 5 ($/units of coproduct 5)
C118: Escalation rate of cost (% annually) | D118: 0.019 | G118: 0 | H118: 0 | O118: Escalation rate of cost (% annually)
C119: ="Value of "&E63&" ($/"&F63&")" -> Value of coproduct 6 ($/units of coproduct 6) | D119: 0.1 | G119: 0 | H119: 0 | K119: =+G0!DC242 -> 0 | O119: Value of coproduct 6 ($/units of coproduct 6)
C120: Escalation rate of cost (% annually) | D120: 0.019 | G120: 0 | H120: 0 | O120: Escalation rate of cost (% annually)
C122: Take or Pay Contract Specification | O122: =+C122 -> Take or Pay Contract Specification
C123: ="Price of unsold "&RetailCommodity&" ($/"&RetailUnit&")" -> Price of unsold EV-charging ($/kWh) | G123: 0 | H123: 0 | K123: =+G0!DC253 -> 0 | O123: =+C123 -> Price of unsold EV-charging ($/kWh)
C124: Price decay (% annually) | D124: 0.1 | G124: 0 | H124: 0 | O124: =+C124 -> Price decay (% annually)
C125: Contract sunset (years) | D125: 20 | G125: 0 | H125: 0 | O125: =+C125 -> Contract sunset (years)
C126: Utilization supported up to (% of capacity) | D126: 0.85 | G126: 0 | H126: 0 | O126: =+C126 -> Utilization supported up to (% of capacity)
C128: Other Operating Expenses | O128: Other Operating Expenses
C129: Credit card fees (% of sales) | D129: 0.025 | G129: 0 | H129: 0 | K129: =+G0!DC256 -> 0.007316737623 | O129: Credit card fees (% of sales)
C130: Sales tax (% of sales) | D130: 0.0225 | G130: 0 | H130: 0 | K130: =+G0!DC257 -> 0.006585063861 | O130: Sales tax (% of sales)
C131: =REPLACE(F131&" ($/"&RetailUnit&")",1,1,UPPER(LEFT(F131&" ($/"&RetailUnit&")"))) -> Road tax ($/kWh) | D131: 0 | F131: road tax | G131: 0 | H131: 0 | K131: =+G0!DC258 -> 0 | O131: Road tax ($/kWh)
C132: =REPLACE(F131&" escalation (% annually)",1,1,UPPER(LEFT(F131&" escalation (% annually)"))) -> Road tax escalation (% annually) | D132: 0.019 | G132: 0 | H132: 0 | O132: Road tax escalation (% annually)
C133: Staffing labor hours (h/year) | G133: 0 | H133: 0 | K133: =+G0!DC268 -> 0 | O133: Staffing labor hours (h/year)
C134: Labor rate ($/h) | D134: 40 | G134: 0 | H134: 0 | O134: Labor rate ($/h)
C135: Labor escalation rate (% annually) | D135: 0.019 | G135: 0 | H135: 0 | O135: Labor escalation rate (% annually)
C136: Licensing & permitting ($/year) | D136: 0 | G136: 0 | H136: 0 | K136: =+G0!DC272 -> 0 | O136: Licensing & permitting ($/year)
C137: Licensing & permitting escalation rate (%/year) | D137: 0.019 | G137: 0 | H137: 0 | O137: Licensing & permitting escalation rate (%/year)
C138: Rent of parking space ($/year) | D138: =50*300*0.1 -> 1500 | G138: 0 | H138: 0 | K138: =+G0!DC270 -> 0.01643835616 | O138: Rent of parking space ($/year)
C139: Rent escalation (% annually) | D139: 0.019 | G139: 0 | H139: 0 | O139: Rent escalation (% annually)
C140: Property insurance (% of dep capital) | D140: 0.009 | G140: 0 | H140: 0 | K140: =+G0!DC271 -> 0.002083246772 | O140: Property insurance (% of dep capital)
C141: Administrative expense (% of sales) | D141: 0.005 | G141: 0 | H141: 0 | K141: =+G0!DC273 -> 0.001463347525 | O141: Administrative expense (% of sales)
C142: =REPLACE(F142&" ($/year)",1,1,UPPER(LEFT(F142&" ($/year)"))) -> Demand charges ($/year) | D142: =OFFSET(O142,0,$P$23) -> 6000 | F142: demand charges | G142: 0 | H142: 0 | K142: =+G0!DC274 -> 0.06575342466 | O142: Demand charges ($/year) | P142: =+P27*10*12 -> 864 | Q142: =+Q27*10*12 -> 6000
C143: =REPLACE(F142&" escalation (% annually)",1,1,UPPER(LEFT(F142&" escalation (% annually)"))) -> Demand charges escalation (% annually) | D143: 0.019 | G143: 0 | H143: 0 | O143: Demand charges escalation (% annually)
C144: =REPLACE(F144&" ($/year)",1,1,UPPER(LEFT(F144&" ($/year)"))) -> User defined charges 2 ($/year) | D144: 0 | F144: user defined charges 2 | G144: 0 | H144: 0 | K144: =+G0!DC275 -> 0 | O144: User defined charges 2 ($/year)
C145: =REPLACE(F144&" escalation (% annually)",1,1,UPPER(LEFT(F144&" escalation (% annually)"))) -> User defined charges 2 escalation (% annually) | D145: 0.019 | G145: 0 | H145: 0 | O145: User defined charges 2 escalation (% annually)
C146: =REPLACE(F146&" ($/year)",1,1,UPPER(LEFT(F146&" ($/year)"))) -> User defined charges 3 ($/year) | D146: 0 | F146: user defined charges 3 | G146: 0 | H146: 0 | K146: =+G0!DC276 -> 0 | O146: User defined charges 3 ($/year)
C147: =REPLACE(F146&" escalation (% annually)",1,1,UPPER(LEFT(F146&" escalation (% annually)"))) -> User defined charges 3 escalation (% annually) | D147: 0.019 | G147: 0 | H147: 0 | O147: User defined charges 3 escalation (% annually)
C148: =REPLACE(F148&" ($/year)",1,1,UPPER(LEFT(F148&" ($/year)"))) -> User defined charges 4 ($/year) | D148: 0 | F148: user defined charges 4 | G148: 0 | H148: 0 | K148: =+G0!DC277 -> 0 | O148: User defined charges 4 ($/year)
C149: =REPLACE(F148&" escalation (% annually)",1,1,UPPER(LEFT(F148&" escalation (% annually)"))) -> User defined charges 4 escalation (% annually) | D149: 0.019 | G149: 0 | H149: 0 | O149: User defined charges 4 escalation (% annually)
C150: =REPLACE(F150&" ($/year)",1,1,UPPER(LEFT(F150&" ($/year)"))) -> User defined charges 5 ($/year) | F150: user defined charges 5 | G150: 0 | H150: 0 | K150: =+G0!DC278 -> 0 | O150: User defined charges 5 ($/year)
C151: =REPLACE(F150&" escalation (% annually)",1,1,UPPER(LEFT(F150&" escalation (% annually)"))) -> User defined charges 5 escalation (% annually) | D151: 0.019 | G151: 0 | H151: 0 | O151: User defined charges 5 escalation (% annually)
C153: Financing Information | O153: Financing Information
C154: Total tax rate (state, federal, local) | D154: 0.2574 | G154: 0 | H154: 0 | K154: =+G0!DC280 -> 0.01578321758 | O154: Total tax rate (state, federal, local)
C155: Capital gains tax | D155: 0.15 | G155: 0 | H155: 0 | K155: =+G0!DC281 -> 0 | O155: =+C155 -> Capital gains tax
C156: Is installation cost depreciable? | D156: No | O156: Is installation cost depreciable?
C157: Are operating incentives taxable? | D157: No | O157: Are operating incentives taxable?
C158: Is capital incentive depreciable? | D158: Yes | O158: Is capital incentive depreciable?
C159: Are tax losses monetized (tax equity application) | D159: Yes | K159: =+G0!DC248 -> 0.008438883468 | O159: Are tax losses monetized (tax equity application)
C160: Allowable tax loss carry-forward | D160: 7 | O160: Allowable tax loss carry-forward
C161: General inflation rate | D161: 0.019 | G161: 0 | H161: 0 | O161: General inflation rate
C162: Depreciation method | D162: MACRS | O162: Depreciation method
C163: Depreciation period | D163: 5 | O163: Depreciation period
C164: Leveraged after-tax nominal discount rate | D164: 0.08 | G164: 0 | H164: 0 | O164: Leveraged after-tax nominal discount rate
C165: Debt/equity financing | D165: 1.5 | G165: 0 | H165: 0 | O165: Debt/equity financing
C166: Debt type | D166: Revolving debt | O166: Debt type
C167: If loan, period of loan (years) | D167: 15 | O167: If loan, period of loan (years)
C168: Debt interest rate (compounded monthly) | D168: 0.037 | G168: 0 | H168: 0 | K168: =+G0!DC279 -> 0.01276443364 | O168: Debt interest rate (compounded monthly)
C169: Cash on hand (% of monthly expenses) | D169: 1 | G169: 0 | H169: 0 | K169: =+G0!DC296-G0!DC252 -> 0.0003448616933 | O169: Cash on hand (% of monthly expenses)
C174: Car Specifications (used for some plots)
C175: Car annual driving (miles/year) | D175: 12000
C176: Car fuel efficiency (miles/gge) | D176: 60
C177: Fueling / charging quantity (gge/visit) | D177: 4
C182: ="Detailed price allocation ($/"&RetailUnit&")" -> Detailed price allocation ($/kWh)
C183: =+G0!C584 -> Credit card fees | D183: =+G0!E584 -> 0.007111678254
C184: =+G0!C585 -> Sales tax | D184: =+G0!E585 -> 0.006400510428
C185: =+G0!C586 -> road tax | D185: =+G0!E586 -> 0
C186: =+G0!C587 -> grid electricity | D186: =+G0!E587 -> 0.09918101371
C187: =+G0!C588 -> feedstock 2 | D187: =+G0!E588 -> 0
C188: =+G0!C589 -> feedstock 3 | D188: =+G0!E589 -> 0
C189: =+G0!C590 -> feedstock 4 | D189: =+G0!E590 -> 0
C190: =+G0!C591 -> feedstock 5 | D190: =+G0!E591 -> 0
C191: =+G0!C592 -> feedstock 6 | D191: =+G0!E592 -> 0
C192: =+G0!C593 -> feedstock 7 | D192: =+G0!E593 -> 0
C193: =+G0!C594 -> feedstock 8 | D193: =+G0!E594 -> 0
C194: =+G0!C595 -> feedstock 9 | D194: =+G0!E595 -> 0
C195: =+G0!C596 -> Labor | D195: =+G0!E596 -> 0
C196: =+G0!C597 -> Total annual maintenance | D196: =+G0!E597 -> 0.02226219751
C197: =+G0!C598 -> Rent of parking space | D197: =+G0!E598 -> 0.01597765371
C198: =+G0!C599 -> Property insurance | D198: =+G0!E599 -> 0.002024861561
C199: =+G0!C600 -> Licensing & permitting | D199: =+G0!E600 -> 0
C200: =+G0!C601 -> Administrative expense | D200: =+G0!E601 -> 0.001422335651
C201: =+G0!C602 -> Demand charges | D201: =+G0!E602 -> 0.06391061486
C202: =+G0!C603 -> User defined charges 2 | D202: =+G0!E603 -> 0
C203: =+G0!C604 -> User defined charges 3 | D203: =+G0!E604 -> 0
C204: =+G0!C605 -> User defined charges 4 | D204: =+G0!E605 -> 0
C205: =+G0!C606 -> User defined charges 5 | D205: =+G0!E606 -> 0
C206: =+G0!C607 -> Income taxes payable | D206: =+G0!E607 -> 0.01534087608
C207: =+G0!C608 -> Capital gains taxes payable | D207: =+G0!E608 -> 0
C208: =+G0!C609 -> charging equipment | D208: =+G0!E609 -> 0.02749718698
C209: =+G0!C610 -> capital_item 2 | D209: =+G0!E610 -> 0
C210: =+G0!C611 -> capital_item 3 | D210: =+G0!E611 -> 0
C211: =+G0!C612 -> capital_item 4 | D211: =+G0!E612 -> 0
C212: =+G0!C613 -> capital_item 5 | D212: =+G0!E613 -> 0
C213: =+G0!C614 -> capital_item 6 | D213: =+G0!E614 -> 0
C214: =+G0!C615 -> capital_item 7 | D214: =+G0!E615 -> 0
C215: =+G0!C616 -> capital_item 8 | D215: =+G0!E616 -> 0
C216: =+G0!C617 -> capital_item 9 | D216: =+G0!E617 -> 0
C217: =+G0!C618 -> capital_item 10 | D217: =+G0!E618 -> 0
C218: =+G0!C619 -> Installation cost | D218: =+G0!E619 -> 0.01447220368
C219: =+G0!C620 -> Non-depreciable assets | D219: =+G0!E620 -> 0
C220: =+G0!C621 -> Net equity financing expense | D220: =+G0!E621 -> 0.01120970144
C221: =+G0!C622 -> Net debt financing expense | D221: =+G0!E622 -> 0.005858671047
C222: =+G0!C623 -> coproduct 1 sales | D222: =+G0!E623 -> 0
C223: =+G0!C624 -> coproduct 2 sales | D223: =+G0!E624 -> 0
C224: =+G0!C625 -> coproduct 3 sales | D224: =+G0!E625 -> 0
C225: =+G0!C626 -> coproduct 4 sales | D225: =+G0!E626 -> 0
C226: =+G0!C627 -> coproduct 5 sales | D226: =+G0!E627 -> 0
C227: =+G0!C628 -> coproduct 6 sales | D227: =+G0!E628 -> 0
... 8 more rows

Sheet G0 (hidden)
C3: General information
C4: Calendar year (end of year) | D4: =+E4-1 -> 2019 | E4: =S!$BL$206 -> 2020 | F4: =+E4+1 -> 2021 | G4: =+F4+1 -> 2022 | H4: 2023 | I4: 2024 | J4: 2025 | K4: 2026 | L4: 2027 | M4: 2028 | N4: 2029 | O4: 2030 | P4: 2031 | Q4: 2032 | R4: 2033 | S4: 2034 | T4: 2035 | U4: 2036 | V4: 2037 | W4: 2038 | X4: 2039 | Y4: 2040 | Z4: 2041 | AA4: 2042 | AB4: 2043 | AC4: 2044 | AD4: 2045 | AE4: 2046 | AF4: 2047 | AG4: 2048 | AH4: 2049 | AI4: 2050 | AJ4: 2051 | AK4: 2052 | AL4: 2053 | AM4: 2054 | AN4: 2055 | AO4: 2056 | AP4: 2057 | AQ4: 2058 | AR4: =+AQ4+1 -> 2059 | AS4: 2060 | AT4: 2061 | AU4: 2062 | AV4: 2063 | AW4: 2064 | AX4: 2065 | AY4: 2066 | AZ4: 2067 | BA4: 2068 | BB4: 2069 | BC4: 2070 | BD4: 2071 | BE4: 2072 | BF4: 2073 | BG4: 2074 | BH4: 2075 | BI4: 2076 | BJ4: 2077 | BK4: 2078 | BL4: 2079 | BM4: 2080 | BN4: 2081 | BO4: 2082 | BP4: 2083 | BQ4: 2084 | BR4: 2085 | BS4: 2086 | BT4: 2087 | BU4: 2088 | BV4: 2089 | BW4: 2090 | BX4: =+BW4+1 -> 2091 | BY4: 2092 | BZ4: 2093 | CA4: 2094 | CB4: 2095 | CC4: 2096 | CD4: 2097 | CE4: 2098 | CF4: 2099 | CG4: 2100 | CH4: 2101 | CI4: 2102 | CJ4: 2103 | CK4: 2104 | CL4: 2105 | CM4: 2106 | CN4: 2107 | CO4: 2108 | CP4: 2109 | CQ4: 2110 | CR4: 2111 | CS4: 2112 | CT4: 2113 | CU4: 2114 | CV4: 2115 | CW4: 2116 | CX4: 2117 | CY4: 2118
C5: Analysis year (end of year) | D5: =+E5-1 -> 0 | E5: =IF((COLUMN(E5)-COLUMN($D$5))>(S!$BM$206+ROUNDUP(S!$BN$206/12,0)),0,COLUMN(E5)-COLUMN($D$5)) -> 1 | F5: =IF((COLUMN(F5)-COLUMN($D$5))>(S!$BM$206+ROUNDUP(S!$BN$206/12,0)),0,COLUMN(F5)-COLUMN($D$5)) -> 2 | G5: =IF((COLUMN(G5)-COLUMN($D$5))>(S!$BM$206+ROUNDUP(S!$BN$206/12,0)),0,COLUMN(G5)-COLUMN($D$5)) -> 3 | H5: =IF((COLUMN(H5)-COLUMN($D$5))>(S!$BM$206+ROUNDUP(S!$BN$206/12,0)),0,COLUMN(H5)-COLUMN($D$5)) -> 4 | I5: =IF((COLUMN(I5)-COLUMN($D$5))>(S!$BM$206+ROUNDUP(S!$BN$206/12,0)),0,COLUMN(I5)-COLUMN($D$5)) -> 5 | J5: =IF((COLUMN(J5)-COLUMN($D$5))>(S!$BM$206+ROUNDUP(S!$BN$206/12,0)),0,COLUMN(J5)-COLUMN($D$5)) -> 6 | K5: =IF((COLUMN(K5)-COLUMN($D$5))>(S!$BM$206+ROUNDUP(S!$BN$206/12,0)),0,COLUMN(K5)-COLUMN($D$5)) -> 7 | L5: =IF((COLUMN(L5)-COLUMN($D$5))>(S!$BM$206+ROUNDUP(S!$BN$206/12,0)),0,COLUMN(L5)-COLUMN($D$5)) -> 8 | M5: =IF((COLUMN(M5)-COLUMN($D$5))>(S!$BM$206+ROUNDUP(S!$BN$206/12,0)),0,COLUMN(M5)-COLUMN($D$5)) -> 9 | N5: =IF((COLUMN(N5)-COLUMN($D$5))>(S!$BM$206+ROUNDUP(S!$BN$206/12,0)),0,COLUMN(N5)-COLUMN($D$5)) -> 10 | O5: =IF((COLUMN(O5)-COLUMN($D$5))>(S!$BM$206+ROUNDUP(S!$BN$206/12,0)),0,COLUMN(O5)-COLUMN($D$5)) -> 11 | P5: =IF((COLUMN(P5)-COLUMN($D$5))>(S!$BM$206+ROUNDUP(S!$BN$206/12,0)),0,COLUMN(P5)-COLUMN($D$5)) -> 12 | Q5: =IF((COLUMN(Q5)-COLUMN($D$5))>(S!$BM$206+ROUNDUP(S!$BN$206/12,0)),0,COLUMN(Q5)-COLUMN($D$5)) -> 13 | R5: =IF((COLUMN(R5)-COLUMN($D$5))>(S!$BM$206+ROUNDUP(S!$BN$206/12,0)),0,COLUMN(R5)-COLUMN($D$5)) -> 14 | S5: =IF((COLUMN(S5)-COLUMN($D$5))>(S!$BM$206+ROUNDUP(S!$BN$206/12,0)),0,COLUMN(S5)-COLUMN($D$5)) -> 15 | T5: =IF((COLUMN(T5)-COLUMN($D$5))>(S!$BM$206+ROUNDUP(S!$BN$206/12,0)),0,COLUMN(T5)-COLUMN($D$5)) -> 16 | U5: =IF((COLUMN(U5)-COLUMN($D$5))>(S!$BM$206+ROUNDUP(S!$BN$206/12,0)),0,COLUMN(U5)-COLUMN($D$5)) -> 0 | V5: =IF((COLUMN(V5)-COLUMN($D$5))>(S!$BM$206+ROUNDUP(S!$BN$206/12,0)),0,COLUMN(V5)-COLUMN($D$5)) -> 0 | W5: =IF((COLUMN(W5)-COLUMN($D$5))>(S!$BM$206+ROUNDUP(S!$BN$206/12,0)),0,COLUMN(W5)-COLUMN($D$5)) -> 0 | X5: =IF((COLUMN(X5)-COLUMN($D$5))>(S!$BM$206+ROUNDUP(S!$BN$206/12,0)),0,COLUMN(X5)-COLUMN($D$5)) -> 0 | Y5: =IF((COLUMN(Y5)-COLUMN($D$5))>(S!$BM$206+ROUNDUP(S!$BN$206/12,0)),0,COLUMN(Y5)-COLUMN($D$5)) -> 0 | Z5: =IF((COLUMN(Z5)-COLUMN($D$5))>(S!$BM$206+ROUNDUP(S!$BN$206/12,0)),0,COLUMN(Z5)-COLUMN($D$5)) -> 0 | AA5: =IF((COLUMN(AA5)-COLUMN($D$5))>(S!$BM$206+ROUNDUP(S!$BN$206/12,0)),0,COLUMN(AA5)-COLUMN($D$5)) -> 0 | AB5: =IF((COLUMN(AB5)-COLUMN($D$5))>(S!$BM$206+ROUNDUP(S!$BN$206/12,0)),0,COLUMN(AB5)-COLUMN($D$5)) -> 0 | AC5: =IF((COLUMN(AC5)-COLUMN($D$5))>(S!$BM$206+ROUNDUP(S!$BN$206/12,0)),0,COLUMN(AC5)-COLUMN($D$5)) -> 0 | AD5: =IF((COLUMN(AD5)-COLUMN($D$5))>(S!$BM$206+ROUNDUP(S!$BN$206/12,0)),0,COLUMN(AD5)-COLUMN($D$5)) -> 0 | AE5: =IF((COLUMN(AE5)-COLUMN($D$5))>(S!$BM$206+ROUNDUP(S!$BN$206/12,0)),0,COLUMN(AE5)-COLUMN($D$5)) -> 0 | AF5: =IF((COLUMN(AF5)-COLUMN($D$5))>(S!$BM$206+ROUNDUP(S!$BN$206/12,0)),0,COLUMN(AF5)-COLUMN($D$5)) -> 0 | AG5: =IF((COLUMN(AG5)-COLUMN($D$5))>(S!$BM$206+ROUNDUP(S!$BN$206/12,0)),0,COLUMN(AG5)-COLUMN($D$5)) -> 0 | AH5: =IF((COLUMN(AH5)-COLUMN($D$5))>(S!$BM$206+ROUNDUP(S!$BN$206/12,0)),0,COLUMN(AH5)-COLUMN($D$5)) -> 0 | AI5: =IF((COLUMN(AI5)-COLUMN($D$5))>(S!$BM$206+ROUNDUP(S!$BN$206/12,0)),0,COLUMN(AI5)-COLUMN($D$5)) -> 0 | AJ5: =IF((COLUMN(AJ5)-COLUMN($D$5))>(S!$BM$206+ROUNDUP(S!$BN$206/12,0)),0,COLUMN(AJ5)-COLUMN($D$5)) -> 0 | AK5: =IF((COLUMN(AK5)-COLUMN($D$5))>(S!$BM$206+ROUNDUP(S!$BN$206/12,0)),0,COLUMN(AK5)-COLUMN($D$5)) -> 0 | AL5: =IF((COLUMN(AL5)-COLUMN($D$5))>(S!$BM$206+ROUNDUP(S!$BN$206/12,0)),0,COLUMN(AL5)-COLUMN($D$5)) -> 0 | AM5: =IF((COLUMN(AM5)-COLUMN($D$5))>(S!$BM$206+ROUNDUP(S!$BN$206/12,0)),0,COLUMN(AM5)-COLUMN($D$5)) -> 0 | AN5: =IF((COLUMN(AN5)-COLUMN($D$5))>(S!$BM$206+ROUNDUP(S!$BN$206/12,0)),0,COLUMN(AN5)-COLUMN($D$5)) -> 0 | AO5: =IF((COLUMN(AO5)-COLUMN($D$5))>(S!$BM$206+ROUNDUP(S!$BN$206/12,0)),0,COLUMN(AO5)-COLUMN($D$5)) -> 0 | AP5: =IF((COLUMN(AP5)-COLUMN($D$5))>(S!$BM$206+ROUNDUP(S!$BN$206/12,0)),0,COLUMN(AP5)-COLUMN($D$5)) -> 0 | AQ5: =IF((COLUMN(AQ5)-COLUMN($D$5))>(S!$BM$206+ROUNDUP(S!$BN$206/12,0)),0,COLUMN(AQ5)-COLUMN($D$5)) -> 0 | AR5: =IF((COLUMN(AR5)-COLUMN($D$5))>(S!$BM$206+ROUNDUP(S!$BN$206/12,0)),0,COLUMN(AR5)-COLUMN($D$5)) -> 0 | AS5: =IF((COLUMN(AS5)-COLUMN($D$5))>(S!$BM$206+ROUNDUP(S!$BN$206/12,0)),0,COLUMN(AS5)-COLUMN($D$5)) -> 0 | AT5: =IF((COLUMN(AT5)-COLUMN($D$5))>(S!$BM$206+ROUNDUP(S!$BN$206/12,0)),0,COLUMN(AT5)-COLUMN($D$5)) -> 0 | AU5: =IF((COLUMN(AU5)-COLUMN($D$5))>(S!$BM$206+ROUNDUP(S!$BN$206/12,0)),0,COLUMN(AU5)-COLUMN($D$5)) -> 0 | AV5: =IF((COLUMN(AV5)-COLUMN($D$5))>(S!$BM$206+ROUNDUP(S!$BN$206/12,0)),0,COLUMN(AV5)-COLUMN($D$5)) -> 0 | AW5: =IF((COLUMN(AW5)-COLUMN($D$5))>(S!$BM$206+ROUNDUP(S!$BN$206/12,0)),0,COLUMN(AW5)-COLUMN($D$5)) -> 0 | AX5: =IF((COLUMN(AX5)-COLUMN($D$5))>(S!$BM$206+ROUNDUP(S!$BN$206/12,0)),0,COLUMN(AX5)-COLUMN($D$5)) -> 0 | AY5: =IF((COLUMN(AY5)-COLUMN($D$5))>(S!$BM$206+ROUNDUP(S!$BN$206/12,0)),0,COLUMN(AY5)-COLUMN($D$5)) -> 0 | AZ5: =IF((COLUMN(AZ5)-COLUMN($D$5))>(S!$BM$206+ROUNDUP(S!$BN$206/12,0)),0,COLUMN(AZ5)-COLUMN($D$5)) -> 0 | BA5: =IF((COLUMN(BA5)-COLUMN($D$5))>(S!$BM$206+ROUNDUP(S!$BN$206/12,0)),0,COLUMN(BA5)-COLUMN($D$5)) -> 0 | BB5: =IF((COLUMN(BB5)-COLUMN($D$5))>(S!$BM$206+ROUNDUP(S!$BN$206/12,0)),0,COLUMN(BB5)-COLUMN($D$5)) -> 0 | BC5: =IF((COLUMN(BC5)-COLUMN($D$5))>(S!$BM$206+ROUNDUP(S!$BN$206/12,0)),0,COLUMN(BC5)-COLUMN($D$5)) -> 0 | BD5: =IF((COLUMN(BD5)-COLUMN($D$5))>(S!$BM$206+ROUNDUP(S!$BN$206/12,0)),0,COLUMN(BD5)-COLUMN($D$5)) -> 0 | BE5: =IF((COLUMN(BE5)-COLUMN($D$5))>(S!$BM$206+ROUNDUP(S!$BN$206/12,0)),0,COLUMN(BE5)-COLUMN($D$5)) -> 0 | BF5: =IF((COLUMN(BF5)-COLUMN($D$5))>(S!$BM$206+ROUNDUP(S!$BN$206/12,0)),0,COLUMN(BF5)-COLUMN($D$5)) -> 0 | BG5: =IF((COLUMN(BG5)-COLUMN($D$5))>(S!$BM$206+ROUNDUP(S!$BN$206/12,0)),0,COLUMN(BG5)-COLUMN($D$5)) -> 0 | BH5: =IF((COLUMN(BH5)-COLUMN($D$5))>(S!$BM$206+ROUNDUP(S!$BN$206/12,0)),0,COLUMN(BH5)-COLUMN($D$5)) -> 0 | BI5: =IF((COLUMN(BI5)-COLUMN($D$5))>(S!$BM$206+ROUNDUP(S!$BN$206/12,0)),0,COLUMN(BI5)-COLUMN($D$5)) -> 0 | BJ5: =IF((COLUMN(BJ5)-COLUMN($D$5))>(S!$BM$206+ROUNDUP(S!$BN$206/12,0)),0,COLUMN(BJ5)-COLUMN($D$5)) -> 0 | BK5: =IF((COLUMN(BK5)-COLUMN($D$5))>(S!$BM$206+ROUNDUP(S!$BN$206/12,0)),0,COLUMN(BK5)-COLUMN($D$5)) -> 0 | BL5: =IF((COLUMN(BL5)-COLUMN($D$5))>(S!$BM$206+ROUNDUP(S!$BN$206/12,0)),0,COLUMN(BL5)-COLUMN($D$5)) -> 0 | BM5: =IF((COLUMN(BM5)-COLUMN($D$5))>(S!$BM$206+ROUNDUP(S!$BN$206/12,0)),0,COLUMN(BM5)-COLUMN($D$5)) -> 0 | BN5: =IF((COLUMN(BN5)-COLUMN($D$5))>(S!$BM$206+ROUNDUP(S!$BN$206/12,0)),0,COLUMN(BN5)-COLUMN($D$5)) -> 0 | BO5: =IF((COLUMN(BO5)-COLUMN($D$5))>(S!$BM$206+ROUNDUP(S!$BN$206/12,0)),0,COLUMN(BO5)-COLUMN($D$5)) -> 0 | BP5: =IF((COLUMN(BP5)-COLUMN($D$5))>(S!$BM$206+ROUNDUP(S!$BN$206/12,0)),0,COLUMN(BP5)-COLUMN($D$5)) -> 0 | BQ5: =IF((COLUMN(BQ5)-COLUMN($D$5))>(S!$BM$206+ROUNDUP(S!$BN$206/12,0)),0,COLUMN(BQ5)-COLUMN($D$5)) -> 0 | BR5: =IF((COLUMN(BR5)-COLUMN($D$5))>(S!$BM$206+ROUNDUP(S!$BN$206/12,0)),0,COLUMN(BR5)-COLUMN($D$5)) -> 0 | BS5: =IF((COLUMN(BS5)-COLUMN($D$5))>(S!$BM$206+ROUNDUP(S!$BN$206/12,0)),0,COLUMN(BS5)-COLUMN($D$5)) -> 0 | BT5: =IF((COLUMN(BT5)-COLUMN($D$5))>(S!$BM$206+ROUNDUP(S!$BN$206/12,0)),0,COLUMN(BT5)-COLUMN($D$5)) -> 0 | BU5: =IF((COLUMN(BU5)-COLUMN($D$5))>(S!$BM$206+ROUNDUP(S!$BN$206/12,0)),0,COLUMN(BU5)-COLUMN($D$5)) -> 0 | BV5: =IF((COLUMN(BV5)-COLUMN($D$5))>(S!$BM$206+ROUNDUP(S!$BN$206/12,0)),0,COLUMN(BV5)-COLUMN($D$5)) -> 0 | BW5: =IF((COLUMN(BW5)-COLUMN($D$5))>(S!$BM$206+ROUNDUP(S!$BN$206/12,0)),0,COLUMN(BW5)-COLUMN($D$5)) -> 0 | BX5: =IF((COLUMN(BX5)-COLUMN($D$5))>(S!$BM$206+ROUNDUP(S!$BN$206/12,0)),0,COLUMN(BX5)-COLUMN($D$5)) -> 0 | BY5: =IF((COLUMN(BY5)-COLUMN($D$5))>(S!$BM$206+ROUNDUP(S!$BN$206/12,0)),0,COLUMN(BY5)-COLUMN($D$5)) -> 0 | BZ5: =IF((COLUMN(BZ5)-COLUMN($D$5))>(S!$BM$206+ROUNDUP(S!$BN$206/12,0)),0,COLUMN(BZ5)-COLUMN($D$5)) -> 0 | CA5: =IF((COLUMN(CA5)-COLUMN($D$5))>(S!$BM$206+ROUNDUP(S!$BN$206/12,0)),0,COLUMN(CA5)-COLUMN($D$5)) -> 0 | CB5: =IF((COLUMN(CB5)-COLUMN($D$5))>(S!$BM$206+ROUNDUP(S!$BN$206/12,0)),0,COLUMN(CB5)-COLUMN($D$5)) -> 0 | CC5: =IF((COLUMN(CC5)-COLUMN($D$5))>(S!$BM$206+ROUNDUP(S!$BN$206/12,0)),0,COLUMN(CC5)-COLUMN($D$5)) -> 0 | CD5: =IF((COLUMN(CD5)-COLUMN($D$5))>(S!$BM$206+ROUNDUP(S!$BN$206/12,0)),0,COLUMN(CD5)-COLUMN($D$5)) -> 0 | CE5: =IF((COLUMN(CE5)-COLUMN($D$5))>(S!$BM$206+ROUNDUP(S!$BN$206/12,0)),0,COLUMN(CE5)-COLUMN($D$5)) -> 0 | CF5: =IF((COLUMN(CF5)-COLUMN($D$5))>(S!$BM$206+ROUNDUP(S!$BN$206/12,0)),0,COLUMN(CF5)-COLUMN($D$5)) -> 0 | CG5: =IF((COLUMN(CG5)-COLUMN($D$5))>(S!$BM$206+ROUNDUP(S!$BN$206/12,0)),0,COLUMN(CG5)-COLUMN($D$5)) -> 0 | CH5: =IF((COLUMN(CH5)-COLUMN($D$5))>(S!$BM$206+ROUNDUP(S!$BN$206/12,0)),0,COLUMN(CH5)-COLUMN($D$5)) -> 0 | CI5: =IF((COLUMN(CI5)-COLUMN($D$5))>(S!$BM$206+ROUNDUP(S!$BN$206/12,0)),0,COLUMN(CI5)-COLUMN($D$5)) -> 0 | CJ5: =IF((COLUMN(CJ5)-COLUMN($D$5))>(S!$BM$206+ROUNDUP(S!$BN$206/12,0)),0,COLUMN(CJ5)-COLUMN($D$5)) -> 0 | CK5: =IF((COLUMN(CK5)-COLUMN($D$5))>(S!$BM$206+ROUNDUP(S!$BN$206/12,0)),0,COLUMN(CK5)-COLUMN($D$5)) -> 0 | CL5: =IF((COLUMN(CL5)-COLUMN($D$5))>(S!$BM$206+ROUNDUP(S!$BN$206/12,0)),0,COLUMN(CL5)-COLUMN($D$5)) -> 0 | CM5: =IF((COLUMN(CM5)-COLUMN($D$5))>(S!$BM$206+ROUNDUP(S!$BN$206/12,0)),0,COLUMN(CM5)-COLUMN($D$5)) -> 0 | CN5: =IF((COLUMN(CN5)-COLUMN($D$5))>(S!$BM$206+ROUNDUP(S!$BN$206/12,0)),0,COLUMN(CN5)-COLUMN($D$5)) -> 0 | CO5: =IF((COLUMN(CO5)-COLUMN($D$5))>(S!$BM$206+ROUNDUP(S!$BN$206/12,0)),0,COLUMN(CO5)-COLUMN($D$5)) -> 0 | CP5: =IF((COLUMN(CP5)-COLUMN($D$5))>(S!$BM$206+ROUNDUP(S!$BN$206/12,0)),0,COLUMN(CP5)-COLUMN($D$5)) -> 0 | CQ5: =IF((COLUMN(CQ5)-COLUMN($D$5))>(S!$BM$206+ROUNDUP(S!$BN$206/12,0)),0,COLUMN(CQ5)-COLUMN($D$5)) -> 0 | CR5: =IF((COLUMN(CR5)-COLUMN($D$5))>(S!$BM$206+ROUNDUP(S!$BN$206/12,0)),0,COLUMN(CR5)-COLUMN($D$5)) -> 0 | CS5: =IF((COLUMN(CS5)-COLUMN($D$5))>(S!$BM$206+ROUNDUP(S!$BN$206/12,0)),0,COLUMN(CS5)-COLUMN($D$5)) -> 0 | CT5: =IF((COLUMN(CT5)-COLUMN($D$5))>(S!$BM$206+ROUNDUP(S!$BN$206/12,0)),0,COLUMN(CT5)-COLUMN($D$5)) -> 0 | CU5: =IF((COLUMN(CU5)-COLUMN($D$5))>(S!$BM$206+ROUNDUP(S!$BN$206/12,0)),0,COLUMN(CU5)-COLUMN($D$5)) -> 0 | CV5: =IF((COLUMN(CV5)-COLUMN($D$5))>(S!$BM$206+ROUNDUP(S!$BN$206/12,0)),0,COLUMN(CV5)-COLUMN($D$5)) -> 0 | CW5: =IF((COLUMN(CW5)-COLUMN($D$5))>(S!$BM$206+ROUNDUP(S!$BN$206/12,0)),0,COLUMN(CW5)-COLUMN($D$5)) -> 0 | CX5: =IF((COLUMN(CX5)-COLUMN($D$5))>(S!$BM$206+ROUNDUP(S!$BN$206/12,0)),0,COLUMN(CX5)-COLUMN($D$5)) -> 0 | CY5: =IF((COLUMN(CY5)-COLUMN($D$5))>(S!$BM$206+ROUNDUP(S!$BN$206/12,0)),0,COLUMN(CY5)-COLUMN($D$5)) -> 0
C6: Years of station operation (fractional) | D6: 0 | E6: =MIN(MAX(E5-S!$BN$206/12,0),S!$BM$206) -> 0.5 | F6: =MIN(MAX(F5-S!$BN$206/12,0),S!$BM$206) -> 1.5 | G6: =MIN(MAX(G5-S!$BN$206/12,0),S!$BM$206) -> 2.5 | H6: =MIN(MAX(H5-S!$BN$206/12,0),S!$BM$206) -> 3.5 | I6: =MIN(MAX(I5-S!$BN$206/12,0),S!$BM$206) -> 4.5 | J6: =MIN(MAX(J5-S!$BN$206/12,0),S!$BM$206) -> 5.5 | K6: =MIN(MAX(K5-S!$BN$206/12,0),S!$BM$206) -> 6.5 | L6: =MIN(MAX(L5-S!$BN$206/12,0),S!$BM$206) -> 7.5 | M6: =MIN(MAX(M5-S!$BN$206/12,0),S!$BM$206) -> 8.5 | N6: =MIN(MAX(N5-S!$BN$206/12,0),S!$BM$206) -> 9.5 | O6: =MIN(MAX(O5-S!$BN$206/12,0),S!$BM$206) -> 10.5 | P6: =MIN(MAX(P5-S!$BN$206/12,0),S!$BM$206) -> 11.5 | Q6: =MIN(MAX(Q5-S!$BN$206/12,0),S!$BM$206) -> 12.5 | R6: =MIN(MAX(R5-S!$BN$206/12,0),S!$BM$206) -> 13.5 | S6: =MIN(MAX(S5-S!$BN$206/12,0),S!$BM$206) -> 14.5 | T6: =MIN(MAX(T5-S!$BN$206/12,0),S!$BM$206) -> 15 | U6: =MIN(MAX(U5-S!$BN$206/12,0),S!$BM$206) -> 0 | V6: =MIN(MAX(V5-S!$BN$206/12,0),S!$BM$206) -> 0 | W6: =MIN(MAX(W5-S!$BN$206/12,0),S!$BM$206) -> 0 | X6: =MIN(MAX(X5-S!$BN$206/12,0),S!$BM$206) -> 0 | Y6: =MIN(MAX(Y5-S!$BN$206/12,0),S!$BM$206) -> 0 | Z6: =MIN(MAX(Z5-S!$BN$206/12,0),S!$BM$206) -> 0 | AA6: =MIN(MAX(AA5-S!$BN$206/12,0),S!$BM$206) -> 0 | AB6: =MIN(MAX(AB5-S!$BN$206/12,0),S!$BM$206) -> 0 | AC6: =MIN(MAX(AC5-S!$BN$206/12,0),S!$BM$206) -> 0 | AD6: =MIN(MAX(AD5-S!$BN$206/12,0),S!$BM$206) -> 0 | AE6: =MIN(MAX(AE5-S!$BN$206/12,0),S!$BM$206) -> 0 | AF6: =MIN(MAX(AF5-S!$BN$206/12,0),S!$BM$206) -> 0 | AG6: =MIN(MAX(AG5-S!$BN$206/12,0),S!$BM$206) -> 0 | AH6: =MIN(MAX(AH5-S!$BN$206/12,0),S!$BM$206) -> 0 | AI6: =MIN(MAX(AI5-S!$BN$206/12,0),S!$BM$206) -> 0 | AJ6: =MIN(MAX(AJ5-S!$BN$206/12,0),S!$BM$206) -> 0 | AK6: =MIN(MAX(AK5-S!$BN$206/12,0),S!$BM$206) -> 0 | AL6: =MIN(MAX(AL5-S!$BN$206/12,0),S!$BM$206) -> 0 | AM6: =MIN(MAX(AM5-S!$BN$206/12,0),S!$BM$206) -> 0 | AN6: =MIN(MAX(AN5-S!$BN$206/12,0),S!$BM$206) -> 0 | AO6: =MIN(MAX(AO5-S!$BN$206/12,0),S!$BM$206) -> 0 | AP6: =MIN(MAX(AP5-S!$BN$206/12,0),S!$BM$206) -> 0 | AQ6: =MIN(MAX(AQ5-S!$BN$206/12,0),S!$BM$206) -> 0 | AR6: =MIN(MAX(AR5-S!$BN$206/12,0),S!$BM$206) -> 0 | AS6: =MIN(MAX(AS5-S!$BN$206/12,0),S!$BM$206) -> 0 | AT6: =MIN(MAX(AT5-S!$BN$206/12,0),S!$BM$206) -> 0 | AU6: =MIN(MAX(AU5-S!$BN$206/12,0),S!$BM$206) -> 0 | AV6: =MIN(MAX(AV5-S!$BN$206/12,0),S!$BM$206) -> 0 | AW6: =MIN(MAX(AW5-S!$BN$206/12,0),S!$BM$206) -> 0 | AX6: =MIN(MAX(AX5-S!$BN$206/12,0),S!$BM$206) -> 0 | AY6: =MIN(MAX(AY5-S!$BN$206/12,0),S!$BM$206) -> 0 | AZ6: =MIN(MAX(AZ5-S!$BN$206/12,0),S!$BM$206) -> 0 | BA6: =MIN(MAX(BA5-S!$BN$206/12,0),S!$BM$206) -> 0 | BB6: =MIN(MAX(BB5-S!$BN$206/12,0),S!$BM$206) -> 0 | BC6: =MIN(MAX(BC5-S!$BN$206/12,0),S!$BM$206) -> 0 | BD6: =MIN(MAX(BD5-S!$BN$206/12,0),S!$BM$206) -> 0 | BE6: =MIN(MAX(BE5-S!$BN$206/12,0),S!$BM$206) -> 0 | BF6: =MIN(MAX(BF5-S!$BN$206/12,0),S!$BM$206) -> 0 | BG6: =MIN(MAX(BG5-S!$BN$206/12,0),S!$BM$206) -> 0 | BH6: =MIN(MAX(BH5-S!$BN$206/12,0),S!$BM$206) -> 0 | BI6: =MIN(MAX(BI5-S!$BN$206/12,0),S!$BM$206) -> 0 | BJ6: =MIN(MAX(BJ5-S!$BN$206/12,0),S!$BM$206) -> 0 | BK6: =MIN(MAX(BK5-S!$BN$206/12,0),S!$BM$206) -> 0 | BL6: =MIN(MAX(BL5-S!$BN$206/12,0),S!$BM$206) -> 0 | BM6: =MIN(MAX(BM5-S!$BN$206/12,0),S!$BM$206) -> 0 | BN6: =MIN(MAX(BN5-S!$BN$206/12,0),S!$BM$206) -> 0 | BO6: =MIN(MAX(BO5-S!$BN$206/12,0),S!$BM$206) -> 0 | BP6: =MIN(MAX(BP5-S!$BN$206/12,0),S!$BM$206) -> 0 | BQ6: =MIN(MAX(BQ5-S!$BN$206/12,0),S!$BM$206) -> 0 | BR6: =MIN(MAX(BR5-S!$BN$206/12,0),S!$BM$206) -> 0 | BS6: =MIN(MAX(BS5-S!$BN$206/12,0),S!$BM$206) -> 0 | BT6: =MIN(MAX(BT5-S!$BN$206/12,0),S!$BM$206) -> 0 | BU6: =MIN(MAX(BU5-S!$BN$206/12,0),S!$BM$206) -> 0 | BV6: =MIN(MAX(BV5-S!$BN$206/12,0),S!$BM$206) -> 0 | BW6: =MIN(MAX(BW5-S!$BN$206/12,0),S!$BM$206) -> 0 | BX6: =MIN(MAX(BX5-S!$BN$206/12,0),S!$BM$206) -> 0 | BY6: =MIN(MAX(BY5-S!$BN$206/12,0),S!$BM$206) -> 0 | BZ6: =MIN(MAX(BZ5-S!$BN$206/12,0),S!$BM$206) -> 0 | CA6: =MIN(MAX(CA5-S!$BN$206/12,0),S!$BM$206) -> 0 | CB6: =MIN(MAX(CB5-S!$BN$206/12,0),S!$BM$206) -> 0 | CC6: =MIN(MAX(CC5-S!$BN$206/12,0),S!$BM$206) -> 0 | CD6: =MIN(MAX(CD5-S!$BN$206/12,0),S!$BM$206) -> 0 | CE6: =MIN(MAX(CE5-S!$BN$206/12,0),S!$BM$206) -> 0 | CF6: =MIN(MAX(CF5-S!$BN$206/12,0),S!$BM$206) -> 0 | CG6: =MIN(MAX(CG5-S!$BN$206/12,0),S!$BM$206) -> 0 | CH6: =MIN(MAX(CH5-S!$BN$206/12,0),S!$BM$206) -> 0 | CI6: =MIN(MAX(CI5-S!$BN$206/12,0),S!$BM$206) -> 0 | CJ6: =MIN(MAX(CJ5-S!$BN$206/12,0),S!$BM$206) -> 0 | CK6: =MIN(MAX(CK5-S!$BN$206/12,0),S!$BM$206) -> 0 | CL6: =MIN(MAX(CL5-S!$BN$206/12,0),S!$BM$206) -> 0 | CM6: =MIN(MAX(CM5-S!$BN$206/12,0),S!$BM$206) -> 0 | CN6: =MIN(MAX(CN5-S!$BN$206/12,0),S!$BM$206) -> 0 | CO6: =MIN(MAX(CO5-S!$BN$206/12,0),S!$BM$206) -> 0 | CP6: =MIN(MAX(CP5-S!$BN$206/12,0),S!$BM$206) -> 0 | CQ6: =MIN(MAX(CQ5-S!$BN$206/12,0),S!$BM$206) -> 0 | CR6: =MIN(MAX(CR5-S!$BN$206/12,0),S!$BM$206) -> 0 | CS6: =MIN(MAX(CS5-S!$BN$206/12,0),S!$BM$206) -> 0 | CT6: =MIN(MAX(CT5-S!$BN$206/12,0),S!$BM$206) -> 0 | CU6: =MIN(MAX(CU5-S!$BN$206/12,0),S!$BM$206) -> 0 | CV6: =MIN(MAX(CV5-S!$BN$206/12,0),S!$BM$206) -> 0 | CW6: =MIN(MAX(CW5-S!$BN$206/12,0),S!$BM$206) -> 0 | CX6: =MIN(MAX(CX5-S!$BN$206/12,0),S!$BM$206) -> 0 | CY6: =MIN(MAX(CY5-S!$BN$206/12,0),S!$BM$206) -> 0
C7: Fraction of year operated | D7: 0 | E7: =MAX(+E6-D6,0) -> 0.5 | F7: =MAX(+F6-E6,0) -> 1 | G7: 1 | H7: 1 | I7: 1 | J7: 1 | K7: 1 | L7: 1 | M7: 1 | N7: 1 | O7: 1 | P7: 1 | Q7: 1 | R7: 1 | S7: 1 | T7: 0.5 | U7: 0 | V7: 0 | W7: 0 | X7: 0 | Y7: 0 | Z7: 0 | AA7: 0 | AB7: 0 | AC7: 0 | AD7: 0 | AE7: 0 | AF7: 0 | AG7: 0 | AH7: 0 | AI7: 0 | AJ7: 0 | AK7: 0 | AL7: 0 | AM7: 0 | AN7: 0 | AO7: 0 | AP7: 0 | AQ7: 0 | AR7: 0 | AS7: 0 | AT7: 0 | AU7: 0 | AV7: 0 | AW7: 0 | AX7: 0 | AY7: 0 | AZ7: 0 | BA7: 0 | BB7: 0 | BC7: 0 | BD7: 0 | BE7: 0 | BF7: 0 | BG7: 0 | BH7: 0 | BI7: 0 | BJ7: 0 | BK7: 0 | BL7: 0 | BM7: 0 | BN7: 0 | BO7: 0 | BP7: 0 | BQ7: 0 | BR7: =MAX(+BR6-BQ6,0) -> 0 | BS7: 0 | BT7: 0 | BU7: 0 | BV7: 0 | BW7: 0 | BX7: 0 | BY7: 0 | BZ7: 0 | CA7: 0 | CB7: 0 | CC7: 0 | CD7: 0 | CE7: 0 | CF7: 0 | CG7: 0 | CH7: 0 | CI7: 0 | CJ7: 0 | CK7: 0 | CL7: 0 | CM7: 0 | CN7: 0 | CO7: 0 | CP7: 0 | CQ7: 0 | CR7: 0 | CS7: 0 | CT7: 0 | CU7: 0 | CV7: 0 | CW7: 0 | CX7: 0 | CY7: 0
C8: Average utilization | D8: =MIN(S!$BP$206/(S!$BO$206+1)*D6,S!$BP$206) *MIN(1+(S!$BM$206+S!$BN$206/12)-D5,1) -> 0 | E8: =IF(Overrides!$A32, IFERROR(OFFSET(Overrides!$B32, 0, MATCH(E$5,Overrides!$C$31:$GU$31,0))*E$7,0), MIN(S!$BP$206/(S!$BO$206+1)*E6,S!$BP$206) *MIN(1+(S!$BM$206+S!$BN$206/12)-E5,1)) -> 0.02083333333 | F8: =IF(Overrides!$A32, IFERROR(OFFSET(Overrides!$B32, 0, MATCH(F$5,Overrides!$C$31:$GU$31,0))*F$7,0), MIN(S!$BP$206/(S!$BO$206+1)*F6,S!$BP$206) *MIN(1+(S!$BM$206+S!$BN$206/12)-F5,1)) -> 0.0625 | G8: =IF(Overrides!$A32, IFERROR(OFFSET(Overrides!$B32, 0, MATCH(G$5,Overrides!$C$31:$GU$31,0))*G$7,0), MIN(S!$BP$206/(S!$BO$206+1)*G6,S!$BP$206) *MIN(1+(S!$BM$206+S!$BN$206/12)-G5,1)) -> 0.1041666667 | H8: =IF(Overrides!$A32, IFERROR(OFFSET(Overrides!$B32, 0, MATCH(H$5,Overrides!$C$31:$GU$31,0))*H$7,0), MIN(S!$BP$206/(S!$BO$206+1)*H6,S!$BP$206) *MIN(1+(S!$BM$206+S!$BN$206/12)-H5,1)) -> 0.1458333333 | I8: =IF(Overrides!$A32, IFERROR(OFFSET(Overrides!$B32, 0, MATCH(I$5,Overrides!$C$31:$GU$31,0))*I$7,0), MIN(S!$BP$206/(S!$BO$206+1)*I6,S!$BP$206) *MIN(1+(S!$BM$206+S!$BN$206/12)-I5,1)) -> 0.1875 | J8: =IF(Overrides!$A32, IFERROR(OFFSET(Overrides!$B32, 0, MATCH(J$5,Overrides!$C$31:$GU$31,0))*J$7,0), MIN(S!$BP$206/(S!$BO$206+1)*J6,S!$BP$206) *MIN(1+(S!$BM$206+S!$BN$206/12)-J5,1)) -> 0.2291666667 | K8: =IF(Overrides!$A32, IFERROR(OFFSET(Overrides!$B32, 0, MATCH(K$5,Overrides!$C$31:$GU$31,0))*K$7,0), MIN(S!$BP$206/(S!$BO$206+1)*K6,S!$BP$206) *MIN(1+(S!$BM$206+S!$BN$206/12)-K5,1)) -> 0.25 | L8: =IF(Overrides!$A32, IFERROR(OFFSET(Overrides!$B32, 0, MATCH(L$5,Overrides!$C$31:$GU$31,0))*L$7,0), MIN(S!$BP$206/(S!$BO$206+1)*L6,S!$BP$206) *MIN(1+(S!$BM$206+S!$BN$206/12)-L5,1)) -> 0.25 | M8: =IF(Overrides!$A32, IFERROR(OFFSET(Overrides!$B32, 0, MATCH(M$5,Overrides!$C$31:$GU$31,0))*M$7,0), MIN(S!$BP$206/(S!$BO$206+1)*M6,S!$BP$206) *MIN(1+(S!$BM$206+S!$BN$206/12)-M5,1)) -> 0.25 | N8: =IF(Overrides!$A32, IFERROR(OFFSET(Overrides!$B32, 0, MATCH(N$5,Overrides!$C$31:$GU$31,0))*N$7,0), MIN(S!$BP$206/(S!$BO$206+1)*N6,S!$BP$206) *MIN(1+(S!$BM$206+S!$BN$206/12)-N5,1)) -> 0.25 | O8: =IF(Overrides!$A32, IFERROR(OFFSET(Overrides!$B32, 0, MATCH(O$5,Overrides!$C$31:$GU$31,0))*O$7,0), MIN(S!$BP$206/(S!$BO$206+1)*O6,S!$BP$206) *MIN(1+(S!$BM$206+S!$BN$206/12)-O5,1)) -> 0.25 | P8: =IF(Overrides!$A32, IFERROR(OFFSET(Overrides!$B32, 0, MATCH(P$5,Overrides!$C$31:$GU$31,0))*P$7,0), MIN(S!$BP$206/(S!$BO$206+1)*P6,S!$BP$206) *MIN(1+(S!$BM$206+S!$BN$206/12)-P5,1)) -> 0.25 | Q8: =IF(Overrides!$A32, IFERROR(OFFSET(Overrides!$B32, 0, MATCH(Q$5,Overrides!$C$31:$GU$31,0))*Q$7,0), MIN(S!$BP$206/(S!$BO$206+1)*Q6,S!$BP$206) *MIN(1+(S!$BM$206+S!$BN$206/12)-Q5,1)) -> 0.25 | R8: =IF(Overrides!$A32, IFERROR(OFFSET(Overrides!$B32, 0, MATCH(R$5,Overrides!$C$31:$GU$31,0))*R$7,0), MIN(S!$BP$206/(S!$BO$206+1)*R6,S!$BP$206) *MIN(1+(S!$BM$206+S!$BN$206/12)-R5,1)) -> 0.25 | S8: =IF(Overrides!$A32, IFERROR(OFFSET(Overrides!$B32, 0, MATCH(S$5,Overrides!$C$31:$GU$31,0))*S$7,0), MIN(S!$BP$206/(S!$BO$206+1)*S6,S!$BP$206) *MIN(1+(S!$BM$206+S!$BN$206/12)-S5,1)) -> 0.25 | T8: =IF(Overrides!$A32, IFERROR(OFFSET(Overrides!$B32, 0, MATCH(T$5,Overrides!$C$31:$GU$31,0))*T$7,0), MIN(S!$BP$206/(S!$BO$206+1)*T6,S!$BP$206) *MIN(1+(S!$BM$206+S!$BN$206/12)-T5,1)) -> 0.125 | U8: =IF(Overrides!$A32, IFERROR(OFFSET(Overrides!$B32, 0, MATCH(U$5,Overrides!$C$31:$GU$31,0))*U$7,0), MIN(S!$BP$206/(S!$BO$206+1)*U6,S!$BP$206) *MIN(1+(S!$BM$206+S!$BN$206/12)-U5,1)) -> 0 | V8: =IF(Overrides!$A32, IFERROR(OFFSET(Overrides!$B32, 0, MATCH(V$5,Overrides!$C$31:$GU$31,0))*V$7,0), MIN(S!$BP$206/(S!$BO$206+1)*V6,S!$BP$206) *MIN(1+(S!$BM$206+S!$BN$206/12)-V5,1)) -> 0 | W8: =IF(Overrides!$A32, IFERROR(OFFSET(Overrides!$B32, 0, MATCH(W$5,Overrides!$C$31:$GU$31,0))*W$7,0), MIN(S!$BP$206/(S!$BO$206+1)*W6,S!$BP$206) *MIN(1+(S!$BM$206+S!$BN$206/12)-W5,1)) -> 0 | X8: =IF(Overrides!$A32, IFERROR(OFFSET(Overrides!$B32, 0, MATCH(X$5,Overrides!$C$31:$GU$31,0))*X$7,0), MIN(S!$BP$206/(S!$BO$206+1)*X6,S!$BP$206) *MIN(1+(S!$BM$206+S!$BN$206/12)-X5,1)) -> 0 | Y8: =IF(Overrides!$A32, IFERROR(OFFSET(Overrides!$B32, 0, MATCH(Y$5,Overrides!$C$31:$GU$31,0))*Y$7,0), MIN(S!$BP$206/(S!$BO$206+1)*Y6,S!$BP$206) *MIN(1+(S!$BM$206+S!$BN$206/12)-Y5,1)) -> 0 | Z8: =IF(Overrides!$A32, IFERROR(OFFSET(Overrides!$B32, 0, MATCH(Z$5,Overrides!$C$31:$GU$31,0))*Z$7,0), MIN(S!$BP$206/(S!$BO$206+1)*Z6,S!$BP$206) *MIN(1+(S!$BM$206+S!$BN$206/12)-Z5,1)) -> 0 | AA8: =IF(Overrides!$A32, IFERROR(OFFSET(Overrides!$B32, 0, MATCH(AA$5,Overrides!$C$31:$GU$31,0))*AA$7,0), MIN(S!$BP$206/(S!$BO$206+1)*AA6,S!$BP$206) *MIN(1+(S!$BM$206+S!$BN$206/12)-AA5,1)) -> 0 | AB8: =IF(Overrides!$A32, IFERROR(OFFSET(Overrides!$B32, 0, MATCH(AB$5,Overrides!$C$31:$GU$31,0))*AB$7,0), MIN(S!$BP$206/(S!$BO$206+1)*AB6,S!$BP$206) *MIN(1+(S!$BM$206+S!$BN$206/12)-AB5,1)) -> 0 | AC8: =IF(Overrides!$A32, IFERROR(OFFSET(Overrides!$B32, 0, MATCH(AC$5,Overrides!$C$31:$GU$31,0))*AC$7,0), MIN(S!$BP$206/(S!$BO$206+1)*AC6,S!$BP$206) *MIN(1+(S!$BM$206+S!$BN$206/12)-AC5,1)) -> 0 | AD8: =IF(Overrides!$A32, IFERROR(OFFSET(Overrides!$B32, 0, MATCH(AD$5,Overrides!$C$31:$GU$31,0))*AD$7,0), MIN(S!$BP$206/(S!$BO$206+1)*AD6,S!$BP$206) *MIN(1+(S!$BM$206+S!$BN$206/12)-AD5,1)) -> 0 | AE8: =IF(Overrides!$A32, IFERROR(OFFSET(Overrides!$B32, 0, MATCH(AE$5,Overrides!$C$31:$GU$31,0))*AE$7,0), MIN(S!$BP$206/(S!$BO$206+1)*AE6,S!$BP$206) *MIN(1+(S!$BM$206+S!$BN$206/12)-AE5,1)) -> 0 | AF8: =IF(Overrides!$A32, IFERROR(OFFSET(Overrides!$B32, 0, MATCH(AF$5,Overrides!$C$31:$GU$31,0))*AF$7,0), MIN(S!$BP$206/(S!$BO$206+1)*AF6,S!$BP$206) *MIN(1+(S!$BM$206+S!$BN$206/12)-AF5,1)) -> 0 | AG8: =IF(Overrides!$A32, IFERROR(OFFSET(Overrides!$B32, 0, MATCH(AG$5,Overrides!$C$31:$GU$31,0))*AG$7,0), MIN(S!$BP$206/(S!$BO$206+1)*AG6,S!$BP$206) *MIN(1+(S!$BM$206+S!$BN$206/12)-AG5,1)) -> 0 | AH8: =IF(Overrides!$A32, IFERROR(OFFSET(Overrides!$B32, 0, MATCH(AH$5,Overrides!$C$31:$GU$31,0))*AH$7,0), MIN(S!$BP$206/(S!$BO$206+1)*AH6,S!$BP$206) *MIN(1+(S!$BM$206+S!$BN$206/12)-AH5,1)) -> 0 | AI8: =IF(Overrides!$A32, IFERROR(OFFSET(Overrides!$B32, 0, MATCH(AI$5,Overrides!$C$31:$GU$31,0))*AI$7,0), MIN(S!$BP$206/(S!$BO$206+1)*AI6,S!$BP$206) *MIN(1+(S!$BM$206+S!$BN$206/12)-AI5,1)) -> 0 | AJ8: =IF(Overrides!$A32, IFERROR(OFFSET(Overrides!$B32, 0, MATCH(AJ$5,Overrides!$C$31:$GU$31,0))*AJ$7,0), MIN(S!$BP$206/(S!$BO$206+1)*AJ6,S!$BP$206) *MIN(1+(S!$BM$206+S!$BN$206/12)-AJ5,1)) -> 0 | AK8: =IF(Overrides!$A32, IFERROR(OFFSET(Overrides!$B32, 0, MATCH(AK$5,Overrides!$C$31:$GU$31,0))*AK$7,0), MIN(S!$BP$206/(S!$BO$206+1)*AK6,S!$BP$206) *MIN(1+(S!$BM$206+S!$BN$206/12)-AK5,1)) -> 0 | AL8: =IF(Overrides!$A32, IFERROR(OFFSET(Overrides!$B32, 0, MATCH(AL$5,Overrides!$C$31:$GU$31,0))*AL$7,0), MIN(S!$BP$206/(S!$BO$206+1)*AL6,S!$BP$206) *MIN(1+(S!$BM$206+S!$BN$206/12)-AL5,1)) -> 0 | AM8: =IF(Overrides!$A32, IFERROR(OFFSET(Overrides!$B32, 0, MATCH(AM$5,Overrides!$C$31:$GU$31,0))*AM$7,0), MIN(S!$BP$206/(S!$BO$206+1)*AM6,S!$BP$206) *MIN(1+(S!$BM$206+S!$BN$206/12)-AM5,1)) -> 0 | AN8: =IF(Overrides!$A32, IFERROR(OFFSET(Overrides!$B32, 0, MATCH(AN$5,Overrides!$C$31:$GU$31,0))*AN$7,0), MIN(S!$BP$206/(S!$BO$206+1)*AN6,S!$BP$206) *MIN(1+(S!$BM$206+S!$BN$206/12)-AN5,1)) -> 0 | AO8: =IF(Overrides!$A32, IFERROR(OFFSET(Overrides!$B32, 0, MATCH(AO$5,Overrides!$C$31:$GU$31,0))*AO$7,0), MIN(S!$BP$206/(S!$BO$206+1)*AO6,S!$BP$206) *MIN(1+(S!$BM$206+S!$BN$206/12)-AO5,1)) -> 0 | AP8: =IF(Overrides!$A32, IFERROR(OFFSET(Overrides!$B32, 0, MATCH(AP$5,Overrides!$C$31:$GU$31,0))*AP$7,0), MIN(S!$BP$206/(S!$BO$206+1)*AP6,S!$BP$206) *MIN(1+(S!$BM$206+S!$BN$206/12)-AP5,1)) -> 0 | AQ8: =IF(Overrides!$A32, IFERROR(OFFSET(Overrides!$B32, 0, MATCH(AQ$5,Overrides!$C$31:$GU$31,0))*AQ$7,0), MIN(S!$BP$206/(S!$BO$206+1)*AQ6,S!$BP$206) *MIN(1+(S!$BM$206+S!$BN$206/12)-AQ5,1)) -> 0 | AR8: =IF(Overrides!$A32, IFERROR(OFFSET(Overrides!$B32, 0, MATCH(AR$5,Overrides!$C$31:$GU$31,0))*AR$7,0), MIN(S!$BP$206/(S!$BO$206+1)*AR6,S!$BP$206) *MIN(1+(S!$BM$206+S!$BN$206/12)-AR5,1)) -> 0 | AS8: =IF(Overrides!$A32, IFERROR(OFFSET(Overrides!$B32, 0, MATCH(AS$5,Overrides!$C$31:$GU$31,0))*AS$7,0), MIN(S!$BP$206/(S!$BO$206+1)*AS6,S!$BP$206) *MIN(1+(S!$BM$206+S!$BN$206/12)-AS5,1)) -> 0 | AT8: =IF(Overrides!$A32, IFERROR(OFFSET(Overrides!$B32, 0, MATCH(AT$5,Overrides!$C$31:$GU$31,0))*AT$7,0), MIN(S!$BP$206/(S!$BO$206+1)*AT6,S!$BP$206) *MIN(1+(S!$BM$206+S!$BN$206/12)-AT5,1)) -> 0 | AU8: =IF(Overrides!$A32, IFERROR(OFFSET(Overrides!$B32, 0, MATCH(AU$5,Overrides!$C$31:$GU$31,0))*AU$7,0), MIN(S!$BP$206/(S!$BO$206+1)*AU6,S!$BP$206) *MIN(1+(S!$BM$206+S!$BN$206/12)-AU5,1)) -> 0 | AV8: =IF(Overrides!$A32, IFERROR(OFFSET(Overrides!$B32, 0, MATCH(AV$5,Overrides!$C$31:$GU$31,0))*AV$7,0), MIN(S!$BP$206/(S!$BO$206+1)*AV6,S!$BP$206) *MIN(1+(S!$BM$206+S!$BN$206/12)-AV5,1)) -> 0 | AW8: =IF(Overrides!$A32, IFERROR(OFFSET(Overrides!$B32, 0, MATCH(AW$5,Overrides!$C$31:$GU$31,0))*AW$7,0), MIN(S!$BP$206/(S!$BO$206+1)*AW6,S!$BP$206) *MIN(1+(S!$BM$206+S!$BN$206/12)-AW5,1)) -> 0 | AX8: =IF(Overrides!$A32, IFERROR(OFFSET(Overrides!$B32, 0, MATCH(AX$5,Overrides!$C$31:$GU$31,0))*AX$7,0), MIN(S!$BP$206/(S!$BO$206+1)*AX6,S!$BP$206) *MIN(1+(S!$BM$206+S!$BN$206/12)-AX5,1)) -> 0 | AY8: =IF(Overrides!$A32, IFERROR(OFFSET(Overrides!$B32, 0, MATCH(AY$5,Overrides!$C$31:$GU$31,0))*AY$7,0), MIN(S!$BP$206/(S!$BO$206+1)*AY6,S!$BP$206) *MIN(1+(S!$BM$206+S!$BN$206/12)-AY5,1)) -> 0 | AZ8: =IF(Overrides!$A32, IFERROR(OFFSET(Overrides!$B32, 0, MATCH(AZ$5,Overrides!$C$31:$GU$31,0))*AZ$7,0), MIN(S!$BP$206/(S!$BO$206+1)*AZ6,S!$BP$206) *MIN(1+(S!$BM$206+S!$BN$206/12)-AZ5,1)) -> 0 | BA8: =IF(Overrides!$A32, IFERROR(OFFSET(Overrides!$B32, 0, MATCH(BA$5,Overrides!$C$31:$GU$31,0))*BA$7,0), MIN(S!$BP$206/(S!$BO$206+1)*BA6,S!$BP$206) *MIN(1+(S!$BM$206+S!$BN$206/12)-BA5,1)) -> 0 | BB8: =IF(Overrides!$A32, IFERROR(OFFSET(Overrides!$B32, 0, MATCH(BB$5,Overrides!$C$31:$GU$31,0))*BB$7,0), MIN(S!$BP$206/(S!$BO$206+1)*BB6,S!$BP$206) *MIN(1+(S!$BM$206+S!$BN$206/12)-BB5,1)) -> 0 | BC8: =IF(Overrides!$A32, IFERROR(OFFSET(Overrides!$B32, 0, MATCH(BC$5,Overrides!$C$31:$GU$31,0))*BC$7,0), MIN(S!$BP$206/(S!$BO$206+1)*BC6,S!$BP$206) *MIN(1+(S!$BM$206+S!$BN$206/12)-BC5,1)) -> 0 | BD8: =IF(Overrides!$A32, IFERROR(OFFSET(Overrides!$B32, 0, MATCH(BD$5,Overrides!$C$31:$GU$31,0))*BD$7,0), MIN(S!$BP$206/(S!$BO$206+1)*BD6,S!$BP$206) *MIN(1+(S!$BM$206+S!$BN$206/12)-BD5,1)) -> 0 | BE8: =IF(Overrides!$A32, IFERROR(OFFSET(Overrides!$B32, 0, MATCH(BE$5,Overrides!$C$31:$GU$31,0))*BE$7,0), MIN(S!$BP$206/(S!$BO$206+1)*BE6,S!$BP$206) *MIN(1+(S!$BM$206+S!$BN$206/12)-BE5,1)) -> 0 | BF8: =IF(Overrides!$A32, IFERROR(OFFSET(Overrides!$B32, 0, MATCH(BF$5,Overrides!$C$31:$GU$31,0))*BF$7,0), MIN(S!$BP$206/(S!$BO$206+1)*BF6,S!$BP$206) *MIN(1+(S!$BM$206+S!$BN$206/12)-BF5,1)) -> 0 | BG8: =IF(Overrides!$A32, IFERROR(OFFSET(Overrides!$B32, 0, MATCH(BG$5,Overrides!$C$31:$GU$31,0))*BG$7,0), MIN(S!$BP$206/(S!$BO$206+1)*BG6,S!$BP$206) *MIN(1+(S!$BM$206+S!$BN$206/12)-BG5,1)) -> 0 | BH8: =IF(Overrides!$A32, IFERROR(OFFSET(Overrides!$B32, 0, MATCH(BH$5,Overrides!$C$31:$GU$31,0))*BH$7,0), MIN(S!$BP$206/(S!$BO$206+1)*BH6,S!$BP$206) *MIN(1+(S!$BM$206+S!$BN$206/12)-BH5,1)) -> 0 | BI8: =IF(Overrides!$A32, IFERROR(OFFSET(Overrides!$B32, 0, MATCH(BI$5,Overrides!$C$31:$GU$31,0))*BI$7,0), MIN(S!$BP$206/(S!$BO$206+1)*BI6,S!$BP$206) *MIN(1+(S!$BM$206+S!$BN$206/12)-BI5,1)) -> 0 | BJ8: =IF(Overrides!$A32, IFERROR(OFFSET(Overrides!$B32, 0, MATCH(BJ$5,Overrides!$C$31:$GU$31,0))*BJ$7,0), MIN(S!$BP$206/(S!$BO$206+1)*BJ6,S!$BP$206) *MIN(1+(S!$BM$206+S!$BN$206/12)-BJ5,1)) -> 0 | BK8: =IF(Overrides!$A32, IFERROR(OFFSET(Overrides!$B32, 0, MATCH(BK$5,Overrides!$C$31:$GU$31,0))*BK$7,0), MIN(S!$BP$206/(S!$BO$206+1)*BK6,S!$BP$206) *MIN(1+(S!$BM$206+S!$BN$206/12)-BK5,1)) -> 0 | BL8: =IF(Overrides!$A32, IFERROR(OFFSET(Overrides!$B32, 0, MATCH(BL$5,Overrides!$C$31:$GU$31,0))*BL$7,0), MIN(S!$BP$206/(S!$BO$206+1)*BL6,S!$BP$206) *MIN(1+(S!$BM$206+S!$BN$206/12)-BL5,1)) -> 0 | BM8: =IF(Overrides!$A32, IFERROR(OFFSET(Overrides!$B32, 0, MATCH(BM$5,Overrides!$C$31:$GU$31,0))*BM$7,0), MIN(S!$BP$206/(S!$BO$206+1)*BM6,S!$BP$206) *MIN(1+(S!$BM$206+S!$BN$206/12)-BM5,1)) -> 0 | BN8: =IF(Overrides!$A32, IFERROR(OFFSET(Overrides!$B32, 0, MATCH(BN$5,Overrides!$C$31:$GU$31,0))*BN$7,0), MIN(S!$BP$206/(S!$BO$206+1)*BN6,S!$BP$206) *MIN(1+(S!$BM$206+S!$BN$206/12)-BN5,1)) -> 0 | BO8: =IF(Overrides!$A32, IFERROR(OFFSET(Overrides!$B32, 0, MATCH(BO$5,Overrides!$C$31:$GU$31,0))*BO$7,0), MIN(S!$BP$206/(S!$BO$206+1)*BO6,S!$BP$206) *MIN(1+(S!$BM$206+S!$BN$206/12)-BO5,1)) -> 0 | BP8: =IF(Overrides!$A32, IFERROR(OFFSET(Overrides!$B32, 0, MATCH(BP$5,Overrides!$C$31:$GU$31,0))*BP$7,0), MIN(S!$BP$206/(S!$BO$206+1)*BP6,S!$BP$206) *MIN(1+(S!$BM$206+S!$BN$206/12)-BP5,1)) -> 0 | BQ8: =IF(Overrides!$A32, IFERROR(OFFSET(Overrides!$B32, 0, MATCH(BQ$5,Overrides!$C$31:$GU$31,0))*BQ$7,0), MIN(S!$BP$206/(S!$BO$206+1)*BQ6,S!$BP$206) *MIN(1+(S!$BM$206+S!$BN$206/12)-BQ5,1)) -> 0 | BR8: =IF(Overrides!$A32, IFERROR(OFFSET(Overrides!$B32, 0, MATCH(BR$5,Overrides!$C$31:$GU$31,0))*BR$7,0), MIN(S!$BP$206/(S!$BO$206+1)*BR6,S!$BP$206) *MIN(1+(S!$BM$206+S!$BN$206/12)-BR5,1)) -> 0 | BS8: =IF(Overrides!$A32, IFERROR(OFFSET(Overrides!$B32, 0, MATCH(BS$5,Overrides!$C$31:$GU$31,0))*BS$7,0), MIN(S!$BP$206/(S!$BO$206+1)*BS6,S!$BP$206) *MIN(1+(S!$BM$206+S!$BN$206/12)-BS5,1)) -> 0 | BT8: =IF(Overrides!$A32, IFERROR(OFFSET(Overrides!$B32, 0, MATCH(BT$5,Overrides!$C$31:$GU$31,0))*BT$7,0), MIN(S!$BP$206/(S!$BO$206+1)*BT6,S!$BP$206) *MIN(1+(S!$BM$206+S!$BN$206/12)-BT5,1)) -> 0 | BU8: =IF(Overrides!$A32, IFERROR(OFFSET(Overrides!$B32, 0, MATCH(BU$5,Overrides!$C$31:$GU$31,0))*BU$7,0), MIN(S!$BP$206/(S!$BO$206+1)*BU6,S!$BP$206) *MIN(1+(S!$BM$206+S!$BN$206/12)-BU5,1)) -> 0 | BV8: =IF(Overrides!$A32, IFERROR(OFFSET(Overrides!$B32, 0, MATCH(BV$5,Overrides!$C$31:$GU$31,0))*BV$7,0), MIN(S!$BP$206/(S!$BO$206+1)*BV6,S!$BP$206) *MIN(1+(S!$BM$206+S!$BN$206/12)-BV5,1)) -> 0 | BW8: =IF(Overrides!$A32, IFERROR(OFFSET(Overrides!$B32, 0, MATCH(BW$5,Overrides!$C$31:$GU$31,0))*BW$7,0), MIN(S!$BP$206/(S!$BO$206+1)*BW6,S!$BP$206) *MIN(1+(S!$BM$206+S!$BN$206/12)-BW5,1)) -> 0 | BX8: =IF(Overrides!$A32, IFERROR(OFFSET(Overrides!$B32, 0, MATCH(BX$5,Overrides!$C$31:$GU$31,0))*BX$7,0), MIN(S!$BP$206/(S!$BO$206+1)*BX6,S!$BP$206) *MIN(1+(S!$BM$206+S!$BN$206/12)-BX5,1)) -> 0 | BY8: =IF(Overrides!$A32, IFERROR(OFFSET(Overrides!$B32, 0, MATCH(BY$5,Overrides!$C$31:$GU$31,0))*BY$7,0), MIN(S!$BP$206/(S!$BO$206+1)*BY6,S!$BP$206) *MIN(1+(S!$BM$206+S!$BN$206/12)-BY5,1)) -> 0 | BZ8: =IF(Overrides!$A32, IFERROR(OFFSET(Overrides!$B32, 0, MATCH(BZ$5,Overrides!$C$31:$GU$31,0))*BZ$7,0), MIN(S!$BP$206/(S!$BO$206+1)*BZ6,S!$BP$206) *MIN(1+(S!$BM$206+S!$BN$206/12)-BZ5,1)) -> 0 | CA8: =IF(Overrides!$A32, IFERROR(OFFSET(Overrides!$B32, 0, MATCH(CA$5,Overrides!$C$31:$GU$31,0))*CA$7,0), MIN(S!$BP$206/(S!$BO$206+1)*CA6,S!$BP$206) *MIN(1+(S!$BM$206+S!$BN$206/12)-CA5,1)) -> 0 | CB8: =IF(Overrides!$A32, IFERROR(OFFSET(Overrides!$B32, 0, MATCH(CB$5,Overrides!$C$31:$GU$31,0))*CB$7,0), MIN(S!$BP$206/(S!$BO$206+1)*CB6,S!$BP$206) *MIN(1+(S!$BM$206+S!$BN$206/12)-CB5,1)) -> 0 | CC8: =IF(Overrides!$A32, IFERROR(OFFSET(Overrides!$B32, 0, MATCH(CC$5,Overrides!$C$31:$GU$31,0))*CC$7,0), MIN(S!$BP$206/(S!$BO$206+1)*CC6,S!$BP$206) *MIN(1+(S!$BM$206+S!$BN$206/12)-CC5,1)) -> 0 | CD8: =IF(Overrides!$A32, IFERROR(OFFSET(Overrides!$B32, 0, MATCH(CD$5,Overrides!$C$31:$GU$31,0))*CD$7,0), MIN(S!$BP$206/(S!$BO$206+1)*CD6,S!$BP$206) *MIN(1+(S!$BM$206+S!$BN$206/12)-CD5,1)) -> 0 | CE8: =IF(Overrides!$A32, IFERROR(OFFSET(Overrides!$B32, 0, MATCH(CE$5,Overrides!$C$31:$GU$31,0))*CE$7,0), MIN(S!$BP$206/(S!$BO$206+1)*CE6,S!$BP$206) *MIN(1+(S!$BM$206+S!$BN$206/12)-CE5,1)) -> 0 | CF8: =IF(Overrides!$A32, IFERROR(OFFSET(Overrides!$B32, 0, MATCH(CF$5,Overrides!$C$31:$GU$31,0))*CF$7,0), MIN(S!$BP$206/(S!$BO$206+1)*CF6,S!$BP$206) *MIN(1+(S!$BM$206+S!$BN$206/12)-CF5,1)) -> 0 | CG8: =IF(Overrides!$A32, IFERROR(OFFSET(Overrides!$B32, 0, MATCH(CG$5,Overrides!$C$31:$GU$31,0))*CG$7,0), MIN(S!$BP$206/(S!$BO$206+1)*CG6,S!$BP$206) *MIN(1+(S!$BM$206+S!$BN$206/12)-CG5,1)) -> 0 | CH8: =IF(Overrides!$A32, IFERROR(OFFSET(Overrides!$B32, 0, MATCH(CH$5,Overrides!$C$31:$GU$31,0))*CH$7,0), MIN(S!$BP$206/(S!$BO$206+1)*CH6,S!$BP$206) *MIN(1+(S!$BM$206+S!$BN$206/12)-CH5,1)) -> 0 | CI8: =IF(Overrides!$A32, IFERROR(OFFSET(Overrides!$B32, 0, MATCH(CI$5,Overrides!$C$31:$GU$31,0))*CI$7,0), MIN(S!$BP$206/(S!$BO$206+1)*CI6,S!$BP$206) *MIN(1+(S!$BM$206+S!$BN$206/12)-CI5,1)) -> 0 | CJ8: =IF(Overrides!$A32, IFERROR(OFFSET(Overrides!$B32, 0, MATCH(CJ$5,Overrides!$C$31:$GU$31,0))*CJ$7,0), MIN(S!$BP$206/(S!$BO$206+1)*CJ6,S!$BP$206) *MIN(1+(S!$BM$206+S!$BN$206/12)-CJ5,1)) -> 0 | CK8: =IF(Overrides!$A32, IFERROR(OFFSET(Overrides!$B32, 0, MATCH(CK$5,Overrides!$C$31:$GU$31,0))*CK$7,0), MIN(S!$BP$206/(S!$BO$206+1)*CK6,S!$BP$206) *MIN(1+(S!$BM$206+S!$BN$206/12)-CK5,1)) -> 0 | CL8: =IF(Overrides!$A32, IFERROR(OFFSET(Overrides!$B32, 0, MATCH(CL$5,Overrides!$C$31:$GU$31,0))*CL$7,0), MIN(S!$BP$206/(S!$BO$206+1)*CL6,S!$BP$206) *MIN(1+(S!$BM$206+S!$BN$206/12)-CL5,1)) -> 0 | CM8: =IF(Overrides!$A32, IFERROR(OFFSET(Overrides!$B32, 0, MATCH(CM$5,Overrides!$C$31:$GU$31,0))*CM$7,0), MIN(S!$BP$206/(S!$BO$206+1)*CM6,S!$BP$206) *MIN(1+(S!$BM$206+S!$BN$206/12)-CM5,1)) -> 0 | CN8: =IF(Overrides!$A32, IFERROR(OFFSET(Overrides!$B32, 0, MATCH(CN$5,Overrides!$C$31:$GU$31,0))*CN$7,0), MIN(S!$BP$206/(S!$BO$206+1)*CN6,S!$BP$206) *MIN(1+(S!$BM$206+S!$BN$206/12)-CN5,1)) -> 0 | CO8: =IF(Overrides!$A32, IFERROR(OFFSET(Overrides!$B32, 0, MATCH(CO$5,Overrides!$C$31:$GU$31,0))*CO$7,0), MIN(S!$BP$206/(S!$BO$206+1)*CO6,S!$BP$206) *MIN(1+(S!$BM$206+S!$BN$206/12)-CO5,1)) -> 0 | CP8: =IF(Overrides!$A32, IFERROR(OFFSET(Overrides!$B32, 0, MATCH(CP$5,Overrides!$C$31:$GU$31,0))*CP$7,0), MIN(S!$BP$206/(S!$BO$206+1)*CP6,S!$BP$206) *MIN(1+(S!$BM$206+S!$BN$206/12)-CP5,1)) -> 0 | CQ8: =IF(Overrides!$A32, IFERROR(OFFSET(Overrides!$B32, 0, MATCH(CQ$5,Overrides!$C$31:$GU$31,0))*CQ$7,0), MIN(S!$BP$206/(S!$BO$206+1)*CQ6,S!$BP$206) *MIN(1+(S!$BM$206+S!$BN$206/12)-CQ5,1)) -> 0 | CR8: =IF(Overrides!$A32, IFERROR(OFFSET(Overrides!$B32, 0, MATCH(CR$5,Overrides!$C$31:$GU$31,0))*CR$7,0), MIN(S!$BP$206/(S!$BO$206+1)*CR6,S!$BP$206) *MIN(1+(S!$BM$206+S!$BN$206/12)-CR5,1)) -> 0 | CS8: =IF(Overrides!$A32, IFERROR(OFFSET(Overrides!$B32, 0, MATCH(CS$5,Overrides!$C$31:$GU$31,0))*CS$7,0), MIN(S!$BP$206/(S!$BO$206+1)*CS6,S!$BP$206) *MIN(1+(S!$BM$206+S!$BN$206/12)-CS5,1)) -> 0 | CT8: =IF(Overrides!$A32, IFERROR(OFFSET(Overrides!$B32, 0, MATCH(CT$5,Overrides!$C$31:$GU$31,0))*CT$7,0), MIN(S!$BP$206/(S!$BO$206+1)*CT6,S!$BP$206) *MIN(1+(S!$BM$206+S!$BN$206/12)-CT5,1)) -> 0 | CU8: =IF(Overrides!$A32, IFERROR(OFFSET(Overrides!$B32, 0, MATCH(CU$5,Overrides!$C$31:$GU$31,0))*CU$7,0), MIN(S!$BP$206/(S!$BO$206+1)*CU6,S!$BP$206) *MIN(1+(S!$BM$206+S!$BN$206/12)-CU5,1)) -> 0 | CV8: =IF(Overrides!$A32, IFERROR(OFFSET(Overrides!$B32, 0, MATCH(CV$5,Overrides!$C$31:$GU$31,0))*CV$7,0), MIN(S!$BP$206/(S!$BO$206+1)*CV6,S!$BP$206) *MIN(1+(S!$BM$206+S!$BN$206/12)-CV5,1)) -> 0 | CW8: =IF(Overrides!$A32, IFERROR(OFFSET(Overrides!$B32, 0, MATCH(CW$5,Overrides!$C$31:$GU$31,0))*CW$7,0), MIN(S!$BP$206/(S!$BO$206+1)*CW6,S!$BP$206) *MIN(1+(S!$BM$206+S!$BN$206/12)-CW5,1)) -> 0 | CX8: =IF(Overrides!$A32, IFERROR(OFFSET(Overrides!$B32, 0, MATCH(CX$5,Overrides!$C$31:$GU$31,0))*CX$7,0), MIN(S!$BP$206/(S!$BO$206+1)*CX6,S!$BP$206) *MIN(1+(S!$BM$206+S!$BN$206/12)-CX5,1)) -> 0 | CY8: =IF(Overrides!$A32, IFERROR(OFFSET(Overrides!$B32, 0, MATCH(CY$5,Overrides!$C$31:$GU$31,0))*CY$7,0), MIN(S!$BP$206/(S!$BO$206+1)*CY6,S!$BP$206) *MIN(1+(S!$BM$206+S!$BN$206/12)-CY5,1)) -> 0
C9: Take or pay contract volume (kg/year) | D9: =MAX(S!$CX$206-D8,0)*S!$S$206*365*(D6>0)*(D6<=S!$CW$206) -> 0 | E9: =MAX(S!$CX$206-E8,0)*S!$S$206*365*(E6>0)*(E6<=S!$CW$206) -> 363175 | F9: =MAX(S!$CX$206-F8,0)*S!$S$206*365*(F6>0)*(F6<=S!$CW$206) -> 344925 | G9: =MAX(S!$CX$206-G8,0)*S!$S$206*365*(G6>0)*(G6<=S!$CW$206) -> 326675 | H9: =MAX(S!$CX$206-H8,0)*S!$S$206*365*(H6>0)*(H6<=S!$CW$206) -> 308425 | I9: =MAX(S!$CX$206-I8,0)*S!$S$206*365*(I6>0)*(I6<=S!$CW$206) -> 290175 | J9: =MAX(S!$CX$206-J8,0)*S!$S$206*365*(J6>0)*(J6<=S!$CW$206) -> 271925 | K9: =MAX(S!$CX$206-K8,0)*S!$S$206*365*(K6>0)*(K6<=S!$CW$206) -> 262800 | L9: =MAX(S!$CX$206-L8,0)*S!$S$206*365*(L6>0)*(L6<=S!$CW$206) -> 262800 | M9: =MAX(S!$CX$206-M8,0)*S!$S$206*365*(M6>0)*(M6<=S!$CW$206) -> 262800 | N9: =MAX(S!$CX$206-N8,0)*S!$S$206*365*(N6>0)*(N6<=S!$CW$206) -> 262800 | O9: =MAX(S!$CX$206-O8,0)*S!$S$206*365*(O6>0)*(O6<=S!$CW$206) -> 262800 | P9: =MAX(S!$CX$206-P8,0)*S!$S$206*365*(P6>0)*(P6<=S!$CW$206) -> 262800 | Q9: =MAX(S!$CX$206-Q8,0)*S!$S$206*365*(Q6>0)*(Q6<=S!$CW$206) -> 262800 | R9: =MAX(S!$CX$206-R8,0)*S!$S$206*365*(R6>0)*(R6<=S!$CW$206) -> 262800 | S9: =MAX(S!$CX$206-S8,0)*S!$S$206*365*(S6>0)*(S6<=S!$CW$206) -> 262800 | T9: =MAX(S!$CX$206-T8,0)*S!$S$206*365*(T6>0)*(T6<=S!$CW$206) -> 317550 | U9: =MAX(S!$CX$206-U8,0)*S!$S$206*365*(U6>0)*(U6<=S!$CW$206) -> 0 | V9: =MAX(S!$CX$206-V8,0)*S!$S$206*365*(V6>0)*(V6<=S!$CW$206) -> 0 | W9: =MAX(S!$CX$206-W8,0)*S!$S$206*365*(W6>0)*(W6<=S!$CW$206) -> 0 | X9: =MAX(S!$CX$206-X8,0)*S!$S$206*365*(X6>0)*(X6<=S!$CW$206) -> 0 | Y9: =MAX(S!$CX$206-Y8,0)*S!$S$206*365*(Y6>0)*(Y6<=S!$CW$206) -> 0 | Z9: =MAX(S!$CX$206-Z8,0)*S!$S$206*365*(Z6>0)*(Z6<=S!$CW$206) -> 0 | AA9: =MAX(S!$CX$206-AA8,0)*S!$S$206*365*(AA6>0)*(AA6<=S!$CW$206) -> 0 | AB9: =MAX(S!$CX$206-AB8,0)*S!$S$206*365*(AB6>0)*(AB6<=S!$CW$206) -> 0 | AC9: =MAX(S!$CX$206-AC8,0)*S!$S$206*365*(AC6>0)*(AC6<=S!$CW$206) -> 0 | AD9: =MAX(S!$CX$206-AD8,0)*S!$S$206*365*(AD6>0)*(AD6<=S!$CW$206) -> 0 | AE9: =MAX(S!$CX$206-AE8,0)*S!$S$206*365*(AE6>0)*(AE6<=S!$CW$206) -> 0 | AF9: =MAX(S!$CX$206-AF8,0)*S!$S$206*365*(AF6>0)*(AF6<=S!$CW$206) -> 0 | AG9: =MAX(S!$CX$206-AG8,0)*S!$S$206*365*(AG6>0)*(AG6<=S!$CW$206) -> 0 | AH9: =MAX(S!$CX$206-AH8,0)*S!$S$206*365*(AH6>0)*(AH6<=S!$CW$206) -> 0 | AI9: =MAX(S!$CX$206-AI8,0)*S!$S$206*365*(AI6>0)*(AI6<=S!$CW$206) -> 0 | AJ9: =MAX(S!$CX$206-AJ8,0)*S!$S$206*365*(AJ6>0)*(AJ6<=S!$CW$206) -> 0 | AK9: =MAX(S!$CX$206-AK8,0)*S!$S$206*365*(AK6>0)*(AK6<=S!$CW$206) -> 0 | AL9: =MAX(S!$CX$206-AL8,0)*S!$S$206*365*(AL6>0)*(AL6<=S!$CW$206) -> 0 | AM9: =MAX(S!$CX$206-AM8,0)*S!$S$206*365*(AM6>0)*(AM6<=S!$CW$206) -> 0 | AN9: =MAX(S!$CX$206-AN8,0)*S!$S$206*365*(AN6>0)*(AN6<=S!$CW$206) -> 0 | AO9: =MAX(S!$CX$206-AO8,0)*S!$S$206*365*(AO6>0)*(AO6<=S!$CW$206) -> 0 | AP9: =MAX(S!$CX$206-AP8,0)*S!$S$206*365*(AP6>0)*(AP6<=S!$CW$206) -> 0 | AQ9: =MAX(S!$CX$206-AQ8,0)*S!$S$206*365*(AQ6>0)*(AQ6<=S!$CW$206) -> 0 | AR9: =MAX(S!$CX$206-AR8,0)*S!$S$206*365*(AR6>0)*(AR6<=S!$CW$206) -> 0 | AS9: =MAX(S!$CX$206-AS8,0)*S!$S$206*365*(AS6>0)*(AS6<=S!$CW$206) -> 0 | AT9: =MAX(S!$CX$206-AT8,0)*S!$S$206*365*(AT6>0)*(AT6<=S!$CW$206) -> 0 | AU9: =MAX(S!$CX$206-AU8,0)*S!$S$206*365*(AU6>0)*(AU6<=S!$CW$206) -> 0 | AV9: =MAX(S!$CX$206-AV8,0)*S!$S$206*365*(AV6>0)*(AV6<=S!$CW$206) -> 0 | AW9: =MAX(S!$CX$206-AW8,0)*S!$S$206*365*(AW6>0)*(AW6<=S!$CW$206) -> 0 | AX9: =MAX(S!$CX$206-AX8,0)*S!$S$206*365*(AX6>0)*(AX6<=S!$CW$206) -> 0 | AY9: =MAX(S!$CX$206-AY8,0)*S!$S$206*365*(AY6>0)*(AY6<=S!$CW$206) -> 0 | AZ9: =MAX(S!$CX$206-AZ8,0)*S!$S$206*365*(AZ6>0)*(AZ6<=S!$CW$206) -> 0 | BA9: =MAX(S!$CX$206-BA8,0)*S!$S$206*365*(BA6>0)*(BA6<=S!$CW$206) -> 0 | BB9: =MAX(S!$CX$206-BB8,0)*S!$S$206*365*(BB6>0)*(BB6<=S!$CW$206) -> 0 | BC9: =MAX(S!$CX$206-BC8,0)*S!$S$206*365*(BC6>0)*(BC6<=S!$CW$206) -> 0 | BD9: =MAX(S!$CX$206-BD8,0)*S!$S$206*365*(BD6>0)*(BD6<=S!$CW$206) -> 0 | BE9: =MAX(S!$CX$206-BE8,0)*S!$S$206*365*(BE6>0)*(BE6<=S!$CW$206) -> 0 | BF9: =MAX(S!$CX$206-BF8,0)*S!$S$206*365*(BF6>0)*(BF6<=S!$CW$206) -> 0 | BG9: =MAX(S!$CX$206-BG8,0)*S!$S$206*365*(BG6>0)*(BG6<=S!$CW$206) -> 0 | BH9: =MAX(S!$CX$206-BH8,0)*S!$S$206*365*(BH6>0)*(BH6<=S!$CW$206) -> 0 | BI9: =MAX(S!$CX$206-BI8,0)*S!$S$206*365*(BI6>0)*(BI6<=S!$CW$206) -> 0 | BJ9: =MAX(S!$CX$206-BJ8,0)*S!$S$206*365*(BJ6>0)*(BJ6<=S!$CW$206) -> 0 | BK9: =MAX(S!$CX$206-BK8,0)*S!$S$206*365*(BK6>0)*(BK6<=S!$CW$206) -> 0 | BL9: =MAX(S!$CX$206-BL8,0)*S!$S$206*365*(BL6>0)*(BL6<=S!$CW$206) -> 0 | BM9: =MAX(S!$CX$206-BM8,0)*S!$S$206*365*(BM6>0)*(BM6<=S!$CW$206) -> 0 | BN9: =MAX(S!$CX$206-BN8,0)*S!$S$206*365*(BN6>0)*(BN6<=S!$CW$206) -> 0 | BO9: =MAX(S!$CX$206-BO8,0)*S!$S$206*365*(BO6>0)*(BO6<=S!$CW$206) -> 0 | BP9: =MAX(S!$CX$206-BP8,0)*S!$S$206*365*(BP6>0)*(BP6<=S!$CW$206) -> 0 | BQ9: =MAX(S!$CX$206-BQ8,0)*S!$S$206*365*(BQ6>0)*(BQ6<=S!$CW$206) -> 0 | BR9: =MAX(S!$CX$206-BR8,0)*S!$S$206*365*(BR6>0)*(BR6<=S!$CW$206) -> 0 | BS9: =MAX(S!$CX$206-BS8,0)*S!$S$206*365*(BS6>0)*(BS6<=S!$CW$206) -> 0 | BT9: =MAX(S!$CX$206-BT8,0)*S!$S$206*365*(BT6>0)*(BT6<=S!$CW$206) -> 0 | BU9: =MAX(S!$CX$206-BU8,0)*S!$S$206*365*(BU6>0)*(BU6<=S!$CW$206) -> 0 | BV9: =MAX(S!$CX$206-BV8,0)*S!$S$206*365*(BV6>0)*(BV6<=S!$CW$206) -> 0 | BW9: =MAX(S!$CX$206-BW8,0)*S!$S$206*365*(BW6>0)*(BW6<=S!$CW$206) -> 0 | BX9: =MAX(S!$CX$206-BX8,0)*S!$S$206*365*(BX6>0)*(BX6<=S!$CW$206) -> 0 | BY9: =MAX(S!$CX$206-BY8,0)*S!$S$206*365*(BY6>0)*(BY6<=S!$CW$206) -> 0 | BZ9: =MAX(S!$CX$206-BZ8,0)*S!$S$206*365*(BZ6>0)*(BZ6<=S!$CW$206) -> 0 | CA9: =MAX(S!$CX$206-CA8,0)*S!$S$206*365*(CA6>0)*(CA6<=S!$CW$206) -> 0 | CB9: =MAX(S!$CX$206-CB8,0)*S!$S$206*365*(CB6>0)*(CB6<=S!$CW$206) -> 0 | CC9: =MAX(S!$CX$206-CC8,0)*S!$S$206*365*(CC6>0)*(CC6<=S!$CW$206) -> 0 | CD9: =MAX(S!$CX$206-CD8,0)*S!$S$206*365*(CD6>0)*(CD6<=S!$CW$206) -> 0 | CE9: =MAX(S!$CX$206-CE8,0)*S!$S$206*365*(CE6>0)*(CE6<=S!$CW$206) -> 0 | CF9: =MAX(S!$CX$206-CF8,0)*S!$S$206*365*(CF6>0)*(CF6<=S!$CW$206) -> 0 | CG9: =MAX(S!$CX$206-CG8,0)*S!$S$206*365*(CG6>0)*(CG6<=S!$CW$206) -> 0 | CH9: =MAX(S!$CX$206-CH8,0)*S!$S$206*365*(CH6>0)*(CH6<=S!$CW$206) -> 0 | CI9: =MAX(S!$CX$206-CI8,0)*S!$S$206*365*(CI6>0)*(CI6<=S!$CW$206) -> 0 | CJ9: =MAX(S!$CX$206-CJ8,0)*S!$S$206*365*(CJ6>0)*(CJ6<=S!$CW$206) -> 0 | CK9: =MAX(S!$CX$206-CK8,0)*S!$S$206*365*(CK6>0)*(CK6<=S!$CW$206) -> 0 | CL9: =MAX(S!$CX$206-CL8,0)*S!$S$206*365*(CL6>0)*(CL6<=S!$CW$206) -> 0 | CM9: =MAX(S!$CX$206-CM8,0)*S!$S$206*365*(CM6>0)*(CM6<=S!$CW$206) -> 0 | CN9: =MAX(S!$CX$206-CN8,0)*S!$S$206*365*(CN6>0)*(CN6<=S!$CW$206) -> 0 | CO9: =MAX(S!$CX$206-CO8,0)*S!$S$206*365*(CO6>0)*(CO6<=S!$CW$206) -> 0 | CP9: =MAX(S!$CX$206-CP8,0)*S!$S$206*365*(CP6>0)*(CP6<=S!$CW$206) -> 0 | CQ9: =MAX(S!$CX$206-CQ8,0)*S!$S$206*365*(CQ6>0)*(CQ6<=S!$CW$206) -> 0 | CR9: =MAX(S!$CX$206-CR8,0)*S!$S$206*365*(CR6>0)*(CR6<=S!$CW$206) -> 0 | CS9: =MAX(S!$CX$206-CS8,0)*S!$S$206*365*(CS6>0)*(CS6<=S!$CW$206) -> 0 | CT9: =MAX(S!$CX$206-CT8,0)*S!$S$206*365*(CT6>0)*(CT6<=S!$CW$206) -> 0 | CU9: =MAX(S!$CX$206-CU8,0)*S!$S$206*365*(CU6>0)*(CU6<=S!$CW$206) -> 0 | CV9: =MAX(S!$CX$206-CV8,0)*S!$S$206*365*(CV6>0)*(CV6<=S!$CW$206) -> 0 | CW9: =MAX(S!$CX$206-CW8,0)*S!$S$206*365*(CW6>0)*(CW6<=S!$CW$206) -> 0 | CX9: =MAX(S!$CX$206-CX8,0)*S!$S$206*365*(CX6>0)*(CX6<=S!$CW$206) -> 0 | CY9: =MAX(S!$CX$206-CY8,0)*S!$S$206*365*(CY6>0)*(CY6<=S!$CW$206) -> 0
C10: ="Average daily sales ("&RetailUnit&"/day)" -> Average daily sales (kWh/day) | D10: 0 | E10: =+E8*S!$S$206 -> 25 | F10: =+F8*S!$S$206 -> 75 | G10: =+G8*S!$S$206 -> 125 | H10: =+H8*S!$S$206 -> 175 | I10: =+I8*S!$S$206 -> 225 | J10: =+J8*S!$S$206 -> 275 | K10: =+K8*S!$S$206 -> 300 | L10: =+L8*S!$S$206 -> 300 | M10: =+M8*S!$S$206 -> 300 | N10: =+N8*S!$S$206 -> 300 | O10: =+O8*S!$S$206 -> 300 | P10: =+P8*S!$S$206 -> 300 | Q10: =+Q8*S!$S$206 -> 300 | R10: =+R8*S!$S$206 -> 300 | S10: =+S8*S!$S$206 -> 300 | T10: =+T8*S!$S$206 -> 150 | U10: =+U8*S!$S$206 -> 0 | V10: =+V8*S!$S$206 -> 0 | W10: =+W8*S!$S$206 -> 0 | X10: =+X8*S!$S$206 -> 0 | Y10: =+Y8*S!$S$206 -> 0 | Z10: =+Z8*S!$S$206 -> 0 | AA10: =+AA8*S!$S$206 -> 0 | AB10: =+AB8*S!$S$206 -> 0 | AC10: =+AC8*S!$S$206 -> 0 | AD10: =+AD8*S!$S$206 -> 0 | AE10: =+AE8*S!$S$206 -> 0 | AF10: =+AF8*S!$S$206 -> 0 | AG10: =+AG8*S!$S$206 -> 0 | AH10: =+AH8*S!$S$206 -> 0 | AI10: =+AI8*S!$S$206 -> 0 | AJ10: =+AJ8*S!$S$206 -> 0 | AK10: =+AK8*S!$S$206 -> 0 | AL10: =+AL8*S!$S$206 -> 0 | AM10: =+AM8*S!$S$206 -> 0 | AN10: =+AN8*S!$S$206 -> 0 | AO10: =+AO8*S!$S$206 -> 0 | AP10: =+AP8*S!$S$206 -> 0 | AQ10: =+AQ8*S!$S$206 -> 0 | AR10: =+AR8*S!$S$206 -> 0 | AS10: =+AS8*S!$S$206 -> 0 | AT10: =+AT8*S!$S$206 -> 0 | AU10: =+AU8*S!$S$206 -> 0 | AV10: =+AV8*S!$S$206 -> 0 | AW10: =+AW8*S!$S$206 -> 0 | AX10: =+AX8*S!$S$206 -> 0 | AY10: =+AY8*S!$S$206 -> 0 | AZ10: =+AZ8*S!$S$206 -> 0 | BA10: =+BA8*S!$S$206 -> 0 | BB10: =+BB8*S!$S$206 -> 0 | BC10: =+BC8*S!$S$206 -> 0 | BD10: =+BD8*S!$S$206 -> 0 | BE10: =+BE8*S!$S$206 -> 0 | BF10: =+BF8*S!$S$206 -> 0 | BG10: =+BG8*S!$S$206 -> 0 | BH10: =+BH8*S!$S$206 -> 0 | BI10: =+BI8*S!$S$206 -> 0 | BJ10: =+BJ8*S!$S$206 -> 0 | BK10: =+BK8*S!$S$206 -> 0 | BL10: =+BL8*S!$S$206 -> 0 | BM10: =+BM8*S!$S$206 -> 0 | BN10: =+BN8*S!$S$206 -> 0 | BO10: =+BO8*S!$S$206 -> 0 | BP10: =+BP8*S!$S$206 -> 0 | BQ10: =+BQ8*S!$S$206 -> 0 | BR10: =+BR8*S!$S$206 -> 0 | BS10: =+BS8*S!$S$206 -> 0 | BT10: =+BT8*S!$S$206 -> 0 | BU10: =+BU8*S!$S$206 -> 0 | BV10: =+BV8*S!$S$206 -> 0 | BW10: =+BW8*S!$S$206 -> 0 | BX10: =+BX8*S!$S$206 -> 0 | BY10: =+BY8*S!$S$206 -> 0 | BZ10: =+BZ8*S!$S$206 -> 0 | CA10: =+CA8*S!$S$206 -> 0 | CB10: =+CB8*S!$S$206 -> 0 | CC10: =+CC8*S!$S$206 -> 0 | CD10: =+CD8*S!$S$206 -> 0 | CE10: =+CE8*S!$S$206 -> 0 | CF10: =+CF8*S!$S$206 -> 0 | CG10: =+CG8*S!$S$206 -> 0 | CH10: =+CH8*S!$S$206 -> 0 | CI10: =+CI8*S!$S$206 -> 0 | CJ10: =+CJ8*S!$S$206 -> 0 | CK10: =+CK8*S!$S$206 -> 0 | CL10: =+CL8*S!$S$206 -> 0 | CM10: =+CM8*S!$S$206 -> 0 | CN10: =+CN8*S!$S$206 -> 0 | CO10: =+CO8*S!$S$206 -> 0 | CP10: =+CP8*S!$S$206 -> 0 | CQ10: =+CQ8*S!$S$206 -> 0 | CR10: =+CR8*S!$S$206 -> 0 | CS10: =+CS8*S!$S$206 -> 0 | CT10: =+CT8*S!$S$206 -> 0 | CU10: =+CU8*S!$S$206 -> 0 | CV10: =+CV8*S!$S$206 -> 0 | CW10: =+CW8*S!$S$206 -> 0 | CX10: =+CX8*S!$S$206 -> 0 | CY10: =+CY8*S!$S$206 -> 0
C11: ="Annual "&RetailCommodity&" sales ("&RetailUnit&"/year)" -> Annual EV-charging sales (kWh/year) | D11: 0 | E11: =+E10*365 -> 9125 | F11: =+F10*365 -> 27375 | G11: 45625 | H11: 63875 | I11: 82125 | J11: 100375 | K11: 109500 | L11: 109500 | M11: 109500 | N11: 109500 | O11: 109500 | P11: 109500 | Q11: 109500 | R11: 109500 | S11: 109500 | T11: 54750 | U11: 0 | V11: 0 | W11: 0 | X11: 0 | Y11: 0 | Z11: 0 | AA11: 0 | AB11: 0 | AC11: 0 | AD11: 0 | AE11: 0 | AF11: 0 | AG11: 0 | AH11: 0 | AI11: 0 | AJ11: 0 | AK11: 0 | AL11: 0 | AM11: 0 | AN11: 0 | AO11: 0 | AP11: 0 | AQ11: 0 | AR11: =+AR10*365 -> 0 | AS11: 0 | AT11: 0 | AU11: 0 | AV11: 0 | AW11: 0 | AX11: 0 | AY11: 0 | AZ11: 0 | BA11: 0 | BB11: 0 | BC11: 0 | BD11: 0 | BE11: 0 | BF11: 0 | BG11: 0 | BH11: 0 | BI11: 0 | BJ11: 0 | BK11: 0 | BL11: 0 | BM11: 0 | BN11: 0 | BO11: 0 | BP11: 0 | BQ11: 0 | BR11: 0 | BS11: 0 | BT11: 0 | BU11: 0 | BV11: 0 | BW11: 0 | BX11: 0 | BY11: 0 | BZ11: 0 | CA11: =+CA10*365 -> 0 | CB11: 0 | CC11: 0 | CD11: 0 | CE11: 0 | CF11: 0 | CG11: 0 | CH11: 0 | CI11: 0 | CJ11: 0 | CK11: 0 | CL11: 0 | CM11: 0 | CN11: 0 | CO11: 0 | CP11: 0 | CQ11: 0 | CR11: 0 | CS11: 0 | CT11: 0 | CU11: 0 | CV11: 0 | CW11: 0 | CX11: 0 | CY11: 0
C12: ="Annual "&Interface!E58&" sales ("&Interface!F58&"/year)" -> Annual coproduct 1 sales (units of coproduct 1/year) | D12: =+S!$AR$206*D$11 -> 0 | E12: =+S!$AR$206*E$11 -> 0 | F12: =+S!$AR$206*F$11 -> 0 | G12: =+S!$AR$206*G$11 -> 0 | H12: =+S!$AR$206*H$11 -> 0 | I12: =+S!$AR$206*I$11 -> 0 | J12: =+S!$AR$206*J$11 -> 0 | K12: =+S!$AR$206*K$11 -> 0 | L12: =+S!$AR$206*L$11 -> 0 | M12: =+S!$AR$206*M$11 -> 0 | N12: =+S!$AR$206*N$11 -> 0 | O12: =+S!$AR$206*O$11 -> 0 | P12: =+S!$AR$206*P$11 -> 0 | Q12: =+S!$AR$206*Q$11 -> 0 | R12: =+S!$AR$206*R$11 -> 0 | S12: =+S!$AR$206*S$11 -> 0 | T12: =+S!$AR$206*T$11 -> 0 | U12: =+S!$AR$206*U$11 -> 0 | V12: =+S!$AR$206*V$11 -> 0 | W12: =+S!$AR$206*W$11 -> 0 | X12: =+S!$AR$206*X$11 -> 0 | Y12: =+S!$AR$206*Y$11 -> 0 | Z12: =+S!$AR$206*Z$11 -> 0 | AA12: =+S!$AR$206*AA$11 -> 0 | AB12: =+S!$AR$206*AB$11 -> 0 | AC12: =+S!$AR$206*AC$11 -> 0 | AD12: =+S!$AR$206*AD$11 -> 0 | AE12: =+S!$AR$206*AE$11 -> 0 | AF12: =+S!$AR$206*AF$11 -> 0 | AG12: =+S!$AR$206*AG$11 -> 0 | AH12: =+S!$AR$206*AH$11 -> 0 | AI12: =+S!$AR$206*AI$11 -> 0 | AJ12: =+S!$AR$206*AJ$11 -> 0 | AK12: =+S!$AR$206*AK$11 -> 0 | AL12: =+S!$AR$206*AL$11 -> 0 | AM12: =+S!$AR$206*AM$11 -> 0 | AN12: =+S!$AR$206*AN$11 -> 0 | AO12: =+S!$AR$206*AO$11 -> 0 | AP12: =+S!$AR$206*AP$11 -> 0 | AQ12: =+S!$AR$206*AQ$11 -> 0 | AR12: =+S!$AR$206*AR$11 -> 0 | AS12: =+S!$AR$206*AS$11 -> 0 | AT12: =+S!$AR$206*AT$11 -> 0 | AU12: =+S!$AR$206*AU$11 -> 0 | AV12: =+S!$AR$206*AV$11 -> 0 | AW12: =+S!$AR$206*AW$11 -> 0 | AX12: =+S!$AR$206*AX$11 -> 0 | AY12: =+S!$AR$206*AY$11 -> 0 | AZ12: =+S!$AR$206*AZ$11 -> 0 | BA12: =+S!$AR$206*BA$11 -> 0 | BB12: =+S!$AR$206*BB$11 -> 0 | BC12: =+S!$AR$206*BC$11 -> 0 | BD12: =+S!$AR$206*BD$11 -> 0 | BE12: =+S!$AR$206*BE$11 -> 0 | BF12: =+S!$AR$206*BF$11 -> 0 | BG12: =+S!$AR$206*BG$11 -> 0 | BH12: =+S!$AR$206*BH$11 -> 0 | BI12: =+S!$AR$206*BI$11 -> 0 | BJ12: =+S!$AR$206*BJ$11 -> 0 | BK12: =+S!$AR$206*BK$11 -> 0 | BL12: =+S!$AR$206*BL$11 -> 0 | BM12: =+S!$AR$206*BM$11 -> 0 | BN12: =+S!$AR$206*BN$11 -> 0 | BO12: =+S!$AR$206*BO$11 -> 0 | BP12: =+S!$AR$206*BP$11 -> 0 | BQ12: =+S!$AR$206*BQ$11 -> 0 | BR12: =+S!$AR$206*BR$11 -> 0 | BS12: =+S!$AR$206*BS$11 -> 0 | BT12: =+S!$AR$206*BT$11 -> 0 | BU12: =+S!$AR$206*BU$11 -> 0 | BV12: =+S!$AR$206*BV$11 -> 0 | BW12: =+S!$AR$206*BW$11 -> 0 | BX12: =+S!$AR$206*BX$11 -> 0 | BY12: =+S!$AR$206*BY$11 -> 0 | BZ12: =+S!$AR$206*BZ$11 -> 0 | CA12: =+S!$AR$206*CA$11 -> 0 | CB12: =+S!$AR$206*CB$11 -> 0 | CC12: =+S!$AR$206*CC$11 -> 0 | CD12: =+S!$AR$206*CD$11 -> 0 | CE12: =+S!$AR$206*CE$11 -> 0 | CF12: =+S!$AR$206*CF$11 -> 0 | CG12: =+S!$AR$206*CG$11 -> 0 | CH12: =+S!$AR$206*CH$11 -> 0 | CI12: =+S!$AR$206*CI$11 -> 0 | CJ12: =+S!$AR$206*CJ$11 -> 0 | CK12: =+S!$AR$206*CK$11 -> 0 | CL12: =+S!$AR$206*CL$11 -> 0 | CM12: =+S!$AR$206*CM$11 -> 0 | CN12: =+S!$AR$206*CN$11 -> 0 | CO12: =+S!$AR$206*CO$11 -> 0 | CP12: =+S!$AR$206*CP$11 -> 0 | CQ12: =+S!$AR$206*CQ$11 -> 0 | CR12: =+S!$AR$206*CR$11 -> 0 | CS12: =+S!$AR$206*CS$11 -> 0 | CT12: =+S!$AR$206*CT$11 -> 0 | CU12: =+S!$AR$206*CU$11 -> 0 | CV12: =+S!$AR$206*CV$11 -> 0 | CW12: =+S!$AR$206*CW$11 -> 0 | CX12: =+S!$AR$206*CX$11 -> 0 | CY12: =+S!$AR$206*CY$11 -> 0
C13: ="Annual "&Interface!E59&" sales ("&Interface!F59&"/year)" -> Annual coproduct 2 sales (units of coproduct 2/year) | D13: =+S!$AS$206*D$11 -> 0 | E13: =+S!$AS$206*E$11 -> 0 | F13: =+S!$AS$206*F$11 -> 0 | G13: =+S!$AS$206*G$11 -> 0 | H13: =+S!$AS$206*H$11 -> 0 | I13: =+S!$AS$206*I$11 -> 0 | J13: =+S!$AS$206*J$11 -> 0 | K13: =+S!$AS$206*K$11 -> 0 | L13: =+S!$AS$206*L$11 -> 0 | M13: =+S!$AS$206*M$11 -> 0 | N13: =+S!$AS$206*N$11 -> 0 | O13: =+S!$AS$206*O$11 -> 0 | P13: =+S!$AS$206*P$11 -> 0 | Q13: =+S!$AS$206*Q$11 -> 0 | R13: =+S!$AS$206*R$11 -> 0 | S13: =+S!$AS$206*S$11 -> 0 | T13: =+S!$AS$206*T$11 -> 0 | U13: =+S!$AS$206*U$11 -> 0 | V13: =+S!$AS$206*V$11 -> 0 | W13: =+S!$AS$206*W$11 -> 0 | X13: =+S!$AS$206*X$11 -> 0 | Y13: =+S!$AS$206*Y$11 -> 0 | Z13: =+S!$AS$206*Z$11 -> 0 | AA13: =+S!$AS$206*AA$11 -> 0 | AB13: =+S!$AS$206*AB$11 -> 0 | AC13: =+S!$AS$206*AC$11 -> 0 | AD13: =+S!$AS$206*AD$11 -> 0 | AE13: =+S!$AS$206*AE$11 -> 0 | AF13: =+S!$AS$206*AF$11 -> 0 | AG13: =+S!$AS$206*AG$11 -> 0 | AH13: =+S!$AS$206*AH$11 -> 0 | AI13: =+S!$AS$206*AI$11 -> 0 | AJ13: =+S!$AS$206*AJ$11 -> 0 | AK13: =+S!$AS$206*AK$11 -> 0 | AL13: =+S!$AS$206*AL$11 -> 0 | AM13: =+S!$AS$206*AM$11 -> 0 | AN13: =+S!$AS$206*AN$11 -> 0 | AO13: =+S!$AS$206*AO$11 -> 0 | AP13: =+S!$AS$206*AP$11 -> 0 | AQ13: =+S!$AS$206*AQ$11 -> 0 | AR13: =+S!$AS$206*AR$11 -> 0 | AS13: =+S!$AS$206*AS$11 -> 0 | AT13: =+S!$AS$206*AT$11 -> 0 | AU13: =+S!$AS$206*AU$11 -> 0 | AV13: =+S!$AS$206*AV$11 -> 0 | AW13: =+S!$AS$206*AW$11 -> 0 | AX13: =+S!$AS$206*AX$11 -> 0 | AY13: =+S!$AS$206*AY$11 -> 0 | AZ13: =+S!$AS$206*AZ$11 -> 0 | BA13: =+S!$AS$206*BA$11 -> 0 | BB13: =+S!$AS$206*BB$11 -> 0 | BC13: =+S!$AS$206*BC$11 -> 0 | BD13: =+S!$AS$206*BD$11 -> 0 | BE13: =+S!$AS$206*BE$11 -> 0 | BF13: =+S!$AS$206*BF$11 -> 0 | BG13: =+S!$AS$206*BG$11 -> 0 | BH13: =+S!$AS$206*BH$11 -> 0 | BI13: =+S!$AS$206*BI$11 -> 0 | BJ13: =+S!$AS$206*BJ$11 -> 0 | BK13: =+S!$AS$206*BK$11 -> 0 | BL13: =+S!$AS$206*BL$11 -> 0 | BM13: =+S!$AS$206*BM$11 -> 0 | BN13: =+S!$AS$206*BN$11 -> 0 | BO13: =+S!$AS$206*BO$11 -> 0 | BP13: =+S!$AS$206*BP$11 -> 0 | BQ13: =+S!$AS$206*BQ$11 -> 0 | BR13: =+S!$AS$206*BR$11 -> 0 | BS13: =+S!$AS$206*BS$11 -> 0 | BT13: =+S!$AS$206*BT$11 -> 0 | BU13: =+S!$AS$206*BU$11 -> 0 | BV13: =+S!$AS$206*BV$11 -> 0 | BW13: =+S!$AS$206*BW$11 -> 0 | BX13: =+S!$AS$206*BX$11 -> 0 | BY13: =+S!$AS$206*BY$11 -> 0 | BZ13: =+S!$AS$206*BZ$11 -> 0 | CA13: =+S!$AS$206*CA$11 -> 0 | CB13: =+S!$AS$206*CB$11 -> 0 | CC13: =+S!$AS$206*CC$11 -> 0 | CD13: =+S!$AS$206*CD$11 -> 0 | CE13: =+S!$AS$206*CE$11 -> 0 | CF13: =+S!$AS$206*CF$11 -> 0 | CG13: =+S!$AS$206*CG$11 -> 0 | CH13: =+S!$AS$206*CH$11 -> 0 | CI13: =+S!$AS$206*CI$11 -> 0 | CJ13: =+S!$AS$206*CJ$11 -> 0 | CK13: =+S!$AS$206*CK$11 -> 0 | CL13: =+S!$AS$206*CL$11 -> 0 | CM13: =+S!$AS$206*CM$11 -> 0 | CN13: =+S!$AS$206*CN$11 -> 0 | CO13: =+S!$AS$206*CO$11 -> 0 | CP13: =+S!$AS$206*CP$11 -> 0 | CQ13: =+S!$AS$206*CQ$11 -> 0 | CR13: =+S!$AS$206*CR$11 -> 0 | CS13: =+S!$AS$206*CS$11 -> 0 | CT13: =+S!$AS$206*CT$11 -> 0 | CU13: =+S!$AS$206*CU$11 -> 0 | CV13: =+S!$AS$206*CV$11 -> 0 | CW13: =+S!$AS$206*CW$11 -> 0 | CX13: =+S!$AS$206*CX$11 -> 0 | CY13: =+S!$AS$206*CY$11 -> 0
C14: ="Annual "&Interface!E60&" sales ("&Interface!F60&"/year)" -> Annual coproduct 3 sales (units of coproduct 3/year) | D14: =+S!$AT$206*D$11 -> 0 | E14: =+S!$AT$206*E$11 -> 0 | F14: =+S!$AT$206*F$11 -> 0 | G14: =+S!$AT$206*G$11 -> 0 | H14: =+S!$AT$206*H$11 -> 0 | I14: =+S!$AT$206*I$11 -> 0 | J14: =+S!$AT$206*J$11 -> 0 | K14: =+S!$AT$206*K$11 -> 0 | L14: =+S!$AT$206*L$11 -> 0 | M14: =+S!$AT$206*M$11 -> 0 | N14: =+S!$AT$206*N$11 -> 0 | O14: =+S!$AT$206*O$11 -> 0 | P14: =+S!$AT$206*P$11 -> 0 | Q14: =+S!$AT$206*Q$11 -> 0 | R14: =+S!$AT$206*R$11 -> 0 | S14: =+S!$AT$206*S$11 -> 0 | T14: =+S!$AT$206*T$11 -> 0 | U14: =+S!$AT$206*U$11 -> 0 | V14: =+S!$AT$206*V$11 -> 0 | W14: =+S!$AT$206*W$11 -> 0 | X14: =+S!$AT$206*X$11 -> 0 | Y14: =+S!$AT$206*Y$11 -> 0 | Z14: =+S!$AT$206*Z$11 -> 0 | AA14: =+S!$AT$206*AA$11 -> 0 | AB14: =+S!$AT$206*AB$11 -> 0 | AC14: =+S!$AT$206*AC$11 -> 0 | AD14: =+S!$AT$206*AD$11 -> 0 | AE14: =+S!$AT$206*AE$11 -> 0 | AF14: =+S!$AT$206*AF$11 -> 0 | AG14: =+S!$AT$206*AG$11 -> 0 | AH14: =+S!$AT$206*AH$11 -> 0 | AI14: =+S!$AT$206*AI$11 -> 0 | AJ14: =+S!$AT$206*AJ$11 -> 0 | AK14: =+S!$AT$206*AK$11 -> 0 | AL14: =+S!$AT$206*AL$11 -> 0 | AM14: =+S!$AT$206*AM$11 -> 0 | AN14: =+S!$AT$206*AN$11 -> 0 | AO14: =+S!$AT$206*AO$11 -> 0 | AP14: =+S!$AT$206*AP$11 -> 0 | AQ14: =+S!$AT$206*AQ$11 -> 0 | AR14: =+S!$AT$206*AR$11 -> 0 | AS14: =+S!$AT$206*AS$11 -> 0 | AT14: =+S!$AT$206*AT$11 -> 0 | AU14: =+S!$AT$206*AU$11 -> 0 | AV14: =+S!$AT$206*AV$11 -> 0 | AW14: =+S!$AT$206*AW$11 -> 0 | AX14: =+S!$AT$206*AX$11 -> 0 | AY14: =+S!$AT$206*AY$11 -> 0 | AZ14: =+S!$AT$206*AZ$11 -> 0 | BA14: =+S!$AT$206*BA$11 -> 0 | BB14: =+S!$AT$206*BB$11 -> 0 | BC14: =+S!$AT$206*BC$11 -> 0 | BD14: =+S!$AT$206*BD$11 -> 0 | BE14: =+S!$AT$206*BE$11 -> 0 | BF14: =+S!$AT$206*BF$11 -> 0 | BG14: =+S!$AT$206*BG$11 -> 0 | BH14: =+S!$AT$206*BH$11 -> 0 | BI14: =+S!$AT$206*BI$11 -> 0 | BJ14: =+S!$AT$206*BJ$11 -> 0 | BK14: =+S!$AT$206*BK$11 -> 0 | BL14: =+S!$AT$206*BL$11 -> 0 | BM14: =+S!$AT$206*BM$11 -> 0 | BN14: =+S!$AT$206*BN$11 -> 0 | BO14: =+S!$AT$206*BO$11 -> 0 | BP14: =+S!$AT$206*BP$11 -> 0 | BQ14: =+S!$AT$206*BQ$11 -> 0 | BR14: =+S!$AT$206*BR$11 -> 0 | BS14: =+S!$AT$206*BS$11 -> 0 | BT14: =+S!$AT$206*BT$11 -> 0 | BU14: =+S!$AT$206*BU$11 -> 0 | BV14: =+S!$AT$206*BV$11 -> 0 | BW14: =+S!$AT$206*BW$11 -> 0 | BX14: =+S!$AT$206*BX$11 -> 0 | BY14: =+S!$AT$206*BY$11 -> 0 | BZ14: =+S!$AT$206*BZ$11 -> 0 | CA14: =+S!$AT$206*CA$11 -> 0 | CB14: =+S!$AT$206*CB$11 -> 0 | CC14: =+S!$AT$206*CC$11 -> 0 | CD14: =+S!$AT$206*CD$11 -> 0 | CE14: =+S!$AT$206*CE$11 -> 0 | CF14: =+S!$AT$206*CF$11 -> 0 | CG14: =+S!$AT$206*CG$11 -> 0 | CH14: =+S!$AT$206*CH$11 -> 0 | CI14: =+S!$AT$206*CI$11 -> 0 | CJ14: =+S!$AT$206*CJ$11 -> 0 | CK14: =+S!$AT$206*CK$11 -> 0 | CL14: =+S!$AT$206*CL$11 -> 0 | CM14: =+S!$AT$206*CM$11 -> 0 | CN14: =+S!$AT$206*CN$11 -> 0 | CO14: =+S!$AT$206*CO$11 -> 0 | CP14: =+S!$AT$206*CP$11 -> 0 | CQ14: =+S!$AT$206*CQ$11 -> 0 | CR14: =+S!$AT$206*CR$11 -> 0 | CS14: =+S!$AT$206*CS$11 -> 0 | CT14: =+S!$AT$206*CT$11 -> 0 | CU14: =+S!$AT$206*CU$11 -> 0 | CV14: =+S!$AT$206*CV$11 -> 0 | CW14: =+S!$AT$206*CW$11 -> 0 | CX14: =+S!$AT$206*CX$11 -> 0 | CY14: =+S!$AT$206*CY$11 -> 0
C15: ="Annual "&Interface!E61&" sales ("&Interface!F61&"/year)" -> Annual coproduct 4 sales (units of coproduct 4/year) | D15: =+S!$AU$206*D$11 -> 0 | E15: =+S!$AU$206*E$11 -> 0 | F15: =+S!$AU$206*F$11 -> 0 | G15: =+S!$AU$206*G$11 -> 0 | H15: =+S!$AU$206*H$11 -> 0 | I15: =+S!$AU$206*I$11 -> 0 | J15: =+S!$AU$206*J$11 -> 0 | K15: =+S!$AU$206*K$11 -> 0 | L15: =+S!$AU$206*L$11 -> 0 | M15: =+S!$AU$206*M$11 -> 0 | N15: =+S!$AU$206*N$11 -> 0 | O15: =+S!$AU$206*O$11 -> 0 | P15: =+S!$AU$206*P$11 -> 0 | Q15: =+S!$AU$206*Q$11 -> 0 | R15: =+S!$AU$206*R$11 -> 0 | S15: =+S!$AU$206*S$11 -> 0 | T15: =+S!$AU$206*T$11 -> 0 | U15: =+S!$AU$206*U$11 -> 0 | V15: =+S!$AU$206*V$11 -> 0 | W15: =+S!$AU$206*W$11 -> 0 | X15: =+S!$AU$206*X$11 -> 0 | Y15: =+S!$AU$206*Y$11 -> 0 | Z15: =+S!$AU$206*Z$11 -> 0 | AA15: =+S!$AU$206*AA$11 -> 0 | AB15: =+S!$AU$206*AB$11 -> 0 | AC15: =+S!$AU$206*AC$11 -> 0 | AD15: =+S!$AU$206*AD$11 -> 0 | AE15: =+S!$AU$206*AE$11 -> 0 | AF15: =+S!$AU$206*AF$11 -> 0 | AG15: =+S!$AU$206*AG$11 -> 0 | AH15: =+S!$AU$206*AH$11 -> 0 | AI15: =+S!$AU$206*AI$11 -> 0 | AJ15: =+S!$AU$206*AJ$11 -> 0 | AK15: =+S!$AU$206*AK$11 -> 0 | AL15: =+S!$AU$206*AL$11 -> 0 | AM15: =+S!$AU$206*AM$11 -> 0 | AN15: =+S!$AU$206*AN$11 -> 0 | AO15: =+S!$AU$206*AO$11 -> 0 | AP15: =+S!$AU$206*AP$11 -> 0 | AQ15: =+S!$AU$206*AQ$11 -> 0 | AR15: =+S!$AU$206*AR$11 -> 0 | AS15: =+S!$AU$206*AS$11 -> 0 | AT15: =+S!$AU$206*AT$11 -> 0 | AU15: =+S!$AU$206*AU$11 -> 0 | AV15: =+S!$AU$206*AV$11 -> 0 | AW15: =+S!$AU$206*AW$11 -> 0 | AX15: =+S!$AU$206*AX$11 -> 0 | AY15: =+S!$AU$206*AY$11 -> 0 | AZ15: =+S!$AU$206*AZ$11 -> 0 | BA15: =+S!$AU$206*BA$11 -> 0 | BB15: =+S!$AU$206*BB$11 -> 0 | BC15: =+S!$AU$206*BC$11 -> 0 | BD15: =+S!$AU$206*BD$11 -> 0 | BE15: =+S!$AU$206*BE$11 -> 0 | BF15: =+S!$AU$206*BF$11 -> 0 | BG15: =+S!$AU$206*BG$11 -> 0 | BH15: =+S!$AU$206*BH$11 -> 0 | BI15: =+S!$AU$206*BI$11 -> 0 | BJ15: =+S!$AU$206*BJ$11 -> 0 | BK15: =+S!$AU$206*BK$11 -> 0 | BL15: =+S!$AU$206*BL$11 -> 0 | BM15: =+S!$AU$206*BM$11 -> 0 | BN15: =+S!$AU$206*BN$11 -> 0 | BO15: =+S!$AU$206*BO$11 -> 0 | BP15: =+S!$AU$206*BP$11 -> 0 | BQ15: =+S!$AU$206*BQ$11 -> 0 | BR15: =+S!$AU$206*BR$11 -> 0 | BS15: =+S!$AU$206*BS$11 -> 0 | BT15: =+S!$AU$206*BT$11 -> 0 | BU15: =+S!$AU$206*BU$11 -> 0 | BV15: =+S!$AU$206*BV$11 -> 0 | BW15: =+S!$AU$206*BW$11 -> 0 | BX15: =+S!$AU$206*BX$11 -> 0 | BY15: =+S!$AU$206*BY$11 -> 0 | BZ15: =+S!$AU$206*BZ$11 -> 0 | CA15: =+S!$AU$206*CA$11 -> 0 | CB15: =+S!$AU$206*CB$11 -> 0 | CC15: =+S!$AU$206*CC$11 -> 0 | CD15: =+S!$AU$206*CD$11 -> 0 | CE15: =+S!$AU$206*CE$11 -> 0 | CF15: =+S!$AU$206*CF$11 -> 0 | CG15: =+S!$AU$206*CG$11 -> 0 | CH15: =+S!$AU$206*CH$11 -> 0 | CI15: =+S!$AU$206*CI$11 -> 0 | CJ15: =+S!$AU$206*CJ$11 -> 0 | CK15: =+S!$AU$206*CK$11 -> 0 | CL15: =+S!$AU$206*CL$11 -> 0 | CM15: =+S!$AU$206*CM$11 -> 0 | CN15: =+S!$AU$206*CN$11 -> 0 | CO15: =+S!$AU$206*CO$11 -> 0 | CP15: =+S!$AU$206*CP$11 -> 0 | CQ15: =+S!$AU$206*CQ$11 -> 0 | CR15: =+S!$AU$206*CR$11 -> 0 | CS15: =+S!$AU$206*CS$11 -> 0 | CT15: =+S!$AU$206*CT$11 -> 0 | CU15: =+S!$AU$206*CU$11 -> 0 | CV15: =+S!$AU$206*CV$11 -> 0 | CW15: =+S!$AU$206*CW$11 -> 0 | CX15: =+S!$AU$206*CX$11 -> 0 | CY15: =+S!$AU$206*CY$11 -> 0
C16: ="Annual "&Interface!E62&" sales ("&Interface!F62&"/year)" -> Annual coproduct 5 sales (units of coproduct 5/year) | D16: =+S!$AV$206*D$11 -> 0 | E16: =+S!$AV$206*E$11 -> 0 | F16: =+S!$AV$206*F$11 -> 0 | G16: =+S!$AV$206*G$11 -> 0 | H16: =+S!$AV$206*H$11 -> 0 | I16: =+S!$AV$206*I$11 -> 0 | J16: =+S!$AV$206*J$11 -> 0 | K16: =+S!$AV$206*K$11 -> 0 | L16: =+S!$AV$206*L$11 -> 0 | M16: =+S!$AV$206*M$11 -> 0 | N16: =+S!$AV$206*N$11 -> 0 | O16: =+S!$AV$206*O$11 -> 0 | P16: =+S!$AV$206*P$11 -> 0 | Q16: =+S!$AV$206*Q$11 -> 0 | R16: =+S!$AV$206*R$11 -> 0 | S16: =+S!$AV$206*S$11 -> 0 | T16: =+S!$AV$206*T$11 -> 0 | U16: =+S!$AV$206*U$11 -> 0 | V16: =+S!$AV$206*V$11 -> 0 | W16: =+S!$AV$206*W$11 -> 0 | X16: =+S!$AV$206*X$11 -> 0 | Y16: =+S!$AV$206*Y$11 -> 0 | Z16: =+S!$AV$206*Z$11 -> 0 | AA16: =+S!$AV$206*AA$11 -> 0 | AB16: =+S!$AV$206*AB$11 -> 0 | AC16: =+S!$AV$206*AC$11 -> 0 | AD16: =+S!$AV$206*AD$11 -> 0 | AE16: =+S!$AV$206*AE$11 -> 0 | AF16: =+S!$AV$206*AF$11 -> 0 | AG16: =+S!$AV$206*AG$11 -> 0 | AH16: =+S!$AV$206*AH$11 -> 0 | AI16: =+S!$AV$206*AI$11 -> 0 | AJ16: =+S!$AV$206*AJ$11 -> 0 | AK16: =+S!$AV$206*AK$11 -> 0 | AL16: =+S!$AV$206*AL$11 -> 0 | AM16: =+S!$AV$206*AM$11 -> 0 | AN16: =+S!$AV$206*AN$11 -> 0 | AO16: =+S!$AV$206*AO$11 -> 0 | AP16: =+S!$AV$206*AP$11 -> 0 | AQ16: =+S!$AV$206*AQ$11 -> 0 | AR16: =+S!$AV$206*AR$11 -> 0 | AS16: =+S!$AV$206*AS$11 -> 0 | AT16: =+S!$AV$206*AT$11 -> 0 | AU16: =+S!$AV$206*AU$11 -> 0 | AV16: =+S!$AV$206*AV$11 -> 0 | AW16: =+S!$AV$206*AW$11 -> 0 | AX16: =+S!$AV$206*AX$11 -> 0 | AY16: =+S!$AV$206*AY$11 -> 0 | AZ16: =+S!$AV$206*AZ$11 -> 0 | BA16: =+S!$AV$206*BA$11 -> 0 | BB16: =+S!$AV$206*BB$11 -> 0 | BC16: =+S!$AV$206*BC$11 -> 0 | BD16: =+S!$AV$206*BD$11 -> 0 | BE16: =+S!$AV$206*BE$11 -> 0 | BF16: =+S!$AV$206*BF$11 -> 0 | BG16: =+S!$AV$206*BG$11 -> 0 | BH16: =+S!$AV$206*BH$11 -> 0 | BI16: =+S!$AV$206*BI$11 -> 0 | BJ16: =+S!$AV$206*BJ$11 -> 0 | BK16: =+S!$AV$206*BK$11 -> 0 | BL16: =+S!$AV$206*BL$11 -> 0 | BM16: =+S!$AV$206*BM$11 -> 0 | BN16: =+S!$AV$206*BN$11 -> 0 | BO16: =+S!$AV$206*BO$11 -> 0 | BP16: =+S!$AV$206*BP$11 -> 0 | BQ16: =+S!$AV$206*BQ$11 -> 0 | BR16: =+S!$AV$206*BR$11 -> 0 | BS16: =+S!$AV$206*BS$11 -> 0 | BT16: =+S!$AV$206*BT$11 -> 0 | BU16: =+S!$AV$206*BU$11 -> 0 | BV16: =+S!$AV$206*BV$11 -> 0 | BW16: =+S!$AV$206*BW$11 -> 0 | BX16: =+S!$AV$206*BX$11 -> 0 | BY16: =+S!$AV$206*BY$11 -> 0 | BZ16: =+S!$AV$206*BZ$11 -> 0 | CA16: =+S!$AV$206*CA$11 -> 0 | CB16: =+S!$AV$206*CB$11 -> 0 | CC16: =+S!$AV$206*CC$11 -> 0 | CD16: =+S!$AV$206*CD$11 -> 0 | CE16: =+S!$AV$206*CE$11 -> 0 | CF16: =+S!$AV$206*CF$11 -> 0 | CG16: =+S!$AV$206*CG$11 -> 0 | CH16: =+S!$AV$206*CH$11 -> 0 | CI16: =+S!$AV$206*CI$11 -> 0 | CJ16: =+S!$AV$206*CJ$11 -> 0 | CK16: =+S!$AV$206*CK$11 -> 0 | CL16: =+S!$AV$206*CL$11 -> 0 | CM16: =+S!$AV$206*CM$11 -> 0 | CN16: =+S!$AV$206*CN$11 -> 0 | CO16: =+S!$AV$206*CO$11 -> 0 | CP16: =+S!$AV$206*CP$11 -> 0 | CQ16: =+S!$AV$206*CQ$11 -> 0 | CR16: =+S!$AV$206*CR$11 -> 0 | CS16: =+S!$AV$206*CS$11 -> 0 | CT16: =+S!$AV$206*CT$11 -> 0 | CU16: =+S!$AV$206*CU$11 -> 0 | CV16: =+S!$AV$206*CV$11 -> 0 | CW16: =+S!$AV$206*CW$11 -> 0 | CX16: =+S!$AV$206*CX$11 -> 0 | CY16: =+S!$AV$206*CY$11 -> 0
C17: ="Annual "&Interface!E63&" sales ("&Interface!F63&"/year)" -> Annual coproduct 6 sales (units of coproduct 6/year) | D17: =+S!$AW$206*D$11 -> 0 | E17: =+S!$AW$206*E$11 -> 0 | F17: =+S!$AW$206*F$11 -> 0 | G17: =+S!$AW$206*G$11 -> 0 | H17: =+S!$AW$206*H$11 -> 0 | I17: =+S!$AW$206*I$11 -> 0 | J17: =+S!$AW$206*J$11 -> 0 | K17: =+S!$AW$206*K$11 -> 0 | L17: =+S!$AW$206*L$11 -> 0 | M17: =+S!$AW$206*M$11 -> 0 | N17: =+S!$AW$206*N$11 -> 0 | O17: =+S!$AW$206*O$11 -> 0 | P17: =+S!$AW$206*P$11 -> 0 | Q17: =+S!$AW$206*Q$11 -> 0 | R17: =+S!$AW$206*R$11 -> 0 | S17: =+S!$AW$206*S$11 -> 0 | T17: =+S!$AW$206*T$11 -> 0 | U17: =+S!$AW$206*U$11 -> 0 | V17: =+S!$AW$206*V$11 -> 0 | W17: =+S!$AW$206*W$11 -> 0 | X17: =+S!$AW$206*X$11 -> 0 | Y17: =+S!$AW$206*Y$11 -> 0 | Z17: =+S!$AW$206*Z$11 -> 0 | AA17: =+S!$AW$206*AA$11 -> 0 | AB17: =+S!$AW$206*AB$11 -> 0 | AC17: =+S!$AW$206*AC$11 -> 0 | AD17: =+S!$AW$206*AD$11 -> 0 | AE17: =+S!$AW$206*AE$11 -> 0 | AF17: =+S!$AW$206*AF$11 -> 0 | AG17: =+S!$AW$206*AG$11 -> 0 | AH17: =+S!$AW$206*AH$11 -> 0 | AI17: =+S!$AW$206*AI$11 -> 0 | AJ17: =+S!$AW$206*AJ$11 -> 0 | AK17: =+S!$AW$206*AK$11 -> 0 | AL17: =+S!$AW$206*AL$11 -> 0 | AM17: =+S!$AW$206*AM$11 -> 0 | AN17: =+S!$AW$206*AN$11 -> 0 | AO17: =+S!$AW$206*AO$11 -> 0 | AP17: =+S!$AW$206*AP$11 -> 0 | AQ17: =+S!$AW$206*AQ$11 -> 0 | AR17: =+S!$AW$206*AR$11 -> 0 | AS17: =+S!$AW$206*AS$11 -> 0 | AT17: =+S!$AW$206*AT$11 -> 0 | AU17: =+S!$AW$206*AU$11 -> 0 | AV17: =+S!$AW$206*AV$11 -> 0 | AW17: =+S!$AW$206*AW$11 -> 0 | AX17: =+S!$AW$206*AX$11 -> 0 | AY17: =+S!$AW$206*AY$11 -> 0 | AZ17: =+S!$AW$206*AZ$11 -> 0 | BA17: =+S!$AW$206*BA$11 -> 0 | BB17: =+S!$AW$206*BB$11 -> 0 | BC17: =+S!$AW$206*BC$11 -> 0 | BD17: =+S!$AW$206*BD$11 -> 0 | BE17: =+S!$AW$206*BE$11 -> 0 | BF17: =+S!$AW$206*BF$11 -> 0 | BG17: =+S!$AW$206*BG$11 -> 0 | BH17: =+S!$AW$206*BH$11 -> 0 | BI17: =+S!$AW$206*BI$11 -> 0 | BJ17: =+S!$AW$206*BJ$11 -> 0 | BK17: =+S!$AW$206*BK$11 -> 0 | BL17: =+S!$AW$206*BL$11 -> 0 | BM17: =+S!$AW$206*BM$11 -> 0 | BN17: =+S!$AW$206*BN$11 -> 0 | BO17: =+S!$AW$206*BO$11 -> 0 | BP17: =+S!$AW$206*BP$11 -> 0 | BQ17: =+S!$AW$206*BQ$11 -> 0 | BR17: =+S!$AW$206*BR$11 -> 0 | BS17: =+S!$AW$206*BS$11 -> 0 | BT17: =+S!$AW$206*BT$11 -> 0 | BU17: =+S!$AW$206*BU$11 -> 0 | BV17: =+S!$AW$206*BV$11 -> 0 | BW17: =+S!$AW$206*BW$11 -> 0 | BX17: =+S!$AW$206*BX$11 -> 0 | BY17: =+S!$AW$206*BY$11 -> 0 | BZ17: =+S!$AW$206*BZ$11 -> 0 | CA17: =+S!$AW$206*CA$11 -> 0 | CB17: =+S!$AW$206*CB$11 -> 0 | CC17: =+S!$AW$206*CC$11 -> 0 | CD17: =+S!$AW$206*CD$11 -> 0 | CE17: =+S!$AW$206*CE$11 -> 0 | CF17: =+S!$AW$206*CF$11 -> 0 | CG17: =+S!$AW$206*CG$11 -> 0 | CH17: =+S!$AW$206*CH$11 -> 0 | CI17: =+S!$AW$206*CI$11 -> 0 | CJ17: =+S!$AW$206*CJ$11 -> 0 | CK17: =+S!$AW$206*CK$11 -> 0 | CL17: =+S!$AW$206*CL$11 -> 0 | CM17: =+S!$AW$206*CM$11 -> 0 | CN17: =+S!$AW$206*CN$11 -> 0 | CO17: =+S!$AW$206*CO$11 -> 0 | CP17: =+S!$AW$206*CP$11 -> 0 | CQ17: =+S!$AW$206*CQ$11 -> 0 | CR17: =+S!$AW$206*CR$11 -> 0 | CS17: =+S!$AW$206*CS$11 -> 0 | CT17: =+S!$AW$206*CT$11 -> 0 | CU17: =+S!$AW$206*CU$11 -> 0 | CV17: =+S!$AW$206*CV$11 -> 0 | CW17: =+S!$AW$206*CW$11 -> 0 | CX17: =+S!$AW$206*CX$11 -> 0 | CY17: =+S!$AW$206*CY$11 -> 0
C19: Escalation of prices
C20: ="Sales price of "&RetailCommodity&" ($/"&RetailUnit&")" -> Sales price of EV-charging ($/kWh) | D20: 0 | E20: =IF(Overrides!$A23, OFFSET(Overrides!$B23, 0, MATCH(E$4,Overrides!$C$5:$GU$5,0)), S!BJ206) -> 0.2926695049 | F20: =IF(Overrides!$A23, OFFSET(Overrides!$B23, 0, MATCH(F$4,Overrides!$C$5:$GU$5,0)), E20*(1+S!$BK$206)*(F5>0)) -> 0.2982302255 | G20: =IF(Overrides!$A23, OFFSET(Overrides!$B23, 0, MATCH(G$4,Overrides!$C$5:$GU$5,0)), F20*(1+S!$BK$206)*(G5>0)) -> 0.3038965998 | H20: =IF(Overrides!$A23, OFFSET(Overrides!$B23, 0, MATCH(H$4,Overrides!$C$5:$GU$5,0)), G20*(1+S!$BK$206)*(H5>0)) -> 0.3096706352 | I20: =IF(Overrides!$A23, OFFSET(Overrides!$B23, 0, MATCH(I$4,Overrides!$C$5:$GU$5,0)), H20*(1+S!$BK$206)*(I5>0)) -> 0.3155543773 | J20: =IF(Overrides!$A23, OFFSET(Overrides!$B23, 0, MATCH(J$4,Overrides!$C$5:$GU$5,0)), I20*(1+S!$BK$206)*(J5>0)) -> 0.3215499104 | K20: =IF(Overrides!$A23, OFFSET(Overrides!$B23, 0, MATCH(K$4,Overrides!$C$5:$GU$5,0)), J20*(1+S!$BK$206)*(K5>0)) -> 0.3276593587 | L20: =IF(Overrides!$A23, OFFSET(Overrides!$B23, 0, MATCH(L$4,Overrides!$C$5:$GU$5,0)), K20*(1+S!$BK$206)*(L5>0)) -> 0.3338848865 | M20: =IF(Overrides!$A23, OFFSET(Overrides!$B23, 0, MATCH(M$4,Overrides!$C$5:$GU$5,0)), L20*(1+S!$BK$206)*(M5>0)) -> 0.3402286994 | N20: =IF(Overrides!$A23, OFFSET(Overrides!$B23, 0, MATCH(N$4,Overrides!$C$5:$GU$5,0)), M20*(1+S!$BK$206)*(N5>0)) -> 0.3466930447 | O20: =IF(Overrides!$A23, OFFSET(Overrides!$B23, 0, MATCH(O$4,Overrides!$C$5:$GU$5,0)), N20*(1+S!$BK$206)*(O5>0)) -> 0.3532802125 | P20: =IF(Overrides!$A23, OFFSET(Overrides!$B23, 0, MATCH(P$4,Overrides!$C$5:$GU$5,0)), O20*(1+S!$BK$206)*(P5>0)) -> 0.3599925366 | Q20: =IF(Overrides!$A23, OFFSET(Overrides!$B23, 0, MATCH(Q$4,Overrides!$C$5:$GU$5,0)), P20*(1+S!$BK$206)*(Q5>0)) -> 0.3668323948 | R20: =IF(Overrides!$A23, OFFSET(Overrides!$B23, 0, MATCH(R$4,Overrides!$C$5:$GU$5,0)), Q20*(1+S!$BK$206)*(R5>0)) -> 0.3738022103 | S20: =IF(Overrides!$A23, OFFSET(Overrides!$B23, 0, MATCH(S$4,Overrides!$C$5:$GU$5,0)), R20*(1+S!$BK$206)*(S5>0)) -> 0.3809044523 | T20: =IF(Overrides!$A23, OFFSET(Overrides!$B23, 0, MATCH(T$4,Overrides!$C$5:$GU$5,0)), S20*(1+S!$BK$206)*(T5>0)) -> 0.3881416368 | U20: =IF(Overrides!$A23, OFFSET(Overrides!$B23, 0, MATCH(U$4,Overrides!$C$5:$GU$5,0)), T20*(1+S!$BK$206)*(U5>0)) -> 0 | V20: =IF(Overrides!$A23, OFFSET(Overrides!$B23, 0, MATCH(V$4,Overrides!$C$5:$GU$5,0)), U20*(1+S!$BK$206)*(V5>0)) -> 0 | W20: =IF(Overrides!$A23, OFFSET(Overrides!$B23, 0, MATCH(W$4,Overrides!$C$5:$GU$5,0)), V20*(1+S!$BK$206)*(W5>0)) -> 0 | X20: =IF(Overrides!$A23, OFFSET(Overrides!$B23, 0, MATCH(X$4,Overrides!$C$5:$GU$5,0)), W20*(1+S!$BK$206)*(X5>0)) -> 0 | Y20: =IF(Overrides!$A23, OFFSET(Overrides!$B23, 0, MATCH(Y$4,Overrides!$C$5:$GU$5,0)), X20*(1+S!$BK$206)*(Y5>0)) -> 0 | Z20: =IF(Overrides!$A23, OFFSET(Overrides!$B23, 0, MATCH(Z$4,Overrides!$C$5:$GU$5,0)), Y20*(1+S!$BK$206)*(Z5>0)) -> 0 | AA20: =IF(Overrides!$A23, OFFSET(Overrides!$B23, 0, MATCH(AA$4,Overrides!$C$5:$GU$5,0)), Z20*(1+S!$BK$206)*(AA5>0)) -> 0 | AB20: =IF(Overrides!$A23, OFFSET(Overrides!$B23, 0, MATCH(AB$4,Overrides!$C$5:$GU$5,0)), AA20*(1+S!$BK$206)*(AB5>0)) -> 0 | AC20: =IF(Overrides!$A23, OFFSET(Overrides!$B23, 0, MATCH(AC$4,Overrides!$C$5:$GU$5,0)), AB20*(1+S!$BK$206)*(AC5>0)) -> 0 | AD20: =IF(Overrides!$A23, OFFSET(Overrides!$B23, 0, MATCH(AD$4,Overrides!$C$5:$GU$5,0)), AC20*(1+S!$BK$206)*(AD5>0)) -> 0 | AE20: =IF(Overrides!$A23, OFFSET(Overrides!$B23, 0, MATCH(AE$4,Overrides!$C$5:$GU$5,0)), AD20*(1+S!$BK$206)*(AE5>0)) -> 0 | AF20: =IF(Overrides!$A23, OFFSET(Overrides!$B23, 0, MATCH(AF$4,Overrides!$C$5:$GU$5,0)), AE20*(1+S!$BK$206)*(AF5>0)) -> 0 | AG20: =IF(Overrides!$A23, OFFSET(Overrides!$B23, 0, MATCH(AG$4,Overrides!$C$5:$GU$5,0)), AF20*(1+S!$BK$206)*(AG5>0)) -> 0 | AH20: =IF(Overrides!$A23, OFFSET(Overrides!$B23, 0, MATCH(AH$4,Overrides!$C$5:$GU$5,0)), AG20*(1+S!$BK$206)*(AH5>0)) -> 0 | AI20: =IF(Overrides!$A23, OFFSET(Overrides!$B23, 0, MATCH(AI$4,Overrides!$C$5:$GU$5,0)), AH20*(1+S!$BK$206)*(AI5>0)) -> 0 | AJ20: =IF(Overrides!$A23, OFFSET(Overrides!$B23, 0, MATCH(AJ$4,Overrides!$C$5:$GU$5,0)), AI20*(1+S!$BK$206)*(AJ5>0)) -> 0 | AK20: =IF(Overrides!$A23, OFFSET(Overrides!$B23, 0, MATCH(AK$4,Overrides!$C$5:$GU$5,0)), AJ20*(1+S!$BK$206)*(AK5>0)) -> 0 | AL20: =IF(Overrides!$A23, OFFSET(Overrides!$B23, 0, MATCH(AL$4,Overrides!$C$5:$GU$5,0)), AK20*(1+S!$BK$206)*(AL5>0)) -> 0 | AM20: =IF(Overrides!$A23, OFFSET(Overrides!$B23, 0, MATCH(AM$4,Overrides!$C$5:$GU$5,0)), AL20*(1+S!$BK$206)*(AM5>0)) -> 0 | AN20: =IF(Overrides!$A23, OFFSET(Overrides!$B23, 0, MATCH(AN$4,Overrides!$C$5:$GU$5,0)), AM20*(1+S!$BK$206)*(AN5>0)) -> 0 | AO20: =IF(Overrides!$A23, OFFSET(Overrides!$B23, 0, MATCH(AO$4,Overrides!$C$5:$GU$5,0)), AN20*(1+S!$BK$206)*(AO5>0)) -> 0 | AP20: =IF(Overrides!$A23, OFFSET(Overrides!$B23, 0, MATCH(AP$4,Overrides!$C$5:$GU$5,0)), AO20*(1+S!$BK$206)*(AP5>0)) -> 0 | AQ20: =IF(Overrides!$A23, OFFSET(Overrides!$B23, 0, MATCH(AQ$4,Overrides!$C$5:$GU$5,0)), AP20*(1+S!$BK$206)*(AQ5>0)) -> 0 | AR20: =IF(Overrides!$A23, OFFSET(Overrides!$B23, 0, MATCH(AR$4,Overrides!$C$5:$GU$5,0)), AQ20*(1+S!$BK$206)*(AR5>0)) -> 0 | AS20: =IF(Overrides!$A23, OFFSET(Overrides!$B23, 0, MATCH(AS$4,Overrides!$C$5:$GU$5,0)), AR20*(1+S!$BK$206)*(AS5>0)) -> 0 | AT20: =IF(Overrides!$A23, OFFSET(Overrides!$B23, 0, MATCH(AT$4,Overrides!$C$5:$GU$5,0)), AS20*(1+S!$BK$206)*(AT5>0)) -> 0 | AU20: =IF(Overrides!$A23, OFFSET(Overrides!$B23, 0, MATCH(AU$4,Overrides!$C$5:$GU$5,0)), AT20*(1+S!$BK$206)*(AU5>0)) -> 0 | AV20: =IF(Overrides!$A23, OFFSET(Overrides!$B23, 0, MATCH(AV$4,Overrides!$C$5:$GU$5,0)), AU20*(1+S!$BK$206)*(AV5>0)) -> 0 | AW20: =IF(Overrides!$A23, OFFSET(Overrides!$B23, 0, MATCH(AW$4,Overrides!$C$5:$GU$5,0)), AV20*(1+S!$BK$206)*(AW5>0)) -> 0 | AX20: =IF(Overrides!$A23, OFFSET(Overrides!$B23, 0, MATCH(AX$4,Overrides!$C$5:$GU$5,0)), AW20*(1+S!$BK$206)*(AX5>0)) -> 0 | AY20: =IF(Overrides!$A23, OFFSET(Overrides!$B23, 0, MATCH(AY$4,Overrides!$C$5:$GU$5,0)), AX20*(1+S!$BK$206)*(AY5>0)) -> 0 | AZ20: =IF(Overrides!$A23, OFFSET(Overrides!$B23, 0, MATCH(AZ$4,Overrides!$C$5:$GU$5,0)), AY20*(1+S!$BK$206)*(AZ5>0)) -> 0 | BA20: =IF(Overrides!$A23, OFFSET(Overrides!$B23, 0, MATCH(BA$4,Overrides!$C$5:$GU$5,0)), AZ20*(1+S!$BK$206)*(BA5>0)) -> 0 | BB20: =IF(Overrides!$A23, OFFSET(Overrides!$B23, 0, MATCH(BB$4,Overrides!$C$5:$GU$5,0)), BA20*(1+S!$BK$206)*(BB5>0)) -> 0 | BC20: =IF(Overrides!$A23, OFFSET(Overrides!$B23, 0, MATCH(BC$4,Overrides!$C$5:$GU$5,0)), BB20*(1+S!$BK$206)*(BC5>0)) -> 0 | BD20: =IF(Overrides!$A23, OFFSET(Overrides!$B23, 0, MATCH(BD$4,Overrides!$C$5:$GU$5,0)), BC20*(1+S!$BK$206)*(BD5>0)) -> 0 | BE20: =IF(Overrides!$A23, OFFSET(Overrides!$B23, 0, MATCH(BE$4,Overrides!$C$5:$GU$5,0)), BD20*(1+S!$BK$206)*(BE5>0)) -> 0 | BF20: =IF(Overrides!$A23, OFFSET(Overrides!$B23, 0, MATCH(BF$4,Overrides!$C$5:$GU$5,0)), BE20*(1+S!$BK$206)*(BF5>0)) -> 0 | BG20: =IF(Overrides!$A23, OFFSET(Overrides!$B23, 0, MATCH(BG$4,Overrides!$C$5:$GU$5,0)), BF20*(1+S!$BK$206)*(BG5>0)) -> 0 | BH20: =IF(Overrides!$A23, OFFSET(Overrides!$B23, 0, MATCH(BH$4,Overrides!$C$5:$GU$5,0)), BG20*(1+S!$BK$206)*(BH5>0)) -> 0 | BI20: =IF(Overrides!$A23, OFFSET(Overrides!$B23, 0, MATCH(BI$4,Overrides!$C$5:$GU$5,0)), BH20*(1+S!$BK$206)*(BI5>0)) -> 0 | BJ20: =IF(Overrides!$A23, OFFSET(Overrides!$B23, 0, MATCH(BJ$4,Overrides!$C$5:$GU$5,0)), BI20*(1+S!$BK$206)*(BJ5>0)) -> 0 | BK20: =IF(Overrides!$A23, OFFSET(Overrides!$B23, 0, MATCH(BK$4,Overrides!$C$5:$GU$5,0)), BJ20*(1+S!$BK$206)*(BK5>0)) -> 0 | BL20: =IF(Overrides!$A23, OFFSET(Overrides!$B23, 0, MATCH(BL$4,Overrides!$C$5:$GU$5,0)), BK20*(1+S!$BK$206)*(BL5>0)) -> 0 | BM20: =IF(Overrides!$A23, OFFSET(Overrides!$B23, 0, MATCH(BM$4,Overrides!$C$5:$GU$5,0)), BL20*(1+S!$BK$206)*(BM5>0)) -> 0 | BN20: =IF(Overrides!$A23, OFFSET(Overrides!$B23, 0, MATCH(BN$4,Overrides!$C$5:$GU$5,0)), BM20*(1+S!$BK$206)*(BN5>0)) -> 0 | BO20: =IF(Overrides!$A23, OFFSET(Overrides!$B23, 0, MATCH(BO$4,Overrides!$C$5:$GU$5,0)), BN20*(1+S!$BK$206)*(BO5>0)) -> 0 | BP20: =IF(Overrides!$A23, OFFSET(Overrides!$B23, 0, MATCH(BP$4,Overrides!$C$5:$GU$5,0)), BO20*(1+S!$BK$206)*(BP5>0)) -> 0 | BQ20: =IF(Overrides!$A23, OFFSET(Overrides!$B23, 0, MATCH(BQ$4,Overrides!$C$5:$GU$5,0)), BP20*(1+S!$BK$206)*(BQ5>0)) -> 0 | BR20: =IF(Overrides!$A23, OFFSET(Overrides!$B23, 0, MATCH(BR$4,Overrides!$C$5:$GU$5,0)), BQ20*(1+S!$BK$206)*(BR5>0)) -> 0 | BS20: =IF(Overrides!$A23, OFFSET(Overrides!$B23, 0, MATCH(BS$4,Overrides!$C$5:$GU$5,0)), BR20*(1+S!$BK$206)*(BS5>0)) -> 0 | BT20: =IF(Overrides!$A23, OFFSET(Overrides!$B23, 0, MATCH(BT$4,Overrides!$C$5:$GU$5,0)), BS20*(1+S!$BK$206)*(BT5>0)) -> 0 | BU20: =IF(Overrides!$A23, OFFSET(Overrides!$B23, 0, MATCH(BU$4,Overrides!$C$5:$GU$5,0)), BT20*(1+S!$BK$206)*(BU5>0)) -> 0 | BV20: =IF(Overrides!$A23, OFFSET(Overrides!$B23, 0, MATCH(BV$4,Overrides!$C$5:$GU$5,0)), BU20*(1+S!$BK$206)*(BV5>0)) -> 0 | BW20: =IF(Overrides!$A23, OFFSET(Overrides!$B23, 0, MATCH(BW$4,Overrides!$C$5:$GU$5,0)), BV20*(1+S!$BK$206)*(BW5>0)) -> 0 | BX20: =IF(Overrides!$A23, OFFSET(Overrides!$B23, 0, MATCH(BX$4,Overrides!$C$5:$GU$5,0)), BW20*(1+S!$BK$206)*(BX5>0)) -> 0 | BY20: =IF(Overrides!$A23, OFFSET(Overrides!$B23, 0, MATCH(BY$4,Overrides!$C$5:$GU$5,0)), BX20*(1+S!$BK$206)*(BY5>0)) -> 0 | BZ20: =IF(Overrides!$A23, OFFSET(Overrides!$B23, 0, MATCH(BZ$4,Overrides!$C$5:$GU$5,0)), BY20*(1+S!$BK$206)*(BZ5>0)) -> 0 | CA20: =IF(Overrides!$A23, OFFSET(Overrides!$B23, 0, MATCH(CA$4,Overrides!$C$5:$GU$5,0)), BZ20*(1+S!$BK$206)*(CA5>0)) -> 0 | CB20: =IF(Overrides!$A23, OFFSET(Overrides!$B23, 0, MATCH(CB$4,Overrides!$C$5:$GU$5,0)), CA20*(1+S!$BK$206)*(CB5>0)) -> 0 | CC20: =IF(Overrides!$A23, OFFSET(Overrides!$B23, 0, MATCH(CC$4,Overrides!$C$5:$GU$5,0)), CB20*(1+S!$BK$206)*(CC5>0)) -> 0 | CD20: =IF(Overrides!$A23, OFFSET(Overrides!$B23, 0, MATCH(CD$4,Overrides!$C$5:$GU$5,0)), CC20*(1+S!$BK$206)*(CD5>0)) -> 0 | CE20: =IF(Overrides!$A23, OFFSET(Overrides!$B23, 0, MATCH(CE$4,Overrides!$C$5:$GU$5,0)), CD20*(1+S!$BK$206)*(CE5>0)) -> 0 | CF20: =IF(Overrides!$A23, OFFSET(Overrides!$B23, 0, MATCH(CF$4,Overrides!$C$5:$GU$5,0)), CE20*(1+S!$BK$206)*(CF5>0)) -> 0 | CG20: =IF(Overrides!$A23, OFFSET(Overrides!$B23, 0, MATCH(CG$4,Overrides!$C$5:$GU$5,0)), CF20*(1+S!$BK$206)*(CG5>0)) -> 0 | CH20: =IF(Overrides!$A23, OFFSET(Overrides!$B23, 0, MATCH(CH$4,Overrides!$C$5:$GU$5,0)), CG20*(1+S!$BK$206)*(CH5>0)) -> 0 | CI20: =IF(Overrides!$A23, OFFSET(Overrides!$B23, 0, MATCH(CI$4,Overrides!$C$5:$GU$5,0)), CH20*(1+S!$BK$206)*(CI5>0)) -> 0 | CJ20: =IF(Overrides!$A23, OFFSET(Overrides!$B23, 0, MATCH(CJ$4,Overrides!$C$5:$GU$5,0)), CI20*(1+S!$BK$206)*(CJ5>0)) -> 0 | CK20: =IF(Overrides!$A23, OFFSET(Overrides!$B23, 0, MATCH(CK$4,Overrides!$C$5:$GU$5,0)), CJ20*(1+S!$BK$206)*(CK5>0)) -> 0 | CL20: =IF(Overrides!$A23, OFFSET(Overrides!$B23, 0, MATCH(CL$4,Overrides!$C$5:$GU$5,0)), CK20*(1+S!$BK$206)*(CL5>0)) -> 0 | CM20: =IF(Overrides!$A23, OFFSET(Overrides!$B23, 0, MATCH(CM$4,Overrides!$C$5:$GU$5,0)), CL20*(1+S!$BK$206)*(CM5>0)) -> 0 | CN20: =IF(Overrides!$A23, OFFSET(Overrides!$B23, 0, MATCH(CN$4,Overrides!$C$5:$GU$5,0)), CM20*(1+S!$BK$206)*(CN5>0)) -> 0 | CO20: =IF(Overrides!$A23, OFFSET(Overrides!$B23, 0, MATCH(CO$4,Overrides!$C$5:$GU$5,0)), CN20*(1+S!$BK$206)*(CO5>0)) -> 0 | CP20: =IF(Overrides!$A23, OFFSET(Overrides!$B23, 0, MATCH(CP$4,Overrides!$C$5:$GU$5,0)), CO20*(1+S!$BK$206)*(CP5>0)) -> 0 | CQ20: =IF(Overrides!$A23, OFFSET(Overrides!$B23, 0, MATCH(CQ$4,Overrides!$C$5:$GU$5,0)), CP20*(1+S!$BK$206)*(CQ5>0)) -> 0 | CR20: =IF(Overrides!$A23, OFFSET(Overrides!$B23, 0, MATCH(CR$4,Overrides!$C$5:$GU$5,0)), CQ20*(1+S!$BK$206)*(CR5>0)) -> 0 | CS20: =IF(Overrides!$A23, OFFSET(Overrides!$B23, 0, MATCH(CS$4,Overrides!$C$5:$GU$5,0)), CR20*(1+S!$BK$206)*(CS5>0)) -> 0 | CT20: =IF(Overrides!$A23, OFFSET(Overrides!$B23, 0, MATCH(CT$4,Overrides!$C$5:$GU$5,0)), CS20*(1+S!$BK$206)*(CT5>0)) -> 0 | CU20: =IF(Overrides!$A23, OFFSET(Overrides!$B23, 0, MATCH(CU$4,Overrides!$C$5:$GU$5,0)), CT20*(1+S!$BK$206)*(CU5>0)) -> 0 | CV20: =IF(Overrides!$A23, OFFSET(Overrides!$B23, 0, MATCH(CV$4,Overrides!$C$5:$GU$5,0)), CU20*(1+S!$BK$206)*(CV5>0)) -> 0 | CW20: =IF(Overrides!$A23, OFFSET(Overrides!$B23, 0, MATCH(CW$4,Overrides!$C$5:$GU$5,0)), CV20*(1+S!$BK$206)*(CW5>0)) -> 0 | CX20: =IF(Overrides!$A23, OFFSET(Overrides!$B23, 0, MATCH(CX$4,Overrides!$C$5:$GU$5,0)), CW20*(1+S!$BK$206)*(CX5>0)) -> 0 | CY20: =IF(Overrides!$A23, OFFSET(Overrides!$B23, 0, MATCH(CY$4,Overrides!$C$5:$GU$5,0)), CX20*(1+S!$BK$206)*(CY5>0)) -> 0
C21: ="Take or pay contract price of "&RetailCommodity&" ($/"&RetailUnit&")" -> Take or pay contract price of EV-charging ($/kWh) | D21: 0 | E21: =IF((E6>0)*(E6<=1),S!$CU$206,D21*(1-S!$CV$206))*(E5>0) -> 0 | F21: =IF((F6>0)*(F6<=1),S!$CU$206,E21*(1-S!$CV$206))*(F5>0) -> 0 | G21: =IF((G6>0)*(G6<=1),S!$CU$206,F21*(1-S!$CV$206))*(G5>0) -> 0 | H21: =IF((H6>0)*(H6<=1),S!$CU$206,G21*(1-S!$CV$206))*(H5>0) -> 0 | I21: =IF((I6>0)*(I6<=1),S!$CU$206,H21*(1-S!$CV$206))*(I5>0) -> 0 | J21: =IF((J6>0)*(J6<=1),S!$CU$206,I21*(1-S!$CV$206))*(J5>0) -> 0 | K21: =IF((K6>0)*(K6<=1),S!$CU$206,J21*(1-S!$CV$206))*(K5>0) -> 0 | L21: =IF((L6>0)*(L6<=1),S!$CU$206,K21*(1-S!$CV$206))*(L5>0) -> 0 | M21: =IF((M6>0)*(M6<=1),S!$CU$206,L21*(1-S!$CV$206))*(M5>0) -> 0 | N21: =IF((N6>0)*(N6<=1),S!$CU$206,M21*(1-S!$CV$206))*(N5>0) -> 0 | O21: =IF((O6>0)*(O6<=1),S!$CU$206,N21*(1-S!$CV$206))*(O5>0) -> 0 | P21: =IF((P6>0)*(P6<=1),S!$CU$206,O21*(1-S!$CV$206))*(P5>0) -> 0 | Q21: =IF((Q6>0)*(Q6<=1),S!$CU$206,P21*(1-S!$CV$206))*(Q5>0) -> 0 | R21: =IF((R6>0)*(R6<=1),S!$CU$206,Q21*(1-S!$CV$206))*(R5>0) -> 0 | S21: =IF((S6>0)*(S6<=1),S!$CU$206,R21*(1-S!$CV$206))*(S5>0) -> 0 | T21: =IF((T6>0)*(T6<=1),S!$CU$206,S21*(1-S!$CV$206))*(T5>0) -> 0 | U21: =IF((U6>0)*(U6<=1),S!$CU$206,T21*(1-S!$CV$206))*(U5>0) -> 0 | V21: =IF((V6>0)*(V6<=1),S!$CU$206,U21*(1-S!$CV$206))*(V5>0) -> 0 | W21: =IF((W6>0)*(W6<=1),S!$CU$206,V21*(1-S!$CV$206))*(W5>0) -> 0 | X21: =IF((X6>0)*(X6<=1),S!$CU$206,W21*(1-S!$CV$206))*(X5>0) -> 0 | Y21: =IF((Y6>0)*(Y6<=1),S!$CU$206,X21*(1-S!$CV$206))*(Y5>0) -> 0 | Z21: =IF((Z6>0)*(Z6<=1),S!$CU$206,Y21*(1-S!$CV$206))*(Z5>0) -> 0 | AA21: =IF((AA6>0)*(AA6<=1),S!$CU$206,Z21*(1-S!$CV$206))*(AA5>0) -> 0 | AB21: =IF((AB6>0)*(AB6<=1),S!$CU$206,AA21*(1-S!$CV$206))*(AB5>0) -> 0 | AC21: =IF((AC6>0)*(AC6<=1),S!$CU$206,AB21*(1-S!$CV$206))*(AC5>0) -> 0 | AD21: =IF((AD6>0)*(AD6<=1),S!$CU$206,AC21*(1-S!$CV$206))*(AD5>0) -> 0 | AE21: =IF((AE6>0)*(AE6<=1),S!$CU$206,AD21*(1-S!$CV$206))*(AE5>0) -> 0 | AF21: =IF((AF6>0)*(AF6<=1),S!$CU$206,AE21*(1-S!$CV$206))*(AF5>0) -> 0 | AG21: =IF((AG6>0)*(AG6<=1),S!$CU$206,AF21*(1-S!$CV$206))*(AG5>0) -> 0 | AH21: =IF((AH6>0)*(AH6<=1),S!$CU$206,AG21*(1-S!$CV$206))*(AH5>0) -> 0 | AI21: =IF((AI6>0)*(AI6<=1),S!$CU$206,AH21*(1-S!$CV$206))*(AI5>0) -> 0 | AJ21: =IF((AJ6>0)*(AJ6<=1),S!$CU$206,AI21*(1-S!$CV$206))*(AJ5>0) -> 0 | AK21: =IF((AK6>0)*(AK6<=1),S!$CU$206,AJ21*(1-S!$CV$206))*(AK5>0) -> 0 | AL21: =IF((AL6>0)*(AL6<=1),S!$CU$206,AK21*(1-S!$CV$206))*(AL5>0) -> 0 | AM21: =IF((AM6>0)*(AM6<=1),S!$CU$206,AL21*(1-S!$CV$206))*(AM5>0) -> 0 | AN21: =IF((AN6>0)*(AN6<=1),S!$CU$206,AM21*(1-S!$CV$206))*(AN5>0) -> 0 | AO21: =IF((AO6>0)*(AO6<=1),S!$CU$206,AN21*(1-S!$CV$206))*(AO5>0) -> 0 | AP21: =IF((AP6>0)*(AP6<=1),S!$CU$206,AO21*(1-S!$CV$206))*(AP5>0) -> 0 | AQ21: =IF((AQ6>0)*(AQ6<=1),S!$CU$206,AP21*(1-S!$CV$206))*(AQ5>0) -> 0 | AR21: =IF((AR6>0)*(AR6<=1),S!$CU$206,AQ21*(1-S!$CV$206))*(AR5>0) -> 0 | AS21: =IF((AS6>0)*(AS6<=1),S!$CU$206,AR21*(1-S!$CV$206))*(AS5>0) -> 0 | AT21: =IF((AT6>0)*(AT6<=1),S!$CU$206,AS21*(1-S!$CV$206))*(AT5>0) -> 0 | AU21: =IF((AU6>0)*(AU6<=1),S!$CU$206,AT21*(1-S!$CV$206))*(AU5>0) -> 0 | AV21: =IF((AV6>0)*(AV6<=1),S!$CU$206,AU21*(1-S!$CV$206))*(AV5>0) -> 0 | AW21: =IF((AW6>0)*(AW6<=1),S!$CU$206,AV21*(1-S!$CV$206))*(AW5>0) -> 0 | AX21: =IF((AX6>0)*(AX6<=1),S!$CU$206,AW21*(1-S!$CV$206))*(AX5>0) -> 0 | AY21: =IF((AY6>0)*(AY6<=1),S!$CU$206,AX21*(1-S!$CV$206))*(AY5>0) -> 0 | AZ21: =IF((AZ6>0)*(AZ6<=1),S!$CU$206,AY21*(1-S!$CV$206))*(AZ5>0) -> 0 | BA21: =IF((BA6>0)*(BA6<=1),S!$CU$206,AZ21*(1-S!$CV$206))*(BA5>0) -> 0 | BB21: =IF((BB6>0)*(BB6<=1),S!$CU$206,BA21*(1-S!$CV$206))*(BB5>0) -> 0 | BC21: =IF((BC6>0)*(BC6<=1),S!$CU$206,BB21*(1-S!$CV$206))*(BC5>0) -> 0 | BD21: =IF((BD6>0)*(BD6<=1),S!$CU$206,BC21*(1-S!$CV$206))*(BD5>0) -> 0 | BE21: =IF((BE6>0)*(BE6<=1),S!$CU$206,BD21*(1-S!$CV$206))*(BE5>0) -> 0 | BF21: =IF((BF6>0)*(BF6<=1),S!$CU$206,BE21*(1-S!$CV$206))*(BF5>0) -> 0 | BG21: =IF((BG6>0)*(BG6<=1),S!$CU$206,BF21*(1-S!$CV$206))*(BG5>0) -> 0 | BH21: =IF((BH6>0)*(BH6<=1),S!$CU$206,BG21*(1-S!$CV$206))*(BH5>0) -> 0 | BI21: =IF((BI6>0)*(BI6<=1),S!$CU$206,BH21*(1-S!$CV$206))*(BI5>0) -> 0 | BJ21: =IF((BJ6>0)*(BJ6<=1),S!$CU$206,BI21*(1-S!$CV$206))*(BJ5>0) -> 0 | BK21: =IF((BK6>0)*(BK6<=1),S!$CU$206,BJ21*(1-S!$CV$206))*(BK5>0) -> 0 | BL21: =IF((BL6>0)*(BL6<=1),S!$CU$206,BK21*(1-S!$CV$206))*(BL5>0) -> 0 | BM21: =IF((BM6>0)*(BM6<=1),S!$CU$206,BL21*(1-S!$CV$206))*(BM5>0) -> 0 | BN21: =IF((BN6>0)*(BN6<=1),S!$CU$206,BM21*(1-S!$CV$206))*(BN5>0) -> 0 | BO21: =IF((BO6>0)*(BO6<=1),S!$CU$206,BN21*(1-S!$CV$206))*(BO5>0) -> 0 | BP21: =IF((BP6>0)*(BP6<=1),S!$CU$206,BO21*(1-S!$CV$206))*(BP5>0) -> 0 | BQ21: =IF((BQ6>0)*(BQ6<=1),S!$CU$206,BP21*(1-S!$CV$206))*(BQ5>0) -> 0 | BR21: =IF((BR6>0)*(BR6<=1),S!$CU$206,BQ21*(1-S!$CV$206))*(BR5>0) -> 0 | BS21: =IF((BS6>0)*(BS6<=1),S!$CU$206,BR21*(1-S!$CV$206))*(BS5>0) -> 0 | BT21: =IF((BT6>0)*(BT6<=1),S!$CU$206,BS21*(1-S!$CV$206))*(BT5>0) -> 0 | BU21: =IF((BU6>0)*(BU6<=1),S!$CU$206,BT21*(1-S!$CV$206))*(BU5>0) -> 0 | BV21: =IF((BV6>0)*(BV6<=1),S!$CU$206,BU21*(1-S!$CV$206))*(BV5>0) -> 0 | BW21: =IF((BW6>0)*(BW6<=1),S!$CU$206,BV21*(1-S!$CV$206))*(BW5>0) -> 0 | BX21: =IF((BX6>0)*(BX6<=1),S!$CU$206,BW21*(1-S!$CV$206))*(BX5>0) -> 0 | BY21: =IF((BY6>0)*(BY6<=1),S!$CU$206,BX21*(1-S!$CV$206))*(BY5>0) -> 0 | BZ21: =IF((BZ6>0)*(BZ6<=1),S!$CU$206,BY21*(1-S!$CV$206))*(BZ5>0) -> 0 | CA21: =IF((CA6>0)*(CA6<=1),S!$CU$206,BZ21*(1-S!$CV$206))*(CA5>0) -> 0 | CB21: =IF((CB6>0)*(CB6<=1),S!$CU$206,CA21*(1-S!$CV$206))*(CB5>0) -> 0 | CC21: =IF((CC6>0)*(CC6<=1),S!$CU$206,CB21*(1-S!$CV$206))*(CC5>0) -> 0 | CD21: =IF((CD6>0)*(CD6<=1),S!$CU$206,CC21*(1-S!$CV$206))*(CD5>0) -> 0 | CE21: =IF((CE6>0)*(CE6<=1),S!$CU$206,CD21*(1-S!$CV$206))*(CE5>0) -> 0 | CF21: =IF((CF6>0)*(CF6<=1),S!$CU$206,CE21*(1-S!$CV$206))*(CF5>0) -> 0 | CG21: =IF((CG6>0)*(CG6<=1),S!$CU$206,CF21*(1-S!$CV$206))*(CG5>0) -> 0 | CH21: =IF((CH6>0)*(CH6<=1),S!$CU$206,CG21*(1-S!$CV$206))*(CH5>0) -> 0 | CI21: =IF((CI6>0)*(CI6<=1),S!$CU$206,CH21*(1-S!$CV$206))*(CI5>0) -> 0 | CJ21: =IF((CJ6>0)*(CJ6<=1),S!$CU$206,CI21*(1-S!$CV$206))*(CJ5>0) -> 0 | CK21: =IF((CK6>0)*(CK6<=1),S!$CU$206,CJ21*(1-S!$CV$206))*(CK5>0) -> 0 | CL21: =IF((CL6>0)*(CL6<=1),S!$CU$206,CK21*(1-S!$CV$206))*(CL5>0) -> 0 | CM21: =IF((CM6>0)*(CM6<=1),S!$CU$206,CL21*(1-S!$CV$206))*(CM5>0) -> 0 | CN21: =IF((CN6>0)*(CN6<=1),S!$CU$206,CM21*(1-S!$CV$206))*(CN5>0) -> 0 | CO21: =IF((CO6>0)*(CO6<=1),S!$CU$206,CN21*(1-S!$CV$206))*(CO5>0) -> 0 | CP21: =IF((CP6>0)*(CP6<=1),S!$CU$206,CO21*(1-S!$CV$206))*(CP5>0) -> 0 | CQ21: =IF((CQ6>0)*(CQ6<=1),S!$CU$206,CP21*(1-S!$CV$206))*(CQ5>0) -> 0 | CR21: =IF((CR6>0)*(CR6<=1),S!$CU$206,CQ21*(1-S!$CV$206))*(CR5>0) -> 0 | CS21: =IF((CS6>0)*(CS6<=1),S!$CU$206,CR21*(1-S!$CV$206))*(CS5>0) -> 0 | CT21: =IF((CT6>0)*(CT6<=1),S!$CU$206,CS21*(1-S!$CV$206))*(CT5>0) -> 0 | CU21: =IF((CU6>0)*(CU6<=1),S!$CU$206,CT21*(1-S!$CV$206))*(CU5>0) -> 0 | CV21: =IF((CV6>0)*(CV6<=1),S!$CU$206,CU21*(1-S!$CV$206))*(CV5>0) -> 0 | CW21: =IF((CW6>0)*(CW6<=1),S!$CU$206,CV21*(1-S!$CV$206))*(CW5>0) -> 0 | CX21: =IF((CX6>0)*(CX6<=1),S!$CU$206,CW21*(1-S!$CV$206))*(CX5>0) -> 0 | CY21: =IF((CY6>0)*(CY6<=1),S!$CU$206,CX21*(1-S!$CV$206))*(CY5>0) -> 0
C22: =Interface!C70 -> LCFS incentive ($/kWh) | D22: =IF(Overrides!$A6, OFFSET(Overrides!$B6, 0, MATCH(D$4,Overrides!$C$5:$GU$5,0)), ((S!$BB$206-(S!$BB$206*S!$BC$206)*(INT(D6)-1))*(INT(D6)>0)*(INT(D6)<=S!$BD$206)*(1-MOD(D6,1)) +(S!$BB$206-(S!$BB$206*S!$BC$206)*(INT(D6)))*(INT(D6)>-1)*((INT(D6)+1)<=S!$BD$206)*MOD(D6,1))/(IF(AND(D6<1,D6>0),D6,1))) -> 0 | E22: =IF(Overrides!$A6, OFFSET(Overrides!$B6, 0, MATCH(E$4,Overrides!$C$5:$GU$5,0)), ((S!$BB$206-(S!$BB$206*S!$BC$206)*(INT(E6)-1))*(INT(E6)>0)*(INT(E6)<=S!$BD$206)*(1-MOD(E6,1)) +(S!$BB$206-(S!$BB$206*S!$BC$206)*(INT(E6)))*(INT(E6)>-1)*((INT(E6)+1)<=S!$BD$206)*MOD(E6,1))/(IF(AND(E6<1,E6>0),E6,1))) -> 0 | F22: =IF(Overrides!$A6, OFFSET(Overrides!$B6, 0, MATCH(F$4,Overrides!$C$5:$GU$5,0)), ((S!$BB$206-(S!$BB$206*S!$BC$206)*(INT(F6)-1))*(INT(F6)>0)*(INT(F6)<=S!$BD$206)*(1-MOD(F6,1)) +(S!$BB$206-(S!$BB$206*S!$BC$206)*(INT(F6)))*(INT(F6)>-1)*((INT(F6)+1)<=S!$BD$206)*MOD(F6,1))/(IF(AND(F6<1,F6>0),F6,1))) -> 0 | G22: =IF(Overrides!$A6, OFFSET(Overrides!$B6, 0, MATCH(G$4,Overrides!$C$5:$GU$5,0)), ((S!$BB$206-(S!$BB$206*S!$BC$206)*(INT(G6)-1))*(INT(G6)>0)*(INT(G6)<=S!$BD$206)*(1-MOD(G6,1)) +(S!$BB$206-(S!$BB$206*S!$BC$206)*(INT(G6)))*(INT(G6)>-1)*((INT(G6)+1)<=S!$BD$206)*MOD(G6,1))/(IF(AND(G6<1,G6>0),G6,1))) -> 0 | H22: =IF(Overrides!$A6, OFFSET(Overrides!$B6, 0, MATCH(H$4,Overrides!$C$5:$GU$5,0)), ((S!$BB$206-(S!$BB$206*S!$BC$206)*(INT(H6)-1))*(INT(H6)>0)*(INT(H6)<=S!$BD$206)*(1-MOD(H6,1)) +(S!$BB$206-(S!$BB$206*S!$BC$206)*(INT(H6)))*(INT(H6)>-1)*((INT(H6)+1)<=S!$BD$206)*MOD(H6,1))/(IF(AND(H6<1,H6>0),H6,1))) -> 0 | I22: =IF(Overrides!$A6, OFFSET(Overrides!$B6, 0, MATCH(I$4,Overrides!$C$5:$GU$5,0)), ((S!$BB$206-(S!$BB$206*S!$BC$206)*(INT(I6)-1))*(INT(I6)>0)*(INT(I6)<=S!$BD$206)*(1-MOD(I6,1)) +(S!$BB$206-(S!$BB$206*S!$BC$206)*(INT(I6)))*(INT(I6)>-1)*((INT(I6)+1)<=S!$BD$206)*MOD(I6,1))/(IF(AND(I6<1,I6>0),I6,1))) -> 0 | J22: =IF(Overrides!$A6, OFFSET(Overrides!$B6, 0, MATCH(J$4,Overrides!$C$5:$GU$5,0)), ((S!$BB$206-(S!$BB$206*S!$BC$206)*(INT(J6)-1))*(INT(J6)>0)*(INT(J6)<=S!$BD$206)*(1-MOD(J6,1)) +(S!$BB$206-(S!$BB$206*S!$BC$206)*(INT(J6)))*(INT(J6)>-1)*((INT(J6)+1)<=S!$BD$206)*MOD(J6,1))/(IF(AND(J6<1,J6>0),J6,1))) -> 0 | K22: =IF(Overrides!$A6, OFFSET(Overrides!$B6, 0, MATCH(K$4,Overrides!$C$5:$GU$5,0)), ((S!$BB$206-(S!$BB$206*S!$BC$206)*(INT(K6)-1))*(INT(K6)>0)*(INT(K6)<=S!$BD$206)*(1-MOD(K6,1)) +(S!$BB$206-(S!$BB$206*S!$BC$206)*(INT(K6)))*(INT(K6)>-1)*((INT(K6)+1)<=S!$BD$206)*MOD(K6,1))/(IF(AND(K6<1,K6>0),K6,1))) -> 0 | L22: =IF(Overrides!$A6, OFFSET(Overrides!$B6, 0, MATCH(L$4,Overrides!$C$5:$GU$5,0)), ((S!$BB$206-(S!$BB$206*S!$BC$206)*(INT(L6)-1))*(INT(L6)>0)*(INT(L6)<=S!$BD$206)*(1-MOD(L6,1)) +(S!$BB$206-(S!$BB$206*S!$BC$206)*(INT(L6)))*(INT(L6)>-1)*((INT(L6)+1)<=S!$BD$206)*MOD(L6,1))/(IF(AND(L6<1,L6>0),L6,1))) -> 0 | M22: =IF(Overrides!$A6, OFFSET(Overrides!$B6, 0, MATCH(M$4,Overrides!$C$5:$GU$5,0)), ((S!$BB$206-(S!$BB$206*S!$BC$206)*(INT(M6)-1))*(INT(M6)>0)*(INT(M6)<=S!$BD$206)*(1-MOD(M6,1)) +(S!$BB$206-(S!$BB$206*S!$BC$206)*(INT(M6)))*(INT(M6)>-1)*((INT(M6)+1)<=S!$BD$206)*MOD(M6,1))/(IF(AND(M6<1,M6>0),M6,1))) -> 0 | N22: =IF(Overrides!$A6, OFFSET(Overrides!$B6, 0, MATCH(N$4,Overrides!$C$5:$GU$5,0)), ((S!$BB$206-(S!$BB$206*S!$BC$206)*(INT(N6)-1))*(INT(N6)>0)*(INT(N6)<=S!$BD$206)*(1-MOD(N6,1)) +(S!$BB$206-(S!$BB$206*S!$BC$206)*(INT(N6)))*(INT(N6)>-1)*((INT(N6)+1)<=S!$BD$206)*MOD(N6,1))/(IF(AND(N6<1,N6>0),N6,1))) -> 0 | O22: =IF(Overrides!$A6, OFFSET(Overrides!$B6, 0, MATCH(O$4,Overrides!$C$5:$GU$5,0)), ((S!$BB$206-(S!$BB$206*S!$BC$206)*(INT(O6)-1))*(INT(O6)>0)*(INT(O6)<=S!$BD$206)*(1-MOD(O6,1)) +(S!$BB$206-(S!$BB$206*S!$BC$206)*(INT(O6)))*(INT(O6)>-1)*((INT(O6)+1)<=S!$BD$206)*MOD(O6,1))/(IF(AND(O6<1,O6>0),O6,1))) -> 0 | P22: =IF(Overrides!$A6, OFFSET(Overrides!$B6, 0, MATCH(P$4,Overrides!$C$5:$GU$5,0)), ((S!$BB$206-(S!$BB$206*S!$BC$206)*(INT(P6)-1))*(INT(P6)>0)*(INT(P6)<=S!$BD$206)*(1-MOD(P6,1)) +(S!$BB$206-(S!$BB$206*S!$BC$206)*(INT(P6)))*(INT(P6)>-1)*((INT(P6)+1)<=S!$BD$206)*MOD(P6,1))/(IF(AND(P6<1,P6>0),P6,1))) -> 0 | Q22: =IF(Overrides!$A6, OFFSET(Overrides!$B6, 0, MATCH(Q$4,Overrides!$C$5:$GU$5,0)), ((S!$BB$206-(S!$BB$206*S!$BC$206)*(INT(Q6)-1))*(INT(Q6)>0)*(INT(Q6)<=S!$BD$206)*(1-MOD(Q6,1)) +(S!$BB$206-(S!$BB$206*S!$BC$206)*(INT(Q6)))*(INT(Q6)>-1)*((INT(Q6)+1)<=S!$BD$206)*MOD(Q6,1))/(IF(AND(Q6<1,Q6>0),Q6,1))) -> 0 | R22: =IF(Overrides!$A6, OFFSET(Overrides!$B6, 0, MATCH(R$4,Overrides!$C$5:$GU$5,0)), ((S!$BB$206-(S!$BB$206*S!$BC$206)*(INT(R6)-1))*(INT(R6)>0)*(INT(R6)<=S!$BD$206)*(1-MOD(R6,1)) +(S!$BB$206-(S!$BB$206*S!$BC$206)*(INT(R6)))*(INT(R6)>-1)*((INT(R6)+1)<=S!$BD$206)*MOD(R6,1))/(IF(AND(R6<1,R6>0),R6,1))) -> 0 | S22: =IF(Overrides!$A6, OFFSET(Overrides!$B6, 0, MATCH(S$4,Overrides!$C$5:$GU$5,0)), ((S!$BB$206-(S!$BB$206*S!$BC$206)*(INT(S6)-1))*(INT(S6)>0)*(INT(S6)<=S!$BD$206)*(1-MOD(S6,1)) +(S!$BB$206-(S!$BB$206*S!$BC$206)*(INT(S6)))*(INT(S6)>-1)*((INT(S6)+1)<=S!$BD$206)*MOD(S6,1))/(IF(AND(S6<1,S6>0),S6,1))) -> 0 | T22: =IF(Overrides!$A6, OFFSET(Overrides!$B6, 0, MATCH(T$4,Overrides!$C$5:$GU$5,0)), ((S!$BB$206-(S!$BB$206*S!$BC$206)*(INT(T6)-1))*(INT(T6)>0)*(INT(T6)<=S!$BD$206)*(1-MOD(T6,1)) +(S!$BB$206-(S!$BB$206*S!$BC$206)*(INT(T6)))*(INT(T6)>-1)*((INT(T6)+1)<=S!$BD$206)*MOD(T6,1))/(IF(AND(T6<1,T6>0),T6,1))) -> 0 | U22: =IF(Overrides!$A6, OFFSET(Overrides!$B6, 0, MATCH(U$4,Overrides!$C$5:$GU$5,0)), ((S!$BB$206-(S!$BB$206*S!$BC$206)*(INT(U6)-1))*(INT(U6)>0)*(INT(U6)<=S!$BD$206)*(1-MOD(U6,1)) +(S!$BB$206-(S!$BB$206*S!$BC$206)*(INT(U6)))*(INT(U6)>-1)*((INT(U6)+1)<=S!$BD$206)*MOD(U6,1))/(IF(AND(U6<1,U6>0),U6,1))) -> 0 | V22: =IF(Overrides!$A6, OFFSET(Overrides!$B6, 0, MATCH(V$4,Overrides!$C$5:$GU$5,0)), ((S!$BB$206-(S!$BB$206*S!$BC$206)*(INT(V6)-1))*(INT(V6)>0)*(INT(V6)<=S!$BD$206)*(1-MOD(V6,1)) +(S!$BB$206-(S!$BB$206*S!$BC$206)*(INT(V6)))*(INT(V6)>-1)*((INT(V6)+1)<=S!$BD$206)*MOD(V6,1))/(IF(AND(V6<1,V6>0),V6,1))) -> 0 | W22: =IF(Overrides!$A6, OFFSET(Overrides!$B6, 0, MATCH(W$4,Overrides!$C$5:$GU$5,0)), ((S!$BB$206-(S!$BB$206*S!$BC$206)*(INT(W6)-1))*(INT(W6)>0)*(INT(W6)<=S!$BD$206)*(1-MOD(W6,1)) +(S!$BB$206-(S!$BB$206*S!$BC$206)*(INT(W6)))*(INT(W6)>-1)*((INT(W6)+1)<=S!$BD$206)*MOD(W6,1))/(IF(AND(W6<1,W6>0),W6,1))) -> 0 | X22: =IF(Overrides!$A6, OFFSET(Overrides!$B6, 0, MATCH(X$4,Overrides!$C$5:$GU$5,0)), ((S!$BB$206-(S!$BB$206*S!$BC$206)*(INT(X6)-1))*(INT(X6)>0)*(INT(X6)<=S!$BD$206)*(1-MOD(X6,1)) +(S!$BB$206-(S!$BB$206*S!$BC$206)*(INT(X6)))*(INT(X6)>-1)*((INT(X6)+1)<=S!$BD$206)*MOD(X6,1))/(IF(AND(X6<1,X6>0),X6,1))) -> 0 | Y22: =IF(Overrides!$A6, OFFSET(Overrides!$B6, 0, MATCH(Y$4,Overrides!$C$5:$GU$5,0)), ((S!$BB$206-(S!$BB$206*S!$BC$206)*(INT(Y6)-1))*(INT(Y6)>0)*(INT(Y6)<=S!$BD$206)*(1-MOD(Y6,1)) +(S!$BB$206-(S!$BB$206*S!$BC$206)*(INT(Y6)))*(INT(Y6)>-1)*((INT(Y6)+1)<=S!$BD$206)*MOD(Y6,1))/(IF(AND(Y6<1,Y6>0),Y6,1))) -> 0 | Z22: =IF(Overrides!$A6, OFFSET(Overrides!$B6, 0, MATCH(Z$4,Overrides!$C$5:$GU$5,0)), ((S!$BB$206-(S!$BB$206*S!$BC$206)*(INT(Z6)-1))*(INT(Z6)>0)*(INT(Z6)<=S!$BD$206)*(1-MOD(Z6,1)) +(S!$BB$206-(S!$BB$206*S!$BC$206)*(INT(Z6)))*(INT(Z6)>-1)*((INT(Z6)+1)<=S!$BD$206)*MOD(Z6,1))/(IF(AND(Z6<1,Z6>0),Z6,1))) -> 0 | AA22: =IF(Overrides!$A6, OFFSET(Overrides!$B6, 0, MATCH(AA$4,Overrides!$C$5:$GU$5,0)), ((S!$BB$206-(S!$BB$206*S!$BC$206)*(INT(AA6)-1))*(INT(AA6)>0)*(INT(AA6)<=S!$BD$206)*(1-MOD(AA6,1)) +(S!$BB$206-(S!$BB$206*S!$BC$206)*(INT(AA6)))*(INT(AA6)>-1)*((INT(AA6)+1)<=S!$BD$206)*MOD(AA6,1))/(IF(AND(AA6<1,AA6>0),AA6,1))) -> 0 | AB22: =IF(Overrides!$A6, OFFSET(Overrides!$B6, 0, MATCH(AB$4,Overrides!$C$5:$GU$5,0)), ((S!$BB$206-(S!$BB$206*S!$BC$206)*(INT(AB6)-1))*(INT(AB6)>0)*(INT(AB6)<=S!$BD$206)*(1-MOD(AB6,1)) +(S!$BB$206-(S!$BB$206*S!$BC$206)*(INT(AB6)))*(INT(AB6)>-1)*((INT(AB6)+1)<=S!$BD$206)*MOD(AB6,1))/(IF(AND(AB6<1,AB6>0),AB6,1))) -> 0 | AC22: =IF(Overrides!$A6, OFFSET(Overrides!$B6, 0, MATCH(AC$4,Overrides!$C$5:$GU$5,0)), ((S!$BB$206-(S!$BB$206*S!$BC$206)*(INT(AC6)-1))*(INT(AC6)>0)*(INT(AC6)<=S!$BD$206)*(1-MOD(AC6,1)) +(S!$BB$206-(S!$BB$206*S!$BC$206)*(INT(AC6)))*(INT(AC6)>-1)*((INT(AC6)+1)<=S!$BD$206)*MOD(AC6,1))/(IF(AND(AC6<1,AC6>0),AC6,1))) -> 0 | AD22: =IF(Overrides!$A6, OFFSET(Overrides!$B6, 0, MATCH(AD$4,Overrides!$C$5:$GU$5,0)), ((S!$BB$206-(S!$BB$206*S!$BC$206)*(INT(AD6)-1))*(INT(AD6)>0)*(INT(AD6)<=S!$BD$206)*(1-MOD(AD6,1)) +(S!$BB$206-(S!$BB$206*S!$BC$206)*(INT(AD6)))*(INT(AD6)>-1)*((INT(AD6)+1)<=S!$BD$206)*MOD(AD6,1))/(IF(AND(AD6<1,AD6>0),AD6,1))) -> 0 | AE22: =IF(Overrides!$A6, OFFSET(Overrides!$B6, 0, MATCH(AE$4,Overrides!$C$5:$GU$5,0)), ((S!$BB$206-(S!$BB$206*S!$BC$206)*(INT(AE6)-1))*(INT(AE6)>0)*(INT(AE6)<=S!$BD$206)*(1-MOD(AE6,1)) +(S!$BB$206-(S!$BB$206*S!$BC$206)*(INT(AE6)))*(INT(AE6)>-1)*((INT(AE6)+1)<=S!$BD$206)*MOD(AE6,1))/(IF(AND(AE6<1,AE6>0),AE6,1))) -> 0 | AF22: =IF(Overrides!$A6, OFFSET(Overrides!$B6, 0, MATCH(AF$4,Overrides!$C$5:$GU$5,0)), ((S!$BB$206-(S!$BB$206*S!$BC$206)*(INT(AF6)-1))*(INT(AF6)>0)*(INT(AF6)<=S!$BD$206)*(1-MOD(AF6,1)) +(S!$BB$206-(S!$BB$206*S!$BC$206)*(INT(AF6)))*(INT(AF6)>-1)*((INT(AF6)+1)<=S!$BD$206)*MOD(AF6,1))/(IF(AND(AF6<1,AF6>0),AF6,1))) -> 0 | AG22: =IF(Overrides!$A6, OFFSET(Overrides!$B6, 0, MATCH(AG$4,Overrides!$C$5:$GU$5,0)), ((S!$BB$206-(S!$BB$206*S!$BC$206)*(INT(AG6)-1))*(INT(AG6)>0)*(INT(AG6)<=S!$BD$206)*(1-MOD(AG6,1)) +(S!$BB$206-(S!$BB$206*S!$BC$206)*(INT(AG6)))*(INT(AG6)>-1)*((INT(AG6)+1)<=S!$BD$206)*MOD(AG6,1))/(IF(AND(AG6<1,AG6>0),AG6,1))) -> 0 | AH22: =IF(Overrides!$A6, OFFSET(Overrides!$B6, 0, MATCH(AH$4,Overrides!$C$5:$GU$5,0)), ((S!$BB$206-(S!$BB$206*S!$BC$206)*(INT(AH6)-1))*(INT(AH6)>0)*(INT(AH6)<=S!$BD$206)*(1-MOD(AH6,1)) +(S!$BB$206-(S!$BB$206*S!$BC$206)*(INT(AH6)))*(INT(AH6)>-1)*((INT(AH6)+1)<=S!$BD$206)*MOD(AH6,1))/(IF(AND(AH6<1,AH6>0),AH6,1))) -> 0 | AI22: =IF(Overrides!$A6, OFFSET(Overrides!$B6, 0, MATCH(AI$4,Overrides!$C$5:$GU$5,0)), ((S!$BB$206-(S!$BB$206*S!$BC$206)*(INT(AI6)-1))*(INT(AI6)>0)*(INT(AI6)<=S!$BD$206)*(1-MOD(AI6,1)) +(S!$BB$206-(S!$BB$206*S!$BC$206)*(INT(AI6)))*(INT(AI6)>-1)*((INT(AI6)+1)<=S!$BD$206)*MOD(AI6,1))/(IF(AND(AI6<1,AI6>0),AI6,1))) -> 0 | AJ22: =IF(Overrides!$A6, OFFSET(Overrides!$B6, 0, MATCH(AJ$4,Overrides!$C$5:$GU$5,0)), ((S!$BB$206-(S!$BB$206*S!$BC$206)*(INT(AJ6)-1))*(INT(AJ6)>0)*(INT(AJ6)<=S!$BD$206)*(1-MOD(AJ6,1)) +(S!$BB$206-(S!$BB$206*S!$BC$206)*(INT(AJ6)))*(INT(AJ6)>-1)*((INT(AJ6)+1)<=S!$BD$206)*MOD(AJ6,1))/(IF(AND(AJ6<1,AJ6>0),AJ6,1))) -> 0 | AK22: =IF(Overrides!$A6, OFFSET(Overrides!$B6, 0, MATCH(AK$4,Overrides!$C$5:$GU$5,0)), ((S!$BB$206-(S!$BB$206*S!$BC$206)*(INT(AK6)-1))*(INT(AK6)>0)*(INT(AK6)<=S!$BD$206)*(1-MOD(AK6,1)) +(S!$BB$206-(S!$BB$206*S!$BC$206)*(INT(AK6)))*(INT(AK6)>-1)*((INT(AK6)+1)<=S!$BD$206)*MOD(AK6,1))/(IF(AND(AK6<1,AK6>0),AK6,1))) -> 0 | AL22: =IF(Overrides!$A6, OFFSET(Overrides!$B6, 0, MATCH(AL$4,Overrides!$C$5:$GU$5,0)), ((S!$BB$206-(S!$BB$206*S!$BC$206)*(INT(AL6)-1))*(INT(AL6)>0)*(INT(AL6)<=S!$BD$206)*(1-MOD(AL6,1)) +(S!$BB$206-(S!$BB$206*S!$BC$206)*(INT(AL6)))*(INT(AL6)>-1)*((INT(AL6)+1)<=S!$BD$206)*MOD(AL6,1))/(IF(AND(AL6<1,AL6>0),AL6,1))) -> 0 | AM22: =IF(Overrides!$A6, OFFSET(Overrides!$B6, 0, MATCH(AM$4,Overrides!$C$5:$GU$5,0)), ((S!$BB$206-(S!$BB$206*S!$BC$206)*(INT(AM6)-1))*(INT(AM6)>0)*(INT(AM6)<=S!$BD$206)*(1-MOD(AM6,1)) +(S!$BB$206-(S!$BB$206*S!$BC$206)*(INT(AM6)))*(INT(AM6)>-1)*((INT(AM6)+1)<=S!$BD$206)*MOD(AM6,1))/(IF(AND(AM6<1,AM6>0),AM6,1))) -> 0 | AN22: =IF(Overrides!$A6, OFFSET(Overrides!$B6, 0, MATCH(AN$4,Overrides!$C$5:$GU$5,0)), ((S!$BB$206-(S!$BB$206*S!$BC$206)*(INT(AN6)-1))*(INT(AN6)>0)*(INT(AN6)<=S!$BD$206)*(1-MOD(AN6,1)) +(S!$BB$206-(S!$BB$206*S!$BC$206)*(INT(AN6)))*(INT(AN6)>-1)*((INT(AN6)+1)<=S!$BD$206)*MOD(AN6,1))/(IF(AND(AN6<1,AN6>0),AN6,1))) -> 0 | AO22: =IF(Overrides!$A6, OFFSET(Overrides!$B6, 0, MATCH(AO$4,Overrides!$C$5:$GU$5,0)), ((S!$BB$206-(S!$BB$206*S!$BC$206)*(INT(AO6)-1))*(INT(AO6)>0)*(INT(AO6)<=S!$BD$206)*(1-MOD(AO6,1)) +(S!$BB$206-(S!$BB$206*S!$BC$206)*(INT(AO6)))*(INT(AO6)>-1)*((INT(AO6)+1)<=S!$BD$206)*MOD(AO6,1))/(IF(AND(AO6<1,AO6>0),AO6,1))) -> 0 | AP22: =IF(Overrides!$A6, OFFSET(Overrides!$B6, 0, MATCH(AP$4,Overrides!$C$5:$GU$5,0)), ((S!$BB$206-(S!$BB$206*S!$BC$206)*(INT(AP6)-1))*(INT(AP6)>0)*(INT(AP6)<=S!$BD$206)*(1-MOD(AP6,1)) +(S!$BB$206-(S!$BB$206*S!$BC$206)*(INT(AP6)))*(INT(AP6)>-1)*((INT(AP6)+1)<=S!$BD$206)*MOD(AP6,1))/(IF(AND(AP6<1,AP6>0),AP6,1))) -> 0 | AQ22: =IF(Overrides!$A6, OFFSET(Overrides!$B6, 0, MATCH(AQ$4,Overrides!$C$5:$GU$5,0)), ((S!$BB$206-(S!$BB$206*S!$BC$206)*(INT(AQ6)-1))*(INT(AQ6)>0)*(INT(AQ6)<=S!$BD$206)*(1-MOD(AQ6,1)) +(S!$BB$206-(S!$BB$206*S!$BC$206)*(INT(AQ6)))*(INT(AQ6)>-1)*((INT(AQ6)+1)<=S!$BD$206)*MOD(AQ6,1))/(IF(AND(AQ6<1,AQ6>0),AQ6,1))) -> 0 | AR22: =IF(Overrides!$A6, OFFSET(Overrides!$B6, 0, MATCH(AR$4,Overrides!$C$5:$GU$5,0)), ((S!$BB$206-(S!$BB$206*S!$BC$206)*(INT(AR6)-1))*(INT(AR6)>0)*(INT(AR6)<=S!$BD$206)*(1-MOD(AR6,1)) +(S!$BB$206-(S!$BB$206*S!$BC$206)*(INT(AR6)))*(INT(AR6)>-1)*((INT(AR6)+1)<=S!$BD$206)*MOD(AR6,1))/(IF(AND(AR6<1,AR6>0),AR6,1))) -> 0 | AS22: =IF(Overrides!$A6, OFFSET(Overrides!$B6, 0, MATCH(AS$4,Overrides!$C$5:$GU$5,0)), ((S!$BB$206-(S!$BB$206*S!$BC$206)*(INT(AS6)-1))*(INT(AS6)>0)*(INT(AS6)<=S!$BD$206)*(1-MOD(AS6,1)) +(S!$BB$206-(S!$BB$206*S!$BC$206)*(INT(AS6)))*(INT(AS6)>-1)*((INT(AS6)+1)<=S!$BD$206)*MOD(AS6,1))/(IF(AND(AS6<1,AS6>0),AS6,1))) -> 0 | AT22: =IF(Overrides!$A6, OFFSET(Overrides!$B6, 0, MATCH(AT$4,Overrides!$C$5:$GU$5,0)), ((S!$BB$206-(S!$BB$206*S!$BC$206)*(INT(AT6)-1))*(INT(AT6)>0)*(INT(AT6)<=S!$BD$206)*(1-MOD(AT6,1)) +(S!$BB$206-(S!$BB$206*S!$BC$206)*(INT(AT6)))*(INT(AT6)>-1)*((INT(AT6)+1)<=S!$BD$206)*MOD(AT6,1))/(IF(AND(AT6<1,AT6>0),AT6,1))) -> 0 | AU22: =IF(Overrides!$A6, OFFSET(Overrides!$B6, 0, MATCH(AU$4,Overrides!$C$5:$GU$5,0)), ((S!$BB$206-(S!$BB$206*S!$BC$206)*(INT(AU6)-1))*(INT(AU6)>0)*(INT(AU6)<=S!$BD$206)*(1-MOD(AU6,1)) +(S!$BB$206-(S!$BB$206*S!$BC$206)*(INT(AU6)))*(INT(AU6)>-1)*((INT(AU6)+1)<=S!$BD$206)*MOD(AU6,1))/(IF(AND(AU6<1,AU6>0),AU6,1))) -> 0 | AV22: =IF(Overrides!$A6, OFFSET(Overrides!$B6, 0, MATCH(AV$4,Overrides!$C$5:$GU$5,0)), ((S!$BB$206-(S!$BB$206*S!$BC$206)*(INT(AV6)-1))*(INT(AV6)>0)*(INT(AV6)<=S!$BD$206)*(1-MOD(AV6,1)) +(S!$BB$206-(S!$BB$206*S!$BC$206)*(INT(AV6)))*(INT(AV6)>-1)*((INT(AV6)+1)<=S!$BD$206)*MOD(AV6,1))/(IF(AND(AV6<1,AV6>0),AV6,1))) -> 0 | AW22: =IF(Overrides!$A6, OFFSET(Overrides!$B6, 0, MATCH(AW$4,Overrides!$C$5:$GU$5,0)), ((S!$BB$206-(S!$BB$206*S!$BC$206)*(INT(AW6)-1))*(INT(AW6)>0)*(INT(AW6)<=S!$BD$206)*(1-MOD(AW6,1)) +(S!$BB$206-(S!$BB$206*S!$BC$206)*(INT(AW6)))*(INT(AW6)>-1)*((INT(AW6)+1)<=S!$BD$206)*MOD(AW6,1))/(IF(AND(AW6<1,AW6>0),AW6,1))) -> 0 | AX22: =IF(Overrides!$A6, OFFSET(Overrides!$B6, 0, MATCH(AX$4,Overrides!$C$5:$GU$5,0)), ((S!$BB$206-(S!$BB$206*S!$BC$206)*(INT(AX6)-1))*(INT(AX6)>0)*(INT(AX6)<=S!$BD$206)*(1-MOD(AX6,1)) +(S!$BB$206-(S!$BB$206*S!$BC$206)*(INT(AX6)))*(INT(AX6)>-1)*((INT(AX6)+1)<=S!$BD$206)*MOD(AX6,1))/(IF(AND(AX6<1,AX6>0),AX6,1))) -> 0 | AY22: =IF(Overrides!$A6, OFFSET(Overrides!$B6, 0, MATCH(AY$4,Overrides!$C$5:$GU$5,0)), ((S!$BB$206-(S!$BB$206*S!$BC$206)*(INT(AY6)-1))*(INT(AY6)>0)*(INT(AY6)<=S!$BD$206)*(1-MOD(AY6,1)) +(S!$BB$206-(S!$BB$206*S!$BC$206)*(INT(AY6)))*(INT(AY6)>-1)*((INT(AY6)+1)<=S!$BD$206)*MOD(AY6,1))/(IF(AND(AY6<1,AY6>0),AY6,1))) -> 0 | AZ22: =IF(Overrides!$A6, OFFSET(Overrides!$B6, 0, MATCH(AZ$4,Overrides!$C$5:$GU$5,0)), ((S!$BB$206-(S!$BB$206*S!$BC$206)*(INT(AZ6)-1))*(INT(AZ6)>0)*(INT(AZ6)<=S!$BD$206)*(1-MOD(AZ6,1)) +(S!$BB$206-(S!$BB$206*S!$BC$206)*(INT(AZ6)))*(INT(AZ6)>-1)*((INT(AZ6)+1)<=S!$BD$206)*MOD(AZ6,1))/(IF(AND(AZ6<1,AZ6>0),AZ6,1))) -> 0 | BA22: =IF(Overrides!$A6, OFFSET(Overrides!$B6, 0, MATCH(BA$4,Overrides!$C$5:$GU$5,0)), ((S!$BB$206-(S!$BB$206*S!$BC$206)*(INT(BA6)-1))*(INT(BA6)>0)*(INT(BA6)<=S!$BD$206)*(1-MOD(BA6,1)) +(S!$BB$206-(S!$BB$206*S!$BC$206)*(INT(BA6)))*(INT(BA6)>-1)*((INT(BA6)+1)<=S!$BD$206)*MOD(BA6,1))/(IF(AND(BA6<1,BA6>0),BA6,1))) -> 0 | BB22: =IF(Overrides!$A6, OFFSET(Overrides!$B6, 0, MATCH(BB$4,Overrides!$C$5:$GU$5,0)), ((S!$BB$206-(S!$BB$206*S!$BC$206)*(INT(BB6)-1))*(INT(BB6)>0)*(INT(BB6)<=S!$BD$206)*(1-MOD(BB6,1)) +(S!$BB$206-(S!$BB$206*S!$BC$206)*(INT(BB6)))*(INT(BB6)>-1)*((INT(BB6)+1)<=S!$BD$206)*MOD(BB6,1))/(IF(AND(BB6<1,BB6>0),BB6,1))) -> 0 | BC22: =IF(Overrides!$A6, OFFSET(Overrides!$B6, 0, MATCH(BC$4,Overrides!$C$5:$GU$5,0)), ((S!$BB$206-(S!$BB$206*S!$BC$206)*(INT(BC6)-1))*(INT(BC6)>0)*(INT(BC6)<=S!$BD$206)*(1-MOD(BC6,1)) +(S!$BB$206-(S!$BB$206*S!$BC$206)*(INT(BC6)))*(INT(BC6)>-1)*((INT(BC6)+1)<=S!$BD$206)*MOD(BC6,1))/(IF(AND(BC6<1,BC6>0),BC6,1))) -> 0 | BD22: =IF(Overrides!$A6, OFFSET(Overrides!$B6, 0, MATCH(BD$4,Overrides!$C$5:$GU$5,0)), ((S!$BB$206-(S!$BB$206*S!$BC$206)*(INT(BD6)-1))*(INT(BD6)>0)*(INT(BD6)<=S!$BD$206)*(1-MOD(BD6,1)) +(S!$BB$206-(S!$BB$206*S!$BC$206)*(INT(BD6)))*(INT(BD6)>-1)*((INT(BD6)+1)<=S!$BD$206)*MOD(BD6,1))/(IF(AND(BD6<1,BD6>0),BD6,1))) -> 0 | BE22: =IF(Overrides!$A6, OFFSET(Overrides!$B6, 0, MATCH(BE$4,Overrides!$C$5:$GU$5,0)), ((S!$BB$206-(S!$BB$206*S!$BC$206)*(INT(BE6)-1))*(INT(BE6)>0)*(INT(BE6)<=S!$BD$206)*(1-MOD(BE6,1)) +(S!$BB$206-(S!$BB$206*S!$BC$206)*(INT(BE6)))*(INT(BE6)>-1)*((INT(BE6)+1)<=S!$BD$206)*MOD(BE6,1))/(IF(AND(BE6<1,BE6>0),BE6,1))) -> 0 | BF22: =IF(Overrides!$A6, OFFSET(Overrides!$B6, 0, MATCH(BF$4,Overrides!$C$5:$GU$5,0)), ((S!$BB$206-(S!$BB$206*S!$BC$206)*(INT(BF6)-1))*(INT(BF6)>0)*(INT(BF6)<=S!$BD$206)*(1-MOD(BF6,1)) +(S!$BB$206-(S!$BB$206*S!$BC$206)*(INT(BF6)))*(INT(BF6)>-1)*((INT(BF6)+1)<=S!$BD$206)*MOD(BF6,1))/(IF(AND(BF6<1,BF6>0),BF6,1))) -> 0 | BG22: =IF(Overrides!$A6, OFFSET(Overrides!$B6, 0, MATCH(BG$4,Overrides!$C$5:$GU$5,0)), ((S!$BB$206-(S!$BB$206*S!$BC$206)*(INT(BG6)-1))*(INT(BG6)>0)*(INT(BG6)<=S!$BD$206)*(1-MOD(BG6,1)) +(S!$BB$206-(S!$BB$206*S!$BC$206)*(INT(BG6)))*(INT(BG6)>-1)*((INT(BG6)+1)<=S!$BD$206)*MOD(BG6,1))/(IF(AND(BG6<1,BG6>0),BG6,1))) -> 0 | BH22: =IF(Overrides!$A6, OFFSET(Overrides!$B6, 0, MATCH(BH$4,Overrides!$C$5:$GU$5,0)), ((S!$BB$206-(S!$BB$206*S!$BC$206)*(INT(BH6)-1))*(INT(BH6)>0)*(INT(BH6)<=S!$BD$206)*(1-MOD(BH6,1)) +(S!$BB$206-(S!$BB$206*S!$BC$206)*(INT(BH6)))*(INT(BH6)>-1)*((INT(BH6)+1)<=S!$BD$206)*MOD(BH6,1))/(IF(AND(BH6<1,BH6>0),BH6,1))) -> 0 | BI22: =IF(Overrides!$A6, OFFSET(Overrides!$B6, 0, MATCH(BI$4,Overrides!$C$5:$GU$5,0)), ((S!$BB$206-(S!$BB$206*S!$BC$206)*(INT(BI6)-1))*(INT(BI6)>0)*(INT(BI6)<=S!$BD$206)*(1-MOD(BI6,1)) +(S!$BB$206-(S!$BB$206*S!$BC$206)*(INT(BI6)))*(INT(BI6)>-1)*((INT(BI6)+1)<=S!$BD$206)*MOD(BI6,1))/(IF(AND(BI6<1,BI6>0),BI6,1))) -> 0 | BJ22: =IF(Overrides!$A6, OFFSET(Overrides!$B6, 0, MATCH(BJ$4,Overrides!$C$5:$GU$5,0)), ((S!$BB$206-(S!$BB$206*S!$BC$206)*(INT(BJ6)-1))*(INT(BJ6)>0)*(INT(BJ6)<=S!$BD$206)*(1-MOD(BJ6,1)) +(S!$BB$206-(S!$BB$206*S!$BC$206)*(INT(BJ6)))*(INT(BJ6)>-1)*((INT(BJ6)+1)<=S!$BD$206)*MOD(BJ6,1))/(IF(AND(BJ6<1,BJ6>0),BJ6,1))) -> 0 | BK22: =IF(Overrides!$A6, OFFSET(Overrides!$B6, 0, MATCH(BK$4,Overrides!$C$5:$GU$5,0)), ((S!$BB$206-(S!$BB$206*S!$BC$206)*(INT(BK6)-1))*(INT(BK6)>0)*(INT(BK6)<=S!$BD$206)*(1-MOD(BK6,1)) +(S!$BB$206-(S!$BB$206*S!$BC$206)*(INT(BK6)))*(INT(BK6)>-1)*((INT(BK6)+1)<=S!$BD$206)*MOD(BK6,1))/(IF(AND(BK6<1,BK6>0),BK6,1))) -> 0 | BL22: =IF(Overrides!$A6, OFFSET(Overrides!$B6, 0, MATCH(BL$4,Overrides!$C$5:$GU$5,0)), ((S!$BB$206-(S!$BB$206*S!$BC$206)*(INT(BL6)-1))*(INT(BL6)>0)*(INT(BL6)<=S!$BD$206)*(1-MOD(BL6,1)) +(S!$BB$206-(S!$BB$206*S!$BC$206)*(INT(BL6)))*(INT(BL6)>-1)*((INT(BL6)+1)<=S!$BD$206)*MOD(BL6,1))/(IF(AND(BL6<1,BL6>0),BL6,1))) -> 0 | BM22: =IF(Overrides!$A6, OFFSET(Overrides!$B6, 0, MATCH(BM$4,Overrides!$C$5:$GU$5,0)), ((S!$BB$206-(S!$BB$206*S!$BC$206)*(INT(BM6)-1))*(INT(BM6)>0)*(INT(BM6)<=S!$BD$206)*(1-MOD(BM6,1)) +(S!$BB$206-(S!$BB$206*S!$BC$206)*(INT(BM6)))*(INT(BM6)>-1)*((INT(BM6)+1)<=S!$BD$206)*MOD(BM6,1))/(IF(AND(BM6<1,BM6>0),BM6,1))) -> 0 | BN22: =IF(Overrides!$A6, OFFSET(Overrides!$B6, 0, MATCH(BN$4,Overrides!$C$5:$GU$5,0)), ((S!$BB$206-(S!$BB$206*S!$BC$206)*(INT(BN6)-1))*(INT(BN6)>0)*(INT(BN6)<=S!$BD$206)*(1-MOD(BN6,1)) +(S!$BB$206-(S!$BB$206*S!$BC$206)*(INT(BN6)))*(INT(BN6)>-1)*((INT(BN6)+1)<=S!$BD$206)*MOD(BN6,1))/(IF(AND(BN6<1,BN6>0),BN6,1))) -> 0 | BO22: =IF(Overrides!$A6, OFFSET(Overrides!$B6, 0, MATCH(BO$4,Overrides!$C$5:$GU$5,0)), ((S!$BB$206-(S!$BB$206*S!$BC$206)*(INT(BO6)-1))*(INT(BO6)>0)*(INT(BO6)<=S!$BD$206)*(1-MOD(BO6,1)) +(S!$BB$206-(S!$BB$206*S!$BC$206)*(INT(BO6)))*(INT(BO6)>-1)*((INT(BO6)+1)<=S!$BD$206)*MOD(BO6,1))/(IF(AND(BO6<1,BO6>0),BO6,1))) -> 0 | BP22: =IF(Overrides!$A6, OFFSET(Overrides!$B6, 0, MATCH(BP$4,Overrides!$C$5:$GU$5,0)), ((S!$BB$206-(S!$BB$206*S!$BC$206)*(INT(BP6)-1))*(INT(BP6)>0)*(INT(BP6)<=S!$BD$206)*(1-MOD(BP6,1)) +(S!$BB$206-(S!$BB$206*S!$BC$206)*(INT(BP6)))*(INT(BP6)>-1)*((INT(BP6)+1)<=S!$BD$206)*MOD(BP6,1))/(IF(AND(BP6<1,BP6>0),BP6,1))) -> 0 | BQ22: =IF(Overrides!$A6, OFFSET(Overrides!$B6, 0, MATCH(BQ$4,Overrides!$C$5:$GU$5,0)), ((S!$BB$206-(S!$BB$206*S!$BC$206)*(INT(BQ6)-1))*(INT(BQ6)>0)*(INT(BQ6)<=S!$BD$206)*(1-MOD(BQ6,1)) +(S!$BB$206-(S!$BB$206*S!$BC$206)*(INT(BQ6)))*(INT(BQ6)>-1)*((INT(BQ6)+1)<=S!$BD$206)*MOD(BQ6,1))/(IF(AND(BQ6<1,BQ6>0),BQ6,1))) -> 0 | BR22: =IF(Overrides!$A6, OFFSET(Overrides!$B6, 0, MATCH(BR$4,Overrides!$C$5:$GU$5,0)), ((S!$BB$206-(S!$BB$206*S!$BC$206)*(INT(BR6)-1))*(INT(BR6)>0)*(INT(BR6)<=S!$BD$206)*(1-MOD(BR6,1)) +(S!$BB$206-(S!$BB$206*S!$BC$206)*(INT(BR6)))*(INT(BR6)>-1)*((INT(BR6)+1)<=S!$BD$206)*MOD(BR6,1))/(IF(AND(BR6<1,BR6>0),BR6,1))) -> 0 | BS22: =IF(Overrides!$A6, OFFSET(Overrides!$B6, 0, MATCH(BS$4,Overrides!$C$5:$GU$5,0)), ((S!$BB$206-(S!$BB$206*S!$BC$206)*(INT(BS6)-1))*(INT(BS6)>0)*(INT(BS6)<=S!$BD$206)*(1-MOD(BS6,1)) +(S!$BB$206-(S!$BB$206*S!$BC$206)*(INT(BS6)))*(INT(BS6)>-1)*((INT(BS6)+1)<=S!$BD$206)*MOD(BS6,1))/(IF(AND(BS6<1,BS6>0),BS6,1))) -> 0 | BT22: =IF(Overrides!$A6, OFFSET(Overrides!$B6, 0, MATCH(BT$4,Overrides!$C$5:$GU$5,0)), ((S!$BB$206-(S!$BB$206*S!$BC$206)*(INT(BT6)-1))*(INT(BT6)>0)*(INT(BT6)<=S!$BD$206)*(1-MOD(BT6,1)) +(S!$BB$206-(S!$BB$206*S!$BC$206)*(INT(BT6)))*(INT(BT6)>-1)*((INT(BT6)+1)<=S!$BD$206)*MOD(BT6,1))/(IF(AND(BT6<1,BT6>0),BT6,1))) -> 0 | BU22: =IF(Overrides!$A6, OFFSET(Overrides!$B6, 0, MATCH(BU$4,Overrides!$C$5:$GU$5,0)), ((S!$BB$206-(S!$BB$206*S!$BC$206)*(INT(BU6)-1))*(INT(BU6)>0)*(INT(BU6)<=S!$BD$206)*(1-MOD(BU6,1)) +(S!$BB$206-(S!$BB$206*S!$BC$206)*(INT(BU6)))*(INT(BU6)>-1)*((INT(BU6)+1)<=S!$BD$206)*MOD(BU6,1))/(IF(AND(BU6<1,BU6>0),BU6,1))) -> 0 | BV22: =IF(Overrides!$A6, OFFSET(Overrides!$B6, 0, MATCH(BV$4,Overrides!$C$5:$GU$5,0)), ((S!$BB$206-(S!$BB$206*S!$BC$206)*(INT(BV6)-1))*(INT(BV6)>0)*(INT(BV6)<=S!$BD$206)*(1-MOD(BV6,1)) +(S!$BB$206-(S!$BB$206*S!$BC$206)*(INT(BV6)))*(INT(BV6)>-1)*((INT(BV6)+1)<=S!$BD$206)*MOD(BV6,1))/(IF(AND(BV6<1,BV6>0),BV6,1))) -> 0 | BW22: =IF(Overrides!$A6, OFFSET(Overrides!$B6, 0, MATCH(BW$4,Overrides!$C$5:$GU$5,0)), ((S!$BB$206-(S!$BB$206*S!$BC$206)*(INT(BW6)-1))*(INT(BW6)>0)*(INT(BW6)<=S!$BD$206)*(1-MOD(BW6,1)) +(S!$BB$206-(S!$BB$206*S!$BC$206)*(INT(BW6)))*(INT(BW6)>-1)*((INT(BW6)+1)<=S!$BD$206)*MOD(BW6,1))/(IF(AND(BW6<1,BW6>0),BW6,1))) -> 0 | BX22: =IF(Overrides!$A6, OFFSET(Overrides!$B6, 0, MATCH(BX$4,Overrides!$C$5:$GU$5,0)), ((S!$BB$206-(S!$BB$206*S!$BC$206)*(INT(BX6)-1))*(INT(BX6)>0)*(INT(BX6)<=S!$BD$206)*(1-MOD(BX6,1)) +(S!$BB$206-(S!$BB$206*S!$BC$206)*(INT(BX6)))*(INT(BX6)>-1)*((INT(BX6)+1)<=S!$BD$206)*MOD(BX6,1))/(IF(AND(BX6<1,BX6>0),BX6,1))) -> 0 | BY22: =IF(Overrides!$A6, OFFSET(Overrides!$B6, 0, MATCH(BY$4,Overrides!$C$5:$GU$5,0)), ((S!$BB$206-(S!$BB$206*S!$BC$206)*(INT(BY6)-1))*(INT(BY6)>0)*(INT(BY6)<=S!$BD$206)*(1-MOD(BY6,1)) +(S!$BB$206-(S!$BB$206*S!$BC$206)*(INT(BY6)))*(INT(BY6)>-1)*((INT(BY6)+1)<=S!$BD$206)*MOD(BY6,1))/(IF(AND(BY6<1,BY6>0),BY6,1))) -> 0 | BZ22: =IF(Overrides!$A6, OFFSET(Overrides!$B6, 0, MATCH(BZ$4,Overrides!$C$5:$GU$5,0)), ((S!$BB$206-(S!$BB$206*S!$BC$206)*(INT(BZ6)-1))*(INT(BZ6)>0)*(INT(BZ6)<=S!$BD$206)*(1-MOD(BZ6,1)) +(S!$BB$206-(S!$BB$206*S!$BC$206)*(INT(BZ6)))*(INT(BZ6)>-1)*((INT(BZ6)+1)<=S!$BD$206)*MOD(BZ6,1))/(IF(AND(BZ6<1,BZ6>0),BZ6,1))) -> 0 | CA22: =IF(Overrides!$A6, OFFSET(Overrides!$B6, 0, MATCH(CA$4,Overrides!$C$5:$GU$5,0)), ((S!$BB$206-(S!$BB$206*S!$BC$206)*(INT(CA6)-1))*(INT(CA6)>0)*(INT(CA6)<=S!$BD$206)*(1-MOD(CA6,1)) +(S!$BB$206-(S!$BB$206*S!$BC$206)*(INT(CA6)))*(INT(CA6)>-1)*((INT(CA6)+1)<=S!$BD$206)*MOD(CA6,1))/(IF(AND(CA6<1,CA6>0),CA6,1))) -> 0 | CB22: =IF(Overrides!$A6, OFFSET(Overrides!$B6, 0, MATCH(CB$4,Overrides!$C$5:$GU$5,0)), ((S!$BB$206-(S!$BB$206*S!$BC$206)*(INT(CB6)-1))*(INT(CB6)>0)*(INT(CB6)<=S!$BD$206)*(1-MOD(CB6,1)) +(S!$BB$206-(S!$BB$206*S!$BC$206)*(INT(CB6)))*(INT(CB6)>-1)*((INT(CB6)+1)<=S!$BD$206)*MOD(CB6,1))/(IF(AND(CB6<1,CB6>0),CB6,1))) -> 0 | CC22: =IF(Overrides!$A6, OFFSET(Overrides!$B6, 0, MATCH(CC$4,Overrides!$C$5:$GU$5,0)), ((S!$BB$206-(S!$BB$206*S!$BC$206)*(INT(CC6)-1))*(INT(CC6)>0)*(INT(CC6)<=S!$BD$206)*(1-MOD(CC6,1)) +(S!$BB$206-(S!$BB$206*S!$BC$206)*(INT(CC6)))*(INT(CC6)>-1)*((INT(CC6)+1)<=S!$BD$206)*MOD(CC6,1))/(IF(AND(CC6<1,CC6>0),CC6,1))) -> 0 | CD22: =IF(Overrides!$A6, OFFSET(Overrides!$B6, 0, MATCH(CD$4,Overrides!$C$5:$GU$5,0)), ((S!$BB$206-(S!$BB$206*S!$BC$206)*(INT(CD6)-1))*(INT(CD6)>0)*(INT(CD6)<=S!$BD$206)*(1-MOD(CD6,1)) +(S!$BB$206-(S!$BB$206*S!$BC$206)*(INT(CD6)))*(INT(CD6)>-1)*((INT(CD6)+1)<=S!$BD$206)*MOD(CD6,1))/(IF(AND(CD6<1,CD6>0),CD6,1))) -> 0 | CE22: =IF(Overrides!$A6, OFFSET(Overrides!$B6, 0, MATCH(CE$4,Overrides!$C$5:$GU$5,0)), ((S!$BB$206-(S!$BB$206*S!$BC$206)*(INT(CE6)-1))*(INT(CE6)>0)*(INT(CE6)<=S!$BD$206)*(1-MOD(CE6,1)) +(S!$BB$206-(S!$BB$206*S!$BC$206)*(INT(CE6)))*(INT(CE6)>-1)*((INT(CE6)+1)<=S!$BD$206)*MOD(CE6,1))/(IF(AND(CE6<1,CE6>0),CE6,1))) -> 0 | CF22: =IF(Overrides!$A6, OFFSET(Overrides!$B6, 0, MATCH(CF$4,Overrides!$C$5:$GU$5,0)), ((S!$BB$206-(S!$BB$206*S!$BC$206)*(INT(CF6)-1))*(INT(CF6)>0)*(INT(CF6)<=S!$BD$206)*(1-MOD(CF6,1)) +(S!$BB$206-(S!$BB$206*S!$BC$206)*(INT(CF6)))*(INT(CF6)>-1)*((INT(CF6)+1)<=S!$BD$206)*MOD(CF6,1))/(IF(AND(CF6<1,CF6>0),CF6,1))) -> 0 | CG22: =IF(Overrides!$A6, OFFSET(Overrides!$B6, 0, MATCH(CG$4,Overrides!$C$5:$GU$5,0)), ((S!$BB$206-(S!$BB$206*S!$BC$206)*(INT(CG6)-1))*(INT(CG6)>0)*(INT(CG6)<=S!$BD$206)*(1-MOD(CG6,1)) +(S!$BB$206-(S!$BB$206*S!$BC$206)*(INT(CG6)))*(INT(CG6)>-1)*((INT(CG6)+1)<=S!$BD$206)*MOD(CG6,1))/(IF(AND(CG6<1,CG6>0),CG6,1))) -> 0 | CH22: =IF(Overrides!$A6, OFFSET(Overrides!$B6, 0, MATCH(CH$4,Overrides!$C$5:$GU$5,0)), ((S!$BB$206-(S!$BB$206*S!$BC$206)*(INT(CH6)-1))*(INT(CH6)>0)*(INT(CH6)<=S!$BD$206)*(1-MOD(CH6,1)) +(S!$BB$206-(S!$BB$206*S!$BC$206)*(INT(CH6)))*(INT(CH6)>-1)*((INT(CH6)+1)<=S!$BD$206)*MOD(CH6,1))/(IF(AND(CH6<1,CH6>0),CH6,1))) -> 0 | CI22: =IF(Overrides!$A6, OFFSET(Overrides!$B6, 0, MATCH(CI$4,Overrides!$C$5:$GU$5,0)), ((S!$BB$206-(S!$BB$206*S!$BC$206)*(INT(CI6)-1))*(INT(CI6)>0)*(INT(CI6)<=S!$BD$206)*(1-MOD(CI6,1)) +(S!$BB$206-(S!$BB$206*S!$BC$206)*(INT(CI6)))*(INT(CI6)>-1)*((INT(CI6)+1)<=S!$BD$206)*MOD(CI6,1))/(IF(AND(CI6<1,CI6>0),CI6,1))) -> 0 | CJ22: =IF(Overrides!$A6, OFFSET(Overrides!$B6, 0, MATCH(CJ$4,Overrides!$C$5:$GU$5,0)), ((S!$BB$206-(S!$BB$206*S!$BC$206)*(INT(CJ6)-1))*(INT(CJ6)>0)*(INT(CJ6)<=S!$BD$206)*(1-MOD(CJ6,1)) +(S!$BB$206-(S!$BB$206*S!$BC$206)*(INT(CJ6)))*(INT(CJ6)>-1)*((INT(CJ6)+1)<=S!$BD$206)*MOD(CJ6,1))/(IF(AND(CJ6<1,CJ6>0),CJ6,1))) -> 0 | CK22: =IF(Overrides!$A6, OFFSET(Overrides!$B6, 0, MATCH(CK$4,Overrides!$C$5:$GU$5,0)), ((S!$BB$206-(S!$BB$206*S!$BC$206)*(INT(CK6)-1))*(INT(CK6)>0)*(INT(CK6)<=S!$BD$206)*(1-MOD(CK6,1)) +(S!$BB$206-(S!$BB$206*S!$BC$206)*(INT(CK6)))*(INT(CK6)>-1)*((INT(CK6)+1)<=S!$BD$206)*MOD(CK6,1))/(IF(AND(CK6<1,CK6>0),CK6,1))) -> 0 | CL22: =IF(Overrides!$A6, OFFSET(Overrides!$B6, 0, MATCH(CL$4,Overrides!$C$5:$GU$5,0)), ((S!$BB$206-(S!$BB$206*S!$BC$206)*(INT(CL6)-1))*(INT(CL6)>0)*(INT(CL6)<=S!$BD$206)*(1-MOD(CL6,1)) +(S!$BB$206-(S!$BB$206*S!$BC$206)*(INT(CL6)))*(INT(CL6)>-1)*((INT(CL6)+1)<=S!$BD$206)*MOD(CL6,1))/(IF(AND(CL6<1,CL6>0),CL6,1))) -> 0 | CM22: =IF(Overrides!$A6, OFFSET(Overrides!$B6, 0, MATCH(CM$4,Overrides!$C$5:$GU$5,0)), ((S!$BB$206-(S!$BB$206*S!$BC$206)*(INT(CM6)-1))*(INT(CM6)>0)*(INT(CM6)<=S!$BD$206)*(1-MOD(CM6,1)) +(S!$BB$206-(S!$BB$206*S!$BC$206)*(INT(CM6)))*(INT(CM6)>-1)*((INT(CM6)+1)<=S!$BD$206)*MOD(CM6,1))/(IF(AND(CM6<1,CM6>0),CM6,1))) -> 0 | CN22: =IF(Overrides!$A6, OFFSET(Overrides!$B6, 0, MATCH(CN$4,Overrides!$C$5:$GU$5,0)), ((S!$BB$206-(S!$BB$206*S!$BC$206)*(INT(CN6)-1))*(INT(CN6)>0)*(INT(CN6)<=S!$BD$206)*(1-MOD(CN6,1)) +(S!$BB$206-(S!$BB$206*S!$BC$206)*(INT(CN6)))*(INT(CN6)>-1)*((INT(CN6)+1)<=S!$BD$206)*MOD(CN6,1))/(IF(AND(CN6<1,CN6>0),CN6,1))) -> 0 | CO22: =IF(Overrides!$A6, OFFSET(Overrides!$B6, 0, MATCH(CO$4,Overrides!$C$5:$GU$5,0)), ((S!$BB$206-(S!$BB$206*S!$BC$206)*(INT(CO6)-1))*(INT(CO6)>0)*(INT(CO6)<=S!$BD$206)*(1-MOD(CO6,1)) +(S!$BB$206-(S!$BB$206*S!$BC$206)*(INT(CO6)))*(INT(CO6)>-1)*((INT(CO6)+1)<=S!$BD$206)*MOD(CO6,1))/(IF(AND(CO6<1,CO6>0),CO6,1))) -> 0 | CP22: =IF(Overrides!$A6, OFFSET(Overrides!$B6, 0, MATCH(CP$4,Overrides!$C$5:$GU$5,0)), ((S!$BB$206-(S!$BB$206*S!$BC$206)*(INT(CP6)-1))*(INT(CP6)>0)*(INT(CP6)<=S!$BD$206)*(1-MOD(CP6,1)) +(S!$BB$206-(S!$BB$206*S!$BC$206)*(INT(CP6)))*(INT(CP6)>-1)*((INT(CP6)+1)<=S!$BD$206)*MOD(CP6,1))/(IF(AND(CP6<1,CP6>0),CP6,1))) -> 0 | CQ22: =IF(Overrides!$A6, OFFSET(Overrides!$B6, 0, MATCH(CQ$4,Overrides!$C$5:$GU$5,0)), ((S!$BB$206-(S!$BB$206*S!$BC$206)*(INT(CQ6)-1))*(INT(CQ6)>0)*(INT(CQ6)<=S!$BD$206)*(1-MOD(CQ6,1)) +(S!$BB$206-(S!$BB$206*S!$BC$206)*(INT(CQ6)))*(INT(CQ6)>-1)*((INT(CQ6)+1)<=S!$BD$206)*MOD(CQ6,1))/(IF(AND(CQ6<1,CQ6>0),CQ6,1))) -> 0 | CR22: =IF(Overrides!$A6, OFFSET(Overrides!$B6, 0, MATCH(CR$4,Overrides!$C$5:$GU$5,0)), ((S!$BB$206-(S!$BB$206*S!$BC$206)*(INT(CR6)-1))*(INT(CR6)>0)*(INT(CR6)<=S!$BD$206)*(1-MOD(CR6,1)) +(S!$BB$206-(S!$BB$206*S!$BC$206)*(INT(CR6)))*(INT(CR6)>-1)*((INT(CR6)+1)<=S!$BD$206)*MOD(CR6,1))/(IF(AND(CR6<1,CR6>0),CR6,1))) -> 0 | CS22: =IF(Overrides!$A6, OFFSET(Overrides!$B6, 0, MATCH(CS$4,Overrides!$C$5:$GU$5,0)), ((S!$BB$206-(S!$BB$206*S!$BC$206)*(INT(CS6)-1))*(INT(CS6)>0)*(INT(CS6)<=S!$BD$206)*(1-MOD(CS6,1)) +(S!$BB$206-(S!$BB$206*S!$BC$206)*(INT(CS6)))*(INT(CS6)>-1)*((INT(CS6)+1)<=S!$BD$206)*MOD(CS6,1))/(IF(AND(CS6<1,CS6>0),CS6,1))) -> 0 | CT22: =IF(Overrides!$A6, OFFSET(Overrides!$B6, 0, MATCH(CT$4,Overrides!$C$5:$GU$5,0)), ((S!$BB$206-(S!$BB$206*S!$BC$206)*(INT(CT6)-1))*(INT(CT6)>0)*(INT(CT6)<=S!$BD$206)*(1-MOD(CT6,1)) +(S!$BB$206-(S!$BB$206*S!$BC$206)*(INT(CT6)))*(INT(CT6)>-1)*((INT(CT6)+1)<=S!$BD$206)*MOD(CT6,1))/(IF(AND(CT6<1,CT6>0),CT6,1))) -> 0 | CU22: =IF(Overrides!$A6, OFFSET(Overrides!$B6, 0, MATCH(CU$4,Overrides!$C$5:$GU$5,0)), ((S!$BB$206-(S!$BB$206*S!$BC$206)*(INT(CU6)-1))*(INT(CU6)>0)*(INT(CU6)<=S!$BD$206)*(1-MOD(CU6,1)) +(S!$BB$206-(S!$BB$206*S!$BC$206)*(INT(CU6)))*(INT(CU6)>-1)*((INT(CU6)+1)<=S!$BD$206)*MOD(CU6,1))/(IF(AND(CU6<1,CU6>0),CU6,1))) -> 0 | CV22: =IF(Overrides!$A6, OFFSET(Overrides!$B6, 0, MATCH(CV$4,Overrides!$C$5:$GU$5,0)), ((S!$BB$206-(S!$BB$206*S!$BC$206)*(INT(CV6)-1))*(INT(CV6)>0)*(INT(CV6)<=S!$BD$206)*(1-MOD(CV6,1)) +(S!$BB$206-(S!$BB$206*S!$BC$206)*(INT(CV6)))*(INT(CV6)>-1)*((INT(CV6)+1)<=S!$BD$206)*MOD(CV6,1))/(IF(AND(CV6<1,CV6>0),CV6,1))) -> 0 | CW22: =IF(Overrides!$A6, OFFSET(Overrides!$B6, 0, MATCH(CW$4,Overrides!$C$5:$GU$5,0)), ((S!$BB$206-(S!$BB$206*S!$BC$206)*(INT(CW6)-1))*(INT(CW6)>0)*(INT(CW6)<=S!$BD$206)*(1-MOD(CW6,1)) +(S!$BB$206-(S!$BB$206*S!$BC$206)*(INT(CW6)))*(INT(CW6)>-1)*((INT(CW6)+1)<=S!$BD$206)*MOD(CW6,1))/(IF(AND(CW6<1,CW6>0),CW6,1))) -> 0 | CX22: =IF(Overrides!$A6, OFFSET(Overrides!$B6, 0, MATCH(CX$4,Overrides!$C$5:$GU$5,0)), ((S!$BB$206-(S!$BB$206*S!$BC$206)*(INT(CX6)-1))*(INT(CX6)>0)*(INT(CX6)<=S!$BD$206)*(1-MOD(CX6,1)) +(S!$BB$206-(S!$BB$206*S!$BC$206)*(INT(CX6)))*(INT(CX6)>-1)*((INT(CX6)+1)<=S!$BD$206)*MOD(CX6,1))/(IF(AND(CX6<1,CX6>0),CX6,1))) -> 0 | CY22: =IF(Overrides!$A6, OFFSET(Overrides!$B6, 0, MATCH(CY$4,Overrides!$C$5:$GU$5,0)), ((S!$BB$206-(S!$BB$206*S!$BC$206)*(INT(CY6)-1))*(INT(CY6)>0)*(INT(CY6)<=S!$BD$206)*(1-MOD(CY6,1)) +(S!$BB$206-(S!$BB$206*S!$BC$206)*(INT(CY6)))*(INT(CY6)>-1)*((INT(CY6)+1)<=S!$BD$206)*MOD(CY6,1))/(IF(AND(CY6<1,CY6>0),CY6,1))) -> 0
C23: =+Interface!C73 -> RIN incentive ($/kWh) | D23: =IF(Overrides!$A7, OFFSET(Overrides!$B7, 0, MATCH(D$4,Overrides!$C$5:$GU$5,0)), ((S!$BE$206-(S!$BE$206*S!$BF$206)*(INT(D6)-1))*(INT(D6)>0)*(INT(D6)<=S!$BG$206)*(1-MOD(D6,1)) +(S!$BE$206-(S!$BE$206*S!$BF$206)*(INT(D6)))*(INT(D6)>-1)*((INT(D6)+1)<=S!$BG$206)*MOD(D6,1))/(IF(AND(D6<1,D6>0),D6,1))) -> 0 | E23: =IF(Overrides!$A7, OFFSET(Overrides!$B7, 0, MATCH(E$4,Overrides!$C$5:$GU$5,0)), ((S!$BE$206-(S!$BE$206*S!$BF$206)*(INT(E6)-1))*(INT(E6)>0)*(INT(E6)<=S!$BG$206)*(1-MOD(E6,1)) +(S!$BE$206-(S!$BE$206*S!$BF$206)*(INT(E6)))*(INT(E6)>-1)*((INT(E6)+1)<=S!$BG$206)*MOD(E6,1))/(IF(AND(E6<1,E6>0),E6,1))) -> 0 | F23: =IF(Overrides!$A7, OFFSET(Overrides!$B7, 0, MATCH(F$4,Overrides!$C$5:$GU$5,0)), ((S!$BE$206-(S!$BE$206*S!$BF$206)*(INT(F6)-1))*(INT(F6)>0)*(INT(F6)<=S!$BG$206)*(1-MOD(F6,1)) +(S!$BE$206-(S!$BE$206*S!$BF$206)*(INT(F6)))*(INT(F6)>-1)*((INT(F6)+1)<=S!$BG$206)*MOD(F6,1))/(IF(AND(F6<1,F6>0),F6,1))) -> 0 | G23: =IF(Overrides!$A7, OFFSET(Overrides!$B7, 0, MATCH(G$4,Overrides!$C$5:$GU$5,0)), ((S!$BE$206-(S!$BE$206*S!$BF$206)*(INT(G6)-1))*(INT(G6)>0)*(INT(G6)<=S!$BG$206)*(1-MOD(G6,1)) +(S!$BE$206-(S!$BE$206*S!$BF$206)*(INT(G6)))*(INT(G6)>-1)*((INT(G6)+1)<=S!$BG$206)*MOD(G6,1))/(IF(AND(G6<1,G6>0),G6,1))) -> 0 | H23: =IF(Overrides!$A7, OFFSET(Overrides!$B7, 0, MATCH(H$4,Overrides!$C$5:$GU$5,0)), ((S!$BE$206-(S!$BE$206*S!$BF$206)*(INT(H6)-1))*(INT(H6)>0)*(INT(H6)<=S!$BG$206)*(1-MOD(H6,1)) +(S!$BE$206-(S!$BE$206*S!$BF$206)*(INT(H6)))*(INT(H6)>-1)*((INT(H6)+1)<=S!$BG$206)*MOD(H6,1))/(IF(AND(H6<1,H6>0),H6,1))) -> 0 | I23: =IF(Overrides!$A7, OFFSET(Overrides!$B7, 0, MATCH(I$4,Overrides!$C$5:$GU$5,0)), ((S!$BE$206-(S!$BE$206*S!$BF$206)*(INT(I6)-1))*(INT(I6)>0)*(INT(I6)<=S!$BG$206)*(1-MOD(I6,1)) +(S!$BE$206-(S!$BE$206*S!$BF$206)*(INT(I6)))*(INT(I6)>-1)*((INT(I6)+1)<=S!$BG$206)*MOD(I6,1))/(IF(AND(I6<1,I6>0),I6,1))) -> 0 | J23: =IF(Overrides!$A7, OFFSET(Overrides!$B7, 0, MATCH(J$4,Overrides!$C$5:$GU$5,0)), ((S!$BE$206-(S!$BE$206*S!$BF$206)*(INT(J6)-1))*(INT(J6)>0)*(INT(J6)<=S!$BG$206)*(1-MOD(J6,1)) +(S!$BE$206-(S!$BE$206*S!$BF$206)*(INT(J6)))*(INT(J6)>-1)*((INT(J6)+1)<=S!$BG$206)*MOD(J6,1))/(IF(AND(J6<1,J6>0),J6,1))) -> 0 | K23: =IF(Overrides!$A7, OFFSET(Overrides!$B7, 0, MATCH(K$4,Overrides!$C$5:$GU$5,0)), ((S!$BE$206-(S!$BE$206*S!$BF$206)*(INT(K6)-1))*(INT(K6)>0)*(INT(K6)<=S!$BG$206)*(1-MOD(K6,1)) +(S!$BE$206-(S!$BE$206*S!$BF$206)*(INT(K6)))*(INT(K6)>-1)*((INT(K6)+1)<=S!$BG$206)*MOD(K6,1))/(IF(AND(K6<1,K6>0),K6,1))) -> 0 | L23: =IF(Overrides!$A7, OFFSET(Overrides!$B7, 0, MATCH(L$4,Overrides!$C$5:$GU$5,0)), ((S!$BE$206-(S!$BE$206*S!$BF$206)*(INT(L6)-1))*(INT(L6)>0)*(INT(L6)<=S!$BG$206)*(1-MOD(L6,1)) +(S!$BE$206-(S!$BE$206*S!$BF$206)*(INT(L6)))*(INT(L6)>-1)*((INT(L6)+1)<=S!$BG$206)*MOD(L6,1))/(IF(AND(L6<1,L6>0),L6,1))) -> 0 | M23: =IF(Overrides!$A7, OFFSET(Overrides!$B7, 0, MATCH(M$4,Overrides!$C$5:$GU$5,0)), ((S!$BE$206-(S!$BE$206*S!$BF$206)*(INT(M6)-1))*(INT(M6)>0)*(INT(M6)<=S!$BG$206)*(1-MOD(M6,1)) +(S!$BE$206-(S!$BE$206*S!$BF$206)*(INT(M6)))*(INT(M6)>-1)*((INT(M6)+1)<=S!$BG$206)*MOD(M6,1))/(IF(AND(M6<1,M6>0),M6,1))) -> 0 | N23: =IF(Overrides!$A7, OFFSET(Overrides!$B7, 0, MATCH(N$4,Overrides!$C$5:$GU$5,0)), ((S!$BE$206-(S!$BE$206*S!$BF$206)*(INT(N6)-1))*(INT(N6)>0)*(INT(N6)<=S!$BG$206)*(1-MOD(N6,1)) +(S!$BE$206-(S!$BE$206*S!$BF$206)*(INT(N6)))*(INT(N6)>-1)*((INT(N6)+1)<=S!$BG$206)*MOD(N6,1))/(IF(AND(N6<1,N6>0),N6,1))) -> 0 | O23: =IF(Overrides!$A7, OFFSET(Overrides!$B7, 0, MATCH(O$4,Overrides!$C$5:$GU$5,0)), ((S!$BE$206-(S!$BE$206*S!$BF$206)*(INT(O6)-1))*(INT(O6)>0)*(INT(O6)<=S!$BG$206)*(1-MOD(O6,1)) +(S!$BE$206-(S!$BE$206*S!$BF$206)*(INT(O6)))*(INT(O6)>-1)*((INT(O6)+1)<=S!$BG$206)*MOD(O6,1))/(IF(AND(O6<1,O6>0),O6,1))) -> 0 | P23: =IF(Overrides!$A7, OFFSET(Overrides!$B7, 0, MATCH(P$4,Overrides!$C$5:$GU$5,0)), ((S!$BE$206-(S!$BE$206*S!$BF$206)*(INT(P6)-1))*(INT(P6)>0)*(INT(P6)<=S!$BG$206)*(1-MOD(P6,1)) +(S!$BE$206-(S!$BE$206*S!$BF$206)*(INT(P6)))*(INT(P6)>-1)*((INT(P6)+1)<=S!$BG$206)*MOD(P6,1))/(IF(AND(P6<1,P6>0),P6,1))) -> 0 | Q23: =IF(Overrides!$A7, OFFSET(Overrides!$B7, 0, MATCH(Q$4,Overrides!$C$5:$GU$5,0)), ((S!$BE$206-(S!$BE$206*S!$BF$206)*(INT(Q6)-1))*(INT(Q6)>0)*(INT(Q6)<=S!$BG$206)*(1-MOD(Q6,1)) +(S!$BE$206-(S!$BE$206*S!$BF$206)*(INT(Q6)))*(INT(Q6)>-1)*((INT(Q6)+1)<=S!$BG$206)*MOD(Q6,1))/(IF(AND(Q6<1,Q6>0),Q6,1))) -> 0 | R23: =IF(Overrides!$A7, OFFSET(Overrides!$B7, 0, MATCH(R$4,Overrides!$C$5:$GU$5,0)), ((S!$BE$206-(S!$BE$206*S!$BF$206)*(INT(R6)-1))*(INT(R6)>0)*(INT(R6)<=S!$BG$206)*(1-MOD(R6,1)) +(S!$BE$206-(S!$BE$206*S!$BF$206)*(INT(R6)))*(INT(R6)>-1)*((INT(R6)+1)<=S!$BG$206)*MOD(R6,1))/(IF(AND(R6<1,R6>0),R6,1))) -> 0 | S23: =IF(Overrides!$A7, OFFSET(Overrides!$B7, 0, MATCH(S$4,Overrides!$C$5:$GU$5,0)), ((S!$BE$206-(S!$BE$206*S!$BF$206)*(INT(S6)-1))*(INT(S6)>0)*(INT(S6)<=S!$BG$206)*(1-MOD(S6,1)) +(S!$BE$206-(S!$BE$206*S!$BF$206)*(INT(S6)))*(INT(S6)>-1)*((INT(S6)+1)<=S!$BG$206)*MOD(S6,1))/(IF(AND(S6<1,S6>0),S6,1))) -> 0 | T23: =IF(Overrides!$A7, OFFSET(Overrides!$B7, 0, MATCH(T$4,Overrides!$C$5:$GU$5,0)), ((S!$BE$206-(S!$BE$206*S!$BF$206)*(INT(T6)-1))*(INT(T6)>0)*(INT(T6)<=S!$BG$206)*(1-MOD(T6,1)) +(S!$BE$206-(S!$BE$206*S!$BF$206)*(INT(T6)))*(INT(T6)>-1)*((INT(T6)+1)<=S!$BG$206)*MOD(T6,1))/(IF(AND(T6<1,T6>0),T6,1))) -> 0 | U23: =IF(Overrides!$A7, OFFSET(Overrides!$B7, 0, MATCH(U$4,Overrides!$C$5:$GU$5,0)), ((S!$BE$206-(S!$BE$206*S!$BF$206)*(INT(U6)-1))*(INT(U6)>0)*(INT(U6)<=S!$BG$206)*(1-MOD(U6,1)) +(S!$BE$206-(S!$BE$206*S!$BF$206)*(INT(U6)))*(INT(U6)>-1)*((INT(U6)+1)<=S!$BG$206)*MOD(U6,1))/(IF(AND(U6<1,U6>0),U6,1))) -> 0 | V23: =IF(Overrides!$A7, OFFSET(Overrides!$B7, 0, MATCH(V$4,Overrides!$C$5:$GU$5,0)), ((S!$BE$206-(S!$BE$206*S!$BF$206)*(INT(V6)-1))*(INT(V6)>0)*(INT(V6)<=S!$BG$206)*(1-MOD(V6,1)) +(S!$BE$206-(S!$BE$206*S!$BF$206)*(INT(V6)))*(INT(V6)>-1)*((INT(V6)+1)<=S!$BG$206)*MOD(V6,1))/(IF(AND(V6<1,V6>0),V6,1))) -> 0 | W23: =IF(Overrides!$A7, OFFSET(Overrides!$B7, 0, MATCH(W$4,Overrides!$C$5:$GU$5,0)), ((S!$BE$206-(S!$BE$206*S!$BF$206)*(INT(W6)-1))*(INT(W6)>0)*(INT(W6)<=S!$BG$206)*(1-MOD(W6,1)) +(S!$BE$206-(S!$BE$206*S!$BF$206)*(INT(W6)))*(INT(W6)>-1)*((INT(W6)+1)<=S!$BG$206)*MOD(W6,1))/(IF(AND(W6<1,W6>0),W6,1))) -> 0 | X23: =IF(Overrides!$A7, OFFSET(Overrides!$B7, 0, MATCH(X$4,Overrides!$C$5:$GU$5,0)), ((S!$BE$206-(S!$BE$206*S!$BF$206)*(INT(X6)-1))*(INT(X6)>0)*(INT(X6)<=S!$BG$206)*(1-MOD(X6,1)) +(S!$BE$206-(S!$BE$206*S!$BF$206)*(INT(X6)))*(INT(X6)>-1)*((INT(X6)+1)<=S!$BG$206)*MOD(X6,1))/(IF(AND(X6<1,X6>0),X6,1))) -> 0 | Y23: =IF(Overrides!$A7, OFFSET(Overrides!$B7, 0, MATCH(Y$4,Overrides!$C$5:$GU$5,0)), ((S!$BE$206-(S!$BE$206*S!$BF$206)*(INT(Y6)-1))*(INT(Y6)>0)*(INT(Y6)<=S!$BG$206)*(1-MOD(Y6,1)) +(S!$BE$206-(S!$BE$206*S!$BF$206)*(INT(Y6)))*(INT(Y6)>-1)*((INT(Y6)+1)<=S!$BG$206)*MOD(Y6,1))/(IF(AND(Y6<1,Y6>0),Y6,1))) -> 0 | Z23: =IF(Overrides!$A7, OFFSET(Overrides!$B7, 0, MATCH(Z$4,Overrides!$C$5:$GU$5,0)), ((S!$BE$206-(S!$BE$206*S!$BF$206)*(INT(Z6)-1))*(INT(Z6)>0)*(INT(Z6)<=S!$BG$206)*(1-MOD(Z6,1)) +(S!$BE$206-(S!$BE$206*S!$BF$206)*(INT(Z6)))*(INT(Z6)>-1)*((INT(Z6)+1)<=S!$BG$206)*MOD(Z6,1))/(IF(AND(Z6<1,Z6>0),Z6,1))) -> 0 | AA23: =IF(Overrides!$A7, OFFSET(Overrides!$B7, 0, MATCH(AA$4,Overrides!$C$5:$GU$5,0)), ((S!$BE$206-(S!$BE$206*S!$BF$206)*(INT(AA6)-1))*(INT(AA6)>0)*(INT(AA6)<=S!$BG$206)*(1-MOD(AA6,1)) +(S!$BE$206-(S!$BE$206*S!$BF$206)*(INT(AA6)))*(INT(AA6)>-1)*((INT(AA6)+1)<=S!$BG$206)*MOD(AA6,1))/(IF(AND(AA6<1,AA6>0),AA6,1))) -> 0 | AB23: =IF(Overrides!$A7, OFFSET(Overrides!$B7, 0, MATCH(AB$4,Overrides!$C$5:$GU$5,0)), ((S!$BE$206-(S!$BE$206*S!$BF$206)*(INT(AB6)-1))*(INT(AB6)>0)*(INT(AB6)<=S!$BG$206)*(1-MOD(AB6,1)) +(S!$BE$206-(S!$BE$206*S!$BF$206)*(INT(AB6)))*(INT(AB6)>-1)*((INT(AB6)+1)<=S!$BG$206)*MOD(AB6,1))/(IF(AND(AB6<1,AB6>0),AB6,1))) -> 0 | AC23: =IF(Overrides!$A7, OFFSET(Overrides!$B7, 0, MATCH(AC$4,Overrides!$C$5:$GU$5,0)), ((S!$BE$206-(S!$BE$206*S!$BF$206)*(INT(AC6)-1))*(INT(AC6)>0)*(INT(AC6)<=S!$BG$206)*(1-MOD(AC6,1)) +(S!$BE$206-(S!$BE$206*S!$BF$206)*(INT(AC6)))*(INT(AC6)>-1)*((INT(AC6)+1)<=S!$BG$206)*MOD(AC6,1))/(IF(AND(AC6<1,AC6>0),AC6,1))) -> 0 | AD23: =IF(Overrides!$A7, OFFSET(Overrides!$B7, 0, MATCH(AD$4,Overrides!$C$5:$GU$5,0)), ((S!$BE$206-(S!$BE$206*S!$BF$206)*(INT(AD6)-1))*(INT(AD6)>0)*(INT(AD6)<=S!$BG$206)*(1-MOD(AD6,1)) +(S!$BE$206-(S!$BE$206*S!$BF$206)*(INT(AD6)))*(INT(AD6)>-1)*((INT(AD6)+1)<=S!$BG$206)*MOD(AD6,1))/(IF(AND(AD6<1,AD6>0),AD6,1))) -> 0 | AE23: =IF(Overrides!$A7, OFFSET(Overrides!$B7, 0, MATCH(AE$4,Overrides!$C$5:$GU$5,0)), ((S!$BE$206-(S!$BE$206*S!$BF$206)*(INT(AE6)-1))*(INT(AE6)>0)*(INT(AE6)<=S!$BG$206)*(1-MOD(AE6,1)) +(S!$BE$206-(S!$BE$206*S!$BF$206)*(INT(AE6)))*(INT(AE6)>-1)*((INT(AE6)+1)<=S!$BG$206)*MOD(AE6,1))/(IF(AND(AE6<1,AE6>0),AE6,1))) -> 0 | AF23: =IF(Overrides!$A7, OFFSET(Overrides!$B7, 0, MATCH(AF$4,Overrides!$C$5:$GU$5,0)), ((S!$BE$206-(S!$BE$206*S!$BF$206)*(INT(AF6)-1))*(INT(AF6)>0)*(INT(AF6)<=S!$BG$206)*(1-MOD(AF6,1)) +(S!$BE$206-(S!$BE$206*S!$BF$206)*(INT(AF6)))*(INT(AF6)>-1)*((INT(AF6)+1)<=S!$BG$206)*MOD(AF6,1))/(IF(AND(AF6<1,AF6>0),AF6,1))) -> 0 | AG23: =IF(Overrides!$A7, OFFSET(Overrides!$B7, 0, MATCH(AG$4,Overrides!$C$5:$GU$5,0)), ((S!$BE$206-(S!$BE$206*S!$BF$206)*(INT(AG6)-1))*(INT(AG6)>0)*(INT(AG6)<=S!$BG$206)*(1-MOD(AG6,1)) +(S!$BE$206-(S!$BE$206*S!$BF$206)*(INT(AG6)))*(INT(AG6)>-1)*((INT(AG6)+1)<=S!$BG$206)*MOD(AG6,1))/(IF(AND(AG6<1,AG6>0),AG6,1))) -> 0 | AH23: =IF(Overrides!$A7, OFFSET(Overrides!$B7, 0, MATCH(AH$4,Overrides!$C$5:$GU$5,0)), ((S!$BE$206-(S!$BE$206*S!$BF$206)*(INT(AH6)-1))*(INT(AH6)>0)*(INT(AH6)<=S!$BG$206)*(1-MOD(AH6,1)) +(S!$BE$206-(S!$BE$206*S!$BF$206)*(INT(AH6)))*(INT(AH6)>-1)*((INT(AH6)+1)<=S!$BG$206)*MOD(AH6,1))/(IF(AND(AH6<1,AH6>0),AH6,1))) -> 0 | AI23: =IF(Overrides!$A7, OFFSET(Overrides!$B7, 0, MATCH(AI$4,Overrides!$C$5:$GU$5,0)), ((S!$BE$206-(S!$BE$206*S!$BF$206)*(INT(AI6)-1))*(INT(AI6)>0)*(INT(AI6)<=S!$BG$206)*(1-MOD(AI6,1)) +(S!$BE$206-(S!$BE$206*S!$BF$206)*(INT(AI6)))*(INT(AI6)>-1)*((INT(AI6)+1)<=S!$BG$206)*MOD(AI6,1))/(IF(AND(AI6<1,AI6>0),AI6,1))) -> 0 | AJ23: =IF(Overrides!$A7, OFFSET(Overrides!$B7, 0, MATCH(AJ$4,Overrides!$C$5:$GU$5,0)), ((S!$BE$206-(S!$BE$206*S!$BF$206)*(INT(AJ6)-1))*(INT(AJ6)>0)*(INT(AJ6)<=S!$BG$206)*(1-MOD(AJ6,1)) +(S!$BE$206-(S!$BE$206*S!$BF$206)*(INT(AJ6)))*(INT(AJ6)>-1)*((INT(AJ6)+1)<=S!$BG$206)*MOD(AJ6,1))/(IF(AND(AJ6<1,AJ6>0),AJ6,1))) -> 0 | AK23: =IF(Overrides!$A7, OFFSET(Overrides!$B7, 0, MATCH(AK$4,Overrides!$C$5:$GU$5,0)), ((S!$BE$206-(S!$BE$206*S!$BF$206)*(INT(AK6)-1))*(INT(AK6)>0)*(INT(AK6)<=S!$BG$206)*(1-MOD(AK6,1)) +(S!$BE$206-(S!$BE$206*S!$BF$206)*(INT(AK6)))*(INT(AK6)>-1)*((INT(AK6)+1)<=S!$BG$206)*MOD(AK6,1))/(IF(AND(AK6<1,AK6>0),AK6,1))) -> 0 | AL23: =IF(Overrides!$A7, OFFSET(Overrides!$B7, 0, MATCH(AL$4,Overrides!$C$5:$GU$5,0)), ((S!$BE$206-(S!$BE$206*S!$BF$206)*(INT(AL6)-1))*(INT(AL6)>0)*(INT(AL6)<=S!$BG$206)*(1-MOD(AL6,1)) +(S!$BE$206-(S!$BE$206*S!$BF$206)*(INT(AL6)))*(INT(AL6)>-1)*((INT(AL6)+1)<=S!$BG$206)*MOD(AL6,1))/(IF(AND(AL6<1,AL6>0),AL6,1))) -> 0 | AM23: =IF(Overrides!$A7, OFFSET(Overrides!$B7, 0, MATCH(AM$4,Overrides!$C$5:$GU$5,0)), ((S!$BE$206-(S!$BE$206*S!$BF$206)*(INT(AM6)-1))*(INT(AM6)>0)*(INT(AM6)<=S!$BG$206)*(1-MOD(AM6,1)) +(S!$BE$206-(S!$BE$206*S!$BF$206)*(INT(AM6)))*(INT(AM6)>-1)*((INT(AM6)+1)<=S!$BG$206)*MOD(AM6,1))/(IF(AND(AM6<1,AM6>0),AM6,1))) -> 0 | AN23: =IF(Overrides!$A7, OFFSET(Overrides!$B7, 0, MATCH(AN$4,Overrides!$C$5:$GU$5,0)), ((S!$BE$206-(S!$BE$206*S!$BF$206)*(INT(AN6)-1))*(INT(AN6)>0)*(INT(AN6)<=S!$BG$206)*(1-MOD(AN6,1)) +(S!$BE$206-(S!$BE$206*S!$BF$206)*(INT(AN6)))*(INT(AN6)>-1)*((INT(AN6)+1)<=S!$BG$206)*MOD(AN6,1))/(IF(AND(AN6<1,AN6>0),AN6,1))) -> 0 | AO23: =IF(Overrides!$A7, OFFSET(Overrides!$B7, 0, MATCH(AO$4,Overrides!$C$5:$GU$5,0)), ((S!$BE$206-(S!$BE$206*S!$BF$206)*(INT(AO6)-1))*(INT(AO6)>0)*(INT(AO6)<=S!$BG$206)*(1-MOD(AO6,1)) +(S!$BE$206-(S!$BE$206*S!$BF$206)*(INT(AO6)))*(INT(AO6)>-1)*((INT(AO6)+1)<=S!$BG$206)*MOD(AO6,1))/(IF(AND(AO6<1,AO6>0),AO6,1))) -> 0 | AP23: =IF(Overrides!$A7, OFFSET(Overrides!$B7, 0, MATCH(AP$4,Overrides!$C$5:$GU$5,0)), ((S!$BE$206-(S!$BE$206*S!$BF$206)*(INT(AP6)-1))*(INT(AP6)>0)*(INT(AP6)<=S!$BG$206)*(1-MOD(AP6,1)) +(S!$BE$206-(S!$BE$206*S!$BF$206)*(INT(AP6)))*(INT(AP6)>-1)*((INT(AP6)+1)<=S!$BG$206)*MOD(AP6,1))/(IF(AND(AP6<1,AP6>0),AP6,1))) -> 0 | AQ23: =IF(Overrides!$A7, OFFSET(Overrides!$B7, 0, MATCH(AQ$4,Overrides!$C$5:$GU$5,0)), ((S!$BE$206-(S!$BE$206*S!$BF$206)*(INT(AQ6)-1))*(INT(AQ6)>0)*(INT(AQ6)<=S!$BG$206)*(1-MOD(AQ6,1)) +(S!$BE$206-(S!$BE$206*S!$BF$206)*(INT(AQ6)))*(INT(AQ6)>-1)*((INT(AQ6)+1)<=S!$BG$206)*MOD(AQ6,1))/(IF(AND(AQ6<1,AQ6>0),AQ6,1))) -> 0 | AR23: =IF(Overrides!$A7, OFFSET(Overrides!$B7, 0, MATCH(AR$4,Overrides!$C$5:$GU$5,0)), ((S!$BE$206-(S!$BE$206*S!$BF$206)*(INT(AR6)-1))*(INT(AR6)>0)*(INT(AR6)<=S!$BG$206)*(1-MOD(AR6,1)) +(S!$BE$206-(S!$BE$206*S!$BF$206)*(INT(AR6)))*(INT(AR6)>-1)*((INT(AR6)+1)<=S!$BG$206)*MOD(AR6,1))/(IF(AND(AR6<1,AR6>0),AR6,1))) -> 0 | AS23: =IF(Overrides!$A7, OFFSET(Overrides!$B7, 0, MATCH(AS$4,Overrides!$C$5:$GU$5,0)), ((S!$BE$206-(S!$BE$206*S!$BF$206)*(INT(AS6)-1))*(INT(AS6)>0)*(INT(AS6)<=S!$BG$206)*(1-MOD(AS6,1)) +(S!$BE$206-(S!$BE$206*S!$BF$206)*(INT(AS6)))*(INT(AS6)>-1)*((INT(AS6)+1)<=S!$BG$206)*MOD(AS6,1))/(IF(AND(AS6<1,AS6>0),AS6,1))) -> 0 | AT23: =IF(Overrides!$A7, OFFSET(Overrides!$B7, 0, MATCH(AT$4,Overrides!$C$5:$GU$5,0)), ((S!$BE$206-(S!$BE$206*S!$BF$206)*(INT(AT6)-1))*(INT(AT6)>0)*(INT(AT6)<=S!$BG$206)*(1-MOD(AT6,1)) +(S!$BE$206-(S!$BE$206*S!$BF$206)*(INT(AT6)))*(INT(AT6)>-1)*((INT(AT6)+1)<=S!$BG$206)*MOD(AT6,1))/(IF(AND(AT6<1,AT6>0),AT6,1))) -> 0 | AU23: =IF(Overrides!$A7, OFFSET(Overrides!$B7, 0, MATCH(AU$4,Overrides!$C$5:$GU$5,0)), ((S!$BE$206-(S!$BE$206*S!$BF$206)*(INT(AU6)-1))*(INT(AU6)>0)*(INT(AU6)<=S!$BG$206)*(1-MOD(AU6,1)) +(S!$BE$206-(S!$BE$206*S!$BF$206)*(INT(AU6)))*(INT(AU6)>-1)*((INT(AU6)+1)<=S!$BG$206)*MOD(AU6,1))/(IF(AND(AU6<1,AU6>0),AU6,1))) -> 0 | AV23: =IF(Overrides!$A7, OFFSET(Overrides!$B7, 0, MATCH(AV$4,Overrides!$C$5:$GU$5,0)), ((S!$BE$206-(S!$BE$206*S!$BF$206)*(INT(AV6)-1))*(INT(AV6)>0)*(INT(AV6)<=S!$BG$206)*(1-MOD(AV6,1)) +(S!$BE$206-(S!$BE$206*S!$BF$206)*(INT(AV6)))*(INT(AV6)>-1)*((INT(AV6)+1)<=S!$BG$206)*MOD(AV6,1))/(IF(AND(AV6<1,AV6>0),AV6,1))) -> 0 | AW23: =IF(Overrides!$A7, OFFSET(Overrides!$B7, 0, MATCH(AW$4,Overrides!$C$5:$GU$5,0)), ((S!$BE$206-(S!$BE$206*S!$BF$206)*(INT(AW6)-1))*(INT(AW6)>0)*(INT(AW6)<=S!$BG$206)*(1-MOD(AW6,1)) +(S!$BE$206-(S!$BE$206*S!$BF$206)*(INT(AW6)))*(INT(AW6)>-1)*((INT(AW6)+1)<=S!$BG$206)*MOD(AW6,1))/(IF(AND(AW6<1,AW6>0),AW6,1))) -> 0 | AX23: =IF(Overrides!$A7, OFFSET(Overrides!$B7, 0, MATCH(AX$4,Overrides!$C$5:$GU$5,0)), ((S!$BE$206-(S!$BE$206*S!$BF$206)*(INT(AX6)-1))*(INT(AX6)>0)*(INT(AX6)<=S!$BG$206)*(1-MOD(AX6,1)) +(S!$BE$206-(S!$BE$206*S!$BF$206)*(INT(AX6)))*(INT(AX6)>-1)*((INT(AX6)+1)<=S!$BG$206)*MOD(AX6,1))/(IF(AND(AX6<1,AX6>0),AX6,1))) -> 0 | AY23: =IF(Overrides!$A7, OFFSET(Overrides!$B7, 0, MATCH(AY$4,Overrides!$C$5:$GU$5,0)), ((S!$BE$206-(S!$BE$206*S!$BF$206)*(INT(AY6)-1))*(INT(AY6)>0)*(INT(AY6)<=S!$BG$206)*(1-MOD(AY6,1)) +(S!$BE$206-(S!$BE$206*S!$BF$206)*(INT(AY6)))*(INT(AY6)>-1)*((INT(AY6)+1)<=S!$BG$206)*MOD(AY6,1))/(IF(AND(AY6<1,AY6>0),AY6,1))) -> 0 | AZ23: =IF(Overrides!$A7, OFFSET(Overrides!$B7, 0, MATCH(AZ$4,Overrides!$C$5:$GU$5,0)), ((S!$BE$206-(S!$BE$206*S!$BF$206)*(INT(AZ6)-1))*(INT(AZ6)>0)*(INT(AZ6)<=S!$BG$206)*(1-MOD(AZ6,1)) +(S!$BE$206-(S!$BE$206*S!$BF$206)*(INT(AZ6)))*(INT(AZ6)>-1)*((INT(AZ6)+1)<=S!$BG$206)*MOD(AZ6,1))/(IF(AND(AZ6<1,AZ6>0),AZ6,1))) -> 0 | BA23: =IF(Overrides!$A7, OFFSET(Overrides!$B7, 0, MATCH(BA$4,Overrides!$C$5:$GU$5,0)), ((S!$BE$206-(S!$BE$206*S!$BF$206)*(INT(BA6)-1))*(INT(BA6)>0)*(INT(BA6)<=S!$BG$206)*(1-MOD(BA6,1)) +(S!$BE$206-(S!$BE$206*S!$BF$206)*(INT(BA6)))*(INT(BA6)>-1)*((INT(BA6)+1)<=S!$BG$206)*MOD(BA6,1))/(IF(AND(BA6<1,BA6>0),BA6,1))) -> 0 | BB23: =IF(Overrides!$A7, OFFSET(Overrides!$B7, 0, MATCH(BB$4,Overrides!$C$5:$GU$5,0)), ((S!$BE$206-(S!$BE$206*S!$BF$206)*(INT(BB6)-1))*(INT(BB6)>0)*(INT(BB6)<=S!$BG$206)*(1-MOD(BB6,1)) +(S!$BE$206-(S!$BE$206*S!$BF$206)*(INT(BB6)))*(INT(BB6)>-1)*((INT(BB6)+1)<=S!$BG$206)*MOD(BB6,1))/(IF(AND(BB6<1,BB6>0),BB6,1))) -> 0 | BC23: =IF(Overrides!$A7, OFFSET(Overrides!$B7, 0, MATCH(BC$4,Overrides!$C$5:$GU$5,0)), ((S!$BE$206-(S!$BE$206*S!$BF$206)*(INT(BC6)-1))*(INT(BC6)>0)*(INT(BC6)<=S!$BG$206)*(1-MOD(BC6,1)) +(S!$BE$206-(S!$BE$206*S!$BF$206)*(INT(BC6)))*(INT(BC6)>-1)*((INT(BC6)+1)<=S!$BG$206)*MOD(BC6,1))/(IF(AND(BC6<1,BC6>0),BC6,1))) -> 0 | BD23: =IF(Overrides!$A7, OFFSET(Overrides!$B7, 0, MATCH(BD$4,Overrides!$C$5:$GU$5,0)), ((S!$BE$206-(S!$BE$206*S!$BF$206)*(INT(BD6)-1))*(INT(BD6)>0)*(INT(BD6)<=S!$BG$206)*(1-MOD(BD6,1)) +(S!$BE$206-(S!$BE$206*S!$BF$206)*(INT(BD6)))*(INT(BD6)>-1)*((INT(BD6)+1)<=S!$BG$206)*MOD(BD6,1))/(IF(AND(BD6<1,BD6>0),BD6,1))) -> 0 | BE23: =IF(Overrides!$A7, OFFSET(Overrides!$B7, 0, MATCH(BE$4,Overrides!$C$5:$GU$5,0)), ((S!$BE$206-(S!$BE$206*S!$BF$206)*(INT(BE6)-1))*(INT(BE6)>0)*(INT(BE6)<=S!$BG$206)*(1-MOD(BE6,1)) +(S!$BE$206-(S!$BE$206*S!$BF$206)*(INT(BE6)))*(INT(BE6)>-1)*((INT(BE6)+1)<=S!$BG$206)*MOD(BE6,1))/(IF(AND(BE6<1,BE6>0),BE6,1))) -> 0 | BF23: =IF(Overrides!$A7, OFFSET(Overrides!$B7, 0, MATCH(BF$4,Overrides!$C$5:$GU$5,0)), ((S!$BE$206-(S!$BE$206*S!$BF$206)*(INT(BF6)-1))*(INT(BF6)>0)*(INT(BF6)<=S!$BG$206)*(1-MOD(BF6,1)) +(S!$BE$206-(S!$BE$206*S!$BF$206)*(INT(BF6)))*(INT(BF6)>-1)*((INT(BF6)+1)<=S!$BG$206)*MOD(BF6,1))/(IF(AND(BF6<1,BF6>0),BF6,1))) -> 0 | BG23: =IF(Overrides!$A7, OFFSET(Overrides!$B7, 0, MATCH(BG$4,Overrides!$C$5:$GU$5,0)), ((S!$BE$206-(S!$BE$206*S!$BF$206)*(INT(BG6)-1))*(INT(BG6)>0)*(INT(BG6)<=S!$BG$206)*(1-MOD(BG6,1)) +(S!$BE$206-(S!$BE$206*S!$BF$206)*(INT(BG6)))*(INT(BG6)>-1)*((INT(BG6)+1)<=S!$BG$206)*MOD(BG6,1))/(IF(AND(BG6<1,BG6>0),BG6,1))) -> 0 | BH23: =IF(Overrides!$A7, OFFSET(Overrides!$B7, 0, MATCH(BH$4,Overrides!$C$5:$GU$5,0)), ((S!$BE$206-(S!$BE$206*S!$BF$206)*(INT(BH6)-1))*(INT(BH6)>0)*(INT(BH6)<=S!$BG$206)*(1-MOD(BH6,1)) +(S!$BE$206-(S!$BE$206*S!$BF$206)*(INT(BH6)))*(INT(BH6)>-1)*((INT(BH6)+1)<=S!$BG$206)*MOD(BH6,1))/(IF(AND(BH6<1,BH6>0),BH6,1))) -> 0 | BI23: =IF(Overrides!$A7, OFFSET(Overrides!$B7, 0, MATCH(BI$4,Overrides!$C$5:$GU$5,0)), ((S!$BE$206-(S!$BE$206*S!$BF$206)*(INT(BI6)-1))*(INT(BI6)>0)*(INT(BI6)<=S!$BG$206)*(1-MOD(BI6,1)) +(S!$BE$206-(S!$BE$206*S!$BF$206)*(INT(BI6)))*(INT(BI6)>-1)*((INT(BI6)+1)<=S!$BG$206)*MOD(BI6,1))/(IF(AND(BI6<1,BI6>0),BI6,1))) -> 0 | BJ23: =IF(Overrides!$A7, OFFSET(Overrides!$B7, 0, MATCH(BJ$4,Overrides!$C$5:$GU$5,0)), ((S!$BE$206-(S!$BE$206*S!$BF$206)*(INT(BJ6)-1))*(INT(BJ6)>0)*(INT(BJ6)<=S!$BG$206)*(1-MOD(BJ6,1)) +(S!$BE$206-(S!$BE$206*S!$BF$206)*(INT(BJ6)))*(INT(BJ6)>-1)*((INT(BJ6)+1)<=S!$BG$206)*MOD(BJ6,1))/(IF(AND(BJ6<1,BJ6>0),BJ6,1))) -> 0 | BK23: =IF(Overrides!$A7, OFFSET(Overrides!$B7, 0, MATCH(BK$4,Overrides!$C$5:$GU$5,0)), ((S!$BE$206-(S!$BE$206*S!$BF$206)*(INT(BK6)-1))*(INT(BK6)>0)*(INT(BK6)<=S!$BG$206)*(1-MOD(BK6,1)) +(S!$BE$206-(S!$BE$206*S!$BF$206)*(INT(BK6)))*(INT(BK6)>-1)*((INT(BK6)+1)<=S!$BG$206)*MOD(BK6,1))/(IF(AND(BK6<1,BK6>0),BK6,1))) -> 0 | BL23: =IF(Overrides!$A7, OFFSET(Overrides!$B7, 0, MATCH(BL$4,Overrides!$C$5:$GU$5,0)), ((S!$BE$206-(S!$BE$206*S!$BF$206)*(INT(BL6)-1))*(INT(BL6)>0)*(INT(BL6)<=S!$BG$206)*(1-MOD(BL6,1)) +(S!$BE$206-(S!$BE$206*S!$BF$206)*(INT(BL6)))*(INT(BL6)>-1)*((INT(BL6)+1)<=S!$BG$206)*MOD(BL6,1))/(IF(AND(BL6<1,BL6>0),BL6,1))) -> 0 | BM23: =IF(Overrides!$A7, OFFSET(Overrides!$B7, 0, MATCH(BM$4,Overrides!$C$5:$GU$5,0)), ((S!$BE$206-(S!$BE$206*S!$BF$206)*(INT(BM6)-1))*(INT(BM6)>0)*(INT(BM6)<=S!$BG$206)*(1-MOD(BM6,1)) +(S!$BE$206-(S!$BE$206*S!$BF$206)*(INT(BM6)))*(INT(BM6)>-1)*((INT(BM6)+1)<=S!$BG$206)*MOD(BM6,1))/(IF(AND(BM6<1,BM6>0),BM6,1))) -> 0 | BN23: =IF(Overrides!$A7, OFFSET(Overrides!$B7, 0, MATCH(BN$4,Overrides!$C$5:$GU$5,0)), ((S!$BE$206-(S!$BE$206*S!$BF$206)*(INT(BN6)-1))*(INT(BN6)>0)*(INT(BN6)<=S!$BG$206)*(1-MOD(BN6,1)) +(S!$BE$206-(S!$BE$206*S!$BF$206)*(INT(BN6)))*(INT(BN6)>-1)*((INT(BN6)+1)<=S!$BG$206)*MOD(BN6,1))/(IF(AND(BN6<1,BN6>0),BN6,1))) -> 0 | BO23: =IF(Overrides!$A7, OFFSET(Overrides!$B7, 0, MATCH(BO$4,Overrides!$C$5:$GU$5,0)), ((S!$BE$206-(S!$BE$206*S!$BF$206)*(INT(BO6)-1))*(INT(BO6)>0)*(INT(BO6)<=S!$BG$206)*(1-MOD(BO6,1)) +(S!$BE$206-(S!$BE$206*S!$BF$206)*(INT(BO6)))*(INT(BO6)>-1)*((INT(BO6)+1)<=S!$BG$206)*MOD(BO6,1))/(IF(AND(BO6<1,BO6>0),BO6,1))) -> 0 | BP23: =IF(Overrides!$A7, OFFSET(Overrides!$B7, 0, MATCH(BP$4,Overrides!$C$5:$GU$5,0)), ((S!$BE$206-(S!$BE$206*S!$BF$206)*(INT(BP6)-1))*(INT(BP6)>0)*(INT(BP6)<=S!$BG$206)*(1-MOD(BP6,1)) +(S!$BE$206-(S!$BE$206*S!$BF$206)*(INT(BP6)))*(INT(BP6)>-1)*((INT(BP6)+1)<=S!$BG$206)*MOD(BP6,1))/(IF(AND(BP6<1,BP6>0),BP6,1))) -> 0 | BQ23: =IF(Overrides!$A7, OFFSET(Overrides!$B7, 0, MATCH(BQ$4,Overrides!$C$5:$GU$5,0)), ((S!$BE$206-(S!$BE$206*S!$BF$206)*(INT(BQ6)-1))*(INT(BQ6)>0)*(INT(BQ6)<=S!$BG$206)*(1-MOD(BQ6,1)) +(S!$BE$206-(S!$BE$206*S!$BF$206)*(INT(BQ6)))*(INT(BQ6)>-1)*((INT(BQ6)+1)<=S!$BG$206)*MOD(BQ6,1))/(IF(AND(BQ6<1,BQ6>0),BQ6,1))) -> 0 | BR23: =IF(Overrides!$A7, OFFSET(Overrides!$B7, 0, MATCH(BR$4,Overrides!$C$5:$GU$5,0)), ((S!$BE$206-(S!$BE$206*S!$BF$206)*(INT(BR6)-1))*(INT(BR6)>0)*(INT(BR6)<=S!$BG$206)*(1-MOD(BR6,1)) +(S!$BE$206-(S!$BE$206*S!$BF$206)*(INT(BR6)))*(INT(BR6)>-1)*((INT(BR6)+1)<=S!$BG$206)*MOD(BR6,1))/(IF(AND(BR6<1,BR6>0),BR6,1))) -> 0 | BS23: =IF(Overrides!$A7, OFFSET(Overrides!$B7, 0, MATCH(BS$4,Overrides!$C$5:$GU$5,0)), ((S!$BE$206-(S!$BE$206*S!$BF$206)*(INT(BS6)-1))*(INT(BS6)>0)*(INT(BS6)<=S!$BG$206)*(1-MOD(BS6,1)) +(S!$BE$206-(S!$BE$206*S!$BF$206)*(INT(BS6)))*(INT(BS6)>-1)*((INT(BS6)+1)<=S!$BG$206)*MOD(BS6,1))/(IF(AND(BS6<1,BS6>0),BS6,1))) -> 0 | BT23: =IF(Overrides!$A7, OFFSET(Overrides!$B7, 0, MATCH(BT$4,Overrides!$C$5:$GU$5,0)), ((S!$BE$206-(S!$BE$206*S!$BF$206)*(INT(BT6)-1))*(INT(BT6)>0)*(INT(BT6)<=S!$BG$206)*(1-MOD(BT6,1)) +(S!$BE$206-(S!$BE$206*S!$BF$206)*(INT(BT6)))*(INT(BT6)>-1)*((INT(BT6)+1)<=S!$BG$206)*MOD(BT6,1))/(IF(AND(BT6<1,BT6>0),BT6,1))) -> 0 | BU23: =IF(Overrides!$A7, OFFSET(Overrides!$B7, 0, MATCH(BU$4,Overrides!$C$5:$GU$5,0)), ((S!$BE$206-(S!$BE$206*S!$BF$206)*(INT(BU6)-1))*(INT(BU6)>0)*(INT(BU6)<=S!$BG$206)*(1-MOD(BU6,1)) +(S!$BE$206-(S!$BE$206*S!$BF$206)*(INT(BU6)))*(INT(BU6)>-1)*((INT(BU6)+1)<=S!$BG$206)*MOD(BU6,1))/(IF(AND(BU6<1,BU6>0),BU6,1))) -> 0 | BV23: =IF(Overrides!$A7, OFFSET(Overrides!$B7, 0, MATCH(BV$4,Overrides!$C$5:$GU$5,0)), ((S!$BE$206-(S!$BE$206*S!$BF$206)*(INT(BV6)-1))*(INT(BV6)>0)*(INT(BV6)<=S!$BG$206)*(1-MOD(BV6,1)) +(S!$BE$206-(S!$BE$206*S!$BF$206)*(INT(BV6)))*(INT(BV6)>-1)*((INT(BV6)+1)<=S!$BG$206)*MOD(BV6,1))/(IF(AND(BV6<1,BV6>0),BV6,1))) -> 0 | BW23: =IF(Overrides!$A7, OFFSET(Overrides!$B7, 0, MATCH(BW$4,Overrides!$C$5:$GU$5,0)), ((S!$BE$206-(S!$BE$206*S!$BF$206)*(INT(BW6)-1))*(INT(BW6)>0)*(INT(BW6)<=S!$BG$206)*(1-MOD(BW6,1)) +(S!$BE$206-(S!$BE$206*S!$BF$206)*(INT(BW6)))*(INT(BW6)>-1)*((INT(BW6)+1)<=S!$BG$206)*MOD(BW6,1))/(IF(AND(BW6<1,BW6>0),BW6,1))) -> 0 | BX23: =IF(Overrides!$A7, OFFSET(Overrides!$B7, 0, MATCH(BX$4,Overrides!$C$5:$GU$5,0)), ((S!$BE$206-(S!$BE$206*S!$BF$206)*(INT(BX6)-1))*(INT(BX6)>0)*(INT(BX6)<=S!$BG$206)*(1-MOD(BX6,1)) +(S!$BE$206-(S!$BE$206*S!$BF$206)*(INT(BX6)))*(INT(BX6)>-1)*((INT(BX6)+1)<=S!$BG$206)*MOD(BX6,1))/(IF(AND(BX6<1,BX6>0),BX6,1))) -> 0 | BY23: =IF(Overrides!$A7, OFFSET(Overrides!$B7, 0, MATCH(BY$4,Overrides!$C$5:$GU$5,0)), ((S!$BE$206-(S!$BE$206*S!$BF$206)*(INT(BY6)-1))*(INT(BY6)>0)*(INT(BY6)<=S!$BG$206)*(1-MOD(BY6,1)) +(S!$BE$206-(S!$BE$206*S!$BF$206)*(INT(BY6)))*(INT(BY6)>-1)*((INT(BY6)+1)<=S!$BG$206)*MOD(BY6,1))/(IF(AND(BY6<1,BY6>0),BY6,1))) -> 0 | BZ23: =IF(Overrides!$A7, OFFSET(Overrides!$B7, 0, MATCH(BZ$4,Overrides!$C$5:$GU$5,0)), ((S!$BE$206-(S!$BE$206*S!$BF$206)*(INT(BZ6)-1))*(INT(BZ6)>0)*(INT(BZ6)<=S!$BG$206)*(1-MOD(BZ6,1)) +(S!$BE$206-(S!$BE$206*S!$BF$206)*(INT(BZ6)))*(INT(BZ6)>-1)*((INT(BZ6)+1)<=S!$BG$206)*MOD(BZ6,1))/(IF(AND(BZ6<1,BZ6>0),BZ6,1))) -> 0 | CA23: =IF(Overrides!$A7, OFFSET(Overrides!$B7, 0, MATCH(CA$4,Overrides!$C$5:$GU$5,0)), ((S!$BE$206-(S!$BE$206*S!$BF$206)*(INT(CA6)-1))*(INT(CA6)>0)*(INT(CA6)<=S!$BG$206)*(1-MOD(CA6,1)) +(S!$BE$206-(S!$BE$206*S!$BF$206)*(INT(CA6)))*(INT(CA6)>-1)*((INT(CA6)+1)<=S!$BG$206)*MOD(CA6,1))/(IF(AND(CA6<1,CA6>0),CA6,1))) -> 0 | CB23: =IF(Overrides!$A7, OFFSET(Overrides!$B7, 0, MATCH(CB$4,Overrides!$C$5:$GU$5,0)), ((S!$BE$206-(S!$BE$206*S!$BF$206)*(INT(CB6)-1))*(INT(CB6)>0)*(INT(CB6)<=S!$BG$206)*(1-MOD(CB6,1)) +(S!$BE$206-(S!$BE$206*S!$BF$206)*(INT(CB6)))*(INT(CB6)>-1)*((INT(CB6)+1)<=S!$BG$206)*MOD(CB6,1))/(IF(AND(CB6<1,CB6>0),CB6,1))) -> 0 | CC23: =IF(Overrides!$A7, OFFSET(Overrides!$B7, 0, MATCH(CC$4,Overrides!$C$5:$GU$5,0)), ((S!$BE$206-(S!$BE$206*S!$BF$206)*(INT(CC6)-1))*(INT(CC6)>0)*(INT(CC6)<=S!$BG$206)*(1-MOD(CC6,1)) +(S!$BE$206-(S!$BE$206*S!$BF$206)*(INT(CC6)))*(INT(CC6)>-1)*((INT(CC6)+1)<=S!$BG$206)*MOD(CC6,1))/(IF(AND(CC6<1,CC6>0),CC6,1))) -> 0 | CD23: =IF(Overrides!$A7, OFFSET(Overrides!$B7, 0, MATCH(CD$4,Overrides!$C$5:$GU$5,0)), ((S!$BE$206-(S!$BE$206*S!$BF$206)*(INT(CD6)-1))*(INT(CD6)>0)*(INT(CD6)<=S!$BG$206)*(1-MOD(CD6,1)) +(S!$BE$206-(S!$BE$206*S!$BF$206)*(INT(CD6)))*(INT(CD6)>-1)*((INT(CD6)+1)<=S!$BG$206)*MOD(CD6,1))/(IF(AND(CD6<1,CD6>0),CD6,1))) -> 0 | CE23: =IF(Overrides!$A7, OFFSET(Overrides!$B7, 0, MATCH(CE$4,Overrides!$C$5:$GU$5,0)), ((S!$BE$206-(S!$BE$206*S!$BF$206)*(INT(CE6)-1))*(INT(CE6)>0)*(INT(CE6)<=S!$BG$206)*(1-MOD(CE6,1)) +(S!$BE$206-(S!$BE$206*S!$BF$206)*(INT(CE6)))*(INT(CE6)>-1)*((INT(CE6)+1)<=S!$BG$206)*MOD(CE6,1))/(IF(AND(CE6<1,CE6>0),CE6,1))) -> 0 | CF23: =IF(Overrides!$A7, OFFSET(Overrides!$B7, 0, MATCH(CF$4,Overrides!$C$5:$GU$5,0)), ((S!$BE$206-(S!$BE$206*S!$BF$206)*(INT(CF6)-1))*(INT(CF6)>0)*(INT(CF6)<=S!$BG$206)*(1-MOD(CF6,1)) +(S!$BE$206-(S!$BE$206*S!$BF$206)*(INT(CF6)))*(INT(CF6)>-1)*((INT(CF6)+1)<=S!$BG$206)*MOD(CF6,1))/(IF(AND(CF6<1,CF6>0),CF6,1))) -> 0 | CG23: =IF(Overrides!$A7, OFFSET(Overrides!$B7, 0, MATCH(CG$4,Overrides!$C$5:$GU$5,0)), ((S!$BE$206-(S!$BE$206*S!$BF$206)*(INT(CG6)-1))*(INT(CG6)>0)*(INT(CG6)<=S!$BG$206)*(1-MOD(CG6,1)) +(S!$BE$206-(S!$BE$206*S!$BF$206)*(INT(CG6)))*(INT(CG6)>-1)*((INT(CG6)+1)<=S!$BG$206)*MOD(CG6,1))/(IF(AND(CG6<1,CG6>0),CG6,1))) -> 0 | CH23: =IF(Overrides!$A7, OFFSET(Overrides!$B7, 0, MATCH(CH$4,Overrides!$C$5:$GU$5,0)), ((S!$BE$206-(S!$BE$206*S!$BF$206)*(INT(CH6)-1))*(INT(CH6)>0)*(INT(CH6)<=S!$BG$206)*(1-MOD(CH6,1)) +(S!$BE$206-(S!$BE$206*S!$BF$206)*(INT(CH6)))*(INT(CH6)>-1)*((INT(CH6)+1)<=S!$BG$206)*MOD(CH6,1))/(IF(AND(CH6<1,CH6>0),CH6,1))) -> 0 | CI23: =IF(Overrides!$A7, OFFSET(Overrides!$B7, 0, MATCH(CI$4,Overrides!$C$5:$GU$5,0)), ((S!$BE$206-(S!$BE$206*S!$BF$206)*(INT(CI6)-1))*(INT(CI6)>0)*(INT(CI6)<=S!$BG$206)*(1-MOD(CI6,1)) +(S!$BE$206-(S!$BE$206*S!$BF$206)*(INT(CI6)))*(INT(CI6)>-1)*((INT(CI6)+1)<=S!$BG$206)*MOD(CI6,1))/(IF(AND(CI6<1,CI6>0),CI6,1))) -> 0 | CJ23: =IF(Overrides!$A7, OFFSET(Overrides!$B7, 0, MATCH(CJ$4,Overrides!$C$5:$GU$5,0)), ((S!$BE$206-(S!$BE$206*S!$BF$206)*(INT(CJ6)-1))*(INT(CJ6)>0)*(INT(CJ6)<=S!$BG$206)*(1-MOD(CJ6,1)) +(S!$BE$206-(S!$BE$206*S!$BF$206)*(INT(CJ6)))*(INT(CJ6)>-1)*((INT(CJ6)+1)<=S!$BG$206)*MOD(CJ6,1))/(IF(AND(CJ6<1,CJ6>0),CJ6,1))) -> 0 | CK23: =IF(Overrides!$A7, OFFSET(Overrides!$B7, 0, MATCH(CK$4,Overrides!$C$5:$GU$5,0)), ((S!$BE$206-(S!$BE$206*S!$BF$206)*(INT(CK6)-1))*(INT(CK6)>0)*(INT(CK6)<=S!$BG$206)*(1-MOD(CK6,1)) +(S!$BE$206-(S!$BE$206*S!$BF$206)*(INT(CK6)))*(INT(CK6)>-1)*((INT(CK6)+1)<=S!$BG$206)*MOD(CK6,1))/(IF(AND(CK6<1,CK6>0),CK6,1))) -> 0 | CL23: =IF(Overrides!$A7, OFFSET(Overrides!$B7, 0, MATCH(CL$4,Overrides!$C$5:$GU$5,0)), ((S!$BE$206-(S!$BE$206*S!$BF$206)*(INT(CL6)-1))*(INT(CL6)>0)*(INT(CL6)<=S!$BG$206)*(1-MOD(CL6,1)) +(S!$BE$206-(S!$BE$206*S!$BF$206)*(INT(CL6)))*(INT(CL6)>-1)*((INT(CL6)+1)<=S!$BG$206)*MOD(CL6,1))/(IF(AND(CL6<1,CL6>0),CL6,1))) -> 0 | CM23: =IF(Overrides!$A7, OFFSET(Overrides!$B7, 0, MATCH(CM$4,Overrides!$C$5:$GU$5,0)), ((S!$BE$206-(S!$BE$206*S!$BF$206)*(INT(CM6)-1))*(INT(CM6)>0)*(INT(CM6)<=S!$BG$206)*(1-MOD(CM6,1)) +(S!$BE$206-(S!$BE$206*S!$BF$206)*(INT(CM6)))*(INT(CM6)>-1)*((INT(CM6)+1)<=S!$BG$206)*MOD(CM6,1))/(IF(AND(CM6<1,CM6>0),CM6,1))) -> 0 | CN23: =IF(Overrides!$A7, OFFSET(Overrides!$B7, 0, MATCH(CN$4,Overrides!$C$5:$GU$5,0)), ((S!$BE$206-(S!$BE$206*S!$BF$206)*(INT(CN6)-1))*(INT(CN6)>0)*(INT(CN6)<=S!$BG$206)*(1-MOD(CN6,1)) +(S!$BE$206-(S!$BE$206*S!$BF$206)*(INT(CN6)))*(INT(CN6)>-1)*((INT(CN6)+1)<=S!$BG$206)*MOD(CN6,1))/(IF(AND(CN6<1,CN6>0),CN6,1))) -> 0 | CO23: =IF(Overrides!$A7, OFFSET(Overrides!$B7, 0, MATCH(CO$4,Overrides!$C$5:$GU$5,0)), ((S!$BE$206-(S!$BE$206*S!$BF$206)*(INT(CO6)-1))*(INT(CO6)>0)*(INT(CO6)<=S!$BG$206)*(1-MOD(CO6,1)) +(S!$BE$206-(S!$BE$206*S!$BF$206)*(INT(CO6)))*(INT(CO6)>-1)*((INT(CO6)+1)<=S!$BG$206)*MOD(CO6,1))/(IF(AND(CO6<1,CO6>0),CO6,1))) -> 0 | CP23: =IF(Overrides!$A7, OFFSET(Overrides!$B7, 0, MATCH(CP$4,Overrides!$C$5:$GU$5,0)), ((S!$BE$206-(S!$BE$206*S!$BF$206)*(INT(CP6)-1))*(INT(CP6)>0)*(INT(CP6)<=S!$BG$206)*(1-MOD(CP6,1)) +(S!$BE$206-(S!$BE$206*S!$BF$206)*(INT(CP6)))*(INT(CP6)>-1)*((INT(CP6)+1)<=S!$BG$206)*MOD(CP6,1))/(IF(AND(CP6<1,CP6>0),CP6,1))) -> 0 | CQ23: =IF(Overrides!$A7, OFFSET(Overrides!$B7, 0, MATCH(CQ$4,Overrides!$C$5:$GU$5,0)), ((S!$BE$206-(S!$BE$206*S!$BF$206)*(INT(CQ6)-1))*(INT(CQ6)>0)*(INT(CQ6)<=S!$BG$206)*(1-MOD(CQ6,1)) +(S!$BE$206-(S!$BE$206*S!$BF$206)*(INT(CQ6)))*(INT(CQ6)>-1)*((INT(CQ6)+1)<=S!$BG$206)*MOD(CQ6,1))/(IF(AND(CQ6<1,CQ6>0),CQ6,1))) -> 0 | CR23: =IF(Overrides!$A7, OFFSET(Overrides!$B7, 0, MATCH(CR$4,Overrides!$C$5:$GU$5,0)), ((S!$BE$206-(S!$BE$206*S!$BF$206)*(INT(CR6)-1))*(INT(CR6)>0)*(INT(CR6)<=S!$BG$206)*(1-MOD(CR6,1)) +(S!$BE$206-(S!$BE$206*S!$BF$206)*(INT(CR6)))*(INT(CR6)>-1)*((INT(CR6)+1)<=S!$BG$206)*MOD(CR6,1))/(IF(AND(CR6<1,CR6>0),CR6,1))) -> 0 | CS23: =IF(Overrides!$A7, OFFSET(Overrides!$B7, 0, MATCH(CS$4,Overrides!$C$5:$GU$5,0)), ((S!$BE$206-(S!$BE$206*S!$BF$206)*(INT(CS6)-1))*(INT(CS6)>0)*(INT(CS6)<=S!$BG$206)*(1-MOD(CS6,1)) +(S!$BE$206-(S!$BE$206*S!$BF$206)*(INT(CS6)))*(INT(CS6)>-1)*((INT(CS6)+1)<=S!$BG$206)*MOD(CS6,1))/(IF(AND(CS6<1,CS6>0),CS6,1))) -> 0 | CT23: =IF(Overrides!$A7, OFFSET(Overrides!$B7, 0, MATCH(CT$4,Overrides!$C$5:$GU$5,0)), ((S!$BE$206-(S!$BE$206*S!$BF$206)*(INT(CT6)-1))*(INT(CT6)>0)*(INT(CT6)<=S!$BG$206)*(1-MOD(CT6,1)) +(S!$BE$206-(S!$BE$206*S!$BF$206)*(INT(CT6)))*(INT(CT6)>-1)*((INT(CT6)+1)<=S!$BG$206)*MOD(CT6,1))/(IF(AND(CT6<1,CT6>0),CT6,1))) -> 0 | CU23: =IF(Overrides!$A7, OFFSET(Overrides!$B7, 0, MATCH(CU$4,Overrides!$C$5:$GU$5,0)), ((S!$BE$206-(S!$BE$206*S!$BF$206)*(INT(CU6)-1))*(INT(CU6)>0)*(INT(CU6)<=S!$BG$206)*(1-MOD(CU6,1)) +(S!$BE$206-(S!$BE$206*S!$BF$206)*(INT(CU6)))*(INT(CU6)>-1)*((INT(CU6)+1)<=S!$BG$206)*MOD(CU6,1))/(IF(AND(CU6<1,CU6>0),CU6,1))) -> 0 | CV23: =IF(Overrides!$A7, OFFSET(Overrides!$B7, 0, MATCH(CV$4,Overrides!$C$5:$GU$5,0)), ((S!$BE$206-(S!$BE$206*S!$BF$206)*(INT(CV6)-1))*(INT(CV6)>0)*(INT(CV6)<=S!$BG$206)*(1-MOD(CV6,1)) +(S!$BE$206-(S!$BE$206*S!$BF$206)*(INT(CV6)))*(INT(CV6)>-1)*((INT(CV6)+1)<=S!$BG$206)*MOD(CV6,1))/(IF(AND(CV6<1,CV6>0),CV6,1))) -> 0 | CW23: =IF(Overrides!$A7, OFFSET(Overrides!$B7, 0, MATCH(CW$4,Overrides!$C$5:$GU$5,0)), ((S!$BE$206-(S!$BE$206*S!$BF$206)*(INT(CW6)-1))*(INT(CW6)>0)*(INT(CW6)<=S!$BG$206)*(1-MOD(CW6,1)) +(S!$BE$206-(S!$BE$206*S!$BF$206)*(INT(CW6)))*(INT(CW6)>-1)*((INT(CW6)+1)<=S!$BG$206)*MOD(CW6,1))/(IF(AND(CW6<1,CW6>0),CW6,1))) -> 0 | CX23: =IF(Overrides!$A7, OFFSET(Overrides!$B7, 0, MATCH(CX$4,Overrides!$C$5:$GU$5,0)), ((S!$BE$206-(S!$BE$206*S!$BF$206)*(INT(CX6)-1))*(INT(CX6)>0)*(INT(CX6)<=S!$BG$206)*(1-MOD(CX6,1)) +(S!$BE$206-(S!$BE$206*S!$BF$206)*(INT(CX6)))*(INT(CX6)>-1)*((INT(CX6)+1)<=S!$BG$206)*MOD(CX6,1))/(IF(AND(CX6<1,CX6>0),CX6,1))) -> 0 | CY23: =IF(Overrides!$A7, OFFSET(Overrides!$B7, 0, MATCH(CY$4,Overrides!$C$5:$GU$5,0)), ((S!$BE$206-(S!$BE$206*S!$BF$206)*(INT(CY6)-1))*(INT(CY6)>0)*(INT(CY6)<=S!$BG$206)*(1-MOD(CY6,1)) +(S!$BE$206-(S!$BE$206*S!$BF$206)*(INT(CY6)))*(INT(CY6)>-1)*((INT(CY6)+1)<=S!$BG$206)*MOD(CY6,1))/(IF(AND(CY6<1,CY6>0),CY6,1))) -> 0
C24: ="Value of "&Interface!E58&" ($/"&Interface!F58&")" -> Value of coproduct 1 ($/units of coproduct 1) | D24: 0 | E24: =IF(Overrides!$A24, OFFSET(Overrides!$B24, 0, MATCH(E$4,Overrides!$C$5:$GU$5,0)), S!CI206) -> 0.1 | F24: =IF(Overrides!$A24, OFFSET(Overrides!$B24, 0, MATCH(F$4,Overrides!$C$5:$GU$5,0)), E24*(1+S!$CJ$206)*(F5>0)) -> 0.1019 | G24: =IF(Overrides!$A24, OFFSET(Overrides!$B24, 0, MATCH(G$4,Overrides!$C$5:$GU$5,0)), F24*(1+S!$CJ$206)*(G5>0)) -> 0.1038361 | H24: =IF(Overrides!$A24, OFFSET(Overrides!$B24, 0, MATCH(H$4,Overrides!$C$5:$GU$5,0)), G24*(1+S!$CJ$206)*(H5>0)) -> 0.1058089859 | I24: =IF(Overrides!$A24, OFFSET(Overrides!$B24, 0, MATCH(I$4,Overrides!$C$5:$GU$5,0)), H24*(1+S!$CJ$206)*(I5>0)) -> 0.1078193566 | J24: =IF(Overrides!$A24, OFFSET(Overrides!$B24, 0, MATCH(J$4,Overrides!$C$5:$GU$5,0)), I24*(1+S!$CJ$206)*(J5>0)) -> 0.1098679244 | K24: =IF(Overrides!$A24, OFFSET(Overrides!$B24, 0, MATCH(K$4,Overrides!$C$5:$GU$5,0)), J24*(1+S!$CJ$206)*(K5>0)) -> 0.111955415 | L24: =IF(Overrides!$A24, OFFSET(Overrides!$B24, 0, MATCH(L$4,Overrides!$C$5:$GU$5,0)), K24*(1+S!$CJ$206)*(L5>0)) -> 0.1140825679 | M24: =IF(Overrides!$A24, OFFSET(Overrides!$B24, 0, MATCH(M$4,Overrides!$C$5:$GU$5,0)), L24*(1+S!$CJ$206)*(M5>0)) -> 0.1162501366 | N24: =IF(Overrides!$A24, OFFSET(Overrides!$B24, 0, MATCH(N$4,Overrides!$C$5:$GU$5,0)), M24*(1+S!$CJ$206)*(N5>0)) -> 0.1184588892 | O24: =IF(Overrides!$A24, OFFSET(Overrides!$B24, 0, MATCH(O$4,Overrides!$C$5:$GU$5,0)), N24*(1+S!$CJ$206)*(O5>0)) -> 0.1207096081 | P24: =IF(Overrides!$A24, OFFSET(Overrides!$B24, 0, MATCH(P$4,Overrides!$C$5:$GU$5,0)), O24*(1+S!$CJ$206)*(P5>0)) -> 0.1230030907 | Q24: =IF(Overrides!$A24, OFFSET(Overrides!$B24, 0, MATCH(Q$4,Overrides!$C$5:$GU$5,0)), P24*(1+S!$CJ$206)*(Q5>0)) -> 0.1253401494 | R24: =IF(Overrides!$A24, OFFSET(Overrides!$B24, 0, MATCH(R$4,Overrides!$C$5:$GU$5,0)), Q24*(1+S!$CJ$206)*(R5>0)) -> 0.1277216123 | S24: =IF(Overrides!$A24, OFFSET(Overrides!$B24, 0, MATCH(S$4,Overrides!$C$5:$GU$5,0)), R24*(1+S!$CJ$206)*(S5>0)) -> 0.1301483229 | T24: =IF(Overrides!$A24, OFFSET(Overrides!$B24, 0, MATCH(T$4,Overrides!$C$5:$GU$5,0)), S24*(1+S!$CJ$206)*(T5>0)) -> 0.132621141 | U24: =IF(Overrides!$A24, OFFSET(Overrides!$B24, 0, MATCH(U$4,Overrides!$C$5:$GU$5,0)), T24*(1+S!$CJ$206)*(U5>0)) -> 0 | V24: =IF(Overrides!$A24, OFFSET(Overrides!$B24, 0, MATCH(V$4,Overrides!$C$5:$GU$5,0)), U24*(1+S!$CJ$206)*(V5>0)) -> 0 | W24: =IF(Overrides!$A24, OFFSET(Overrides!$B24, 0, MATCH(W$4,Overrides!$C$5:$GU$5,0)), V24*(1+S!$CJ$206)*(W5>0)) -> 0 | X24: =IF(Overrides!$A24, OFFSET(Overrides!$B24, 0, MATCH(X$4,Overrides!$C$5:$GU$5,0)), W24*(1+S!$CJ$206)*(X5>0)) -> 0 | Y24: =IF(Overrides!$A24, OFFSET(Overrides!$B24, 0, MATCH(Y$4,Overrides!$C$5:$GU$5,0)), X24*(1+S!$CJ$206)*(Y5>0)) -> 0 | Z24: =IF(Overrides!$A24, OFFSET(Overrides!$B24, 0, MATCH(Z$4,Overrides!$C$5:$GU$5,0)), Y24*(1+S!$CJ$206)*(Z5>0)) -> 0 | AA24: =IF(Overrides!$A24, OFFSET(Overrides!$B24, 0, MATCH(AA$4,Overrides!$C$5:$GU$5,0)), Z24*(1+S!$CJ$206)*(AA5>0)) -> 0 | AB24: =IF(Overrides!$A24, OFFSET(Overrides!$B24, 0, MATCH(AB$4,Overrides!$C$5:$GU$5,0)), AA24*(1+S!$CJ$206)*(AB5>0)) -> 0 | AC24: =IF(Overrides!$A24, OFFSET(Overrides!$B24, 0, MATCH(AC$4,Overrides!$C$5:$GU$5,0)), AB24*(1+S!$CJ$206)*(AC5>0)) -> 0 | AD24: =IF(Overrides!$A24, OFFSET(Overrides!$B24, 0, MATCH(AD$4,Overrides!$C$5:$GU$5,0)), AC24*(1+S!$CJ$206)*(AD5>0)) -> 0 | AE24: =IF(Overrides!$A24, OFFSET(Overrides!$B24, 0, MATCH(AE$4,Overrides!$C$5:$GU$5,0)), AD24*(1+S!$CJ$206)*(AE5>0)) -> 0 | AF24: =IF(Overrides!$A24, OFFSET(Overrides!$B24, 0, MATCH(AF$4,Overrides!$C$5:$GU$5,0)), AE24*(1+S!$CJ$206)*(AF5>0)) -> 0 | AG24: =IF(Overrides!$A24, OFFSET(Overrides!$B24, 0, MATCH(AG$4,Overrides!$C$5:$GU$5,0)), AF24*(1+S!$CJ$206)*(AG5>0)) -> 0 | AH24: =IF(Overrides!$A24, OFFSET(Overrides!$B24, 0, MATCH(AH$4,Overrides!$C$5:$GU$5,0)), AG24*(1+S!$CJ$206)*(AH5>0)) -> 0 | AI24: =IF(Overrides!$A24, OFFSET(Overrides!$B24, 0, MATCH(AI$4,Overrides!$C$5:$GU$5,0)), AH24*(1+S!$CJ$206)*(AI5>0)) -> 0 | AJ24: =IF(Overrides!$A24, OFFSET(Overrides!$B24, 0, MATCH(AJ$4,Overrides!$C$5:$GU$5,0)), AI24*(1+S!$CJ$206)*(AJ5>0)) -> 0 | AK24: =IF(Overrides!$A24, OFFSET(Overrides!$B24, 0, MATCH(AK$4,Overrides!$C$5:$GU$5,0)), AJ24*(1+S!$CJ$206)*(AK5>0)) -> 0 | AL24: =IF(Overrides!$A24, OFFSET(Overrides!$B24, 0, MATCH(AL$4,Overrides!$C$5:$GU$5,0)), AK24*(1+S!$CJ$206)*(AL5>0)) -> 0 | AM24: =IF(Overrides!$A24, OFFSET(Overrides!$B24, 0, MATCH(AM$4,Overrides!$C$5:$GU$5,0)), AL24*(1+S!$CJ$206)*(AM5>0)) -> 0 | AN24: =IF(Overrides!$A24, OFFSET(Overrides!$B24, 0, MATCH(AN$4,Overrides!$C$5:$GU$5,0)), AM24*(1+S!$CJ$206)*(AN5>0)) -> 0 | AO24: =IF(Overrides!$A24, OFFSET(Overrides!$B24, 0, MATCH(AO$4,Overrides!$C$5:$GU$5,0)), AN24*(1+S!$CJ$206)*(AO5>0)) -> 0 | AP24: =IF(Overrides!$A24, OFFSET(Overrides!$B24, 0, MATCH(AP$4,Overrides!$C$5:$GU$5,0)), AO24*(1+S!$CJ$206)*(AP5>0)) -> 0 | AQ24: =IF(Overrides!$A24, OFFSET(Overrides!$B24, 0, MATCH(AQ$4,Overrides!$C$5:$GU$5,0)), AP24*(1+S!$CJ$206)*(AQ5>0)) -> 0 | AR24: =IF(Overrides!$A24, OFFSET(Overrides!$B24, 0, MATCH(AR$4,Overrides!$C$5:$GU$5,0)), AQ24*(1+S!$CJ$206)*(AR5>0)) -> 0 | AS24: =IF(Overrides!$A24, OFFSET(Overrides!$B24, 0, MATCH(AS$4,Overrides!$C$5:$GU$5,0)), AR24*(1+S!$CJ$206)*(AS5>0)) -> 0 | AT24: =IF(Overrides!$A24, OFFSET(Overrides!$B24, 0, MATCH(AT$4,Overrides!$C$5:$GU$5,0)), AS24*(1+S!$CJ$206)*(AT5>0)) -> 0 | AU24: =IF(Overrides!$A24, OFFSET(Overrides!$B24, 0, MATCH(AU$4,Overrides!$C$5:$GU$5,0)), AT24*(1+S!$CJ$206)*(AU5>0)) -> 0 | AV24: =IF(Overrides!$A24, OFFSET(Overrides!$B24, 0, MATCH(AV$4,Overrides!$C$5:$GU$5,0)), AU24*(1+S!$CJ$206)*(AV5>0)) -> 0 | AW24: =IF(Overrides!$A24, OFFSET(Overrides!$B24, 0, MATCH(AW$4,Overrides!$C$5:$GU$5,0)), AV24*(1+S!$CJ$206)*(AW5>0)) -> 0 | AX24: =IF(Overrides!$A24, OFFSET(Overrides!$B24, 0, MATCH(AX$4,Overrides!$C$5:$GU$5,0)), AW24*(1+S!$CJ$206)*(AX5>0)) -> 0 | AY24: =IF(Overrides!$A24, OFFSET(Overrides!$B24, 0, MATCH(AY$4,Overrides!$C$5:$GU$5,0)), AX24*(1+S!$CJ$206)*(AY5>0)) -> 0 | AZ24: =IF(Overrides!$A24, OFFSET(Overrides!$B24, 0, MATCH(AZ$4,Overrides!$C$5:$GU$5,0)), AY24*(1+S!$CJ$206)*(AZ5>0)) -> 0 | BA24: =IF(Overrides!$A24, OFFSET(Overrides!$B24, 0, MATCH(BA$4,Overrides!$C$5:$GU$5,0)), AZ24*(1+S!$CJ$206)*(BA5>0)) -> 0 | BB24: =IF(Overrides!$A24, OFFSET(Overrides!$B24, 0, MATCH(BB$4,Overrides!$C$5:$GU$5,0)), BA24*(1+S!$CJ$206)*(BB5>0)) -> 0 | BC24: =IF(Overrides!$A24, OFFSET(Overrides!$B24, 0, MATCH(BC$4,Overrides!$C$5:$GU$5,0)), BB24*(1+S!$CJ$206)*(BC5>0)) -> 0 | BD24: =IF(Overrides!$A24, OFFSET(Overrides!$B24, 0, MATCH(BD$4,Overrides!$C$5:$GU$5,0)), BC24*(1+S!$CJ$206)*(BD5>0)) -> 0 | BE24: =IF(Overrides!$A24, OFFSET(Overrides!$B24, 0, MATCH(BE$4,Overrides!$C$5:$GU$5,0)), BD24*(1+S!$CJ$206)*(BE5>0)) -> 0 | BF24: =IF(Overrides!$A24, OFFSET(Overrides!$B24, 0, MATCH(BF$4,Overrides!$C$5:$GU$5,0)), BE24*(1+S!$CJ$206)*(BF5>0)) -> 0 | BG24: =IF(Overrides!$A24, OFFSET(Overrides!$B24, 0, MATCH(BG$4,Overrides!$C$5:$GU$5,0)), BF24*(1+S!$CJ$206)*(BG5>0)) -> 0 | BH24: =IF(Overrides!$A24, OFFSET(Overrides!$B24, 0, MATCH(BH$4,Overrides!$C$5:$GU$5,0)), BG24*(1+S!$CJ$206)*(BH5>0)) -> 0 | BI24: =IF(Overrides!$A24, OFFSET(Overrides!$B24, 0, MATCH(BI$4,Overrides!$C$5:$GU$5,0)), BH24*(1+S!$CJ$206)*(BI5>0)) -> 0 | BJ24: =IF(Overrides!$A24, OFFSET(Overrides!$B24, 0, MATCH(BJ$4,Overrides!$C$5:$GU$5,0)), BI24*(1+S!$CJ$206)*(BJ5>0)) -> 0 | BK24: =IF(Overrides!$A24, OFFSET(Overrides!$B24, 0, MATCH(BK$4,Overrides!$C$5:$GU$5,0)), BJ24*(1+S!$CJ$206)*(BK5>0)) -> 0 | BL24: =IF(Overrides!$A24, OFFSET(Overrides!$B24, 0, MATCH(BL$4,Overrides!$C$5:$GU$5,0)), BK24*(1+S!$CJ$206)*(BL5>0)) -> 0 | BM24: =IF(Overrides!$A24, OFFSET(Overrides!$B24, 0, MATCH(BM$4,Overrides!$C$5:$GU$5,0)), BL24*(1+S!$CJ$206)*(BM5>0)) -> 0 | BN24: =IF(Overrides!$A24, OFFSET(Overrides!$B24, 0, MATCH(BN$4,Overrides!$C$5:$GU$5,0)), BM24*(1+S!$CJ$206)*(BN5>0)) -> 0 | BO24: =IF(Overrides!$A24, OFFSET(Overrides!$B24, 0, MATCH(BO$4,Overrides!$C$5:$GU$5,0)), BN24*(1+S!$CJ$206)*(BO5>0)) -> 0 | BP24: =IF(Overrides!$A24, OFFSET(Overrides!$B24, 0, MATCH(BP$4,Overrides!$C$5:$GU$5,0)), BO24*(1+S!$CJ$206)*(BP5>0)) -> 0 | BQ24: =IF(Overrides!$A24, OFFSET(Overrides!$B24, 0, MATCH(BQ$4,Overrides!$C$5:$GU$5,0)), BP24*(1+S!$CJ$206)*(BQ5>0)) -> 0 | BR24: =IF(Overrides!$A24, OFFSET(Overrides!$B24, 0, MATCH(BR$4,Overrides!$C$5:$GU$5,0)), BQ24*(1+S!$CJ$206)*(BR5>0)) -> 0 | BS24: =IF(Overrides!$A24, OFFSET(Overrides!$B24, 0, MATCH(BS$4,Overrides!$C$5:$GU$5,0)), BR24*(1+S!$CJ$206)*(BS5>0)) -> 0 | BT24: =IF(Overrides!$A24, OFFSET(Overrides!$B24, 0, MATCH(BT$4,Overrides!$C$5:$GU$5,0)), BS24*(1+S!$CJ$206)*(BT5>0)) -> 0 | BU24: =IF(Overrides!$A24, OFFSET(Overrides!$B24, 0, MATCH(BU$4,Overrides!$C$5:$GU$5,0)), BT24*(1+S!$CJ$206)*(BU5>0)) -> 0 | BV24: =IF(Overrides!$A24, OFFSET(Overrides!$B24, 0, MATCH(BV$4,Overrides!$C$5:$GU$5,0)), BU24*(1+S!$CJ$206)*(BV5>0)) -> 0 | BW24: =IF(Overrides!$A24, OFFSET(Overrides!$B24, 0, MATCH(BW$4,Overrides!$C$5:$GU$5,0)), BV24*(1+S!$CJ$206)*(BW5>0)) -> 0 | BX24: =IF(Overrides!$A24, OFFSET(Overrides!$B24, 0, MATCH(BX$4,Overrides!$C$5:$GU$5,0)), BW24*(1+S!$CJ$206)*(BX5>0)) -> 0 | BY24: =IF(Overrides!$A24, OFFSET(Overrides!$B24, 0, MATCH(BY$4,Overrides!$C$5:$GU$5,0)), BX24*(1+S!$CJ$206)*(BY5>0)) -> 0 | BZ24: =IF(Overrides!$A24, OFFSET(Overrides!$B24, 0, MATCH(BZ$4,Overrides!$C$5:$GU$5,0)), BY24*(1+S!$CJ$206)*(BZ5>0)) -> 0 | CA24: =IF(Overrides!$A24, OFFSET(Overrides!$B24, 0, MATCH(CA$4,Overrides!$C$5:$GU$5,0)), BZ24*(1+S!$CJ$206)*(CA5>0)) -> 0 | CB24: =IF(Overrides!$A24, OFFSET(Overrides!$B24, 0, MATCH(CB$4,Overrides!$C$5:$GU$5,0)), CA24*(1+S!$CJ$206)*(CB5>0)) -> 0 | CC24: =IF(Overrides!$A24, OFFSET(Overrides!$B24, 0, MATCH(CC$4,Overrides!$C$5:$GU$5,0)), CB24*(1+S!$CJ$206)*(CC5>0)) -> 0 | CD24: =IF(Overrides!$A24, OFFSET(Overrides!$B24, 0, MATCH(CD$4,Overrides!$C$5:$GU$5,0)), CC24*(1+S!$CJ$206)*(CD5>0)) -> 0 | CE24: =IF(Overrides!$A24, OFFSET(Overrides!$B24, 0, MATCH(CE$4,Overrides!$C$5:$GU$5,0)), CD24*(1+S!$CJ$206)*(CE5>0)) -> 0 | CF24: =IF(Overrides!$A24, OFFSET(Overrides!$B24, 0, MATCH(CF$4,Overrides!$C$5:$GU$5,0)), CE24*(1+S!$CJ$206)*(CF5>0)) -> 0 | CG24: =IF(Overrides!$A24, OFFSET(Overrides!$B24, 0, MATCH(CG$4,Overrides!$C$5:$GU$5,0)), CF24*(1+S!$CJ$206)*(CG5>0)) -> 0 | CH24: =IF(Overrides!$A24, OFFSET(Overrides!$B24, 0, MATCH(CH$4,Overrides!$C$5:$GU$5,0)), CG24*(1+S!$CJ$206)*(CH5>0)) -> 0 | CI24: =IF(Overrides!$A24, OFFSET(Overrides!$B24, 0, MATCH(CI$4,Overrides!$C$5:$GU$5,0)), CH24*(1+S!$CJ$206)*(CI5>0)) -> 0 | CJ24: =IF(Overrides!$A24, OFFSET(Overrides!$B24, 0, MATCH(CJ$4,Overrides!$C$5:$GU$5,0)), CI24*(1+S!$CJ$206)*(CJ5>0)) -> 0 | CK24: =IF(Overrides!$A24, OFFSET(Overrides!$B24, 0, MATCH(CK$4,Overrides!$C$5:$GU$5,0)), CJ24*(1+S!$CJ$206)*(CK5>0)) -> 0 | CL24: =IF(Overrides!$A24, OFFSET(Overrides!$B24, 0, MATCH(CL$4,Overrides!$C$5:$GU$5,0)), CK24*(1+S!$CJ$206)*(CL5>0)) -> 0 | CM24: =IF(Overrides!$A24, OFFSET(Overrides!$B24, 0, MATCH(CM$4,Overrides!$C$5:$GU$5,0)), CL24*(1+S!$CJ$206)*(CM5>0)) -> 0 | CN24: =IF(Overrides!$A24, OFFSET(Overrides!$B24, 0, MATCH(CN$4,Overrides!$C$5:$GU$5,0)), CM24*(1+S!$CJ$206)*(CN5>0)) -> 0 | CO24: =IF(Overrides!$A24, OFFSET(Overrides!$B24, 0, MATCH(CO$4,Overrides!$C$5:$GU$5,0)), CN24*(1+S!$CJ$206)*(CO5>0)) -> 0 | CP24: =IF(Overrides!$A24, OFFSET(Overrides!$B24, 0, MATCH(CP$4,Overrides!$C$5:$GU$5,0)), CO24*(1+S!$CJ$206)*(CP5>0)) -> 0 | CQ24: =IF(Overrides!$A24, OFFSET(Overrides!$B24, 0, MATCH(CQ$4,Overrides!$C$5:$GU$5,0)), CP24*(1+S!$CJ$206)*(CQ5>0)) -> 0 | CR24: =IF(Overrides!$A24, OFFSET(Overrides!$B24, 0, MATCH(CR$4,Overrides!$C$5:$GU$5,0)), CQ24*(1+S!$CJ$206)*(CR5>0)) -> 0 | CS24: =IF(Overrides!$A24, OFFSET(Overrides!$B24, 0, MATCH(CS$4,Overrides!$C$5:$GU$5,0)), CR24*(1+S!$CJ$206)*(CS5>0)) -> 0 | CT24: =IF(Overrides!$A24, OFFSET(Overrides!$B24, 0, MATCH(CT$4,Overrides!$C$5:$GU$5,0)), CS24*(1+S!$CJ$206)*(CT5>0)) -> 0 | CU24: =IF(Overrides!$A24, OFFSET(Overrides!$B24, 0, MATCH(CU$4,Overrides!$C$5:$GU$5,0)), CT24*(1+S!$CJ$206)*(CU5>0)) -> 0 | CV24: =IF(Overrides!$A24, OFFSET(Overrides!$B24, 0, MATCH(CV$4,Overrides!$C$5:$GU$5,0)), CU24*(1+S!$CJ$206)*(CV5>0)) -> 0 | CW24: =IF(Overrides!$A24, OFFSET(Overrides!$B24, 0, MATCH(CW$4,Overrides!$C$5:$GU$5,0)), CV24*(1+S!$CJ$206)*(CW5>0)) -> 0 | CX24: =IF(Overrides!$A24, OFFSET(Overrides!$B24, 0, MATCH(CX$4,Overrides!$C$5:$GU$5,0)), CW24*(1+S!$CJ$206)*(CX5>0)) -> 0 | CY24: =IF(Overrides!$A24, OFFSET(Overrides!$B24, 0, MATCH(CY$4,Overrides!$C$5:$GU$5,0)), CX24*(1+S!$CJ$206)*(CY5>0)) -> 0
C25: ="Value of "&Interface!E59&" ($/"&Interface!F59&")" -> Value of coproduct 2 ($/units of coproduct 2) | D25: 0 | E25: =IF(Overrides!$A25, OFFSET(Overrides!$B25, 0, MATCH(E$4,Overrides!$C$5:$GU$5,0)), S!CK206) -> 0.1 | F25: =IF(Overrides!$A25, OFFSET(Overrides!$B25, 0, MATCH(F$4,Overrides!$C$5:$GU$5,0)), E25*(1+S!$CL$206)*(F5>0)) -> 0.1019 | G25: =IF(Overrides!$A25, OFFSET(Overrides!$B25, 0, MATCH(G$4,Overrides!$C$5:$GU$5,0)), F25*(1+S!$CL$206)*(G5>0)) -> 0.1038361 | H25: =IF(Overrides!$A25, OFFSET(Overrides!$B25, 0, MATCH(H$4,Overrides!$C$5:$GU$5,0)), G25*(1+S!$CL$206)*(H5>0)) -> 0.1058089859 | I25: =IF(Overrides!$A25, OFFSET(Overrides!$B25, 0, MATCH(I$4,Overrides!$C$5:$GU$5,0)), H25*(1+S!$CL$206)*(I5>0)) -> 0.1078193566 | J25: =IF(Overrides!$A25, OFFSET(Overrides!$B25, 0, MATCH(J$4,Overrides!$C$5:$GU$5,0)), I25*(1+S!$CL$206)*(J5>0)) -> 0.1098679244 | K25: =IF(Overrides!$A25, OFFSET(Overrides!$B25, 0, MATCH(K$4,Overrides!$C$5:$GU$5,0)), J25*(1+S!$CL$206)*(K5>0)) -> 0.111955415 | L25: =IF(Overrides!$A25, OFFSET(Overrides!$B25, 0, MATCH(L$4,Overrides!$C$5:$GU$5,0)), K25*(1+S!$CL$206)*(L5>0)) -> 0.1140825679 | M25: =IF(Overrides!$A25, OFFSET(Overrides!$B25, 0, MATCH(M$4,Overrides!$C$5:$GU$5,0)), L25*(1+S!$CL$206)*(M5>0)) -> 0.1162501366 | N25: =IF(Overrides!$A25, OFFSET(Overrides!$B25, 0, MATCH(N$4,Overrides!$C$5:$GU$5,0)), M25*(1+S!$CL$206)*(N5>0)) -> 0.1184588892 | O25: =IF(Overrides!$A25, OFFSET(Overrides!$B25, 0, MATCH(O$4,Overrides!$C$5:$GU$5,0)), N25*(1+S!$CL$206)*(O5>0)) -> 0.1207096081 | P25: =IF(Overrides!$A25, OFFSET(Overrides!$B25, 0, MATCH(P$4,Overrides!$C$5:$GU$5,0)), O25*(1+S!$CL$206)*(P5>0)) -> 0.1230030907 | Q25: =IF(Overrides!$A25, OFFSET(Overrides!$B25, 0, MATCH(Q$4,Overrides!$C$5:$GU$5,0)), P25*(1+S!$CL$206)*(Q5>0)) -> 0.1253401494 | R25: =IF(Overrides!$A25, OFFSET(Overrides!$B25, 0, MATCH(R$4,Overrides!$C$5:$GU$5,0)), Q25*(1+S!$CL$206)*(R5>0)) -> 0.1277216123 | S25: =IF(Overrides!$A25, OFFSET(Overrides!$B25, 0, MATCH(S$4,Overrides!$C$5:$GU$5,0)), R25*(1+S!$CL$206)*(S5>0)) -> 0.1301483229 | T25: =IF(Overrides!$A25, OFFSET(Overrides!$B25, 0, MATCH(T$4,Overrides!$C$5:$GU$5,0)), S25*(1+S!$CL$206)*(T5>0)) -> 0.132621141 | U25: =IF(Overrides!$A25, OFFSET(Overrides!$B25, 0, MATCH(U$4,Overrides!$C$5:$GU$5,0)), T25*(1+S!$CL$206)*(U5>0)) -> 0 | V25: =IF(Overrides!$A25, OFFSET(Overrides!$B25, 0, MATCH(V$4,Overrides!$C$5:$GU$5,0)), U25*(1+S!$CL$206)*(V5>0)) -> 0 | W25: =IF(Overrides!$A25, OFFSET(Overrides!$B25, 0, MATCH(W$4,Overrides!$C$5:$GU$5,0)), V25*(1+S!$CL$206)*(W5>0)) -> 0 | X25: =IF(Overrides!$A25, OFFSET(Overrides!$B25, 0, MATCH(X$4,Overrides!$C$5:$GU$5,0)), W25*(1+S!$CL$206)*(X5>0)) -> 0 | Y25: =IF(Overrides!$A25, OFFSET(Overrides!$B25, 0, MATCH(Y$4,Overrides!$C$5:$GU$5,0)), X25*(1+S!$CL$206)*(Y5>0)) -> 0 | Z25: =IF(Overrides!$A25, OFFSET(Overrides!$B25, 0, MATCH(Z$4,Overrides!$C$5:$GU$5,0)), Y25*(1+S!$CL$206)*(Z5>0)) -> 0 | AA25: =IF(Overrides!$A25, OFFSET(Overrides!$B25, 0, MATCH(AA$4,Overrides!$C$5:$GU$5,0)), Z25*(1+S!$CL$206)*(AA5>0)) -> 0 | AB25: =IF(Overrides!$A25, OFFSET(Overrides!$B25, 0, MATCH(AB$4,Overrides!$C$5:$GU$5,0)), AA25*(1+S!$CL$206)*(AB5>0)) -> 0 | AC25: =IF(Overrides!$A25, OFFSET(Overrides!$B25, 0, MATCH(AC$4,Overrides!$C$5:$GU$5,0)), AB25*(1+S!$CL$206)*(AC5>0)) -> 0 | AD25: =IF(Overrides!$A25, OFFSET(Overrides!$B25, 0, MATCH(AD$4,Overrides!$C$5:$GU$5,0)), AC25*(1+S!$CL$206)*(AD5>0)) -> 0 | AE25: =IF(Overrides!$A25, OFFSET(Overrides!$B25, 0, MATCH(AE$4,Overrides!$C$5:$GU$5,0)), AD25*(1+S!$CL$206)*(AE5>0)) -> 0 | AF25: =IF(Overrides!$A25, OFFSET(Overrides!$B25, 0, MATCH(AF$4,Overrides!$C$5:$GU$5,0)), AE25*(1+S!$CL$206)*(AF5>0)) -> 0 | AG25: =IF(Overrides!$A25, OFFSET(Overrides!$B25, 0, MATCH(AG$4,Overrides!$C$5:$GU$5,0)), AF25*(1+S!$CL$206)*(AG5>0)) -> 0 | AH25: =IF(Overrides!$A25, OFFSET(Overrides!$B25, 0, MATCH(AH$4,Overrides!$C$5:$GU$5,0)), AG25*(1+S!$CL$206)*(AH5>0)) -> 0 | AI25: =IF(Overrides!$A25, OFFSET(Overrides!$B25, 0, MATCH(AI$4,Overrides!$C$5:$GU$5,0)), AH25*(1+S!$CL$206)*(AI5>0)) -> 0 | AJ25: =IF(Overrides!$A25, OFFSET(Overrides!$B25, 0, MATCH(AJ$4,Overrides!$C$5:$GU$5,0)), AI25*(1+S!$CL$206)*(AJ5>0)) -> 0 | AK25: =IF(Overrides!$A25, OFFSET(Overrides!$B25, 0, MATCH(AK$4,Overrides!$C$5:$GU$5,0)), AJ25*(1+S!$CL$206)*(AK5>0)) -> 0 | AL25: =IF(Overrides!$A25, OFFSET(Overrides!$B25, 0, MATCH(AL$4,Overrides!$C$5:$GU$5,0)), AK25*(1+S!$CL$206)*(AL5>0)) -> 0 | AM25: =IF(Overrides!$A25, OFFSET(Overrides!$B25, 0, MATCH(AM$4,Overrides!$C$5:$GU$5,0)), AL25*(1+S!$CL$206)*(AM5>0)) -> 0 | AN25: =IF(Overrides!$A25, OFFSET(Overrides!$B25, 0, MATCH(AN$4,Overrides!$C$5:$GU$5,0)), AM25*(1+S!$CL$206)*(AN5>0)) -> 0 | AO25: =IF(Overrides!$A25, OFFSET(Overrides!$B25, 0, MATCH(AO$4,Overrides!$C$5:$GU$5,0)), AN25*(1+S!$CL$206)*(AO5>0)) -> 0 | AP25: =IF(Overrides!$A25, OFFSET(Overrides!$B25, 0, MATCH(AP$4,Overrides!$C$5:$GU$5,0)), AO25*(1+S!$CL$206)*(AP5>0)) -> 0 | AQ25: =IF(Overrides!$A25, OFFSET(Overrides!$B25, 0, MATCH(AQ$4,Overrides!$C$5:$GU$5,0)), AP25*(1+S!$CL$206)*(AQ5>0)) -> 0 | AR25: =IF(Overrides!$A25, OFFSET(Overrides!$B25, 0, MATCH(AR$4,Overrides!$C$5:$GU$5,0)), AQ25*(1+S!$CL$206)*(AR5>0)) -> 0 | AS25: =IF(Overrides!$A25, OFFSET(Overrides!$B25, 0, MATCH(AS$4,Overrides!$C$5:$GU$5,0)), AR25*(1+S!$CL$206)*(AS5>0)) -> 0 | AT25: =IF(Overrides!$A25, OFFSET(Overrides!$B25, 0, MATCH(AT$4,Overrides!$C$5:$GU$5,0)), AS25*(1+S!$CL$206)*(AT5>0)) -> 0 | AU25: =IF(Overrides!$A25, OFFSET(Overrides!$B25, 0, MATCH(AU$4,Overrides!$C$5:$GU$5,0)), AT25*(1+S!$CL$206)*(AU5>0)) -> 0 | AV25: =IF(Overrides!$A25, OFFSET(Overrides!$B25, 0, MATCH(AV$4,Overrides!$C$5:$GU$5,0)), AU25*(1+S!$CL$206)*(AV5>0)) -> 0 | AW25: =IF(Overrides!$A25, OFFSET(Overrides!$B25, 0, MATCH(AW$4,Overrides!$C$5:$GU$5,0)), AV25*(1+S!$CL$206)*(AW5>0)) -> 0 | AX25: =IF(Overrides!$A25, OFFSET(Overrides!$B25, 0, MATCH(AX$4,Overrides!$C$5:$GU$5,0)), AW25*(1+S!$CL$206)*(AX5>0)) -> 0 | AY25: =IF(Overrides!$A25, OFFSET(Overrides!$B25, 0, MATCH(AY$4,Overrides!$C$5:$GU$5,0)), AX25*(1+S!$CL$206)*(AY5>0)) -> 0 | AZ25: =IF(Overrides!$A25, OFFSET(Overrides!$B25, 0, MATCH(AZ$4,Overrides!$C$5:$GU$5,0)), AY25*(1+S!$CL$206)*(AZ5>0)) -> 0 | BA25: =IF(Overrides!$A25, OFFSET(Overrides!$B25, 0, MATCH(BA$4,Overrides!$C$5:$GU$5,0)), AZ25*(1+S!$CL$206)*(BA5>0)) -> 0 | BB25: =IF(Overrides!$A25, OFFSET(Overrides!$B25, 0, MATCH(BB$4,Overrides!$C$5:$GU$5,0)), BA25*(1+S!$CL$206)*(BB5>0)) -> 0 | BC25: =IF(Overrides!$A25, OFFSET(Overrides!$B25, 0, MATCH(BC$4,Overrides!$C$5:$GU$5,0)), BB25*(1+S!$CL$206)*(BC5>0)) -> 0 | BD25: =IF(Overrides!$A25, OFFSET(Overrides!$B25, 0, MATCH(BD$4,Overrides!$C$5:$GU$5,0)), BC25*(1+S!$CL$206)*(BD5>0)) -> 0 | BE25: =IF(Overrides!$A25, OFFSET(Overrides!$B25, 0, MATCH(BE$4,Overrides!$C$5:$GU$5,0)), BD25*(1+S!$CL$206)*(BE5>0)) -> 0 | BF25: =IF(Overrides!$A25, OFFSET(Overrides!$B25, 0, MATCH(BF$4,Overrides!$C$5:$GU$5,0)), BE25*(1+S!$CL$206)*(BF5>0)) -> 0 | BG25: =IF(Overrides!$A25, OFFSET(Overrides!$B25, 0, MATCH(BG$4,Overrides!$C$5:$GU$5,0)), BF25*(1+S!$CL$206)*(BG5>0)) -> 0 | BH25: =IF(Overrides!$A25, OFFSET(Overrides!$B25, 0, MATCH(BH$4,Overrides!$C$5:$GU$5,0)), BG25*(1+S!$CL$206)*(BH5>0)) -> 0 | BI25: =IF(Overrides!$A25, OFFSET(Overrides!$B25, 0, MATCH(BI$4,Overrides!$C$5:$GU$5,0)), BH25*(1+S!$CL$206)*(BI5>0)) -> 0 | BJ25: =IF(Overrides!$A25, OFFSET(Overrides!$B25, 0, MATCH(BJ$4,Overrides!$C$5:$GU$5,0)), BI25*(1+S!$CL$206)*(BJ5>0)) -> 0 | BK25: =IF(Overrides!$A25, OFFSET(Overrides!$B25, 0, MATCH(BK$4,Overrides!$C$5:$GU$5,0)), BJ25*(1+S!$CL$206)*(BK5>0)) -> 0 | BL25: =IF(Overrides!$A25, OFFSET(Overrides!$B25, 0, MATCH(BL$4,Overrides!$C$5:$GU$5,0)), BK25*(1+S!$CL$206)*(BL5>0)) -> 0 | BM25: =IF(Overrides!$A25, OFFSET(Overrides!$B25, 0, MATCH(BM$4,Overrides!$C$5:$GU$5,0)), BL25*(1+S!$CL$206)*(BM5>0)) -> 0 | BN25: =IF(Overrides!$A25, OFFSET(Overrides!$B25, 0, MATCH(BN$4,Overrides!$C$5:$GU$5,0)), BM25*(1+S!$CL$206)*(BN5>0)) -> 0 | BO25: =IF(Overrides!$A25, OFFSET(Overrides!$B25, 0, MATCH(BO$4,Overrides!$C$5:$GU$5,0)), BN25*(1+S!$CL$206)*(BO5>0)) -> 0 | BP25: =IF(Overrides!$A25, OFFSET(Overrides!$B25, 0, MATCH(BP$4,Overrides!$C$5:$GU$5,0)), BO25*(1+S!$CL$206)*(BP5>0)) -> 0 | BQ25: =IF(Overrides!$A25, OFFSET(Overrides!$B25, 0, MATCH(BQ$4,Overrides!$C$5:$GU$5,0)), BP25*(1+S!$CL$206)*(BQ5>0)) -> 0 | BR25: =IF(Overrides!$A25, OFFSET(Overrides!$B25, 0, MATCH(BR$4,Overrides!$C$5:$GU$5,0)), BQ25*(1+S!$CL$206)*(BR5>0)) -> 0 | BS25: =IF(Overrides!$A25, OFFSET(Overrides!$B25, 0, MATCH(BS$4,Overrides!$C$5:$GU$5,0)), BR25*(1+S!$CL$206)*(BS5>0)) -> 0 | BT25: =IF(Overrides!$A25, OFFSET(Overrides!$B25, 0, MATCH(BT$4,Overrides!$C$5:$GU$5,0)), BS25*(1+S!$CL$206)*(BT5>0)) -> 0 | BU25: =IF(Overrides!$A25, OFFSET(Overrides!$B25, 0, MATCH(BU$4,Overrides!$C$5:$GU$5,0)), BT25*(1+S!$CL$206)*(BU5>0)) -> 0 | BV25: =IF(Overrides!$A25, OFFSET(Overrides!$B25, 0, MATCH(BV$4,Overrides!$C$5:$GU$5,0)), BU25*(1+S!$CL$206)*(BV5>0)) -> 0 | BW25: =IF(Overrides!$A25, OFFSET(Overrides!$B25, 0, MATCH(BW$4,Overrides!$C$5:$GU$5,0)), BV25*(1+S!$CL$206)*(BW5>0)) -> 0 | BX25: =IF(Overrides!$A25, OFFSET(Overrides!$B25, 0, MATCH(BX$4,Overrides!$C$5:$GU$5,0)), BW25*(1+S!$CL$206)*(BX5>0)) -> 0 | BY25: =IF(Overrides!$A25, OFFSET(Overrides!$B25, 0, MATCH(BY$4,Overrides!$C$5:$GU$5,0)), BX25*(1+S!$CL$206)*(BY5>0)) -> 0 | BZ25: =IF(Overrides!$A25, OFFSET(Overrides!$B25, 0, MATCH(BZ$4,Overrides!$C$5:$GU$5,0)), BY25*(1+S!$CL$206)*(BZ5>0)) -> 0 | CA25: =IF(Overrides!$A25, OFFSET(Overrides!$B25, 0, MATCH(CA$4,Overrides!$C$5:$GU$5,0)), BZ25*(1+S!$CL$206)*(CA5>0)) -> 0 | CB25: =IF(Overrides!$A25, OFFSET(Overrides!$B25, 0, MATCH(CB$4,Overrides!$C$5:$GU$5,0)), CA25*(1+S!$CL$206)*(CB5>0)) -> 0 | CC25: =IF(Overrides!$A25, OFFSET(Overrides!$B25, 0, MATCH(CC$4,Overrides!$C$5:$GU$5,0)), CB25*(1+S!$CL$206)*(CC5>0)) -> 0 | CD25: =IF(Overrides!$A25, OFFSET(Overrides!$B25, 0, MATCH(CD$4,Overrides!$C$5:$GU$5,0)), CC25*(1+S!$CL$206)*(CD5>0)) -> 0 | CE25: =IF(Overrides!$A25, OFFSET(Overrides!$B25, 0, MATCH(CE$4,Overrides!$C$5:$GU$5,0)), CD25*(1+S!$CL$206)*(CE5>0)) -> 0 | CF25: =IF(Overrides!$A25, OFFSET(Overrides!$B25, 0, MATCH(CF$4,Overrides!$C$5:$GU$5,0)), CE25*(1+S!$CL$206)*(CF5>0)) -> 0 | CG25: =IF(Overrides!$A25, OFFSET(Overrides!$B25, 0, MATCH(CG$4,Overrides!$C$5:$GU$5,0)), CF25*(1+S!$CL$206)*(CG5>0)) -> 0 | CH25: =IF(Overrides!$A25, OFFSET(Overrides!$B25, 0, MATCH(CH$4,Overrides!$C$5:$GU$5,0)), CG25*(1+S!$CL$206)*(CH5>0)) -> 0 | CI25: =IF(Overrides!$A25, OFFSET(Overrides!$B25, 0, MATCH(CI$4,Overrides!$C$5:$GU$5,0)), CH25*(1+S!$CL$206)*(CI5>0)) -> 0 | CJ25: =IF(Overrides!$A25, OFFSET(Overrides!$B25, 0, MATCH(CJ$4,Overrides!$C$5:$GU$5,0)), CI25*(1+S!$CL$206)*(CJ5>0)) -> 0 | CK25: =IF(Overrides!$A25, OFFSET(Overrides!$B25, 0, MATCH(CK$4,Overrides!$C$5:$GU$5,0)), CJ25*(1+S!$CL$206)*(CK5>0)) -> 0 | CL25: =IF(Overrides!$A25, OFFSET(Overrides!$B25, 0, MATCH(CL$4,Overrides!$C$5:$GU$5,0)), CK25*(1+S!$CL$206)*(CL5>0)) -> 0 | CM25: =IF(Overrides!$A25, OFFSET(Overrides!$B25, 0, MATCH(CM$4,Overrides!$C$5:$GU$5,0)), CL25*(1+S!$CL$206)*(CM5>0)) -> 0 | CN25: =IF(Overrides!$A25, OFFSET(Overrides!$B25, 0, MATCH(CN$4,Overrides!$C$5:$GU$5,0)), CM25*(1+S!$CL$206)*(CN5>0)) -> 0 | CO25: =IF(Overrides!$A25, OFFSET(Overrides!$B25, 0, MATCH(CO$4,Overrides!$C$5:$GU$5,0)), CN25*(1+S!$CL$206)*(CO5>0)) -> 0 | CP25: =IF(Overrides!$A25, OFFSET(Overrides!$B25, 0, MATCH(CP$4,Overrides!$C$5:$GU$5,0)), CO25*(1+S!$CL$206)*(CP5>0)) -> 0 | CQ25: =IF(Overrides!$A25, OFFSET(Overrides!$B25, 0, MATCH(CQ$4,Overrides!$C$5:$GU$5,0)), CP25*(1+S!$CL$206)*(CQ5>0)) -> 0 | CR25: =IF(Overrides!$A25, OFFSET(Overrides!$B25, 0, MATCH(CR$4,Overrides!$C$5:$GU$5,0)), CQ25*(1+S!$CL$206)*(CR5>0)) -> 0 | CS25: =IF(Overrides!$A25, OFFSET(Overrides!$B25, 0, MATCH(CS$4,Overrides!$C$5:$GU$5,0)), CR25*(1+S!$CL$206)*(CS5>0)) -> 0 | CT25: =IF(Overrides!$A25, OFFSET(Overrides!$B25, 0, MATCH(CT$4,Overrides!$C$5:$GU$5,0)), CS25*(1+S!$CL$206)*(CT5>0)) -> 0 | CU25: =IF(Overrides!$A25, OFFSET(Overrides!$B25, 0, MATCH(CU$4,Overrides!$C$5:$GU$5,0)), CT25*(1+S!$CL$206)*(CU5>0)) -> 0 | CV25: =IF(Overrides!$A25, OFFSET(Overrides!$B25, 0, MATCH(CV$4,Overrides!$C$5:$GU$5,0)), CU25*(1+S!$CL$206)*(CV5>0)) -> 0 | CW25: =IF(Overrides!$A25, OFFSET(Overrides!$B25, 0, MATCH(CW$4,Overrides!$C$5:$GU$5,0)), CV25*(1+S!$CL$206)*(CW5>0)) -> 0 | CX25: =IF(Overrides!$A25, OFFSET(Overrides!$B25, 0, MATCH(CX$4,Overrides!$C$5:$GU$5,0)), CW25*(1+S!$CL$206)*(CX5>0)) -> 0 | CY25: =IF(Overrides!$A25, OFFSET(Overrides!$B25, 0, MATCH(CY$4,Overrides!$C$5:$GU$5,0)), CX25*(1+S!$CL$206)*(CY5>0)) -> 0
C26: ="Value of "&Interface!E60&" ($/"&Interface!F60&")" -> Value of coproduct 3 ($/units of coproduct 3) | D26: 0 | E26: =IF(Overrides!$A26, OFFSET(Overrides!$B26, 0, MATCH(E$4,Overrides!$C$5:$GU$5,0)), S!CM$206) -> 0.1 | F26: =IF(Overrides!$A26, OFFSET(Overrides!$B26, 0, MATCH(F$4,Overrides!$C$5:$GU$5,0)), E26*(1+S!$CN$206)*(F$5>0)) -> 0.1019 | G26: =IF(Overrides!$A26, OFFSET(Overrides!$B26, 0, MATCH(G$4,Overrides!$C$5:$GU$5,0)), F26*(1+S!$CN$206)*(G5>0)) -> 0.1038361 | H26: =IF(Overrides!$A26, OFFSET(Overrides!$B26, 0, MATCH(H$4,Overrides!$C$5:$GU$5,0)), G26*(1+S!$CN$206)*(H5>0)) -> 0.1058089859 | I26: =IF(Overrides!$A26, OFFSET(Overrides!$B26, 0, MATCH(I$4,Overrides!$C$5:$GU$5,0)), H26*(1+S!$CN$206)*(I5>0)) -> 0.1078193566 | J26: =IF(Overrides!$A26, OFFSET(Overrides!$B26, 0, MATCH(J$4,Overrides!$C$5:$GU$5,0)), I26*(1+S!$CN$206)*(J5>0)) -> 0.1098679244 | K26: =IF(Overrides!$A26, OFFSET(Overrides!$B26, 0, MATCH(K$4,Overrides!$C$5:$GU$5,0)), J26*(1+S!$CN$206)*(K5>0)) -> 0.111955415 | L26: =IF(Overrides!$A26, OFFSET(Overrides!$B26, 0, MATCH(L$4,Overrides!$C$5:$GU$5,0)), K26*(1+S!$CN$206)*(L5>0)) -> 0.1140825679 | M26: =IF(Overrides!$A26, OFFSET(Overrides!$B26, 0, MATCH(M$4,Overrides!$C$5:$GU$5,0)), L26*(1+S!$CN$206)*(M5>0)) -> 0.1162501366 | N26: =IF(Overrides!$A26, OFFSET(Overrides!$B26, 0, MATCH(N$4,Overrides!$C$5:$GU$5,0)), M26*(1+S!$CN$206)*(N5>0)) -> 0.1184588892 | O26: =IF(Overrides!$A26, OFFSET(Overrides!$B26, 0, MATCH(O$4,Overrides!$C$5:$GU$5,0)), N26*(1+S!$CN$206)*(O5>0)) -> 0.1207096081 | P26: =IF(Overrides!$A26, OFFSET(Overrides!$B26, 0, MATCH(P$4,Overrides!$C$5:$GU$5,0)), O26*(1+S!$CN$206)*(P5>0)) -> 0.1230030907 | Q26: =IF(Overrides!$A26, OFFSET(Overrides!$B26, 0, MATCH(Q$4,Overrides!$C$5:$GU$5,0)), P26*(1+S!$CN$206)*(Q5>0)) -> 0.1253401494 | R26: =IF(Overrides!$A26, OFFSET(Overrides!$B26, 0, MATCH(R$4,Overrides!$C$5:$GU$5,0)), Q26*(1+S!$CN$206)*(R5>0)) -> 0.1277216123 | S26: =IF(Overrides!$A26, OFFSET(Overrides!$B26, 0, MATCH(S$4,Overrides!$C$5:$GU$5,0)), R26*(1+S!$CN$206)*(S5>0)) -> 0.1301483229 | T26: =IF(Overrides!$A26, OFFSET(Overrides!$B26, 0, MATCH(T$4,Overrides!$C$5:$GU$5,0)), S26*(1+S!$CN$206)*(T5>0)) -> 0.132621141 | U26: =IF(Overrides!$A26, OFFSET(Overrides!$B26, 0, MATCH(U$4,Overrides!$C$5:$GU$5,0)), T26*(1+S!$CN$206)*(U5>0)) -> 0 | V26: =IF(Overrides!$A26, OFFSET(Overrides!$B26, 0, MATCH(V$4,Overrides!$C$5:$GU$5,0)), U26*(1+S!$CN$206)*(V5>0)) -> 0 | W26: =IF(Overrides!$A26, OFFSET(Overrides!$B26, 0, MATCH(W$4,Overrides!$C$5:$GU$5,0)), V26*(1+S!$CN$206)*(W5>0)) -> 0 | X26: =IF(Overrides!$A26, OFFSET(Overrides!$B26, 0, MATCH(X$4,Overrides!$C$5:$GU$5,0)), W26*(1+S!$CN$206)*(X5>0)) -> 0 | Y26: =IF(Overrides!$A26, OFFSET(Overrides!$B26, 0, MATCH(Y$4,Overrides!$C$5:$GU$5,0)), X26*(1+S!$CN$206)*(Y5>0)) -> 0 | Z26: =IF(Overrides!$A26, OFFSET(Overrides!$B26, 0, MATCH(Z$4,Overrides!$C$5:$GU$5,0)), Y26*(1+S!$CN$206)*(Z5>0)) -> 0 | AA26: =IF(Overrides!$A26, OFFSET(Overrides!$B26, 0, MATCH(AA$4,Overrides!$C$5:$GU$5,0)), Z26*(1+S!$CN$206)*(AA5>0)) -> 0 | AB26: =IF(Overrides!$A26, OFFSET(Overrides!$B26, 0, MATCH(AB$4,Overrides!$C$5:$GU$5,0)), AA26*(1+S!$CN$206)*(AB5>0)) -> 0 | AC26: =IF(Overrides!$A26, OFFSET(Overrides!$B26, 0, MATCH(AC$4,Overrides!$C$5:$GU$5,0)), AB26*(1+S!$CN$206)*(AC5>0)) -> 0 | AD26: =IF(Overrides!$A26, OFFSET(Overrides!$B26, 0, MATCH(AD$4,Overrides!$C$5:$GU$5,0)), AC26*(1+S!$CN$206)*(AD5>0)) -> 0 | AE26: =IF(Overrides!$A26, OFFSET(Overrides!$B26, 0, MATCH(AE$4,Overrides!$C$5:$GU$5,0)), AD26*(1+S!$CN$206)*(AE5>0)) -> 0 | AF26: =IF(Overrides!$A26, OFFSET(Overrides!$B26, 0, MATCH(AF$4,Overrides!$C$5:$GU$5,0)), AE26*(1+S!$CN$206)*(AF5>0)) -> 0 | AG26: =IF(Overrides!$A26, OFFSET(Overrides!$B26, 0, MATCH(AG$4,Overrides!$C$5:$GU$5,0)), AF26*(1+S!$CN$206)*(AG5>0)) -> 0 | AH26: =IF(Overrides!$A26, OFFSET(Overrides!$B26, 0, MATCH(AH$4,Overrides!$C$5:$GU$5,0)), AG26*(1+S!$CN$206)*(AH5>0)) -> 0 | AI26: =IF(Overrides!$A26, OFFSET(Overrides!$B26, 0, MATCH(AI$4,Overrides!$C$5:$GU$5,0)), AH26*(1+S!$CN$206)*(AI5>0)) -> 0 | AJ26: =IF(Overrides!$A26, OFFSET(Overrides!$B26, 0, MATCH(AJ$4,Overrides!$C$5:$GU$5,0)), AI26*(1+S!$CN$206)*(AJ5>0)) -> 0 | AK26: =IF(Overrides!$A26, OFFSET(Overrides!$B26, 0, MATCH(AK$4,Overrides!$C$5:$GU$5,0)), AJ26*(1+S!$CN$206)*(AK5>0)) -> 0 | AL26: =IF(Overrides!$A26, OFFSET(Overrides!$B26, 0, MATCH(AL$4,Overrides!$C$5:$GU$5,0)), AK26*(1+S!$CN$206)*(AL5>0)) -> 0 | AM26: =IF(Overrides!$A26, OFFSET(Overrides!$B26, 0, MATCH(AM$4,Overrides!$C$5:$GU$5,0)), AL26*(1+S!$CN$206)*(AM5>0)) -> 0 | AN26: =IF(Overrides!$A26, OFFSET(Overrides!$B26, 0, MATCH(AN$4,Overrides!$C$5:$GU$5,0)), AM26*(1+S!$CN$206)*(AN5>0)) -> 0 | AO26: =IF(Overrides!$A26, OFFSET(Overrides!$B26, 0, MATCH(AO$4,Overrides!$C$5:$GU$5,0)), AN26*(1+S!$CN$206)*(AO5>0)) -> 0 | AP26: =IF(Overrides!$A26, OFFSET(Overrides!$B26, 0, MATCH(AP$4,Overrides!$C$5:$GU$5,0)), AO26*(1+S!$CN$206)*(AP5>0)) -> 0 | AQ26: =IF(Overrides!$A26, OFFSET(Overrides!$B26, 0, MATCH(AQ$4,Overrides!$C$5:$GU$5,0)), AP26*(1+S!$CN$206)*(AQ5>0)) -> 0 | AR26: =IF(Overrides!$A26, OFFSET(Overrides!$B26, 0, MATCH(AR$4,Overrides!$C$5:$GU$5,0)), AQ26*(1+S!$CN$206)*(AR5>0)) -> 0 | AS26: =IF(Overrides!$A26, OFFSET(Overrides!$B26, 0, MATCH(AS$4,Overrides!$C$5:$GU$5,0)), AR26*(1+S!$CN$206)*(AS5>0)) -> 0 | AT26: =IF(Overrides!$A26, OFFSET(Overrides!$B26, 0, MATCH(AT$4,Overrides!$C$5:$GU$5,0)), AS26*(1+S!$CN$206)*(AT5>0)) -> 0 | AU26: =IF(Overrides!$A26, OFFSET(Overrides!$B26, 0, MATCH(AU$4,Overrides!$C$5:$GU$5,0)), AT26*(1+S!$CN$206)*(AU5>0)) -> 0 | AV26: =IF(Overrides!$A26, OFFSET(Overrides!$B26, 0, MATCH(AV$4,Overrides!$C$5:$GU$5,0)), AU26*(1+S!$CN$206)*(AV5>0)) -> 0 | AW26: =IF(Overrides!$A26, OFFSET(Overrides!$B26, 0, MATCH(AW$4,Overrides!$C$5:$GU$5,0)), AV26*(1+S!$CN$206)*(AW5>0)) -> 0 | AX26: =IF(Overrides!$A26, OFFSET(Overrides!$B26, 0, MATCH(AX$4,Overrides!$C$5:$GU$5,0)), AW26*(1+S!$CN$206)*(AX5>0)) -> 0 | AY26: =IF(Overrides!$A26, OFFSET(Overrides!$B26, 0, MATCH(AY$4,Overrides!$C$5:$GU$5,0)), AX26*(1+S!$CN$206)*(AY5>0)) -> 0 | AZ26: =IF(Overrides!$A26, OFFSET(Overrides!$B26, 0, MATCH(AZ$4,Overrides!$C$5:$GU$5,0)), AY26*(1+S!$CN$206)*(AZ5>0)) -> 0 | BA26: =IF(Overrides!$A26, OFFSET(Overrides!$B26, 0, MATCH(BA$4,Overrides!$C$5:$GU$5,0)), AZ26*(1+S!$CN$206)*(BA5>0)) -> 0 | BB26: =IF(Overrides!$A26, OFFSET(Overrides!$B26, 0, MATCH(BB$4,Overrides!$C$5:$GU$5,0)), BA26*(1+S!$CN$206)*(BB5>0)) -> 0 | BC26: =IF(Overrides!$A26, OFFSET(Overrides!$B26, 0, MATCH(BC$4,Overrides!$C$5:$GU$5,0)), BB26*(1+S!$CN$206)*(BC5>0)) -> 0 | BD26: =IF(Overrides!$A26, OFFSET(Overrides!$B26, 0, MATCH(BD$4,Overrides!$C$5:$GU$5,0)), BC26*(1+S!$CN$206)*(BD5>0)) -> 0 | BE26: =IF(Overrides!$A26, OFFSET(Overrides!$B26, 0, MATCH(BE$4,Overrides!$C$5:$GU$5,0)), BD26*(1+S!$CN$206)*(BE5>0)) -> 0 | BF26: =IF(Overrides!$A26, OFFSET(Overrides!$B26, 0, MATCH(BF$4,Overrides!$C$5:$GU$5,0)), BE26*(1+S!$CN$206)*(BF5>0)) -> 0 | BG26: =IF(Overrides!$A26, OFFSET(Overrides!$B26, 0, MATCH(BG$4,Overrides!$C$5:$GU$5,0)), BF26*(1+S!$CN$206)*(BG5>0)) -> 0 | BH26: =IF(Overrides!$A26, OFFSET(Overrides!$B26, 0, MATCH(BH$4,Overrides!$C$5:$GU$5,0)), BG26*(1+S!$CN$206)*(BH5>0)) -> 0 | BI26: =IF(Overrides!$A26, OFFSET(Overrides!$B26, 0, MATCH(BI$4,Overrides!$C$5:$GU$5,0)), BH26*(1+S!$CN$206)*(BI5>0)) -> 0 | BJ26: =IF(Overrides!$A26, OFFSET(Overrides!$B26, 0, MATCH(BJ$4,Overrides!$C$5:$GU$5,0)), BI26*(1+S!$CN$206)*(BJ5>0)) -> 0 | BK26: =IF(Overrides!$A26, OFFSET(Overrides!$B26, 0, MATCH(BK$4,Overrides!$C$5:$GU$5,0)), BJ26*(1+S!$CN$206)*(BK5>0)) -> 0 | BL26: =IF(Overrides!$A26, OFFSET(Overrides!$B26, 0, MATCH(BL$4,Overrides!$C$5:$GU$5,0)), BK26*(1+S!$CN$206)*(BL5>0)) -> 0 | BM26: =IF(Overrides!$A26, OFFSET(Overrides!$B26, 0, MATCH(BM$4,Overrides!$C$5:$GU$5,0)), BL26*(1+S!$CN$206)*(BM5>0)) -> 0 | BN26: =IF(Overrides!$A26, OFFSET(Overrides!$B26, 0, MATCH(BN$4,Overrides!$C$5:$GU$5,0)), BM26*(1+S!$CN$206)*(BN5>0)) -> 0 | BO26: =IF(Overrides!$A26, OFFSET(Overrides!$B26, 0, MATCH(BO$4,Overrides!$C$5:$GU$5,0)), BN26*(1+S!$CN$206)*(BO5>0)) -> 0 | BP26: =IF(Overrides!$A26, OFFSET(Overrides!$B26, 0, MATCH(BP$4,Overrides!$C$5:$GU$5,0)), BO26*(1+S!$CN$206)*(BP5>0)) -> 0 | BQ26: =IF(Overrides!$A26, OFFSET(Overrides!$B26, 0, MATCH(BQ$4,Overrides!$C$5:$GU$5,0)), BP26*(1+S!$CN$206)*(BQ5>0)) -> 0 | BR26: =IF(Overrides!$A26, OFFSET(Overrides!$B26, 0, MATCH(BR$4,Overrides!$C$5:$GU$5,0)), BQ26*(1+S!$CN$206)*(BR5>0)) -> 0 | BS26: =IF(Overrides!$A26, OFFSET(Overrides!$B26, 0, MATCH(BS$4,Overrides!$C$5:$GU$5,0)), BR26*(1+S!$CN$206)*(BS5>0)) -> 0 | BT26: =IF(Overrides!$A26, OFFSET(Overrides!$B26, 0, MATCH(BT$4,Overrides!$C$5:$GU$5,0)), BS26*(1+S!$CN$206)*(BT5>0)) -> 0 | BU26: =IF(Overrides!$A26, OFFSET(Overrides!$B26, 0, MATCH(BU$4,Overrides!$C$5:$GU$5,0)), BT26*(1+S!$CN$206)*(BU5>0)) -> 0 | BV26: =IF(Overrides!$A26, OFFSET(Overrides!$B26, 0, MATCH(BV$4,Overrides!$C$5:$GU$5,0)), BU26*(1+S!$CN$206)*(BV5>0)) -> 0 | BW26: =IF(Overrides!$A26, OFFSET(Overrides!$B26, 0, MATCH(BW$4,Overrides!$C$5:$GU$5,0)), BV26*(1+S!$CN$206)*(BW5>0)) -> 0 | BX26: =IF(Overrides!$A26, OFFSET(Overrides!$B26, 0, MATCH(BX$4,Overrides!$C$5:$GU$5,0)), BW26*(1+S!$CN$206)*(BX5>0)) -> 0 | BY26: =IF(Overrides!$A26, OFFSET(Overrides!$B26, 0, MATCH(BY$4,Overrides!$C$5:$GU$5,0)), BX26*(1+S!$CN$206)*(BY5>0)) -> 0 | BZ26: =IF(Overrides!$A26, OFFSET(Overrides!$B26, 0, MATCH(BZ$4,Overrides!$C$5:$GU$5,0)), BY26*(1+S!$CN$206)*(BZ5>0)) -> 0 | CA26: =IF(Overrides!$A26, OFFSET(Overrides!$B26, 0, MATCH(CA$4,Overrides!$C$5:$GU$5,0)), BZ26*(1+S!$CN$206)*(CA5>0)) -> 0 | CB26: =IF(Overrides!$A26, OFFSET(Overrides!$B26, 0, MATCH(CB$4,Overrides!$C$5:$GU$5,0)), CA26*(1+S!$CN$206)*(CB5>0)) -> 0 | CC26: =IF(Overrides!$A26, OFFSET(Overrides!$B26, 0, MATCH(CC$4,Overrides!$C$5:$GU$5,0)), CB26*(1+S!$CN$206)*(CC5>0)) -> 0 | CD26: =IF(Overrides!$A26, OFFSET(Overrides!$B26, 0, MATCH(CD$4,Overrides!$C$5:$GU$5,0)), CC26*(1+S!$CN$206)*(CD5>0)) -> 0 | CE26: =IF(Overrides!$A26, OFFSET(Overrides!$B26, 0, MATCH(CE$4,Overrides!$C$5:$GU$5,0)), CD26*(1+S!$CN$206)*(CE5>0)) -> 0 | CF26: =IF(Overrides!$A26, OFFSET(Overrides!$B26, 0, MATCH(CF$4,Overrides!$C$5:$GU$5,0)), CE26*(1+S!$CN$206)*(CF5>0)) -> 0 | CG26: =IF(Overrides!$A26, OFFSET(Overrides!$B26, 0, MATCH(CG$4,Overrides!$C$5:$GU$5,0)), CF26*(1+S!$CN$206)*(CG5>0)) -> 0 | CH26: =IF(Overrides!$A26, OFFSET(Overrides!$B26, 0, MATCH(CH$4,Overrides!$C$5:$GU$5,0)), CG26*(1+S!$CN$206)*(CH5>0)) -> 0 | CI26: =IF(Overrides!$A26, OFFSET(Overrides!$B26, 0, MATCH(CI$4,Overrides!$C$5:$GU$5,0)), CH26*(1+S!$CN$206)*(CI5>0)) -> 0 | CJ26: =IF(Overrides!$A26, OFFSET(Overrides!$B26, 0, MATCH(CJ$4,Overrides!$C$5:$GU$5,0)), CI26*(1+S!$CN$206)*(CJ5>0)) -> 0 | CK26: =IF(Overrides!$A26, OFFSET(Overrides!$B26, 0, MATCH(CK$4,Overrides!$C$5:$GU$5,0)), CJ26*(1+S!$CN$206)*(CK5>0)) -> 0 | CL26: =IF(Overrides!$A26, OFFSET(Overrides!$B26, 0, MATCH(CL$4,Overrides!$C$5:$GU$5,0)), CK26*(1+S!$CN$206)*(CL5>0)) -> 0 | CM26: =IF(Overrides!$A26, OFFSET(Overrides!$B26, 0, MATCH(CM$4,Overrides!$C$5:$GU$5,0)), CL26*(1+S!$CN$206)*(CM5>0)) -> 0 | CN26: =IF(Overrides!$A26, OFFSET(Overrides!$B26, 0, MATCH(CN$4,Overrides!$C$5:$GU$5,0)), CM26*(1+S!$CN$206)*(CN5>0)) -> 0 | CO26: =IF(Overrides!$A26, OFFSET(Overrides!$B26, 0, MATCH(CO$4,Overrides!$C$5:$GU$5,0)), CN26*(1+S!$CN$206)*(CO5>0)) -> 0 | CP26: =IF(Overrides!$A26, OFFSET(Overrides!$B26, 0, MATCH(CP$4,Overrides!$C$5:$GU$5,0)), CO26*(1+S!$CN$206)*(CP5>0)) -> 0 | CQ26: =IF(Overrides!$A26, OFFSET(Overrides!$B26, 0, MATCH(CQ$4,Overrides!$C$5:$GU$5,0)), CP26*(1+S!$CN$206)*(CQ5>0)) -> 0 | CR26: =IF(Overrides!$A26, OFFSET(Overrides!$B26, 0, MATCH(CR$4,Overrides!$C$5:$GU$5,0)), CQ26*(1+S!$CN$206)*(CR5>0)) -> 0 | CS26: =IF(Overrides!$A26, OFFSET(Overrides!$B26, 0, MATCH(CS$4,Overrides!$C$5:$GU$5,0)), CR26*(1+S!$CN$206)*(CS5>0)) -> 0 | CT26: =IF(Overrides!$A26, OFFSET(Overrides!$B26, 0, MATCH(CT$4,Overrides!$C$5:$GU$5,0)), CS26*(1+S!$CN$206)*(CT5>0)) -> 0 | CU26: =IF(Overrides!$A26, OFFSET(Overrides!$B26, 0, MATCH(CU$4,Overrides!$C$5:$GU$5,0)), CT26*(1+S!$CN$206)*(CU5>0)) -> 0 | CV26: =IF(Overrides!$A26, OFFSET(Overrides!$B26, 0, MATCH(CV$4,Overrides!$C$5:$GU$5,0)), CU26*(1+S!$CN$206)*(CV5>0)) -> 0 | CW26: =IF(Overrides!$A26, OFFSET(Overrides!$B26, 0, MATCH(CW$4,Overrides!$C$5:$GU$5,0)), CV26*(1+S!$CN$206)*(CW5>0)) -> 0 | CX26: =IF(Overrides!$A26, OFFSET(Overrides!$B26, 0, MATCH(CX$4,Overrides!$C$5:$GU$5,0)), CW26*(1+S!$CN$206)*(CX5>0)) -> 0 | CY26: =IF(Overrides!$A26, OFFSET(Overrides!$B26, 0, MATCH(CY$4,Overrides!$C$5:$GU$5,0)), CX26*(1+S!$CN$206)*(CY5>0)) -> 0
C27: ="Value of "&Interface!E61&" ($/"&Interface!F61&")" -> Value of coproduct 4 ($/units of coproduct 4) | D27: 0 | E27: =IF(Overrides!$A27, OFFSET(Overrides!$B27, 0, MATCH(E$4,Overrides!$C$5:$GU$5,0)), S!CO$206) -> 0.1 | F27: =IF(Overrides!$A27, OFFSET(Overrides!$B27, 0, MATCH(F$4,Overrides!$C$5:$GU$5,0)), E27*(1+S!$CP$206)*(F$5>0)) -> 0.1019 | G27: =IF(Overrides!$A27, OFFSET(Overrides!$B27, 0, MATCH(G$4,Overrides!$C$5:$GU$5,0)), F27*(1+S!$CP$206)*(G$5>0)) -> 0.1038361 | H27: =IF(Overrides!$A27, OFFSET(Overrides!$B27, 0, MATCH(H$4,Overrides!$C$5:$GU$5,0)), G27*(1+S!$CP$206)*(H$5>0)) -> 0.1058089859 | I27: =IF(Overrides!$A27, OFFSET(Overrides!$B27, 0, MATCH(I$4,Overrides!$C$5:$GU$5,0)), H27*(1+S!$CP$206)*(I$5>0)) -> 0.1078193566 | J27: =IF(Overrides!$A27, OFFSET(Overrides!$B27, 0, MATCH(J$4,Overrides!$C$5:$GU$5,0)), I27*(1+S!$CP$206)*(J$5>0)) -> 0.1098679244 | K27: =IF(Overrides!$A27, OFFSET(Overrides!$B27, 0, MATCH(K$4,Overrides!$C$5:$GU$5,0)), J27*(1+S!$CP$206)*(K$5>0)) -> 0.111955415 | L27: =IF(Overrides!$A27, OFFSET(Overrides!$B27, 0, MATCH(L$4,Overrides!$C$5:$GU$5,0)), K27*(1+S!$CP$206)*(L$5>0)) -> 0.1140825679 | M27: =IF(Overrides!$A27, OFFSET(Overrides!$B27, 0, MATCH(M$4,Overrides!$C$5:$GU$5,0)), L27*(1+S!$CP$206)*(M$5>0)) -> 0.1162501366 | N27: =IF(Overrides!$A27, OFFSET(Overrides!$B27, 0, MATCH(N$4,Overrides!$C$5:$GU$5,0)), M27*(1+S!$CP$206)*(N$5>0)) -> 0.1184588892 | O27: =IF(Overrides!$A27, OFFSET(Overrides!$B27, 0, MATCH(O$4,Overrides!$C$5:$GU$5,0)), N27*(1+S!$CP$206)*(O$5>0)) -> 0.1207096081 | P27: =IF(Overrides!$A27, OFFSET(Overrides!$B27, 0, MATCH(P$4,Overrides!$C$5:$GU$5,0)), O27*(1+S!$CP$206)*(P$5>0)) -> 0.1230030907 | Q27: =IF(Overrides!$A27, OFFSET(Overrides!$B27, 0, MATCH(Q$4,Overrides!$C$5:$GU$5,0)), P27*(1+S!$CP$206)*(Q$5>0)) -> 0.1253401494 | R27: =IF(Overrides!$A27, OFFSET(Overrides!$B27, 0, MATCH(R$4,Overrides!$C$5:$GU$5,0)), Q27*(1+S!$CP$206)*(R$5>0)) -> 0.1277216123 | S27: =IF(Overrides!$A27, OFFSET(Overrides!$B27, 0, MATCH(S$4,Overrides!$C$5:$GU$5,0)), R27*(1+S!$CP$206)*(S$5>0)) -> 0.1301483229 | T27: =IF(Overrides!$A27, OFFSET(Overrides!$B27, 0, MATCH(T$4,Overrides!$C$5:$GU$5,0)), S27*(1+S!$CP$206)*(T$5>0)) -> 0.132621141 | U27: =IF(Overrides!$A27, OFFSET(Overrides!$B27, 0, MATCH(U$4,Overrides!$C$5:$GU$5,0)), T27*(1+S!$CP$206)*(U$5>0)) -> 0 | V27: =IF(Overrides!$A27, OFFSET(Overrides!$B27, 0, MATCH(V$4,Overrides!$C$5:$GU$5,0)), U27*(1+S!$CP$206)*(V$5>0)) -> 0 | W27: =IF(Overrides!$A27, OFFSET(Overrides!$B27, 0, MATCH(W$4,Overrides!$C$5:$GU$5,0)), V27*(1+S!$CP$206)*(W$5>0)) -> 0 | X27: =IF(Overrides!$A27, OFFSET(Overrides!$B27, 0, MATCH(X$4,Overrides!$C$5:$GU$5,0)), W27*(1+S!$CP$206)*(X$5>0)) -> 0 | Y27: =IF(Overrides!$A27, OFFSET(Overrides!$B27, 0, MATCH(Y$4,Overrides!$C$5:$GU$5,0)), X27*(1+S!$CP$206)*(Y$5>0)) -> 0 | Z27: =IF(Overrides!$A27, OFFSET(Overrides!$B27, 0, MATCH(Z$4,Overrides!$C$5:$GU$5,0)), Y27*(1+S!$CP$206)*(Z$5>0)) -> 0 | AA27: =IF(Overrides!$A27, OFFSET(Overrides!$B27, 0, MATCH(AA$4,Overrides!$C$5:$GU$5,0)), Z27*(1+S!$CP$206)*(AA$5>0)) -> 0 | AB27: =IF(Overrides!$A27, OFFSET(Overrides!$B27, 0, MATCH(AB$4,Overrides!$C$5:$GU$5,0)), AA27*(1+S!$CP$206)*(AB$5>0)) -> 0 | AC27: =IF(Overrides!$A27, OFFSET(Overrides!$B27, 0, MATCH(AC$4,Overrides!$C$5:$GU$5,0)), AB27*(1+S!$CP$206)*(AC$5>0)) -> 0 | AD27: =IF(Overrides!$A27, OFFSET(Overrides!$B27, 0, MATCH(AD$4,Overrides!$C$5:$GU$5,0)), AC27*(1+S!$CP$206)*(AD$5>0)) -> 0 | AE27: =IF(Overrides!$A27, OFFSET(Overrides!$B27, 0, MATCH(AE$4,Overrides!$C$5:$GU$5,0)), AD27*(1+S!$CP$206)*(AE$5>0)) -> 0 | AF27: =IF(Overrides!$A27, OFFSET(Overrides!$B27, 0, MATCH(AF$4,Overrides!$C$5:$GU$5,0)), AE27*(1+S!$CP$206)*(AF$5>0)) -> 0 | AG27: =IF(Overrides!$A27, OFFSET(Overrides!$B27, 0, MATCH(AG$4,Overrides!$C$5:$GU$5,0)), AF27*(1+S!$CP$206)*(AG$5>0)) -> 0 | AH27: =IF(Overrides!$A27, OFFSET(Overrides!$B27, 0, MATCH(AH$4,Overrides!$C$5:$GU$5,0)), AG27*(1+S!$CP$206)*(AH$5>0)) -> 0 | AI27: =IF(Overrides!$A27, OFFSET(Overrides!$B27, 0, MATCH(AI$4,Overrides!$C$5:$GU$5,0)), AH27*(1+S!$CP$206)*(AI$5>0)) -> 0 | AJ27: =IF(Overrides!$A27, OFFSET(Overrides!$B27, 0, MATCH(AJ$4,Overrides!$C$5:$GU$5,0)), AI27*(1+S!$CP$206)*(AJ$5>0)) -> 0 | AK27: =IF(Overrides!$A27, OFFSET(Overrides!$B27, 0, MATCH(AK$4,Overrides!$C$5:$GU$5,0)), AJ27*(1+S!$CP$206)*(AK$5>0)) -> 0 | AL27: =IF(Overrides!$A27, OFFSET(Overrides!$B27, 0, MATCH(AL$4,Overrides!$C$5:$GU$5,0)), AK27*(1+S!$CP$206)*(AL$5>0)) -> 0 | AM27: =IF(Overrides!$A27, OFFSET(Overrides!$B27, 0, MATCH(AM$4,Overrides!$C$5:$GU$5,0)), AL27*(1+S!$CP$206)*(AM$5>0)) -> 0 | AN27: =IF(Overrides!$A27, OFFSET(Overrides!$B27, 0, MATCH(AN$4,Overrides!$C$5:$GU$5,0)), AM27*(1+S!$CP$206)*(AN$5>0)) -> 0 | AO27: =IF(Overrides!$A27, OFFSET(Overrides!$B27, 0, MATCH(AO$4,Overrides!$C$5:$GU$5,0)), AN27*(1+S!$CP$206)*(AO$5>0)) -> 0 | AP27: =IF(Overrides!$A27, OFFSET(Overrides!$B27, 0, MATCH(AP$4,Overrides!$C$5:$GU$5,0)), AO27*(1+S!$CP$206)*(AP$5>0)) -> 0 | AQ27: =IF(Overrides!$A27, OFFSET(Overrides!$B27, 0, MATCH(AQ$4,Overrides!$C$5:$GU$5,0)), AP27*(1+S!$CP$206)*(AQ$5>0)) -> 0 | AR27: =IF(Overrides!$A27, OFFSET(Overrides!$B27, 0, MATCH(AR$4,Overrides!$C$5:$GU$5,0)), AQ27*(1+S!$CP$206)*(AR$5>0)) -> 0 | AS27: =IF(Overrides!$A27, OFFSET(Overrides!$B27, 0, MATCH(AS$4,Overrides!$C$5:$GU$5,0)), AR27*(1+S!$CP$206)*(AS$5>0)) -> 0 | AT27: =IF(Overrides!$A27, OFFSET(Overrides!$B27, 0, MATCH(AT$4,Overrides!$C$5:$GU$5,0)), AS27*(1+S!$CP$206)*(AT$5>0)) -> 0 | AU27: =IF(Overrides!$A27, OFFSET(Overrides!$B27, 0, MATCH(AU$4,Overrides!$C$5:$GU$5,0)), AT27*(1+S!$CP$206)*(AU$5>0)) -> 0 | AV27: =IF(Overrides!$A27, OFFSET(Overrides!$B27, 0, MATCH(AV$4,Overrides!$C$5:$GU$5,0)), AU27*(1+S!$CP$206)*(AV$5>0)) -> 0 | AW27: =IF(Overrides!$A27, OFFSET(Overrides!$B27, 0, MATCH(AW$4,Overrides!$C$5:$GU$5,0)), AV27*(1+S!$CP$206)*(AW$5>0)) -> 0 | AX27: =IF(Overrides!$A27, OFFSET(Overrides!$B27, 0, MATCH(AX$4,Overrides!$C$5:$GU$5,0)), AW27*(1+S!$CP$206)*(AX$5>0)) -> 0 | AY27: =IF(Overrides!$A27, OFFSET(Overrides!$B27, 0, MATCH(AY$4,Overrides!$C$5:$GU$5,0)), AX27*(1+S!$CP$206)*(AY$5>0)) -> 0 | AZ27: =IF(Overrides!$A27, OFFSET(Overrides!$B27, 0, MATCH(AZ$4,Overrides!$C$5:$GU$5,0)), AY27*(1+S!$CP$206)*(AZ$5>0)) -> 0 | BA27: =IF(Overrides!$A27, OFFSET(Overrides!$B27, 0, MATCH(BA$4,Overrides!$C$5:$GU$5,0)), AZ27*(1+S!$CP$206)*(BA$5>0)) -> 0 | BB27: =IF(Overrides!$A27, OFFSET(Overrides!$B27, 0, MATCH(BB$4,Overrides!$C$5:$GU$5,0)), BA27*(1+S!$CP$206)*(BB$5>0)) -> 0 | BC27: =IF(Overrides!$A27, OFFSET(Overrides!$B27, 0, MATCH(BC$4,Overrides!$C$5:$GU$5,0)), BB27*(1+S!$CP$206)*(BC$5>0)) -> 0 | BD27: =IF(Overrides!$A27, OFFSET(Overrides!$B27, 0, MATCH(BD$4,Overrides!$C$5:$GU$5,0)), BC27*(1+S!$CP$206)*(BD$5>0)) -> 0 | BE27: =IF(Overrides!$A27, OFFSET(Overrides!$B27, 0, MATCH(BE$4,Overrides!$C$5:$GU$5,0)), BD27*(1+S!$CP$206)*(BE$5>0)) -> 0 | BF27: =IF(Overrides!$A27, OFFSET(Overrides!$B27, 0, MATCH(BF$4,Overrides!$C$5:$GU$5,0)), BE27*(1+S!$CP$206)*(BF$5>0)) -> 0 | BG27: =IF(Overrides!$A27, OFFSET(Overrides!$B27, 0, MATCH(BG$4,Overrides!$C$5:$GU$5,0)), BF27*(1+S!$CP$206)*(BG$5>0)) -> 0 | BH27: =IF(Overrides!$A27, OFFSET(Overrides!$B27, 0, MATCH(BH$4,Overrides!$C$5:$GU$5,0)), BG27*(1+S!$CP$206)*(BH$5>0)) -> 0 | BI27: =IF(Overrides!$A27, OFFSET(Overrides!$B27, 0, MATCH(BI$4,Overrides!$C$5:$GU$5,0)), BH27*(1+S!$CP$206)*(BI$5>0)) -> 0 | BJ27: =IF(Overrides!$A27, OFFSET(Overrides!$B27, 0, MATCH(BJ$4,Overrides!$C$5:$GU$5,0)), BI27*(1+S!$CP$206)*(BJ$5>0)) -> 0 | BK27: =IF(Overrides!$A27, OFFSET(Overrides!$B27, 0, MATCH(BK$4,Overrides!$C$5:$GU$5,0)), BJ27*(1+S!$CP$206)*(BK$5>0)) -> 0 | BL27: =IF(Overrides!$A27, OFFSET(Overrides!$B27, 0, MATCH(BL$4,Overrides!$C$5:$GU$5,0)), BK27*(1+S!$CP$206)*(BL$5>0)) -> 0 | BM27: =IF(Overrides!$A27, OFFSET(Overrides!$B27, 0, MATCH(BM$4,Overrides!$C$5:$GU$5,0)), BL27*(1+S!$CP$206)*(BM$5>0)) -> 0 | BN27: =IF(Overrides!$A27, OFFSET(Overrides!$B27, 0, MATCH(BN$4,Overrides!$C$5:$GU$5,0)), BM27*(1+S!$CP$206)*(BN$5>0)) -> 0 | BO27: =IF(Overrides!$A27, OFFSET(Overrides!$B27, 0, MATCH(BO$4,Overrides!$C$5:$GU$5,0)), BN27*(1+S!$CP$206)*(BO$5>0)) -> 0 | BP27: =IF(Overrides!$A27, OFFSET(Overrides!$B27, 0, MATCH(BP$4,Overrides!$C$5:$GU$5,0)), BO27*(1+S!$CP$206)*(BP$5>0)) -> 0 | BQ27: =IF(Overrides!$A27, OFFSET(Overrides!$B27, 0, MATCH(BQ$4,Overrides!$C$5:$GU$5,0)), BP27*(1+S!$CP$206)*(BQ$5>0)) -> 0 | BR27: =IF(Overrides!$A27, OFFSET(Overrides!$B27, 0, MATCH(BR$4,Overrides!$C$5:$GU$5,0)), BQ27*(1+S!$CP$206)*(BR$5>0)) -> 0 | BS27: =IF(Overrides!$A27, OFFSET(Overrides!$B27, 0, MATCH(BS$4,Overrides!$C$5:$GU$5,0)), BR27*(1+S!$CP$206)*(BS$5>0)) -> 0 | BT27: =IF(Overrides!$A27, OFFSET(Overrides!$B27, 0, MATCH(BT$4,Overrides!$C$5:$GU$5,0)), BS27*(1+S!$CP$206)*(BT$5>0)) -> 0 | BU27: =IF(Overrides!$A27, OFFSET(Overrides!$B27, 0, MATCH(BU$4,Overrides!$C$5:$GU$5,0)), BT27*(1+S!$CP$206)*(BU$5>0)) -> 0 | BV27: =IF(Overrides!$A27, OFFSET(Overrides!$B27, 0, MATCH(BV$4,Overrides!$C$5:$GU$5,0)), BU27*(1+S!$CP$206)*(BV$5>0)) -> 0 | BW27: =IF(Overrides!$A27, OFFSET(Overrides!$B27, 0, MATCH(BW$4,Overrides!$C$5:$GU$5,0)), BV27*(1+S!$CP$206)*(BW$5>0)) -> 0 | BX27: =IF(Overrides!$A27, OFFSET(Overrides!$B27, 0, MATCH(BX$4,Overrides!$C$5:$GU$5,0)), BW27*(1+S!$CP$206)*(BX$5>0)) -> 0 | BY27: =IF(Overrides!$A27, OFFSET(Overrides!$B27, 0, MATCH(BY$4,Overrides!$C$5:$GU$5,0)), BX27*(1+S!$CP$206)*(BY$5>0)) -> 0 | BZ27: =IF(Overrides!$A27, OFFSET(Overrides!$B27, 0, MATCH(BZ$4,Overrides!$C$5:$GU$5,0)), BY27*(1+S!$CP$206)*(BZ$5>0)) -> 0 | CA27: =IF(Overrides!$A27, OFFSET(Overrides!$B27, 0, MATCH(CA$4,Overrides!$C$5:$GU$5,0)), BZ27*(1+S!$CP$206)*(CA$5>0)) -> 0 | CB27: =IF(Overrides!$A27, OFFSET(Overrides!$B27, 0, MATCH(CB$4,Overrides!$C$5:$GU$5,0)), CA27*(1+S!$CP$206)*(CB$5>0)) -> 0 | CC27: =IF(Overrides!$A27, OFFSET(Overrides!$B27, 0, MATCH(CC$4,Overrides!$C$5:$GU$5,0)), CB27*(1+S!$CP$206)*(CC$5>0)) -> 0 | CD27: =IF(Overrides!$A27, OFFSET(Overrides!$B27, 0, MATCH(CD$4,Overrides!$C$5:$GU$5,0)), CC27*(1+S!$CP$206)*(CD$5>0)) -> 0 | CE27: =IF(Overrides!$A27, OFFSET(Overrides!$B27, 0, MATCH(CE$4,Overrides!$C$5:$GU$5,0)), CD27*(1+S!$CP$206)*(CE$5>0)) -> 0 | CF27: =IF(Overrides!$A27, OFFSET(Overrides!$B27, 0, MATCH(CF$4,Overrides!$C$5:$GU$5,0)), CE27*(1+S!$CP$206)*(CF$5>0)) -> 0 | CG27: =IF(Overrides!$A27, OFFSET(Overrides!$B27, 0, MATCH(CG$4,Overrides!$C$5:$GU$5,0)), CF27*(1+S!$CP$206)*(CG$5>0)) -> 0 | CH27: =IF(Overrides!$A27, OFFSET(Overrides!$B27, 0, MATCH(CH$4,Overrides!$C$5:$GU$5,0)), CG27*(1+S!$CP$206)*(CH$5>0)) -> 0 | CI27: =IF(Overrides!$A27, OFFSET(Overrides!$B27, 0, MATCH(CI$4,Overrides!$C$5:$GU$5,0)), CH27*(1+S!$CP$206)*(CI$5>0)) -> 0 | CJ27: =IF(Overrides!$A27, OFFSET(Overrides!$B27, 0, MATCH(CJ$4,Overrides!$C$5:$GU$5,0)), CI27*(1+S!$CP$206)*(CJ$5>0)) -> 0 | CK27: =IF(Overrides!$A27, OFFSET(Overrides!$B27, 0, MATCH(CK$4,Overrides!$C$5:$GU$5,0)), CJ27*(1+S!$CP$206)*(CK$5>0)) -> 0 | CL27: =IF(Overrides!$A27, OFFSET(Overrides!$B27, 0, MATCH(CL$4,Overrides!$C$5:$GU$5,0)), CK27*(1+S!$CP$206)*(CL$5>0)) -> 0 | CM27: =IF(Overrides!$A27, OFFSET(Overrides!$B27, 0, MATCH(CM$4,Overrides!$C$5:$GU$5,0)), CL27*(1+S!$CP$206)*(CM$5>0)) -> 0 | CN27: =IF(Overrides!$A27, OFFSET(Overrides!$B27, 0, MATCH(CN$4,Overrides!$C$5:$GU$5,0)), CM27*(1+S!$CP$206)*(CN$5>0)) -> 0 | CO27: =IF(Overrides!$A27, OFFSET(Overrides!$B27, 0, MATCH(CO$4,Overrides!$C$5:$GU$5,0)), CN27*(1+S!$CP$206)*(CO$5>0)) -> 0 | CP27: =IF(Overrides!$A27, OFFSET(Overrides!$B27, 0, MATCH(CP$4,Overrides!$C$5:$GU$5,0)), CO27*(1+S!$CP$206)*(CP$5>0)) -> 0 | CQ27: =IF(Overrides!$A27, OFFSET(Overrides!$B27, 0, MATCH(CQ$4,Overrides!$C$5:$GU$5,0)), CP27*(1+S!$CP$206)*(CQ$5>0)) -> 0 | CR27: =IF(Overrides!$A27, OFFSET(Overrides!$B27, 0, MATCH(CR$4,Overrides!$C$5:$GU$5,0)), CQ27*(1+S!$CP$206)*(CR$5>0)) -> 0 | CS27: =IF(Overrides!$A27, OFFSET(Overrides!$B27, 0, MATCH(CS$4,Overrides!$C$5:$GU$5,0)), CR27*(1+S!$CP$206)*(CS$5>0)) -> 0 | CT27: =IF(Overrides!$A27, OFFSET(Overrides!$B27, 0, MATCH(CT$4,Overrides!$C$5:$GU$5,0)), CS27*(1+S!$CP$206)*(CT$5>0)) -> 0 | CU27: =IF(Overrides!$A27, OFFSET(Overrides!$B27, 0, MATCH(CU$4,Overrides!$C$5:$GU$5,0)), CT27*(1+S!$CP$206)*(CU$5>0)) -> 0 | CV27: =IF(Overrides!$A27, OFFSET(Overrides!$B27, 0, MATCH(CV$4,Overrides!$C$5:$GU$5,0)), CU27*(1+S!$CP$206)*(CV$5>0)) -> 0 | CW27: =IF(Overrides!$A27, OFFSET(Overrides!$B27, 0, MATCH(CW$4,Overrides!$C$5:$GU$5,0)), CV27*(1+S!$CP$206)*(CW$5>0)) -> 0 | CX27: =IF(Overrides!$A27, OFFSET(Overrides!$B27, 0, MATCH(CX$4,Overrides!$C$5:$GU$5,0)), CW27*(1+S!$CP$206)*(CX$5>0)) -> 0 | CY27: =IF(Overrides!$A27, OFFSET(Overrides!$B27, 0, MATCH(CY$4,Overrides!$C$5:$GU$5,0)), CX27*(1+S!$CP$206)*(CY$5>0)) -> 0
C28: ="Value of "&Interface!E62&" ($/"&Interface!F62&")" -> Value of coproduct 5 ($/units of coproduct 5) | D28: 0 | E28: =IF(Overrides!$A28, OFFSET(Overrides!$B28, 0, MATCH(E$4,Overrides!$C$5:$GU$5,0)), S!CQ$206) -> 0.1 | F28: =IF(Overrides!$A28, OFFSET(Overrides!$B28, 0, MATCH(F$4,Overrides!$C$5:$GU$5,0)), E28*(1+S!$CR$206)*(F$5>0)) -> 0.1019 | G28: =IF(Overrides!$A28, OFFSET(Overrides!$B28, 0, MATCH(G$4,Overrides!$C$5:$GU$5,0)), F28*(1+S!$CR$206)*(G$5>0)) -> 0.1038361 | H28: =IF(Overrides!$A28, OFFSET(Overrides!$B28, 0, MATCH(H$4,Overrides!$C$5:$GU$5,0)), G28*(1+S!$CR$206)*(H$5>0)) -> 0.1058089859 | I28: =IF(Overrides!$A28, OFFSET(Overrides!$B28, 0, MATCH(I$4,Overrides!$C$5:$GU$5,0)), H28*(1+S!$CR$206)*(I$5>0)) -> 0.1078193566 | J28: =IF(Overrides!$A28, OFFSET(Overrides!$B28, 0, MATCH(J$4,Overrides!$C$5:$GU$5,0)), I28*(1+S!$CR$206)*(J$5>0)) -> 0.1098679244 | K28: =IF(Overrides!$A28, OFFSET(Overrides!$B28, 0, MATCH(K$4,Overrides!$C$5:$GU$5,0)), J28*(1+S!$CR$206)*(K$5>0)) -> 0.111955415 | L28: =IF(Overrides!$A28, OFFSET(Overrides!$B28, 0, MATCH(L$4,Overrides!$C$5:$GU$5,0)), K28*(1+S!$CR$206)*(L$5>0)) -> 0.1140825679 | M28: =IF(Overrides!$A28, OFFSET(Overrides!$B28, 0, MATCH(M$4,Overrides!$C$5:$GU$5,0)), L28*(1+S!$CR$206)*(M$5>0)) -> 0.1162501366 | N28: =IF(Overrides!$A28, OFFSET(Overrides!$B28, 0, MATCH(N$4,Overrides!$C$5:$GU$5,0)), M28*(1+S!$CR$206)*(N$5>0)) -> 0.1184588892 | O28: =IF(Overrides!$A28, OFFSET(Overrides!$B28, 0, MATCH(O$4,Overrides!$C$5:$GU$5,0)), N28*(1+S!$CR$206)*(O$5>0)) -> 0.1207096081 | P28: =IF(Overrides!$A28, OFFSET(Overrides!$B28, 0, MATCH(P$4,Overrides!$C$5:$GU$5,0)), O28*(1+S!$CR$206)*(P$5>0)) -> 0.1230030907 | Q28: =IF(Overrides!$A28, OFFSET(Overrides!$B28, 0, MATCH(Q$4,Overrides!$C$5:$GU$5,0)), P28*(1+S!$CR$206)*(Q$5>0)) -> 0.1253401494 | R28: =IF(Overrides!$A28, OFFSET(Overrides!$B28, 0, MATCH(R$4,Overrides!$C$5:$GU$5,0)), Q28*(1+S!$CR$206)*(R$5>0)) -> 0.1277216123 | S28: =IF(Overrides!$A28, OFFSET(Overrides!$B28, 0, MATCH(S$4,Overrides!$C$5:$GU$5,0)), R28*(1+S!$CR$206)*(S$5>0)) -> 0.1301483229 | T28: =IF(Overrides!$A28, OFFSET(Overrides!$B28, 0, MATCH(T$4,Overrides!$C$5:$GU$5,0)), S28*(1+S!$CR$206)*(T$5>0)) -> 0.132621141 | U28: =IF(Overrides!$A28, OFFSET(Overrides!$B28, 0, MATCH(U$4,Overrides!$C$5:$GU$5,0)), T28*(1+S!$CR$206)*(U$5>0)) -> 0 | V28: =IF(Overrides!$A28, OFFSET(Overrides!$B28, 0, MATCH(V$4,Overrides!$C$5:$GU$5,0)), U28*(1+S!$CR$206)*(V$5>0)) -> 0 | W28: =IF(Overrides!$A28, OFFSET(Overrides!$B28, 0, MATCH(W$4,Overrides!$C$5:$GU$5,0)), V28*(1+S!$CR$206)*(W$5>0)) -> 0 | X28: =IF(Overrides!$A28, OFFSET(Overrides!$B28, 0, MATCH(X$4,Overrides!$C$5:$GU$5,0)), W28*(1+S!$CR$206)*(X$5>0)) -> 0 | Y28: =IF(Overrides!$A28, OFFSET(Overrides!$B28, 0, MATCH(Y$4,Overrides!$C$5:$GU$5,0)), X28*(1+S!$CR$206)*(Y$5>0)) -> 0 | Z28: =IF(Overrides!$A28, OFFSET(Overrides!$B28, 0, MATCH(Z$4,Overrides!$C$5:$GU$5,0)), Y28*(1+S!$CR$206)*(Z$5>0)) -> 0 | AA28: =IF(Overrides!$A28, OFFSET(Overrides!$B28, 0, MATCH(AA$4,Overrides!$C$5:$GU$5,0)), Z28*(1+S!$CR$206)*(AA$5>0)) -> 0 | AB28: =IF(Overrides!$A28, OFFSET(Overrides!$B28, 0, MATCH(AB$4,Overrides!$C$5:$GU$5,0)), AA28*(1+S!$CR$206)*(AB$5>0)) -> 0 | AC28: =IF(Overrides!$A28, OFFSET(Overrides!$B28, 0, MATCH(AC$4,Overrides!$C$5:$GU$5,0)), AB28*(1+S!$CR$206)*(AC$5>0)) -> 0 | AD28: =IF(Overrides!$A28, OFFSET(Overrides!$B28, 0, MATCH(AD$4,Overrides!$C$5:$GU$5,0)), AC28*(1+S!$CR$206)*(AD$5>0)) -> 0 | AE28: =IF(Overrides!$A28, OFFSET(Overrides!$B28, 0, MATCH(AE$4,Overrides!$C$5:$GU$5,0)), AD28*(1+S!$CR$206)*(AE$5>0)) -> 0 | AF28: =IF(Overrides!$A28, OFFSET(Overrides!$B28, 0, MATCH(AF$4,Overrides!$C$5:$GU$5,0)), AE28*(1+S!$CR$206)*(AF$5>0)) -> 0 | AG28: =IF(Overrides!$A28, OFFSET(Overrides!$B28, 0, MATCH(AG$4,Overrides!$C$5:$GU$5,0)), AF28*(1+S!$CR$206)*(AG$5>0)) -> 0 | AH28: =IF(Overrides!$A28, OFFSET(Overrides!$B28, 0, MATCH(AH$4,Overrides!$C$5:$GU$5,0)), AG28*(1+S!$CR$206)*(AH$5>0)) -> 0 | AI28: =IF(Overrides!$A28, OFFSET(Overrides!$B28, 0, MATCH(AI$4,Overrides!$C$5:$GU$5,0)), AH28*(1+S!$CR$206)*(AI$5>0)) -> 0 | AJ28: =IF(Overrides!$A28, OFFSET(Overrides!$B28, 0, MATCH(AJ$4,Overrides!$C$5:$GU$5,0)), AI28*(1+S!$CR$206)*(AJ$5>0)) -> 0 | AK28: =IF(Overrides!$A28, OFFSET(Overrides!$B28, 0, MATCH(AK$4,Overrides!$C$5:$GU$5,0)), AJ28*(1+S!$CR$206)*(AK$5>0)) -> 0 | AL28: =IF(Overrides!$A28, OFFSET(Overrides!$B28, 0, MATCH(AL$4,Overrides!$C$5:$GU$5,0)), AK28*(1+S!$CR$206)*(AL$5>0)) -> 0 | AM28: =IF(Overrides!$A28, OFFSET(Overrides!$B28, 0, MATCH(AM$4,Overrides!$C$5:$GU$5,0)), AL28*(1+S!$CR$206)*(AM$5>0)) -> 0 | AN28: =IF(Overrides!$A28, OFFSET(Overrides!$B28, 0, MATCH(AN$4,Overrides!$C$5:$GU$5,0)), AM28*(1+S!$CR$206)*(AN$5>0)) -> 0 | AO28: =IF(Overrides!$A28, OFFSET(Overrides!$B28, 0, MATCH(AO$4,Overrides!$C$5:$GU$5,0)), AN28*(1+S!$CR$206)*(AO$5>0)) -> 0 | AP28: =IF(Overrides!$A28, OFFSET(Overrides!$B28, 0, MATCH(AP$4,Overrides!$C$5:$GU$5,0)), AO28*(1+S!$CR$206)*(AP$5>0)) -> 0 | AQ28: =IF(Overrides!$A28, OFFSET(Overrides!$B28, 0, MATCH(AQ$4,Overrides!$C$5:$GU$5,0)), AP28*(1+S!$CR$206)*(AQ$5>0)) -> 0 | AR28: =IF(Overrides!$A28, OFFSET(Overrides!$B28, 0, MATCH(AR$4,Overrides!$C$5:$GU$5,0)), AQ28*(1+S!$CR$206)*(AR$5>0)) -> 0 | AS28: =IF(Overrides!$A28, OFFSET(Overrides!$B28, 0, MATCH(AS$4,Overrides!$C$5:$GU$5,0)), AR28*(1+S!$CR$206)*(AS$5>0)) -> 0 | AT28: =IF(Overrides!$A28, OFFSET(Overrides!$B28, 0, MATCH(AT$4,Overrides!$C$5:$GU$5,0)), AS28*(1+S!$CR$206)*(AT$5>0)) -> 0 | AU28: =IF(Overrides!$A28, OFFSET(Overrides!$B28, 0, MATCH(AU$4,Overrides!$C$5:$GU$5,0)), AT28*(1+S!$CR$206)*(AU$5>0)) -> 0 | AV28: =IF(Overrides!$A28, OFFSET(Overrides!$B28, 0, MATCH(AV$4,Overrides!$C$5:$GU$5,0)), AU28*(1+S!$CR$206)*(AV$5>0)) -> 0 | AW28: =IF(Overrides!$A28, OFFSET(Overrides!$B28, 0, MATCH(AW$4,Overrides!$C$5:$GU$5,0)), AV28*(1+S!$CR$206)*(AW$5>0)) -> 0 | AX28: =IF(Overrides!$A28, OFFSET(Overrides!$B28, 0, MATCH(AX$4,Overrides!$C$5:$GU$5,0)), AW28*(1+S!$CR$206)*(AX$5>0)) -> 0 | AY28: =IF(Overrides!$A28, OFFSET(Overrides!$B28, 0, MATCH(AY$4,Overrides!$C$5:$GU$5,0)), AX28*(1+S!$CR$206)*(AY$5>0)) -> 0 | AZ28: =IF(Overrides!$A28, OFFSET(Overrides!$B28, 0, MATCH(AZ$4,Overrides!$C$5:$GU$5,0)), AY28*(1+S!$CR$206)*(AZ$5>0)) -> 0 | BA28: =IF(Overrides!$A28, OFFSET(Overrides!$B28, 0, MATCH(BA$4,Overrides!$C$5:$GU$5,0)), AZ28*(1+S!$CR$206)*(BA$5>0)) -> 0 | BB28: =IF(Overrides!$A28, OFFSET(Overrides!$B28, 0, MATCH(BB$4,Overrides!$C$5:$GU$5,0)), BA28*(1+S!$CR$206)*(BB$5>0)) -> 0 | BC28: =IF(Overrides!$A28, OFFSET(Overrides!$B28, 0, MATCH(BC$4,Overrides!$C$5:$GU$5,0)), BB28*(1+S!$CR$206)*(BC$5>0)) -> 0 | BD28: =IF(Overrides!$A28, OFFSET(Overrides!$B28, 0, MATCH(BD$4,Overrides!$C$5:$GU$5,0)), BC28*(1+S!$CR$206)*(BD$5>0)) -> 0 | BE28: =IF(Overrides!$A28, OFFSET(Overrides!$B28, 0, MATCH(BE$4,Overrides!$C$5:$GU$5,0)), BD28*(1+S!$CR$206)*(BE$5>0)) -> 0 | BF28: =IF(Overrides!$A28, OFFSET(Overrides!$B28, 0, MATCH(BF$4,Overrides!$C$5:$GU$5,0)), BE28*(1+S!$CR$206)*(BF$5>0)) -> 0 | BG28: =IF(Overrides!$A28, OFFSET(Overrides!$B28, 0, MATCH(BG$4,Overrides!$C$5:$GU$5,0)), BF28*(1+S!$CR$206)*(BG$5>0)) -> 0 | BH28: =IF(Overrides!$A28, OFFSET(Overrides!$B28, 0, MATCH(BH$4,Overrides!$C$5:$GU$5,0)), BG28*(1+S!$CR$206)*(BH$5>0)) -> 0 | BI28: =IF(Overrides!$A28, OFFSET(Overrides!$B28, 0, MATCH(BI$4,Overrides!$C$5:$GU$5,0)), BH28*(1+S!$CR$206)*(BI$5>0)) -> 0 | BJ28: =IF(Overrides!$A28, OFFSET(Overrides!$B28, 0, MATCH(BJ$4,Overrides!$C$5:$GU$5,0)), BI28*(1+S!$CR$206)*(BJ$5>0)) -> 0 | BK28: =IF(Overrides!$A28, OFFSET(Overrides!$B28, 0, MATCH(BK$4,Overrides!$C$5:$GU$5,0)), BJ28*(1+S!$CR$206)*(BK$5>0)) -> 0 | BL28: =IF(Overrides!$A28, OFFSET(Overrides!$B28, 0, MATCH(BL$4,Overrides!$C$5:$GU$5,0)), BK28*(1+S!$CR$206)*(BL$5>0)) -> 0 | BM28: =IF(Overrides!$A28, OFFSET(Overrides!$B28, 0, MATCH(BM$4,Overrides!$C$5:$GU$5,0)), BL28*(1+S!$CR$206)*(BM$5>0)) -> 0 | BN28: =IF(Overrides!$A28, OFFSET(Overrides!$B28, 0, MATCH(BN$4,Overrides!$C$5:$GU$5,0)), BM28*(1+S!$CR$206)*(BN$5>0)) -> 0 | BO28: =IF(Overrides!$A28, OFFSET(Overrides!$B28, 0, MATCH(BO$4,Overrides!$C$5:$GU$5,0)), BN28*(1+S!$CR$206)*(BO$5>0)) -> 0 | BP28: =IF(Overrides!$A28, OFFSET(Overrides!$B28, 0, MATCH(BP$4,Overrides!$C$5:$GU$5,0)), BO28*(1+S!$CR$206)*(BP$5>0)) -> 0 | BQ28: =IF(Overrides!$A28, OFFSET(Overrides!$B28, 0, MATCH(BQ$4,Overrides!$C$5:$GU$5,0)), BP28*(1+S!$CR$206)*(BQ$5>0)) -> 0 | BR28: =IF(Overrides!$A28, OFFSET(Overrides!$B28, 0, MATCH(BR$4,Overrides!$C$5:$GU$5,0)), BQ28*(1+S!$CR$206)*(BR$5>0)) -> 0 | BS28: =IF(Overrides!$A28, OFFSET(Overrides!$B28, 0, MATCH(BS$4,Overrides!$C$5:$GU$5,0)), BR28*(1+S!$CR$206)*(BS$5>0)) -> 0 | BT28: =IF(Overrides!$A28, OFFSET(Overrides!$B28, 0, MATCH(BT$4,Overrides!$C$5:$GU$5,0)), BS28*(1+S!$CR$206)*(BT$5>0)) -> 0 | BU28: =IF(Overrides!$A28, OFFSET(Overrides!$B28, 0, MATCH(BU$4,Overrides!$C$5:$GU$5,0)), BT28*(1+S!$CR$206)*(BU$5>0)) -> 0 | BV28: =IF(Overrides!$A28, OFFSET(Overrides!$B28, 0, MATCH(BV$4,Overrides!$C$5:$GU$5,0)), BU28*(1+S!$CR$206)*(BV$5>0)) -> 0 | BW28: =IF(Overrides!$A28, OFFSET(Overrides!$B28, 0, MATCH(BW$4,Overrides!$C$5:$GU$5,0)), BV28*(1+S!$CR$206)*(BW$5>0)) -> 0 | BX28: =IF(Overrides!$A28, OFFSET(Overrides!$B28, 0, MATCH(BX$4,Overrides!$C$5:$GU$5,0)), BW28*(1+S!$CR$206)*(BX$5>0)) -> 0 | BY28: =IF(Overrides!$A28, OFFSET(Overrides!$B28, 0, MATCH(BY$4,Overrides!$C$5:$GU$5,0)), BX28*(1+S!$CR$206)*(BY$5>0)) -> 0 | BZ28: =IF(Overrides!$A28, OFFSET(Overrides!$B28, 0, MATCH(BZ$4,Overrides!$C$5:$GU$5,0)), BY28*(1+S!$CR$206)*(BZ$5>0)) -> 0 | CA28: =IF(Overrides!$A28, OFFSET(Overrides!$B28, 0, MATCH(CA$4,Overrides!$C$5:$GU$5,0)), BZ28*(1+S!$CR$206)*(CA$5>0)) -> 0 | CB28: =IF(Overrides!$A28, OFFSET(Overrides!$B28, 0, MATCH(CB$4,Overrides!$C$5:$GU$5,0)), CA28*(1+S!$CR$206)*(CB$5>0)) -> 0 | CC28: =IF(Overrides!$A28, OFFSET(Overrides!$B28, 0, MATCH(CC$4,Overrides!$C$5:$GU$5,0)), CB28*(1+S!$CR$206)*(CC$5>0)) -> 0 | CD28: =IF(Overrides!$A28, OFFSET(Overrides!$B28, 0, MATCH(CD$4,Overrides!$C$5:$GU$5,0)), CC28*(1+S!$CR$206)*(CD$5>0)) -> 0 | CE28: =IF(Overrides!$A28, OFFSET(Overrides!$B28, 0, MATCH(CE$4,Overrides!$C$5:$GU$5,0)), CD28*(1+S!$CR$206)*(CE$5>0)) -> 0 | CF28: =IF(Overrides!$A28, OFFSET(Overrides!$B28, 0, MATCH(CF$4,Overrides!$C$5:$GU$5,0)), CE28*(1+S!$CR$206)*(CF$5>0)) -> 0 | CG28: =IF(Overrides!$A28, OFFSET(Overrides!$B28, 0, MATCH(CG$4,Overrides!$C$5:$GU$5,0)), CF28*(1+S!$CR$206)*(CG$5>0)) -> 0 | CH28: =IF(Overrides!$A28, OFFSET(Overrides!$B28, 0, MATCH(CH$4,Overrides!$C$5:$GU$5,0)), CG28*(1+S!$CR$206)*(CH$5>0)) -> 0 | CI28: =IF(Overrides!$A28, OFFSET(Overrides!$B28, 0, MATCH(CI$4,Overrides!$C$5:$GU$5,0)), CH28*(1+S!$CR$206)*(CI$5>0)) -> 0 | CJ28: =IF(Overrides!$A28, OFFSET(Overrides!$B28, 0, MATCH(CJ$4,Overrides!$C$5:$GU$5,0)), CI28*(1+S!$CR$206)*(CJ$5>0)) -> 0 | CK28: =IF(Overrides!$A28, OFFSET(Overrides!$B28, 0, MATCH(CK$4,Overrides!$C$5:$GU$5,0)), CJ28*(1+S!$CR$206)*(CK$5>0)) -> 0 | CL28: =IF(Overrides!$A28, OFFSET(Overrides!$B28, 0, MATCH(CL$4,Overrides!$C$5:$GU$5,0)), CK28*(1+S!$CR$206)*(CL$5>0)) -> 0 | CM28: =IF(Overrides!$A28, OFFSET(Overrides!$B28, 0, MATCH(CM$4,Overrides!$C$5:$GU$5,0)), CL28*(1+S!$CR$206)*(CM$5>0)) -> 0 | CN28: =IF(Overrides!$A28, OFFSET(Overrides!$B28, 0, MATCH(CN$4,Overrides!$C$5:$GU$5,0)), CM28*(1+S!$CR$206)*(CN$5>0)) -> 0 | CO28: =IF(Overrides!$A28, OFFSET(Overrides!$B28, 0, MATCH(CO$4,Overrides!$C$5:$GU$5,0)), CN28*(1+S!$CR$206)*(CO$5>0)) -> 0 | CP28: =IF(Overrides!$A28, OFFSET(Overrides!$B28, 0, MATCH(CP$4,Overrides!$C$5:$GU$5,0)), CO28*(1+S!$CR$206)*(CP$5>0)) -> 0 | CQ28: =IF(Overrides!$A28, OFFSET(Overrides!$B28, 0, MATCH(CQ$4,Overrides!$C$5:$GU$5,0)), CP28*(1+S!$CR$206)*(CQ$5>0)) -> 0 | CR28: =IF(Overrides!$A28, OFFSET(Overrides!$B28, 0, MATCH(CR$4,Overrides!$C$5:$GU$5,0)), CQ28*(1+S!$CR$206)*(CR$5>0)) -> 0 | CS28: =IF(Overrides!$A28, OFFSET(Overrides!$B28, 0, MATCH(CS$4,Overrides!$C$5:$GU$5,0)), CR28*(1+S!$CR$206)*(CS$5>0)) -> 0 | CT28: =IF(Overrides!$A28, OFFSET(Overrides!$B28, 0, MATCH(CT$4,Overrides!$C$5:$GU$5,0)), CS28*(1+S!$CR$206)*(CT$5>0)) -> 0 | CU28: =IF(Overrides!$A28, OFFSET(Overrides!$B28, 0, MATCH(CU$4,Overrides!$C$5:$GU$5,0)), CT28*(1+S!$CR$206)*(CU$5>0)) -> 0 | CV28: =IF(Overrides!$A28, OFFSET(Overrides!$B28, 0, MATCH(CV$4,Overrides!$C$5:$GU$5,0)), CU28*(1+S!$CR$206)*(CV$5>0)) -> 0 | CW28: =IF(Overrides!$A28, OFFSET(Overrides!$B28, 0, MATCH(CW$4,Overrides!$C$5:$GU$5,0)), CV28*(1+S!$CR$206)*(CW$5>0)) -> 0 | CX28: =IF(Overrides!$A28, OFFSET(Overrides!$B28, 0, MATCH(CX$4,Overrides!$C$5:$GU$5,0)), CW28*(1+S!$CR$206)*(CX$5>0)) -> 0 | CY28: =IF(Overrides!$A28, OFFSET(Overrides!$B28, 0, MATCH(CY$4,Overrides!$C$5:$GU$5,0)), CX28*(1+S!$CR$206)*(CY$5>0)) -> 0
C29: ="Value of "&Interface!E63&" ($/"&Interface!F63&")" -> Value of coproduct 6 ($/units of coproduct 6) | D29: 0 | E29: =IF(Overrides!$A29, OFFSET(Overrides!$B29, 0, MATCH(E$4,Overrides!$C$5:$GU$5,0)), S!CS$206) -> 0.1 | F29: =IF(Overrides!$A29, OFFSET(Overrides!$B29, 0, MATCH(F$4,Overrides!$C$5:$GU$5,0)), E29*(1+S!$CT$206)*(F$5>0)) -> 0.1019 | G29: =IF(Overrides!$A29, OFFSET(Overrides!$B29, 0, MATCH(G$4,Overrides!$C$5:$GU$5,0)), F29*(1+S!$CT$206)*(G$5>0)) -> 0.1038361 | H29: =IF(Overrides!$A29, OFFSET(Overrides!$B29, 0, MATCH(H$4,Overrides!$C$5:$GU$5,0)), G29*(1+S!$CT$206)*(H$5>0)) -> 0.1058089859 | I29: =IF(Overrides!$A29, OFFSET(Overrides!$B29, 0, MATCH(I$4,Overrides!$C$5:$GU$5,0)), H29*(1+S!$CT$206)*(I$5>0)) -> 0.1078193566 | J29: =IF(Overrides!$A29, OFFSET(Overrides!$B29, 0, MATCH(J$4,Overrides!$C$5:$GU$5,0)), I29*(1+S!$CT$206)*(J$5>0)) -> 0.1098679244 | K29: =IF(Overrides!$A29, OFFSET(Overrides!$B29, 0, MATCH(K$4,Overrides!$C$5:$GU$5,0)), J29*(1+S!$CT$206)*(K$5>0)) -> 0.111955415 | L29: =IF(Overrides!$A29, OFFSET(Overrides!$B29, 0, MATCH(L$4,Overrides!$C$5:$GU$5,0)), K29*(1+S!$CT$206)*(L$5>0)) -> 0.1140825679 | M29: =IF(Overrides!$A29, OFFSET(Overrides!$B29, 0, MATCH(M$4,Overrides!$C$5:$GU$5,0)), L29*(1+S!$CT$206)*(M$5>0)) -> 0.1162501366 | N29: =IF(Overrides!$A29, OFFSET(Overrides!$B29, 0, MATCH(N$4,Overrides!$C$5:$GU$5,0)), M29*(1+S!$CT$206)*(N$5>0)) -> 0.1184588892 | O29: =IF(Overrides!$A29, OFFSET(Overrides!$B29, 0, MATCH(O$4,Overrides!$C$5:$GU$5,0)), N29*(1+S!$CT$206)*(O$5>0)) -> 0.1207096081 | P29: =IF(Overrides!$A29, OFFSET(Overrides!$B29, 0, MATCH(P$4,Overrides!$C$5:$GU$5,0)), O29*(1+S!$CT$206)*(P$5>0)) -> 0.1230030907 | Q29: =IF(Overrides!$A29, OFFSET(Overrides!$B29, 0, MATCH(Q$4,Overrides!$C$5:$GU$5,0)), P29*(1+S!$CT$206)*(Q$5>0)) -> 0.1253401494 | R29: =IF(Overrides!$A29, OFFSET(Overrides!$B29, 0, MATCH(R$4,Overrides!$C$5:$GU$5,0)), Q29*(1+S!$CT$206)*(R$5>0)) -> 0.1277216123 | S29: =IF(Overrides!$A29, OFFSET(Overrides!$B29, 0, MATCH(S$4,Overrides!$C$5:$GU$5,0)), R29*(1+S!$CT$206)*(S$5>0)) -> 0.1301483229 | T29: =IF(Overrides!$A29, OFFSET(Overrides!$B29, 0, MATCH(T$4,Overrides!$C$5:$GU$5,0)), S29*(1+S!$CT$206)*(T$5>0)) -> 0.132621141 | U29: =IF(Overrides!$A29, OFFSET(Overrides!$B29, 0, MATCH(U$4,Overrides!$C$5:$GU$5,0)), T29*(1+S!$CT$206)*(U$5>0)) -> 0 | V29: =IF(Overrides!$A29, OFFSET(Overrides!$B29, 0, MATCH(V$4,Overrides!$C$5:$GU$5,0)), U29*(1+S!$CT$206)*(V$5>0)) -> 0 | W29: =IF(Overrides!$A29, OFFSET(Overrides!$B29, 0, MATCH(W$4,Overrides!$C$5:$GU$5,0)), V29*(1+S!$CT$206)*(W$5>0)) -> 0 | X29: =IF(Overrides!$A29, OFFSET(Overrides!$B29, 0, MATCH(X$4,Overrides!$C$5:$GU$5,0)), W29*(1+S!$CT$206)*(X$5>0)) -> 0 | Y29: =IF(Overrides!$A29, OFFSET(Overrides!$B29, 0, MATCH(Y$4,Overrides!$C$5:$GU$5,0)), X29*(1+S!$CT$206)*(Y$5>0)) -> 0 | Z29: =IF(Overrides!$A29, OFFSET(Overrides!$B29, 0, MATCH(Z$4,Overrides!$C$5:$GU$5,0)), Y29*(1+S!$CT$206)*(Z$5>0)) -> 0 | AA29: =IF(Overrides!$A29, OFFSET(Overrides!$B29, 0, MATCH(AA$4,Overrides!$C$5:$GU$5,0)), Z29*(1+S!$CT$206)*(AA$5>0)) -> 0 | AB29: =IF(Overrides!$A29, OFFSET(Overrides!$B29, 0, MATCH(AB$4,Overrides!$C$5:$GU$5,0)), AA29*(1+S!$CT$206)*(AB$5>0)) -> 0 | AC29: =IF(Overrides!$A29, OFFSET(Overrides!$B29, 0, MATCH(AC$4,Overrides!$C$5:$GU$5,0)), AB29*(1+S!$CT$206)*(AC$5>0)) -> 0 | AD29: =IF(Overrides!$A29, OFFSET(Overrides!$B29, 0, MATCH(AD$4,Overrides!$C$5:$GU$5,0)), AC29*(1+S!$CT$206)*(AD$5>0)) -> 0 | AE29: =IF(Overrides!$A29, OFFSET(Overrides!$B29, 0, MATCH(AE$4,Overrides!$C$5:$GU$5,0)), AD29*(1+S!$CT$206)*(AE$5>0)) -> 0 | AF29: =IF(Overrides!$A29, OFFSET(Overrides!$B29, 0, MATCH(AF$4,Overrides!$C$5:$GU$5,0)), AE29*(1+S!$CT$206)*(AF$5>0)) -> 0 | AG29: =IF(Overrides!$A29, OFFSET(Overrides!$B29, 0, MATCH(AG$4,Overrides!$C$5:$GU$5,0)), AF29*(1+S!$CT$206)*(AG$5>0)) -> 0 | AH29: =IF(Overrides!$A29, OFFSET(Overrides!$B29, 0, MATCH(AH$4,Overrides!$C$5:$GU$5,0)), AG29*(1+S!$CT$206)*(AH$5>0)) -> 0 | AI29: =IF(Overrides!$A29, OFFSET(Overrides!$B29, 0, MATCH(AI$4,Overrides!$C$5:$GU$5,0)), AH29*(1+S!$CT$206)*(AI$5>0)) -> 0 | AJ29: =IF(Overrides!$A29, OFFSET(Overrides!$B29, 0, MATCH(AJ$4,Overrides!$C$5:$GU$5,0)), AI29*(1+S!$CT$206)*(AJ$5>0)) -> 0 | AK29: =IF(Overrides!$A29, OFFSET(Overrides!$B29, 0, MATCH(AK$4,Overrides!$C$5:$GU$5,0)), AJ29*(1+S!$CT$206)*(AK$5>0)) -> 0 | AL29: =IF(Overrides!$A29, OFFSET(Overrides!$B29, 0, MATCH(AL$4,Overrides!$C$5:$GU$5,0)), AK29*(1+S!$CT$206)*(AL$5>0)) -> 0 | AM29: =IF(Overrides!$A29, OFFSET(Overrides!$B29, 0, MATCH(AM$4,Overrides!$C$5:$GU$5,0)), AL29*(1+S!$CT$206)*(AM$5>0)) -> 0 | AN29: =IF(Overrides!$A29, OFFSET(Overrides!$B29, 0, MATCH(AN$4,Overrides!$C$5:$GU$5,0)), AM29*(1+S!$CT$206)*(AN$5>0)) -> 0 | AO29: =IF(Overrides!$A29, OFFSET(Overrides!$B29, 0, MATCH(AO$4,Overrides!$C$5:$GU$5,0)), AN29*(1+S!$CT$206)*(AO$5>0)) -> 0 | AP29: =IF(Overrides!$A29, OFFSET(Overrides!$B29, 0, MATCH(AP$4,Overrides!$C$5:$GU$5,0)), AO29*(1+S!$CT$206)*(AP$5>0)) -> 0 | AQ29: =IF(Overrides!$A29, OFFSET(Overrides!$B29, 0, MATCH(AQ$4,Overrides!$C$5:$GU$5,0)), AP29*(1+S!$CT$206)*(AQ$5>0)) -> 0 | AR29: =IF(Overrides!$A29, OFFSET(Overrides!$B29, 0, MATCH(AR$4,Overrides!$C$5:$GU$5,0)), AQ29*(1+S!$CT$206)*(AR$5>0)) -> 0 | AS29: =IF(Overrides!$A29, OFFSET(Overrides!$B29, 0, MATCH(AS$4,Overrides!$C$5:$GU$5,0)), AR29*(1+S!$CT$206)*(AS$5>0)) -> 0 | AT29: =IF(Overrides!$A29, OFFSET(Overrides!$B29, 0, MATCH(AT$4,Overrides!$C$5:$GU$5,0)), AS29*(1+S!$CT$206)*(AT$5>0)) -> 0 | AU29: =IF(Overrides!$A29, OFFSET(Overrides!$B29, 0, MATCH(AU$4,Overrides!$C$5:$GU$5,0)), AT29*(1+S!$CT$206)*(AU$5>0)) -> 0 | AV29: =IF(Overrides!$A29, OFFSET(Overrides!$B29, 0, MATCH(AV$4,Overrides!$C$5:$GU$5,0)), AU29*(1+S!$CT$206)*(AV$5>0)) -> 0 | AW29: =IF(Overrides!$A29, OFFSET(Overrides!$B29, 0, MATCH(AW$4,Overrides!$C$5:$GU$5,0)), AV29*(1+S!$CT$206)*(AW$5>0)) -> 0 | AX29: =IF(Overrides!$A29, OFFSET(Overrides!$B29, 0, MATCH(AX$4,Overrides!$C$5:$GU$5,0)), AW29*(1+S!$CT$206)*(AX$5>0)) -> 0 | AY29: =IF(Overrides!$A29, OFFSET(Overrides!$B29, 0, MATCH(AY$4,Overrides!$C$5:$GU$5,0)), AX29*(1+S!$CT$206)*(AY$5>0)) -> 0 | AZ29: =IF(Overrides!$A29, OFFSET(Overrides!$B29, 0, MATCH(AZ$4,Overrides!$C$5:$GU$5,0)), AY29*(1+S!$CT$206)*(AZ$5>0)) -> 0 | BA29: =IF(Overrides!$A29, OFFSET(Overrides!$B29, 0, MATCH(BA$4,Overrides!$C$5:$GU$5,0)), AZ29*(1+S!$CT$206)*(BA$5>0)) -> 0 | BB29: =IF(Overrides!$A29, OFFSET(Overrides!$B29, 0, MATCH(BB$4,Overrides!$C$5:$GU$5,0)), BA29*(1+S!$CT$206)*(BB$5>0)) -> 0 | BC29: =IF(Overrides!$A29, OFFSET(Overrides!$B29, 0, MATCH(BC$4,Overrides!$C$5:$GU$5,0)), BB29*(1+S!$CT$206)*(BC$5>0)) -> 0 | BD29: =IF(Overrides!$A29, OFFSET(Overrides!$B29, 0, MATCH(BD$4,Overrides!$C$5:$GU$5,0)), BC29*(1+S!$CT$206)*(BD$5>0)) -> 0 | BE29: =IF(Overrides!$A29, OFFSET(Overrides!$B29, 0, MATCH(BE$4,Overrides!$C$5:$GU$5,0)), BD29*(1+S!$CT$206)*(BE$5>0)) -> 0 | BF29: =IF(Overrides!$A29, OFFSET(Overrides!$B29, 0, MATCH(BF$4,Overrides!$C$5:$GU$5,0)), BE29*(1+S!$CT$206)*(BF$5>0)) -> 0 | BG29: =IF(Overrides!$A29, OFFSET(Overrides!$B29, 0, MATCH(BG$4,Overrides!$C$5:$GU$5,0)), BF29*(1+S!$CT$206)*(BG$5>0)) -> 0 | BH29: =IF(Overrides!$A29, OFFSET(Overrides!$B29, 0, MATCH(BH$4,Overrides!$C$5:$GU$5,0)), BG29*(1+S!$CT$206)*(BH$5>0)) -> 0 | BI29: =IF(Overrides!$A29, OFFSET(Overrides!$B29, 0, MATCH(BI$4,Overrides!$C$5:$GU$5,0)), BH29*(1+S!$CT$206)*(BI$5>0)) -> 0 | BJ29: =IF(Overrides!$A29, OFFSET(Overrides!$B29, 0, MATCH(BJ$4,Overrides!$C$5:$GU$5,0)), BI29*(1+S!$CT$206)*(BJ$5>0)) -> 0 | BK29: =IF(Overrides!$A29, OFFSET(Overrides!$B29, 0, MATCH(BK$4,Overrides!$C$5:$GU$5,0)), BJ29*(1+S!$CT$206)*(BK$5>0)) -> 0 | BL29: =IF(Overrides!$A29, OFFSET(Overrides!$B29, 0, MATCH(BL$4,Overrides!$C$5:$GU$5,0)), BK29*(1+S!$CT$206)*(BL$5>0)) -> 0 | BM29: =IF(Overrides!$A29, OFFSET(Overrides!$B29, 0, MATCH(BM$4,Overrides!$C$5:$GU$5,0)), BL29*(1+S!$CT$206)*(BM$5>0)) -> 0 | BN29: =IF(Overrides!$A29, OFFSET(Overrides!$B29, 0, MATCH(BN$4,Overrides!$C$5:$GU$5,0)), BM29*(1+S!$CT$206)*(BN$5>0)) -> 0 | BO29: =IF(Overrides!$A29, OFFSET(Overrides!$B29, 0, MATCH(BO$4,Overrides!$C$5:$GU$5,0)), BN29*(1+S!$CT$206)*(BO$5>0)) -> 0 | BP29: =IF(Overrides!$A29, OFFSET(Overrides!$B29, 0, MATCH(BP$4,Overrides!$C$5:$GU$5,0)), BO29*(1+S!$CT$206)*(BP$5>0)) -> 0 | BQ29: =IF(Overrides!$A29, OFFSET(Overrides!$B29, 0, MATCH(BQ$4,Overrides!$C$5:$GU$5,0)), BP29*(1+S!$CT$206)*(BQ$5>0)) -> 0 | BR29: =IF(Overrides!$A29, OFFSET(Overrides!$B29, 0, MATCH(BR$4,Overrides!$C$5:$GU$5,0)), BQ29*(1+S!$CT$206)*(BR$5>0)) -> 0 | BS29: =IF(Overrides!$A29, OFFSET(Overrides!$B29, 0, MATCH(BS$4,Overrides!$C$5:$GU$5,0)), BR29*(1+S!$CT$206)*(BS$5>0)) -> 0 | BT29: =IF(Overrides!$A29, OFFSET(Overrides!$B29, 0, MATCH(BT$4,Overrides!$C$5:$GU$5,0)), BS29*(1+S!$CT$206)*(BT$5>0)) -> 0 | BU29: =IF(Overrides!$A29, OFFSET(Overrides!$B29, 0, MATCH(BU$4,Overrides!$C$5:$GU$5,0)), BT29*(1+S!$CT$206)*(BU$5>0)) -> 0 | BV29: =IF(Overrides!$A29, OFFSET(Overrides!$B29, 0, MATCH(BV$4,Overrides!$C$5:$GU$5,0)), BU29*(1+S!$CT$206)*(BV$5>0)) -> 0 | BW29: =IF(Overrides!$A29, OFFSET(Overrides!$B29, 0, MATCH(BW$4,Overrides!$C$5:$GU$5,0)), BV29*(1+S!$CT$206)*(BW$5>0)) -> 0 | BX29: =IF(Overrides!$A29, OFFSET(Overrides!$B29, 0, MATCH(BX$4,Overrides!$C$5:$GU$5,0)), BW29*(1+S!$CT$206)*(BX$5>0)) -> 0 | BY29: =IF(Overrides!$A29, OFFSET(Overrides!$B29, 0, MATCH(BY$4,Overrides!$C$5:$GU$5,0)), BX29*(1+S!$CT$206)*(BY$5>0)) -> 0 | BZ29: =IF(Overrides!$A29, OFFSET(Overrides!$B29, 0, MATCH(BZ$4,Overrides!$C$5:$GU$5,0)), BY29*(1+S!$CT$206)*(BZ$5>0)) -> 0 | CA29: =IF(Overrides!$A29, OFFSET(Overrides!$B29, 0, MATCH(CA$4,Overrides!$C$5:$GU$5,0)), BZ29*(1+S!$CT$206)*(CA$5>0)) -> 0 | CB29: =IF(Overrides!$A29, OFFSET(Overrides!$B29, 0, MATCH(CB$4,Overrides!$C$5:$GU$5,0)), CA29*(1+S!$CT$206)*(CB$5>0)) -> 0 | CC29: =IF(Overrides!$A29, OFFSET(Overrides!$B29, 0, MATCH(CC$4,Overrides!$C$5:$GU$5,0)), CB29*(1+S!$CT$206)*(CC$5>0)) -> 0 | CD29: =IF(Overrides!$A29, OFFSET(Overrides!$B29, 0, MATCH(CD$4,Overrides!$C$5:$GU$5,0)), CC29*(1+S!$CT$206)*(CD$5>0)) -> 0 | CE29: =IF(Overrides!$A29, OFFSET(Overrides!$B29, 0, MATCH(CE$4,Overrides!$C$5:$GU$5,0)), CD29*(1+S!$CT$206)*(CE$5>0)) -> 0 | CF29: =IF(Overrides!$A29, OFFSET(Overrides!$B29, 0, MATCH(CF$4,Overrides!$C$5:$GU$5,0)), CE29*(1+S!$CT$206)*(CF$5>0)) -> 0 | CG29: =IF(Overrides!$A29, OFFSET(Overrides!$B29, 0, MATCH(CG$4,Overrides!$C$5:$GU$5,0)), CF29*(1+S!$CT$206)*(CG$5>0)) -> 0 | CH29: =IF(Overrides!$A29, OFFSET(Overrides!$B29, 0, MATCH(CH$4,Overrides!$C$5:$GU$5,0)), CG29*(1+S!$CT$206)*(CH$5>0)) -> 0 | CI29: =IF(Overrides!$A29, OFFSET(Overrides!$B29, 0, MATCH(CI$4,Overrides!$C$5:$GU$5,0)), CH29*(1+S!$CT$206)*(CI$5>0)) -> 0 | CJ29: =IF(Overrides!$A29, OFFSET(Overrides!$B29, 0, MATCH(CJ$4,Overrides!$C$5:$GU$5,0)), CI29*(1+S!$CT$206)*(CJ$5>0)) -> 0 | CK29: =IF(Overrides!$A29, OFFSET(Overrides!$B29, 0, MATCH(CK$4,Overrides!$C$5:$GU$5,0)), CJ29*(1+S!$CT$206)*(CK$5>0)) -> 0 | CL29: =IF(Overrides!$A29, OFFSET(Overrides!$B29, 0, MATCH(CL$4,Overrides!$C$5:$GU$5,0)), CK29*(1+S!$CT$206)*(CL$5>0)) -> 0 | CM29: =IF(Overrides!$A29, OFFSET(Overrides!$B29, 0, MATCH(CM$4,Overrides!$C$5:$GU$5,0)), CL29*(1+S!$CT$206)*(CM$5>0)) -> 0 | CN29: =IF(Overrides!$A29, OFFSET(Overrides!$B29, 0, MATCH(CN$4,Overrides!$C$5:$GU$5,0)), CM29*(1+S!$CT$206)*(CN$5>0)) -> 0 | CO29: =IF(Overrides!$A29, OFFSET(Overrides!$B29, 0, MATCH(CO$4,Overrides!$C$5:$GU$5,0)), CN29*(1+S!$CT$206)*(CO$5>0)) -> 0 | CP29: =IF(Overrides!$A29, OFFSET(Overrides!$B29, 0, MATCH(CP$4,Overrides!$C$5:$GU$5,0)), CO29*(1+S!$CT$206)*(CP$5>0)) -> 0 | CQ29: =IF(Overrides!$A29, OFFSET(Overrides!$B29, 0, MATCH(CQ$4,Overrides!$C$5:$GU$5,0)), CP29*(1+S!$CT$206)*(CQ$5>0)) -> 0 | CR29: =IF(Overrides!$A29, OFFSET(Overrides!$B29, 0, MATCH(CR$4,Overrides!$C$5:$GU$5,0)), CQ29*(1+S!$CT$206)*(CR$5>0)) -> 0 | CS29: =IF(Overrides!$A29, OFFSET(Overrides!$B29, 0, MATCH(CS$4,Overrides!$C$5:$GU$5,0)), CR29*(1+S!$CT$206)*(CS$5>0)) -> 0 | CT29: =IF(Overrides!$A29, OFFSET(Overrides!$B29, 0, MATCH(CT$4,Overrides!$C$5:$GU$5,0)), CS29*(1+S!$CT$206)*(CT$5>0)) -> 0 | CU29: =IF(Overrides!$A29, OFFSET(Overrides!$B29, 0, MATCH(CU$4,Overrides!$C$5:$GU$5,0)), CT29*(1+S!$CT$206)*(CU$5>0)) -> 0 | CV29: =IF(Overrides!$A29, OFFSET(Overrides!$B29, 0, MATCH(CV$4,Overrides!$C$5:$GU$5,0)), CU29*(1+S!$CT$206)*(CV$5>0)) -> 0 | CW29: =IF(Overrides!$A29, OFFSET(Overrides!$B29, 0, MATCH(CW$4,Overrides!$C$5:$GU$5,0)), CV29*(1+S!$CT$206)*(CW$5>0)) -> 0 | CX29: =IF(Overrides!$A29, OFFSET(Overrides!$B29, 0, MATCH(CX$4,Overrides!$C$5:$GU$5,0)), CW29*(1+S!$CT$206)*(CX$5>0)) -> 0 | CY29: =IF(Overrides!$A29, OFFSET(Overrides!$B29, 0, MATCH(CY$4,Overrides!$C$5:$GU$5,0)), CX29*(1+S!$CT$206)*(CY$5>0)) -> 0
C30: =+Interface!C89 -> Cost of grid electricity ($/kWh) | D30: 0 | E30: =IF(Overrides!$A12, OFFSET(Overrides!$B12, 0, MATCH(E$4,Overrides!$C$5:$GU$5,0)), S!BQ206) -> 0.1 | F30: =IF(Overrides!$A12, OFFSET(Overrides!$B12, 0, MATCH(F$4,Overrides!$C$5:$GU$5,0)), E30*(1+S!$BR$206)*(F5>0)) -> 0.1019 | G30: =IF(Overrides!$A12, OFFSET(Overrides!$B12, 0, MATCH(G$4,Overrides!$C$5:$GU$5,0)), F30*(1+S!$BR$206)*(G5>0)) -> 0.1038361 | H30: =IF(Overrides!$A12, OFFSET(Overrides!$B12, 0, MATCH(H$4,Overrides!$C$5:$GU$5,0)), G30*(1+S!$BR$206)*(H5>0)) -> 0.1058089859 | I30: =IF(Overrides!$A12, OFFSET(Overrides!$B12, 0, MATCH(I$4,Overrides!$C$5:$GU$5,0)), H30*(1+S!$BR$206)*(I5>0)) -> 0.1078193566 | J30: =IF(Overrides!$A12, OFFSET(Overrides!$B12, 0, MATCH(J$4,Overrides!$C$5:$GU$5,0)), I30*(1+S!$BR$206)*(J5>0)) -> 0.1098679244 | K30: =IF(Overrides!$A12, OFFSET(Overrides!$B12, 0, MATCH(K$4,Overrides!$C$5:$GU$5,0)), J30*(1+S!$BR$206)*(K5>0)) -> 0.111955415 | L30: =IF(Overrides!$A12, OFFSET(Overrides!$B12, 0, MATCH(L$4,Overrides!$C$5:$GU$5,0)), K30*(1+S!$BR$206)*(L5>0)) -> 0.1140825679 | M30: =IF(Overrides!$A12, OFFSET(Overrides!$B12, 0, MATCH(M$4,Overrides!$C$5:$GU$5,0)), L30*(1+S!$BR$206)*(M5>0)) -> 0.1162501366 | N30: =IF(Overrides!$A12, OFFSET(Overrides!$B12, 0, MATCH(N$4,Overrides!$C$5:$GU$5,0)), M30*(1+S!$BR$206)*(N5>0)) -> 0.1184588892 | O30: =IF(Overrides!$A12, OFFSET(Overrides!$B12, 0, MATCH(O$4,Overrides!$C$5:$GU$5,0)), N30*(1+S!$BR$206)*(O5>0)) -> 0.1207096081 | P30: =IF(Overrides!$A12, OFFSET(Overrides!$B12, 0, MATCH(P$4,Overrides!$C$5:$GU$5,0)), O30*(1+S!$BR$206)*(P5>0)) -> 0.1230030907 | Q30: =IF(Overrides!$A12, OFFSET(Overrides!$B12, 0, MATCH(Q$4,Overrides!$C$5:$GU$5,0)), P30*(1+S!$BR$206)*(Q5>0)) -> 0.1253401494 | R30: =IF(Overrides!$A12, OFFSET(Overrides!$B12, 0, MATCH(R$4,Overrides!$C$5:$GU$5,0)), Q30*(1+S!$BR$206)*(R5>0)) -> 0.1277216123 | S30: =IF(Overrides!$A12, OFFSET(Overrides!$B12, 0, MATCH(S$4,Overrides!$C$5:$GU$5,0)), R30*(1+S!$BR$206)*(S5>0)) -> 0.1301483229 | T30: =IF(Overrides!$A12, OFFSET(Overrides!$B12, 0, MATCH(T$4,Overrides!$C$5:$GU$5,0)), S30*(1+S!$BR$206)*(T5>0)) -> 0.132621141 | U30: =IF(Overrides!$A12, OFFSET(Overrides!$B12, 0, MATCH(U$4,Overrides!$C$5:$GU$5,0)), T30*(1+S!$BR$206)*(U5>0)) -> 0 | V30: =IF(Overrides!$A12, OFFSET(Overrides!$B12, 0, MATCH(V$4,Overrides!$C$5:$GU$5,0)), U30*(1+S!$BR$206)*(V5>0)) -> 0 | W30: =IF(Overrides!$A12, OFFSET(Overrides!$B12, 0, MATCH(W$4,Overrides!$C$5:$GU$5,0)), V30*(1+S!$BR$206)*(W5>0)) -> 0 | X30: =IF(Overrides!$A12, OFFSET(Overrides!$B12, 0, MATCH(X$4,Overrides!$C$5:$GU$5,0)), W30*(1+S!$BR$206)*(X5>0)) -> 0 | Y30: =IF(Overrides!$A12, OFFSET(Overrides!$B12, 0, MATCH(Y$4,Overrides!$C$5:$GU$5,0)), X30*(1+S!$BR$206)*(Y5>0)) -> 0 | Z30: =IF(Overrides!$A12, OFFSET(Overrides!$B12, 0, MATCH(Z$4,Overrides!$C$5:$GU$5,0)), Y30*(1+S!$BR$206)*(Z5>0)) -> 0 | AA30: =IF(Overrides!$A12, OFFSET(Overrides!$B12, 0, MATCH(AA$4,Overrides!$C$5:$GU$5,0)), Z30*(1+S!$BR$206)*(AA5>0)) -> 0 | AB30: =IF(Overrides!$A12, OFFSET(Overrides!$B12, 0, MATCH(AB$4,Overrides!$C$5:$GU$5,0)), AA30*(1+S!$BR$206)*(AB5>0)) -> 0 | AC30: =IF(Overrides!$A12, OFFSET(Overrides!$B12, 0, MATCH(AC$4,Overrides!$C$5:$GU$5,0)), AB30*(1+S!$BR$206)*(AC5>0)) -> 0 | AD30: =IF(Overrides!$A12, OFFSET(Overrides!$B12, 0, MATCH(AD$4,Overrides!$C$5:$GU$5,0)), AC30*(1+S!$BR$206)*(AD5>0)) -> 0 | AE30: =IF(Overrides!$A12, OFFSET(Overrides!$B12, 0, MATCH(AE$4,Overrides!$C$5:$GU$5,0)), AD30*(1+S!$BR$206)*(AE5>0)) -> 0 | AF30: =IF(Overrides!$A12, OFFSET(Overrides!$B12, 0, MATCH(AF$4,Overrides!$C$5:$GU$5,0)), AE30*(1+S!$BR$206)*(AF5>0)) -> 0 | AG30: =IF(Overrides!$A12, OFFSET(Overrides!$B12, 0, MATCH(AG$4,Overrides!$C$5:$GU$5,0)), AF30*(1+S!$BR$206)*(AG5>0)) -> 0 | AH30: =IF(Overrides!$A12, OFFSET(Overrides!$B12, 0, MATCH(AH$4,Overrides!$C$5:$GU$5,0)), AG30*(1+S!$BR$206)*(AH5>0)) -> 0 | AI30: =IF(Overrides!$A12, OFFSET(Overrides!$B12, 0, MATCH(AI$4,Overrides!$C$5:$GU$5,0)), AH30*(1+S!$BR$206)*(AI5>0)) -> 0 | AJ30: =IF(Overrides!$A12, OFFSET(Overrides!$B12, 0, MATCH(AJ$4,Overrides!$C$5:$GU$5,0)), AI30*(1+S!$BR$206)*(AJ5>0)) -> 0 | AK30: =IF(Overrides!$A12, OFFSET(Overrides!$B12, 0, MATCH(AK$4,Overrides!$C$5:$GU$5,0)), AJ30*(1+S!$BR$206)*(AK5>0)) -> 0 | AL30: =IF(Overrides!$A12, OFFSET(Overrides!$B12, 0, MATCH(AL$4,Overrides!$C$5:$GU$5,0)), AK30*(1+S!$BR$206)*(AL5>0)) -> 0 | AM30: =IF(Overrides!$A12, OFFSET(Overrides!$B12, 0, MATCH(AM$4,Overrides!$C$5:$GU$5,0)), AL30*(1+S!$BR$206)*(AM5>0)) -> 0 | AN30: =IF(Overrides!$A12, OFFSET(Overrides!$B12, 0, MATCH(AN$4,Overrides!$C$5:$GU$5,0)), AM30*(1+S!$BR$206)*(AN5>0)) -> 0 | AO30: =IF(Overrides!$A12, OFFSET(Overrides!$B12, 0, MATCH(AO$4,Overrides!$C$5:$GU$5,0)), AN30*(1+S!$BR$206)*(AO5>0)) -> 0 | AP30: =IF(Overrides!$A12, OFFSET(Overrides!$B12, 0, MATCH(AP$4,Overrides!$C$5:$GU$5,0)), AO30*(1+S!$BR$206)*(AP5>0)) -> 0 | AQ30: =IF(Overrides!$A12, OFFSET(Overrides!$B12, 0, MATCH(AQ$4,Overrides!$C$5:$GU$5,0)), AP30*(1+S!$BR$206)*(AQ5>0)) -> 0 | AR30: =IF(Overrides!$A12, OFFSET(Overrides!$B12, 0, MATCH(AR$4,Overrides!$C$5:$GU$5,0)), AQ30*(1+S!$BR$206)*(AR5>0)) -> 0 | AS30: =IF(Overrides!$A12, OFFSET(Overrides!$B12, 0, MATCH(AS$4,Overrides!$C$5:$GU$5,0)), AR30*(1+S!$BR$206)*(AS5>0)) -> 0 | AT30: =IF(Overrides!$A12, OFFSET(Overrides!$B12, 0, MATCH(AT$4,Overrides!$C$5:$GU$5,0)), AS30*(1+S!$BR$206)*(AT5>0)) -> 0 | AU30: =IF(Overrides!$A12, OFFSET(Overrides!$B12, 0, MATCH(AU$4,Overrides!$C$5:$GU$5,0)), AT30*(1+S!$BR$206)*(AU5>0)) -> 0 | AV30: =IF(Overrides!$A12, OFFSET(Overrides!$B12, 0, MATCH(AV$4,Overrides!$C$5:$GU$5,0)), AU30*(1+S!$BR$206)*(AV5>0)) -> 0 | AW30: =IF(Overrides!$A12, OFFSET(Overrides!$B12, 0, MATCH(AW$4,Overrides!$C$5:$GU$5,0)), AV30*(1+S!$BR$206)*(AW5>0)) -> 0 | AX30: =IF(Overrides!$A12, OFFSET(Overrides!$B12, 0, MATCH(AX$4,Overrides!$C$5:$GU$5,0)), AW30*(1+S!$BR$206)*(AX5>0)) -> 0 | AY30: =IF(Overrides!$A12, OFFSET(Overrides!$B12, 0, MATCH(AY$4,Overrides!$C$5:$GU$5,0)), AX30*(1+S!$BR$206)*(AY5>0)) -> 0 | AZ30: =IF(Overrides!$A12, OFFSET(Overrides!$B12, 0, MATCH(AZ$4,Overrides!$C$5:$GU$5,0)), AY30*(1+S!$BR$206)*(AZ5>0)) -> 0 | BA30: =IF(Overrides!$A12, OFFSET(Overrides!$B12, 0, MATCH(BA$4,Overrides!$C$5:$GU$5,0)), AZ30*(1+S!$BR$206)*(BA5>0)) -> 0 | BB30: =IF(Overrides!$A12, OFFSET(Overrides!$B12, 0, MATCH(BB$4,Overrides!$C$5:$GU$5,0)), BA30*(1+S!$BR$206)*(BB5>0)) -> 0 | BC30: =IF(Overrides!$A12, OFFSET(Overrides!$B12, 0, MATCH(BC$4,Overrides!$C$5:$GU$5,0)), BB30*(1+S!$BR$206)*(BC5>0)) -> 0 | BD30: =IF(Overrides!$A12, OFFSET(Overrides!$B12, 0, MATCH(BD$4,Overrides!$C$5:$GU$5,0)), BC30*(1+S!$BR$206)*(BD5>0)) -> 0 | BE30: =IF(Overrides!$A12, OFFSET(Overrides!$B12, 0, MATCH(BE$4,Overrides!$C$5:$GU$5,0)), BD30*(1+S!$BR$206)*(BE5>0)) -> 0 | BF30: =IF(Overrides!$A12, OFFSET(Overrides!$B12, 0, MATCH(BF$4,Overrides!$C$5:$GU$5,0)), BE30*(1+S!$BR$206)*(BF5>0)) -> 0 | BG30: =IF(Overrides!$A12, OFFSET(Overrides!$B12, 0, MATCH(BG$4,Overrides!$C$5:$GU$5,0)), BF30*(1+S!$BR$206)*(BG5>0)) -> 0 | BH30: =IF(Overrides!$A12, OFFSET(Overrides!$B12, 0, MATCH(BH$4,Overrides!$C$5:$GU$5,0)), BG30*(1+S!$BR$206)*(BH5>0)) -> 0 | BI30: =IF(Overrides!$A12, OFFSET(Overrides!$B12, 0, MATCH(BI$4,Overrides!$C$5:$GU$5,0)), BH30*(1+S!$BR$206)*(BI5>0)) -> 0 | BJ30: =IF(Overrides!$A12, OFFSET(Overrides!$B12, 0, MATCH(BJ$4,Overrides!$C$5:$GU$5,0)), BI30*(1+S!$BR$206)*(BJ5>0)) -> 0 | BK30: =IF(Overrides!$A12, OFFSET(Overrides!$B12, 0, MATCH(BK$4,Overrides!$C$5:$GU$5,0)), BJ30*(1+S!$BR$206)*(BK5>0)) -> 0 | BL30: =IF(Overrides!$A12, OFFSET(Overrides!$B12, 0, MATCH(BL$4,Overrides!$C$5:$GU$5,0)), BK30*(1+S!$BR$206)*(BL5>0)) -> 0 | BM30: =IF(Overrides!$A12, OFFSET(Overrides!$B12, 0, MATCH(BM$4,Overrides!$C$5:$GU$5,0)), BL30*(1+S!$BR$206)*(BM5>0)) -> 0 | BN30: =IF(Overrides!$A12, OFFSET(Overrides!$B12, 0, MATCH(BN$4,Overrides!$C$5:$GU$5,0)), BM30*(1+S!$BR$206)*(BN5>0)) -> 0 | BO30: =IF(Overrides!$A12, OFFSET(Overrides!$B12, 0, MATCH(BO$4,Overrides!$C$5:$GU$5,0)), BN30*(1+S!$BR$206)*(BO5>0)) -> 0 | BP30: =IF(Overrides!$A12, OFFSET(Overrides!$B12, 0, MATCH(BP$4,Overrides!$C$5:$GU$5,0)), BO30*(1+S!$BR$206)*(BP5>0)) -> 0 | BQ30: =IF(Overrides!$A12, OFFSET(Overrides!$B12, 0, MATCH(BQ$4,Overrides!$C$5:$GU$5,0)), BP30*(1+S!$BR$206)*(BQ5>0)) -> 0 | BR30: =IF(Overrides!$A12, OFFSET(Overrides!$B12, 0, MATCH(BR$4,Overrides!$C$5:$GU$5,0)), BQ30*(1+S!$BR$206)*(BR5>0)) -> 0 | BS30: =IF(Overrides!$A12, OFFSET(Overrides!$B12, 0, MATCH(BS$4,Overrides!$C$5:$GU$5,0)), BR30*(1+S!$BR$206)*(BS5>0)) -> 0 | BT30: =IF(Overrides!$A12, OFFSET(Overrides!$B12, 0, MATCH(BT$4,Overrides!$C$5:$GU$5,0)), BS30*(1+S!$BR$206)*(BT5>0)) -> 0 | BU30: =IF(Overrides!$A12, OFFSET(Overrides!$B12, 0, MATCH(BU$4,Overrides!$C$5:$GU$5,0)), BT30*(1+S!$BR$206)*(BU5>0)) -> 0 | BV30: =IF(Overrides!$A12, OFFSET(Overrides!$B12, 0, MATCH(BV$4,Overrides!$C$5:$GU$5,0)), BU30*(1+S!$BR$206)*(BV5>0)) -> 0 | BW30: =IF(Overrides!$A12, OFFSET(Overrides!$B12, 0, MATCH(BW$4,Overrides!$C$5:$GU$5,0)), BV30*(1+S!$BR$206)*(BW5>0)) -> 0 | BX30: =IF(Overrides!$A12, OFFSET(Overrides!$B12, 0, MATCH(BX$4,Overrides!$C$5:$GU$5,0)), BW30*(1+S!$BR$206)*(BX5>0)) -> 0 | BY30: =IF(Overrides!$A12, OFFSET(Overrides!$B12, 0, MATCH(BY$4,Overrides!$C$5:$GU$5,0)), BX30*(1+S!$BR$206)*(BY5>0)) -> 0 | BZ30: =IF(Overrides!$A12, OFFSET(Overrides!$B12, 0, MATCH(BZ$4,Overrides!$C$5:$GU$5,0)), BY30*(1+S!$BR$206)*(BZ5>0)) -> 0 | CA30: =IF(Overrides!$A12, OFFSET(Overrides!$B12, 0, MATCH(CA$4,Overrides!$C$5:$GU$5,0)), BZ30*(1+S!$BR$206)*(CA5>0)) -> 0 | CB30: =IF(Overrides!$A12, OFFSET(Overrides!$B12, 0, MATCH(CB$4,Overrides!$C$5:$GU$5,0)), CA30*(1+S!$BR$206)*(CB5>0)) -> 0 | CC30: =IF(Overrides!$A12, OFFSET(Overrides!$B12, 0, MATCH(CC$4,Overrides!$C$5:$GU$5,0)), CB30*(1+S!$BR$206)*(CC5>0)) -> 0 | CD30: =IF(Overrides!$A12, OFFSET(Overrides!$B12, 0, MATCH(CD$4,Overrides!$C$5:$GU$5,0)), CC30*(1+S!$BR$206)*(CD5>0)) -> 0 | CE30: =IF(Overrides!$A12, OFFSET(Overrides!$B12, 0, MATCH(CE$4,Overrides!$C$5:$GU$5,0)), CD30*(1+S!$BR$206)*(CE5>0)) -> 0 | CF30: =IF(Overrides!$A12, OFFSET(Overrides!$B12, 0, MATCH(CF$4,Overrides!$C$5:$GU$5,0)), CE30*(1+S!$BR$206)*(CF5>0)) -> 0 | CG30: =IF(Overrides!$A12, OFFSET(Overrides!$B12, 0, MATCH(CG$4,Overrides!$C$5:$GU$5,0)), CF30*(1+S!$BR$206)*(CG5>0)) -> 0 | CH30: =IF(Overrides!$A12, OFFSET(Overrides!$B12, 0, MATCH(CH$4,Overrides!$C$5:$GU$5,0)), CG30*(1+S!$BR$206)*(CH5>0)) -> 0 | CI30: =IF(Overrides!$A12, OFFSET(Overrides!$B12, 0, MATCH(CI$4,Overrides!$C$5:$GU$5,0)), CH30*(1+S!$BR$206)*(CI5>0)) -> 0 | CJ30: =IF(Overrides!$A12, OFFSET(Overrides!$B12, 0, MATCH(CJ$4,Overrides!$C$5:$GU$5,0)), CI30*(1+S!$BR$206)*(CJ5>0)) -> 0 | CK30: =IF(Overrides!$A12, OFFSET(Overrides!$B12, 0, MATCH(CK$4,Overrides!$C$5:$GU$5,0)), CJ30*(1+S!$BR$206)*(CK5>0)) -> 0 | CL30: =IF(Overrides!$A12, OFFSET(Overrides!$B12, 0, MATCH(CL$4,Overrides!$C$5:$GU$5,0)), CK30*(1+S!$BR$206)*(CL5>0)) -> 0 | CM30: =IF(Overrides!$A12, OFFSET(Overrides!$B12, 0, MATCH(CM$4,Overrides!$C$5:$GU$5,0)), CL30*(1+S!$BR$206)*(CM5>0)) -> 0 | CN30: =IF(Overrides!$A12, OFFSET(Overrides!$B12, 0, MATCH(CN$4,Overrides!$C$5:$GU$5,0)), CM30*(1+S!$BR$206)*(CN5>0)) -> 0 | CO30: =IF(Overrides!$A12, OFFSET(Overrides!$B12, 0, MATCH(CO$4,Overrides!$C$5:$GU$5,0)), CN30*(1+S!$BR$206)*(CO5>0)) -> 0 | CP30: =IF(Overrides!$A12, OFFSET(Overrides!$B12, 0, MATCH(CP$4,Overrides!$C$5:$GU$5,0)), CO30*(1+S!$BR$206)*(CP5>0)) -> 0 | CQ30: =IF(Overrides!$A12, OFFSET(Overrides!$B12, 0, MATCH(CQ$4,Overrides!$C$5:$GU$5,0)), CP30*(1+S!$BR$206)*(CQ5>0)) -> 0 | CR30: =IF(Overrides!$A12, OFFSET(Overrides!$B12, 0, MATCH(CR$4,Overrides!$C$5:$GU$5,0)), CQ30*(1+S!$BR$206)*(CR5>0)) -> 0 | CS30: =IF(Overrides!$A12, OFFSET(Overrides!$B12, 0, MATCH(CS$4,Overrides!$C$5:$GU$5,0)), CR30*(1+S!$BR$206)*(CS5>0)) -> 0 | CT30: =IF(Overrides!$A12, OFFSET(Overrides!$B12, 0, MATCH(CT$4,Overrides!$C$5:$GU$5,0)), CS30*(1+S!$BR$206)*(CT5>0)) -> 0 | CU30: =IF(Overrides!$A12, OFFSET(Overrides!$B12, 0, MATCH(CU$4,Overrides!$C$5:$GU$5,0)), CT30*(1+S!$BR$206)*(CU5>0)) -> 0 | CV30: =IF(Overrides!$A12, OFFSET(Overrides!$B12, 0, MATCH(CV$4,Overrides!$C$5:$GU$5,0)), CU30*(1+S!$BR$206)*(CV5>0)) -> 0 | CW30: =IF(Overrides!$A12, OFFSET(Overrides!$B12, 0, MATCH(CW$4,Overrides!$C$5:$GU$5,0)), CV30*(1+S!$BR$206)*(CW5>0)) -> 0 | CX30: =IF(Overrides!$A12, OFFSET(Overrides!$B12, 0, MATCH(CX$4,Overrides!$C$5:$GU$5,0)), CW30*(1+S!$BR$206)*(CX5>0)) -> 0 | CY30: =IF(Overrides!$A12, OFFSET(Overrides!$B12, 0, MATCH(CY$4,Overrides!$C$5:$GU$5,0)), CX30*(1+S!$BR$206)*(CY5>0)) -> 0
C31: =+Interface!C91 -> Cost of feedstock 2 ($/units of feedstock 2) | D31: 0 | E31: =IF(Overrides!$A13, OFFSET(Overrides!$B13, 0, MATCH(E$4,Overrides!$C$5:$GU$5,0)), S!BS206) -> 0.1 | F31: =IF(Overrides!$A13, OFFSET(Overrides!$B13, 0, MATCH(F$4,Overrides!$C$5:$GU$5,0)), E31*(1+S!$BT$206)*(F5>0)) -> 0.1019 | G31: =IF(Overrides!$A13, OFFSET(Overrides!$B13, 0, MATCH(G$4,Overrides!$C$5:$GU$5,0)), F31*(1+S!$BT$206)*(G5>0)) -> 0.1038361 | H31: =IF(Overrides!$A13, OFFSET(Overrides!$B13, 0, MATCH(H$4,Overrides!$C$5:$GU$5,0)), G31*(1+S!$BT$206)*(H5>0)) -> 0.1058089859 | I31: =IF(Overrides!$A13, OFFSET(Overrides!$B13, 0, MATCH(I$4,Overrides!$C$5:$GU$5,0)), H31*(1+S!$BT$206)*(I5>0)) -> 0.1078193566 | J31: =IF(Overrides!$A13, OFFSET(Overrides!$B13, 0, MATCH(J$4,Overrides!$C$5:$GU$5,0)), I31*(1+S!$BT$206)*(J5>0)) -> 0.1098679244 | K31: =IF(Overrides!$A13, OFFSET(Overrides!$B13, 0, MATCH(K$4,Overrides!$C$5:$GU$5,0)), J31*(1+S!$BT$206)*(K5>0)) -> 0.111955415 | L31: =IF(Overrides!$A13, OFFSET(Overrides!$B13, 0, MATCH(L$4,Overrides!$C$5:$GU$5,0)), K31*(1+S!$BT$206)*(L5>0)) -> 0.1140825679 | M31: =IF(Overrides!$A13, OFFSET(Overrides!$B13, 0, MATCH(M$4,Overrides!$C$5:$GU$5,0)), L31*(1+S!$BT$206)*(M5>0)) -> 0.1162501366 | N31: =IF(Overrides!$A13, OFFSET(Overrides!$B13, 0, MATCH(N$4,Overrides!$C$5:$GU$5,0)), M31*(1+S!$BT$206)*(N5>0)) -> 0.1184588892 | O31: =IF(Overrides!$A13, OFFSET(Overrides!$B13, 0, MATCH(O$4,Overrides!$C$5:$GU$5,0)), N31*(1+S!$BT$206)*(O5>0)) -> 0.1207096081 | P31: =IF(Overrides!$A13, OFFSET(Overrides!$B13, 0, MATCH(P$4,Overrides!$C$5:$GU$5,0)), O31*(1+S!$BT$206)*(P5>0)) -> 0.1230030907 | Q31: =IF(Overrides!$A13, OFFSET(Overrides!$B13, 0, MATCH(Q$4,Overrides!$C$5:$GU$5,0)), P31*(1+S!$BT$206)*(Q5>0)) -> 0.1253401494 | R31: =IF(Overrides!$A13, OFFSET(Overrides!$B13, 0, MATCH(R$4,Overrides!$C$5:$GU$5,0)), Q31*(1+S!$BT$206)*(R5>0)) -> 0.1277216123 | S31: =IF(Overrides!$A13, OFFSET(Overrides!$B13, 0, MATCH(S$4,Overrides!$C$5:$GU$5,0)), R31*(1+S!$BT$206)*(S5>0)) -> 0.1301483229 | T31: =IF(Overrides!$A13, OFFSET(Overrides!$B13, 0, MATCH(T$4,Overrides!$C$5:$GU$5,0)), S31*(1+S!$BT$206)*(T5>0)) -> 0.132621141 | U31: =IF(Overrides!$A13, OFFSET(Overrides!$B13, 0, MATCH(U$4,Overrides!$C$5:$GU$5,0)), T31*(1+S!$BT$206)*(U5>0)) -> 0 | V31: =IF(Overrides!$A13, OFFSET(Overrides!$B13, 0, MATCH(V$4,Overrides!$C$5:$GU$5,0)), U31*(1+S!$BT$206)*(V5>0)) -> 0 | W31: =IF(Overrides!$A13, OFFSET(Overrides!$B13, 0, MATCH(W$4,Overrides!$C$5:$GU$5,0)), V31*(1+S!$BT$206)*(W5>0)) -> 0 | X31: =IF(Overrides!$A13, OFFSET(Overrides!$B13, 0, MATCH(X$4,Overrides!$C$5:$GU$5,0)), W31*(1+S!$BT$206)*(X5>0)) -> 0 | Y31: =IF(Overrides!$A13, OFFSET(Overrides!$B13, 0, MATCH(Y$4,Overrides!$C$5:$GU$5,0)), X31*(1+S!$BT$206)*(Y5>0)) -> 0 | Z31: =IF(Overrides!$A13, OFFSET(Overrides!$B13, 0, MATCH(Z$4,Overrides!$C$5:$GU$5,0)), Y31*(1+S!$BT$206)*(Z5>0)) -> 0 | AA31: =IF(Overrides!$A13, OFFSET(Overrides!$B13, 0, MATCH(AA$4,Overrides!$C$5:$GU$5,0)), Z31*(1+S!$BT$206)*(AA5>0)) -> 0 | AB31: =IF(Overrides!$A13, OFFSET(Overrides!$B13, 0, MATCH(AB$4,Overrides!$C$5:$GU$5,0)), AA31*(1+S!$BT$206)*(AB5>0)) -> 0 | AC31: =IF(Overrides!$A13, OFFSET(Overrides!$B13, 0, MATCH(AC$4,Overrides!$C$5:$GU$5,0)), AB31*(1+S!$BT$206)*(AC5>0)) -> 0 | AD31: =IF(Overrides!$A13, OFFSET(Overrides!$B13, 0, MATCH(AD$4,Overrides!$C$5:$GU$5,0)), AC31*(1+S!$BT$206)*(AD5>0)) -> 0 | AE31: =IF(Overrides!$A13, OFFSET(Overrides!$B13, 0, MATCH(AE$4,Overrides!$C$5:$GU$5,0)), AD31*(1+S!$BT$206)*(AE5>0)) -> 0 | AF31: =IF(Overrides!$A13, OFFSET(Overrides!$B13, 0, MATCH(AF$4,Overrides!$C$5:$GU$5,0)), AE31*(1+S!$BT$206)*(AF5>0)) -> 0 | AG31: =IF(Overrides!$A13, OFFSET(Overrides!$B13, 0, MATCH(AG$4,Overrides!$C$5:$GU$5,0)), AF31*(1+S!$BT$206)*(AG5>0)) -> 0 | AH31: =IF(Overrides!$A13, OFFSET(Overrides!$B13, 0, MATCH(AH$4,Overrides!$C$5:$GU$5,0)), AG31*(1+S!$BT$206)*(AH5>0)) -> 0 | AI31: =IF(Overrides!$A13, OFFSET(Overrides!$B13, 0, MATCH(AI$4,Overrides!$C$5:$GU$5,0)), AH31*(1+S!$BT$206)*(AI5>0)) -> 0 | AJ31: =IF(Overrides!$A13, OFFSET(Overrides!$B13, 0, MATCH(AJ$4,Overrides!$C$5:$GU$5,0)), AI31*(1+S!$BT$206)*(AJ5>0)) -> 0 | AK31: =IF(Overrides!$A13, OFFSET(Overrides!$B13, 0, MATCH(AK$4,Overrides!$C$5:$GU$5,0)), AJ31*(1+S!$BT$206)*(AK5>0)) -> 0 | AL31: =IF(Overrides!$A13, OFFSET(Overrides!$B13, 0, MATCH(AL$4,Overrides!$C$5:$GU$5,0)), AK31*(1+S!$BT$206)*(AL5>0)) -> 0 | AM31: =IF(Overrides!$A13, OFFSET(Overrides!$B13, 0, MATCH(AM$4,Overrides!$C$5:$GU$5,0)), AL31*(1+S!$BT$206)*(AM5>0)) -> 0 | AN31: =IF(Overrides!$A13, OFFSET(Overrides!$B13, 0, MATCH(AN$4,Overrides!$C$5:$GU$5,0)), AM31*(1+S!$BT$206)*(AN5>0)) -> 0 | AO31: =IF(Overrides!$A13, OFFSET(Overrides!$B13, 0, MATCH(AO$4,Overrides!$C$5:$GU$5,0)), AN31*(1+S!$BT$206)*(AO5>0)) -> 0 | AP31: =IF(Overrides!$A13, OFFSET(Overrides!$B13, 0, MATCH(AP$4,Overrides!$C$5:$GU$5,0)), AO31*(1+S!$BT$206)*(AP5>0)) -> 0 | AQ31: =IF(Overrides!$A13, OFFSET(Overrides!$B13, 0, MATCH(AQ$4,Overrides!$C$5:$GU$5,0)), AP31*(1+S!$BT$206)*(AQ5>0)) -> 0 | AR31: =IF(Overrides!$A13, OFFSET(Overrides!$B13, 0, MATCH(AR$4,Overrides!$C$5:$GU$5,0)), AQ31*(1+S!$BT$206)*(AR5>0)) -> 0 | AS31: =IF(Overrides!$A13, OFFSET(Overrides!$B13, 0, MATCH(AS$4,Overrides!$C$5:$GU$5,0)), AR31*(1+S!$BT$206)*(AS5>0)) -> 0 | AT31: =IF(Overrides!$A13, OFFSET(Overrides!$B13, 0, MATCH(AT$4,Overrides!$C$5:$GU$5,0)), AS31*(1+S!$BT$206)*(AT5>0)) -> 0 | AU31: =IF(Overrides!$A13, OFFSET(Overrides!$B13, 0, MATCH(AU$4,Overrides!$C$5:$GU$5,0)), AT31*(1+S!$BT$206)*(AU5>0)) -> 0 | AV31: =IF(Overrides!$A13, OFFSET(Overrides!$B13, 0, MATCH(AV$4,Overrides!$C$5:$GU$5,0)), AU31*(1+S!$BT$206)*(AV5>0)) -> 0 | AW31: =IF(Overrides!$A13, OFFSET(Overrides!$B13, 0, MATCH(AW$4,Overrides!$C$5:$GU$5,0)), AV31*(1+S!$BT$206)*(AW5>0)) -> 0 | AX31: =IF(Overrides!$A13, OFFSET(Overrides!$B13, 0, MATCH(AX$4,Overrides!$C$5:$GU$5,0)), AW31*(1+S!$BT$206)*(AX5>0)) -> 0 | AY31: =IF(Overrides!$A13, OFFSET(Overrides!$B13, 0, MATCH(AY$4,Overrides!$C$5:$GU$5,0)), AX31*(1+S!$BT$206)*(AY5>0)) -> 0 | AZ31: =IF(Overrides!$A13, OFFSET(Overrides!$B13, 0, MATCH(AZ$4,Overrides!$C$5:$GU$5,0)), AY31*(1+S!$BT$206)*(AZ5>0)) -> 0 | BA31: =IF(Overrides!$A13, OFFSET(Overrides!$B13, 0, MATCH(BA$4,Overrides!$C$5:$GU$5,0)), AZ31*(1+S!$BT$206)*(BA5>0)) -> 0 | BB31: =IF(Overrides!$A13, OFFSET(Overrides!$B13, 0, MATCH(BB$4,Overrides!$C$5:$GU$5,0)), BA31*(1+S!$BT$206)*(BB5>0)) -> 0 | BC31: =IF(Overrides!$A13, OFFSET(Overrides!$B13, 0, MATCH(BC$4,Overrides!$C$5:$GU$5,0)), BB31*(1+S!$BT$206)*(BC5>0)) -> 0 | BD31: =IF(Overrides!$A13, OFFSET(Overrides!$B13, 0, MATCH(BD$4,Overrides!$C$5:$GU$5,0)), BC31*(1+S!$BT$206)*(BD5>0)) -> 0 | BE31: =IF(Overrides!$A13, OFFSET(Overrides!$B13, 0, MATCH(BE$4,Overrides!$C$5:$GU$5,0)), BD31*(1+S!$BT$206)*(BE5>0)) -> 0 | BF31: =IF(Overrides!$A13, OFFSET(Overrides!$B13, 0, MATCH(BF$4,Overrides!$C$5:$GU$5,0)), BE31*(1+S!$BT$206)*(BF5>0)) -> 0 | BG31: =IF(Overrides!$A13, OFFSET(Overrides!$B13, 0, MATCH(BG$4,Overrides!$C$5:$GU$5,0)), BF31*(1+S!$BT$206)*(BG5>0)) -> 0 | BH31: =IF(Overrides!$A13, OFFSET(Overrides!$B13, 0, MATCH(BH$4,Overrides!$C$5:$GU$5,0)), BG31*(1+S!$BT$206)*(BH5>0)) -> 0 | BI31: =IF(Overrides!$A13, OFFSET(Overrides!$B13, 0, MATCH(BI$4,Overrides!$C$5:$GU$5,0)), BH31*(1+S!$BT$206)*(BI5>0)) -> 0 | BJ31: =IF(Overrides!$A13, OFFSET(Overrides!$B13, 0, MATCH(BJ$4,Overrides!$C$5:$GU$5,0)), BI31*(1+S!$BT$206)*(BJ5>0)) -> 0 | BK31: =IF(Overrides!$A13, OFFSET(Overrides!$B13, 0, MATCH(BK$4,Overrides!$C$5:$GU$5,0)), BJ31*(1+S!$BT$206)*(BK5>0)) -> 0 | BL31: =IF(Overrides!$A13, OFFSET(Overrides!$B13, 0, MATCH(BL$4,Overrides!$C$5:$GU$5,0)), BK31*(1+S!$BT$206)*(BL5>0)) -> 0 | BM31: =IF(Overrides!$A13, OFFSET(Overrides!$B13, 0, MATCH(BM$4,Overrides!$C$5:$GU$5,0)), BL31*(1+S!$BT$206)*(BM5>0)) -> 0 | BN31: =IF(Overrides!$A13, OFFSET(Overrides!$B13, 0, MATCH(BN$4,Overrides!$C$5:$GU$5,0)), BM31*(1+S!$BT$206)*(BN5>0)) -> 0 | BO31: =IF(Overrides!$A13, OFFSET(Overrides!$B13, 0, MATCH(BO$4,Overrides!$C$5:$GU$5,0)), BN31*(1+S!$BT$206)*(BO5>0)) -> 0 | BP31: =IF(Overrides!$A13, OFFSET(Overrides!$B13, 0, MATCH(BP$4,Overrides!$C$5:$GU$5,0)), BO31*(1+S!$BT$206)*(BP5>0)) -> 0 | BQ31: =IF(Overrides!$A13, OFFSET(Overrides!$B13, 0, MATCH(BQ$4,Overrides!$C$5:$GU$5,0)), BP31*(1+S!$BT$206)*(BQ5>0)) -> 0 | BR31: =IF(Overrides!$A13, OFFSET(Overrides!$B13, 0, MATCH(BR$4,Overrides!$C$5:$GU$5,0)), BQ31*(1+S!$BT$206)*(BR5>0)) -> 0 | BS31: =IF(Overrides!$A13, OFFSET(Overrides!$B13, 0, MATCH(BS$4,Overrides!$C$5:$GU$5,0)), BR31*(1+S!$BT$206)*(BS5>0)) -> 0 | BT31: =IF(Overrides!$A13, OFFSET(Overrides!$B13, 0, MATCH(BT$4,Overrides!$C$5:$GU$5,0)), BS31*(1+S!$BT$206)*(BT5>0)) -> 0 | BU31: =IF(Overrides!$A13, OFFSET(Overrides!$B13, 0, MATCH(BU$4,Overrides!$C$5:$GU$5,0)), BT31*(1+S!$BT$206)*(BU5>0)) -> 0 | BV31: =IF(Overrides!$A13, OFFSET(Overrides!$B13, 0, MATCH(BV$4,Overrides!$C$5:$GU$5,0)), BU31*(1+S!$BT$206)*(BV5>0)) -> 0 | BW31: =IF(Overrides!$A13, OFFSET(Overrides!$B13, 0, MATCH(BW$4,Overrides!$C$5:$GU$5,0)), BV31*(1+S!$BT$206)*(BW5>0)) -> 0 | BX31: =IF(Overrides!$A13, OFFSET(Overrides!$B13, 0, MATCH(BX$4,Overrides!$C$5:$GU$5,0)), BW31*(1+S!$BT$206)*(BX5>0)) -> 0 | BY31: =IF(Overrides!$A13, OFFSET(Overrides!$B13, 0, MATCH(BY$4,Overrides!$C$5:$GU$5,0)), BX31*(1+S!$BT$206)*(BY5>0)) -> 0 | BZ31: =IF(Overrides!$A13, OFFSET(Overrides!$B13, 0, MATCH(BZ$4,Overrides!$C$5:$GU$5,0)), BY31*(1+S!$BT$206)*(BZ5>0)) -> 0 | CA31: =IF(Overrides!$A13, OFFSET(Overrides!$B13, 0, MATCH(CA$4,Overrides!$C$5:$GU$5,0)), BZ31*(1+S!$BT$206)*(CA5>0)) -> 0 | CB31: =IF(Overrides!$A13, OFFSET(Overrides!$B13, 0, MATCH(CB$4,Overrides!$C$5:$GU$5,0)), CA31*(1+S!$BT$206)*(CB5>0)) -> 0 | CC31: =IF(Overrides!$A13, OFFSET(Overrides!$B13, 0, MATCH(CC$4,Overrides!$C$5:$GU$5,0)), CB31*(1+S!$BT$206)*(CC5>0)) -> 0 | CD31: =IF(Overrides!$A13, OFFSET(Overrides!$B13, 0, MATCH(CD$4,Overrides!$C$5:$GU$5,0)), CC31*(1+S!$BT$206)*(CD5>0)) -> 0 | CE31: =IF(Overrides!$A13, OFFSET(Overrides!$B13, 0, MATCH(CE$4,Overrides!$C$5:$GU$5,0)), CD31*(1+S!$BT$206)*(CE5>0)) -> 0 | CF31: =IF(Overrides!$A13, OFFSET(Overrides!$B13, 0, MATCH(CF$4,Overrides!$C$5:$GU$5,0)), CE31*(1+S!$BT$206)*(CF5>0)) -> 0 | CG31: =IF(Overrides!$A13, OFFSET(Overrides!$B13, 0, MATCH(CG$4,Overrides!$C$5:$GU$5,0)), CF31*(1+S!$BT$206)*(CG5>0)) -> 0 | CH31: =IF(Overrides!$A13, OFFSET(Overrides!$B13, 0, MATCH(CH$4,Overrides!$C$5:$GU$5,0)), CG31*(1+S!$BT$206)*(CH5>0)) -> 0 | CI31: =IF(Overrides!$A13, OFFSET(Overrides!$B13, 0, MATCH(CI$4,Overrides!$C$5:$GU$5,0)), CH31*(1+S!$BT$206)*(CI5>0)) -> 0 | CJ31: =IF(Overrides!$A13, OFFSET(Overrides!$B13, 0, MATCH(CJ$4,Overrides!$C$5:$GU$5,0)), CI31*(1+S!$BT$206)*(CJ5>0)) -> 0 | CK31: =IF(Overrides!$A13, OFFSET(Overrides!$B13, 0, MATCH(CK$4,Overrides!$C$5:$GU$5,0)), CJ31*(1+S!$BT$206)*(CK5>0)) -> 0 | CL31: =IF(Overrides!$A13, OFFSET(Overrides!$B13, 0, MATCH(CL$4,Overrides!$C$5:$GU$5,0)), CK31*(1+S!$BT$206)*(CL5>0)) -> 0 | CM31: =IF(Overrides!$A13, OFFSET(Overrides!$B13, 0, MATCH(CM$4,Overrides!$C$5:$GU$5,0)), CL31*(1+S!$BT$206)*(CM5>0)) -> 0 | CN31: =IF(Overrides!$A13, OFFSET(Overrides!$B13, 0, MATCH(CN$4,Overrides!$C$5:$GU$5,0)), CM31*(1+S!$BT$206)*(CN5>0)) -> 0 | CO31: =IF(Overrides!$A13, OFFSET(Overrides!$B13, 0, MATCH(CO$4,Overrides!$C$5:$GU$5,0)), CN31*(1+S!$BT$206)*(CO5>0)) -> 0 | CP31: =IF(Overrides!$A13, OFFSET(Overrides!$B13, 0, MATCH(CP$4,Overrides!$C$5:$GU$5,0)), CO31*(1+S!$BT$206)*(CP5>0)) -> 0 | CQ31: =IF(Overrides!$A13, OFFSET(Overrides!$B13, 0, MATCH(CQ$4,Overrides!$C$5:$GU$5,0)), CP31*(1+S!$BT$206)*(CQ5>0)) -> 0 | CR31: =IF(Overrides!$A13, OFFSET(Overrides!$B13, 0, MATCH(CR$4,Overrides!$C$5:$GU$5,0)), CQ31*(1+S!$BT$206)*(CR5>0)) -> 0 | CS31: =IF(Overrides!$A13, OFFSET(Overrides!$B13, 0, MATCH(CS$4,Overrides!$C$5:$GU$5,0)), CR31*(1+S!$BT$206)*(CS5>0)) -> 0 | CT31: =IF(Overrides!$A13, OFFSET(Overrides!$B13, 0, MATCH(CT$4,Overrides!$C$5:$GU$5,0)), CS31*(1+S!$BT$206)*(CT5>0)) -> 0 | CU31: =IF(Overrides!$A13, OFFSET(Overrides!$B13, 0, MATCH(CU$4,Overrides!$C$5:$GU$5,0)), CT31*(1+S!$BT$206)*(CU5>0)) -> 0 | CV31: =IF(Overrides!$A13, OFFSET(Overrides!$B13, 0, MATCH(CV$4,Overrides!$C$5:$GU$5,0)), CU31*(1+S!$BT$206)*(CV5>0)) -> 0 | CW31: =IF(Overrides!$A13, OFFSET(Overrides!$B13, 0, MATCH(CW$4,Overrides!$C$5:$GU$5,0)), CV31*(1+S!$BT$206)*(CW5>0)) -> 0 | CX31: =IF(Overrides!$A13, OFFSET(Overrides!$B13, 0, MATCH(CX$4,Overrides!$C$5:$GU$5,0)), CW31*(1+S!$BT$206)*(CX5>0)) -> 0 | CY31: =IF(Overrides!$A13, OFFSET(Overrides!$B13, 0, MATCH(CY$4,Overrides!$C$5:$GU$5,0)), CX31*(1+S!$BT$206)*(CY5>0)) -> 0
C32: =+Interface!C93 -> Cost of feedstock 3 ($/units of feedstock 3) | D32: 0 | E32: =IF(Overrides!$A14, OFFSET(Overrides!$B14, 0, MATCH(E$4,Overrides!$C$5:$GU$5,0)), S!BU206) -> 0.1 | F32: =IF(Overrides!$A14, OFFSET(Overrides!$B14, 0, MATCH(F$4,Overrides!$C$5:$GU$5,0)), E32*(1+S!$BV$206)*(F5>0)) -> 0.1019 | G32: =IF(Overrides!$A14, OFFSET(Overrides!$B14, 0, MATCH(G$4,Overrides!$C$5:$GU$5,0)), F32*(1+S!$BV$206)*(G5>0)) -> 0.1038361 | H32: =IF(Overrides!$A14, OFFSET(Overrides!$B14, 0, MATCH(H$4,Overrides!$C$5:$GU$5,0)), G32*(1+S!$BV$206)*(H5>0)) -> 0.1058089859 | I32: =IF(Overrides!$A14, OFFSET(Overrides!$B14, 0, MATCH(I$4,Overrides!$C$5:$GU$5,0)), H32*(1+S!$BV$206)*(I5>0)) -> 0.1078193566 | J32: =IF(Overrides!$A14, OFFSET(Overrides!$B14, 0, MATCH(J$4,Overrides!$C$5:$GU$5,0)), I32*(1+S!$BV$206)*(J5>0)) -> 0.1098679244 | K32: =IF(Overrides!$A14, OFFSET(Overrides!$B14, 0, MATCH(K$4,Overrides!$C$5:$GU$5,0)), J32*(1+S!$BV$206)*(K5>0)) -> 0.111955415 | L32: =IF(Overrides!$A14, OFFSET(Overrides!$B14, 0, MATCH(L$4,Overrides!$C$5:$GU$5,0)), K32*(1+S!$BV$206)*(L5>0)) -> 0.1140825679 | M32: =IF(Overrides!$A14, OFFSET(Overrides!$B14, 0, MATCH(M$4,Overrides!$C$5:$GU$5,0)), L32*(1+S!$BV$206)*(M5>0)) -> 0.1162501366 | N32: =IF(Overrides!$A14, OFFSET(Overrides!$B14, 0, MATCH(N$4,Overrides!$C$5:$GU$5,0)), M32*(1+S!$BV$206)*(N5>0)) -> 0.1184588892 | O32: =IF(Overrides!$A14, OFFSET(Overrides!$B14, 0, MATCH(O$4,Overrides!$C$5:$GU$5,0)), N32*(1+S!$BV$206)*(O5>0)) -> 0.1207096081 | P32: =IF(Overrides!$A14, OFFSET(Overrides!$B14, 0, MATCH(P$4,Overrides!$C$5:$GU$5,0)), O32*(1+S!$BV$206)*(P5>0)) -> 0.1230030907 | Q32: =IF(Overrides!$A14, OFFSET(Overrides!$B14, 0, MATCH(Q$4,Overrides!$C$5:$GU$5,0)), P32*(1+S!$BV$206)*(Q5>0)) -> 0.1253401494 | R32: =IF(Overrides!$A14, OFFSET(Overrides!$B14, 0, MATCH(R$4,Overrides!$C$5:$GU$5,0)), Q32*(1+S!$BV$206)*(R5>0)) -> 0.1277216123 | S32: =IF(Overrides!$A14, OFFSET(Overrides!$B14, 0, MATCH(S$4,Overrides!$C$5:$GU$5,0)), R32*(1+S!$BV$206)*(S5>0)) -> 0.1301483229 | T32: =IF(Overrides!$A14, OFFSET(Overrides!$B14, 0, MATCH(T$4,Overrides!$C$5:$GU$5,0)), S32*(1+S!$BV$206)*(T5>0)) -> 0.132621141 | U32: =IF(Overrides!$A14, OFFSET(Overrides!$B14, 0, MATCH(U$4,Overrides!$C$5:$GU$5,0)), T32*(1+S!$BV$206)*(U5>0)) -> 0 | V32: =IF(Overrides!$A14, OFFSET(Overrides!$B14, 0, MATCH(V$4,Overrides!$C$5:$GU$5,0)), U32*(1+S!$BV$206)*(V5>0)) -> 0 | W32: =IF(Overrides!$A14, OFFSET(Overrides!$B14, 0, MATCH(W$4,Overrides!$C$5:$GU$5,0)), V32*(1+S!$BV$206)*(W5>0)) -> 0 | X32: =IF(Overrides!$A14, OFFSET(Overrides!$B14, 0, MATCH(X$4,Overrides!$C$5:$GU$5,0)), W32*(1+S!$BV$206)*(X5>0)) -> 0 | Y32: =IF(Overrides!$A14, OFFSET(Overrides!$B14, 0, MATCH(Y$4,Overrides!$C$5:$GU$5,0)), X32*(1+S!$BV$206)*(Y5>0)) -> 0 | Z32: =IF(Overrides!$A14, OFFSET(Overrides!$B14, 0, MATCH(Z$4,Overrides!$C$5:$GU$5,0)), Y32*(1+S!$BV$206)*(Z5>0)) -> 0 | AA32: =IF(Overrides!$A14, OFFSET(Overrides!$B14, 0, MATCH(AA$4,Overrides!$C$5:$GU$5,0)), Z32*(1+S!$BV$206)*(AA5>0)) -> 0 | AB32: =IF(Overrides!$A14, OFFSET(Overrides!$B14, 0, MATCH(AB$4,Overrides!$C$5:$GU$5,0)), AA32*(1+S!$BV$206)*(AB5>0)) -> 0 | AC32: =IF(Overrides!$A14, OFFSET(Overrides!$B14, 0, MATCH(AC$4,Overrides!$C$5:$GU$5,0)), AB32*(1+S!$BV$206)*(AC5>0)) -> 0 | AD32: =IF(Overrides!$A14, OFFSET(Overrides!$B14, 0, MATCH(AD$4,Overrides!$C$5:$GU$5,0)), AC32*(1+S!$BV$206)*(AD5>0)) -> 0 | AE32: =IF(Overrides!$A14, OFFSET(Overrides!$B14, 0, MATCH(AE$4,Overrides!$C$5:$GU$5,0)), AD32*(1+S!$BV$206)*(AE5>0)) -> 0 | AF32: =IF(Overrides!$A14, OFFSET(Overrides!$B14, 0, MATCH(AF$4,Overrides!$C$5:$GU$5,0)), AE32*(1+S!$BV$206)*(AF5>0)) -> 0 | AG32: =IF(Overrides!$A14, OFFSET(Overrides!$B14, 0, MATCH(AG$4,Overrides!$C$5:$GU$5,0)), AF32*(1+S!$BV$206)*(AG5>0)) -> 0 | AH32: =IF(Overrides!$A14, OFFSET(Overrides!$B14, 0, MATCH(AH$4,Overrides!$C$5:$GU$5,0)), AG32*(1+S!$BV$206)*(AH5>0)) -> 0 | AI32: =IF(Overrides!$A14, OFFSET(Overrides!$B14, 0, MATCH(AI$4,Overrides!$C$5:$GU$5,0)), AH32*(1+S!$BV$206)*(AI5>0)) -> 0 | AJ32: =IF(Overrides!$A14, OFFSET(Overrides!$B14, 0, MATCH(AJ$4,Overrides!$C$5:$GU$5,0)), AI32*(1+S!$BV$206)*(AJ5>0)) -> 0 | AK32: =IF(Overrides!$A14, OFFSET(Overrides!$B14, 0, MATCH(AK$4,Overrides!$C$5:$GU$5,0)), AJ32*(1+S!$BV$206)*(AK5>0)) -> 0 | AL32: =IF(Overrides!$A14, OFFSET(Overrides!$B14, 0, MATCH(AL$4,Overrides!$C$5:$GU$5,0)), AK32*(1+S!$BV$206)*(AL5>0)) -> 0 | AM32: =IF(Overrides!$A14, OFFSET(Overrides!$B14, 0, MATCH(AM$4,Overrides!$C$5:$GU$5,0)), AL32*(1+S!$BV$206)*(AM5>0)) -> 0 | AN32: =IF(Overrides!$A14, OFFSET(Overrides!$B14, 0, MATCH(AN$4,Overrides!$C$5:$GU$5,0)), AM32*(1+S!$BV$206)*(AN5>0)) -> 0 | AO32: =IF(Overrides!$A14, OFFSET(Overrides!$B14, 0, MATCH(AO$4,Overrides!$C$5:$GU$5,0)), AN32*(1+S!$BV$206)*(AO5>0)) -> 0 | AP32: =IF(Overrides!$A14, OFFSET(Overrides!$B14, 0, MATCH(AP$4,Overrides!$C$5:$GU$5,0)), AO32*(1+S!$BV$206)*(AP5>0)) -> 0 | AQ32: =IF(Overrides!$A14, OFFSET(Overrides!$B14, 0, MATCH(AQ$4,Overrides!$C$5:$GU$5,0)), AP32*(1+S!$BV$206)*(AQ5>0)) -> 0 | AR32: =IF(Overrides!$A14, OFFSET(Overrides!$B14, 0, MATCH(AR$4,Overrides!$C$5:$GU$5,0)), AQ32*(1+S!$BV$206)*(AR5>0)) -> 0 | AS32: =IF(Overrides!$A14, OFFSET(Overrides!$B14, 0, MATCH(AS$4,Overrides!$C$5:$GU$5,0)), AR32*(1+S!$BV$206)*(AS5>0)) -> 0 | AT32: =IF(Overrides!$A14, OFFSET(Overrides!$B14, 0, MATCH(AT$4,Overrides!$C$5:$GU$5,0)), AS32*(1+S!$BV$206)*(AT5>0)) -> 0 | AU32: =IF(Overrides!$A14, OFFSET(Overrides!$B14, 0, MATCH(AU$4,Overrides!$C$5:$GU$5,0)), AT32*(1+S!$BV$206)*(AU5>0)) -> 0 | AV32: =IF(Overrides!$A14, OFFSET(Overrides!$B14, 0, MATCH(AV$4,Overrides!$C$5:$GU$5,0)), AU32*(1+S!$BV$206)*(AV5>0)) -> 0 | AW32: =IF(Overrides!$A14, OFFSET(Overrides!$B14, 0, MATCH(AW$4,Overrides!$C$5:$GU$5,0)), AV32*(1+S!$BV$206)*(AW5>0)) -> 0 | AX32: =IF(Overrides!$A14, OFFSET(Overrides!$B14, 0, MATCH(AX$4,Overrides!$C$5:$GU$5,0)), AW32*(1+S!$BV$206)*(AX5>0)) -> 0 | AY32: =IF(Overrides!$A14, OFFSET(Overrides!$B14, 0, MATCH(AY$4,Overrides!$C$5:$GU$5,0)), AX32*(1+S!$BV$206)*(AY5>0)) -> 0 | AZ32: =IF(Overrides!$A14, OFFSET(Overrides!$B14, 0, MATCH(AZ$4,Overrides!$C$5:$GU$5,0)), AY32*(1+S!$BV$206)*(AZ5>0)) -> 0 | BA32: =IF(Overrides!$A14, OFFSET(Overrides!$B14, 0, MATCH(BA$4,Overrides!$C$5:$GU$5,0)), AZ32*(1+S!$BV$206)*(BA5>0)) -> 0 | BB32: =IF(Overrides!$A14, OFFSET(Overrides!$B14, 0, MATCH(BB$4,Overrides!$C$5:$GU$5,0)), BA32*(1+S!$BV$206)*(BB5>0)) -> 0 | BC32: =IF(Overrides!$A14, OFFSET(Overrides!$B14, 0, MATCH(BC$4,Overrides!$C$5:$GU$5,0)), BB32*(1+S!$BV$206)*(BC5>0)) -> 0 | BD32: =IF(Overrides!$A14, OFFSET(Overrides!$B14, 0, MATCH(BD$4,Overrides!$C$5:$GU$5,0)), BC32*(1+S!$BV$206)*(BD5>0)) -> 0 | BE32: =IF(Overrides!$A14, OFFSET(Overrides!$B14, 0, MATCH(BE$4,Overrides!$C$5:$GU$5,0)), BD32*(1+S!$BV$206)*(BE5>0)) -> 0 | BF32: =IF(Overrides!$A14, OFFSET(Overrides!$B14, 0, MATCH(BF$4,Overrides!$C$5:$GU$5,0)), BE32*(1+S!$BV$206)*(BF5>0)) -> 0 | BG32: =IF(Overrides!$A14, OFFSET(Overrides!$B14, 0, MATCH(BG$4,Overrides!$C$5:$GU$5,0)), BF32*(1+S!$BV$206)*(BG5>0)) -> 0 | BH32: =IF(Overrides!$A14, OFFSET(Overrides!$B14, 0, MATCH(BH$4,Overrides!$C$5:$GU$5,0)), BG32*(1+S!$BV$206)*(BH5>0)) -> 0 | BI32: =IF(Overrides!$A14, OFFSET(Overrides!$B14, 0, MATCH(BI$4,Overrides!$C$5:$GU$5,0)), BH32*(1+S!$BV$206)*(BI5>0)) -> 0 | BJ32: =IF(Overrides!$A14, OFFSET(Overrides!$B14, 0, MATCH(BJ$4,Overrides!$C$5:$GU$5,0)), BI32*(1+S!$BV$206)*(BJ5>0)) -> 0 | BK32: =IF(Overrides!$A14, OFFSET(Overrides!$B14, 0, MATCH(BK$4,Overrides!$C$5:$GU$5,0)), BJ32*(1+S!$BV$206)*(BK5>0)) -> 0 | BL32: =IF(Overrides!$A14, OFFSET(Overrides!$B14, 0, MATCH(BL$4,Overrides!$C$5:$GU$5,0)), BK32*(1+S!$BV$206)*(BL5>0)) -> 0 | BM32: =IF(Overrides!$A14, OFFSET(Overrides!$B14, 0, MATCH(BM$4,Overrides!$C$5:$GU$5,0)), BL32*(1+S!$BV$206)*(BM5>0)) -> 0 | BN32: =IF(Overrides!$A14, OFFSET(Overrides!$B14, 0, MATCH(BN$4,Overrides!$C$5:$GU$5,0)), BM32*(1+S!$BV$206)*(BN5>0)) -> 0 | BO32: =IF(Overrides!$A14, OFFSET(Overrides!$B14, 0, MATCH(BO$4,Overrides!$C$5:$GU$5,0)), BN32*(1+S!$BV$206)*(BO5>0)) -> 0 | BP32: =IF(Overrides!$A14, OFFSET(Overrides!$B14, 0, MATCH(BP$4,Overrides!$C$5:$GU$5,0)), BO32*(1+S!$BV$206)*(BP5>0)) -> 0 | BQ32: =IF(Overrides!$A14, OFFSET(Overrides!$B14, 0, MATCH(BQ$4,Overrides!$C$5:$GU$5,0)), BP32*(1+S!$BV$206)*(BQ5>0)) -> 0 | BR32: =IF(Overrides!$A14, OFFSET(Overrides!$B14, 0, MATCH(BR$4,Overrides!$C$5:$GU$5,0)), BQ32*(1+S!$BV$206)*(BR5>0)) -> 0 | BS32: =IF(Overrides!$A14, OFFSET(Overrides!$B14, 0, MATCH(BS$4,Overrides!$C$5:$GU$5,0)), BR32*(1+S!$BV$206)*(BS5>0)) -> 0 | BT32: =IF(Overrides!$A14, OFFSET(Overrides!$B14, 0, MATCH(BT$4,Overrides!$C$5:$GU$5,0)), BS32*(1+S!$BV$206)*(BT5>0)) -> 0 | BU32: =IF(Overrides!$A14, OFFSET(Overrides!$B14, 0, MATCH(BU$4,Overrides!$C$5:$GU$5,0)), BT32*(1+S!$BV$206)*(BU5>0)) -> 0 | BV32: =IF(Overrides!$A14, OFFSET(Overrides!$B14, 0, MATCH(BV$4,Overrides!$C$5:$GU$5,0)), BU32*(1+S!$BV$206)*(BV5>0)) -> 0 | BW32: =IF(Overrides!$A14, OFFSET(Overrides!$B14, 0, MATCH(BW$4,Overrides!$C$5:$GU$5,0)), BV32*(1+S!$BV$206)*(BW5>0)) -> 0 | BX32: =IF(Overrides!$A14, OFFSET(Overrides!$B14, 0, MATCH(BX$4,Overrides!$C$5:$GU$5,0)), BW32*(1+S!$BV$206)*(BX5>0)) -> 0 | BY32: =IF(Overrides!$A14, OFFSET(Overrides!$B14, 0, MATCH(BY$4,Overrides!$C$5:$GU$5,0)), BX32*(1+S!$BV$206)*(BY5>0)) -> 0 | BZ32: =IF(Overrides!$A14, OFFSET(Overrides!$B14, 0, MATCH(BZ$4,Overrides!$C$5:$GU$5,0)), BY32*(1+S!$BV$206)*(BZ5>0)) -> 0 | CA32: =IF(Overrides!$A14, OFFSET(Overrides!$B14, 0, MATCH(CA$4,Overrides!$C$5:$GU$5,0)), BZ32*(1+S!$BV$206)*(CA5>0)) -> 0 | CB32: =IF(Overrides!$A14, OFFSET(Overrides!$B14, 0, MATCH(CB$4,Overrides!$C$5:$GU$5,0)), CA32*(1+S!$BV$206)*(CB5>0)) -> 0 | CC32: =IF(Overrides!$A14, OFFSET(Overrides!$B14, 0, MATCH(CC$4,Overrides!$C$5:$GU$5,0)), CB32*(1+S!$BV$206)*(CC5>0)) -> 0 | CD32: =IF(Overrides!$A14, OFFSET(Overrides!$B14, 0, MATCH(CD$4,Overrides!$C$5:$GU$5,0)), CC32*(1+S!$BV$206)*(CD5>0)) -> 0 | CE32: =IF(Overrides!$A14, OFFSET(Overrides!$B14, 0, MATCH(CE$4,Overrides!$C$5:$GU$5,0)), CD32*(1+S!$BV$206)*(CE5>0)) -> 0 | CF32: =IF(Overrides!$A14, OFFSET(Overrides!$B14, 0, MATCH(CF$4,Overrides!$C$5:$GU$5,0)), CE32*(1+S!$BV$206)*(CF5>0)) -> 0 | CG32: =IF(Overrides!$A14, OFFSET(Overrides!$B14, 0, MATCH(CG$4,Overrides!$C$5:$GU$5,0)), CF32*(1+S!$BV$206)*(CG5>0)) -> 0 | CH32: =IF(Overrides!$A14, OFFSET(Overrides!$B14, 0, MATCH(CH$4,Overrides!$C$5:$GU$5,0)), CG32*(1+S!$BV$206)*(CH5>0)) -> 0 | CI32: =IF(Overrides!$A14, OFFSET(Overrides!$B14, 0, MATCH(CI$4,Overrides!$C$5:$GU$5,0)), CH32*(1+S!$BV$206)*(CI5>0)) -> 0 | CJ32: =IF(Overrides!$A14, OFFSET(Overrides!$B14, 0, MATCH(CJ$4,Overrides!$C$5:$GU$5,0)), CI32*(1+S!$BV$206)*(CJ5>0)) -> 0 | CK32: =IF(Overrides!$A14, OFFSET(Overrides!$B14, 0, MATCH(CK$4,Overrides!$C$5:$GU$5,0)), CJ32*(1+S!$BV$206)*(CK5>0)) -> 0 | CL32: =IF(Overrides!$A14, OFFSET(Overrides!$B14, 0, MATCH(CL$4,Overrides!$C$5:$GU$5,0)), CK32*(1+S!$BV$206)*(CL5>0)) -> 0 | CM32: =IF(Overrides!$A14, OFFSET(Overrides!$B14, 0, MATCH(CM$4,Overrides!$C$5:$GU$5,0)), CL32*(1+S!$BV$206)*(CM5>0)) -> 0 | CN32: =IF(Overrides!$A14, OFFSET(Overrides!$B14, 0, MATCH(CN$4,Overrides!$C$5:$GU$5,0)), CM32*(1+S!$BV$206)*(CN5>0)) -> 0 | CO32: =IF(Overrides!$A14, OFFSET(Overrides!$B14, 0, MATCH(CO$4,Overrides!$C$5:$GU$5,0)), CN32*(1+S!$BV$206)*(CO5>0)) -> 0 | CP32: =IF(Overrides!$A14, OFFSET(Overrides!$B14, 0, MATCH(CP$4,Overrides!$C$5:$GU$5,0)), CO32*(1+S!$BV$206)*(CP5>0)) -> 0 | CQ32: =IF(Overrides!$A14, OFFSET(Overrides!$B14, 0, MATCH(CQ$4,Overrides!$C$5:$GU$5,0)), CP32*(1+S!$BV$206)*(CQ5>0)) -> 0 | CR32: =IF(Overrides!$A14, OFFSET(Overrides!$B14, 0, MATCH(CR$4,Overrides!$C$5:$GU$5,0)), CQ32*(1+S!$BV$206)*(CR5>0)) -> 0 | CS32: =IF(Overrides!$A14, OFFSET(Overrides!$B14, 0, MATCH(CS$4,Overrides!$C$5:$GU$5,0)), CR32*(1+S!$BV$206)*(CS5>0)) -> 0 | CT32: =IF(Overrides!$A14, OFFSET(Overrides!$B14, 0, MATCH(CT$4,Overrides!$C$5:$GU$5,0)), CS32*(1+S!$BV$206)*(CT5>0)) -> 0 | CU32: =IF(Overrides!$A14, OFFSET(Overrides!$B14, 0, MATCH(CU$4,Overrides!$C$5:$GU$5,0)), CT32*(1+S!$BV$206)*(CU5>0)) -> 0 | CV32: =IF(Overrides!$A14, OFFSET(Overrides!$B14, 0, MATCH(CV$4,Overrides!$C$5:$GU$5,0)), CU32*(1+S!$BV$206)*(CV5>0)) -> 0 | CW32: =IF(Overrides!$A14, OFFSET(Overrides!$B14, 0, MATCH(CW$4,Overrides!$C$5:$GU$5,0)), CV32*(1+S!$BV$206)*(CW5>0)) -> 0 | CX32: =IF(Overrides!$A14, OFFSET(Overrides!$B14, 0, MATCH(CX$4,Overrides!$C$5:$GU$5,0)), CW32*(1+S!$BV$206)*(CX5>0)) -> 0 | CY32: =IF(Overrides!$A14, OFFSET(Overrides!$B14, 0, MATCH(CY$4,Overrides!$C$5:$GU$5,0)), CX32*(1+S!$BV$206)*(CY5>0)) -> 0
